{"text_format":"1","workbook":"xlsx","n_sheets":14,"sheets":["1. Info","2016 List","Sheet1","2. Table of Contents","3. RRR Data","4. UTRs and Sub-Transmission","5. Historical Wholesale","6. Current Wholesale","7. Forecast Wholesale","8. RTSR Rates to Forecast","RateClasses","DELETE 3. Rate Classes","2 1 5 TotalConsumptionData_Dist","hidden1"],"not_rendered":{"charts":0,"images":3,"macros":1,"external_links":8,"defined_names":138,"comments":0,"pivot_tables":0},"unopened":[],"bounds":{"document_bytes":16777216,"sheet_cells":100000,"rows_first":2000,"rows_last":500,"rows_between":2000,"halvings":0,"cell_chars":16384,"cell_head_chars":4096},"cells_cut":0,"cells_raw":0,"read":"whole","date_system":"1900"}

{"sheet":"1. Info","index":0,"n_rows":73,"n_cols":29,"rows_kept":73,"cut":false,"hidden":false,"merged":[[22,3,22,4],[18,3,18,4],[1,2,1,9],[2,2,2,9],[3,2,3,9],[4,2,4,9],[14,3,14,4]]}
[null,null,null,null,null,null,null,null,null,null,null,null,null,null,null,null,null,null,null,null,null,null,null,null,null,null,null,"Alectra Utilities Corporation-Brampton Rate Zone","2021 RTSR Workform \nfor Electricity Distributors\n"]
[null,null,null,null,null,null,null,null,null,null,null,null,null,null,null,null,null,null,null,null,null,null,null,null,null,null,null,"Alectra Utilities Corporation-Enersource Rate Zone","v 1.0\n"]
[null,null,null,null,null,null,null,null,null,null,null,null,null,null,null,null,null,null,null,null,null,null,null,null,null,null,null,"Alectra Utilities Corporation-Horizon Utilities Rate Zone"]
[null,null,null,null,null,null,null,null,null,null,null,null,null,null,null,null,null,null,null,null,null,null,null,null,null,null,null,"Alectra Utilities Corporation-PowerStream Rate Zone"]
[null,null,null,null,null,null,null,null,null,null,null,null,null,null,null,null,null,null,null,null,null,null,null,null,null,null,null,"Alectra Utilities Corporation-Guelph Rate Zone"]
[null,null,null,null,null,null,null,null,null,null,null,null,null,null,null,null,null,null,null,null,null,null,null,null,null,null,null,"Algoma Power Inc."]
[null,null,null,null,null,null,null,null,null,null,null,null,null,null,null,null,null,null,null,null,null,null,null,null,null,null,null,"Atikokan Hydro Inc."]
[null,null,null,null,null,null,null,null,null,null,null,null,null,null,null,null,null,null,null,null,null,null,null,null,null,null,null,"Bluewater Power Distribution Corporation"]
[null,null,null,null,null,null,null,null,null,null,null,null,null,null,null,null,null,null,null,null,null,null,null,null,null,null,null,"Brantford Power Inc."]
[null,null,null,null,null,null,null,null,null,null,null,null,null,null,null,null,null,null,null,null,null,null,null,null,null,null,null,"Burlington Hydro Inc."]
[null,null,null,null,null,null,null,null,null,null,null,null,null,null,null,null,null,null,null,null,null,null,null,null,null,null,null,"Canadian Niagara Power Inc."]
[null,null,null,null,null,null,null,null,null,null,null,null,null,null,null,null,null,null,null,null,null,null,null,null,null,null,null,"Centre Wellington Hydro Ltd."]
["Drop-down lists are shaded blue; Input cells are shaded green.",null,null,null,null,null,null,null,null,null,null,null,null,null,null,null,null,null,null,null,null,null,null,null,null,null,null,"Chapleau Public Utilities Corporation"]
[null,null,null,null,null,null,null,null,null,null,null,null,null,null,null,null,null,null,null,null,null,null,null,null,null,null,null,"Cooperative Hydro Embrun Inc."]
[null,null,"Utility Name   ","Lakefront Utilities Inc.",null,null,null,null,null,null,null,null,null,null,null,null,null,null,null,null,null,null,null,null,null,null,null,"E.L.K. Energy Inc."]
[null,null,null,null,null,null,null,null,null,null,null,null,null,null,null,null,null,null,null,null,null,null,null,null,null,null,null,"Elexicon Energy Inc.-Whitby Rate Zone"]
[null,null,"Assigned EB Number","EB-2021-0039",null,null,null,null,null,null,null,null,null,null,null,null,null,null,null,null,null,null,null,null,null,null,null,"Elexicon Energy Inc.-Veridian Rate Zone"]
[null,null,null,null,null,null,null,null,null,null,null,null,null,null,null,null,null,null,null,null,null,null,null,null,null,null,null,"Energy+ Inc."]
[null,null,"Name and Title of Contact","Adam Giddings, Director of Regulatory Finance",null,null,null,null,null,null,null,null,null,null,null,null,null,null,null,null,null,null,null,null,null,null,null,"Entegrus Powerlines Inc.-For Entegrus-Main Rate Zone"]
[null,null,null,null,null,null,null,null,null,null,null,null,null,null,null,null,null,null,null,null,null,null,null,null,null,null,null,"Entegrus Powerlines Inc.-For Former St. Thomas Energy Rate Zone"]
[null,null,"Phone Number","905-372-2193 ext: 5242",null,null,null,null,null,null,null,null,null,null,null,null,null,null,null,null,null,null,null,null,null,null,null,"ENWIN Utilities Ltd."]
[null,null,null,null,null,null,null,null,null,null,null,null,null,null,null,null,null,null,null,null,null,null,null,null,null,null,null,"EPCOR Electricity Distribution Ontario Inc."]
[null,null,"Email Address","agiddings@lusi.on.ca",null,null,null,null,null,null,null,null,null,null,null,null,null,null,null,null,null,null,null,null,null,null,null,"ERTH Power Corporation - ERTH Power Main Rate Zone"]
[null,null,null,null,null,null,null,null,null,null,null,null,null,null,null,null,null,null,null,null,null,null,null,null,null,null,null,"ERTH POWER CORPORATION – GODERICH RATE ZONE"]
[null,null,"Last COS Re-based Year",2017,null,null,null,null,null,null,null,null,null,null,null,null,null,null,null,null,null,null,null,null,null,null,null,"Essex Powerlines Corporation"]
[null,null,null,null,null,null,null,null,null,null,null,null,null,null,null,null,null,null,null,null,null,null,null,null,null,null,null,"Festival Hydro Inc."]
[null,null,null,null,null,null,null,null,null,null,null,null,null,null,null,null,null,null,null,null,null,null,null,null,null,null,null,"Fort Frances Power Corporation"]
[null,null,null,null,null,null,null,null,null,null,null,null,null,null,null,null,null,null,null,null,null,null,null,null,null,null,null,"Greater Sudbury Hydro Inc."]
[null,null,null,null,null,null,null,null,null,null,null,null,null,null,null,null,null,null,null,null,null,null,null,null,null,null,null,"Grimsby Power Incorporated"]
[null,null,null,null,null,null,null,null,null,null,null,null,null,null,null,null,null,null,null,null,null,null,null,null,null,null,null,"Halton Hills Hydro Inc."]
[null,null,null,null,null,null,null,null,null,null,null,null,null,null,null,null,null,null,null,null,null,null,null,null,null,null,null,"Hearst Power Distribution Co. Ltd."]
[null,null,null,null,null,null,null,null,null,null,null,null,null,null,null,null,null,null,null,null,null,null,null,null,null,null,null,"Hydro 2000 Inc."]
[null,null,null,null,null,null,null,null,null,null,null,null,null,null,null,null,null,null,null,null,null,null,null,null,null,null,null,"Hydro Hawkesbury Inc."]
[null,null,null,null,null,null,null,null,null,null,null,null,null,null,null,null,null,null,null,null,null,null,null,null,null,null,null,"Hydro One Networks Inc."]
[null,null,null,null,null,null,null,null,null,null,null,null,null,null,null,null,null,null,null,null,null,null,null,null,null,null,null,"Hydro One Networks Inc.-Former Haldimand County Hydro Inc. Service Area"]
[null,null,null,null,null,null,null,null,null,null,null,null,null,null,null,null,null,null,null,null,null,null,null,null,null,null,null,"Hydro One Networks Inc.-Former Norfolk Power Distribution Inc. Service Area"]
[null,null,null,null,null,null,null,null,null,null,null,null,null,null,null,null,null,null,null,null,null,null,null,null,null,null,null,"Hydro One Networks Inc.-Former Woodstock Hydro Services Inc. Service Area"]
[null,null,null,null,null,null,null,null,null,null,null,null,null,null,null,null,null,null,null,null,null,null,null,null,null,null,null,"Hydro One Remote Communites Inc."]
[null,null,null,null,null,null,null,null,null,null,null,null,null,null,null,null,null,null,null,null,null,null,null,null,null,null,null,"Hydro Ottawa Limited"]
[null,null,null,null,null,null,null,null,null,null,null,null,null,null,null,null,null,null,null,null,null,null,null,null,null,null,null,"InnPower Corporation"]
[null,null,null,null,null,null,null,null,null,null,null,null,null,null,null,null,null,null,null,null,null,null,null,null,null,null,null,"Kingston Hydro Corporation"]
[null,null,null,null,null,null,null,null,null,null,null,null,null,null,null,null,null,null,null,null,null,null,null,null,null,null,null,"Kitchener-Wilmot Hydro Inc."]
[null,null,null,null,null,null,null,null,null,null,null,null,null,null,null,null,null,null,null,null,null,null,null,null,null,null,null,"Lakefront Utilities Inc."]
[null,null,null,null,null,null,null,null,null,null,null,null,null,null,null,null,null,null,null,null,null,null,null,null,null,null,null,"Lakeland Power Distribution Ltd."]
[null,null,null,null,null,null,null,null,null,null,null,null,null,null,null,null,null,null,null,null,null,null,null,null,null,null,null,"Lakeland Power Distribution Ltd.-Parry Sound Service Area"]
[null,null,null,null,null,null,null,null,null,null,null,null,null,null,null,null,null,null,null,null,null,null,null,null,null,null,null,"London Hydro Inc."]
[null,null,null,null,null,null,null,null,null,null,null,null,null,null,null,null,null,null,null,null,null,null,null,null,null,null,null,"Milton Hydro Distribution Inc."]
[null,null,null,null,null,null,null,null,null,null,null,null,null,null,null,null,null,null,null,null,null,null,null,null,null,null,null,"Newmarket-Tay Power Distribution Ltd.-For Former Midland Power Utility Rate Zone"]
[null,null,null,null,null,null,null,null,null,null,null,null,null,null,null,null,null,null,null,null,null,null,null,null,null,null,null,"Newmarket-Tay Power Distribution Ltd.-For Newmarket-Tay Power Main Rate Zone"]
[null,null,null,null,null,null,null,null,null,null,null,null,null,null,null,null,null,null,null,null,null,null,null,null,null,null,null,"Niagara Peninsula Energy Inc."]
[null,null,null,null,null,null,null,null,null,null,null,null,null,null,null,null,null,null,null,null,null,null,null,null,null,null,null,"Niagara-on-the-Lake Hydro Inc."]
[null,null,null,null,null,null,null,null,null,null,null,null,null,null,null,null,null,null,null,null,null,null,null,null,null,null,null,"North Bay Hydro Distribution Limited - Espanola service territory"]
[null,null,null,null,null,null,null,null,null,null,null,null,null,null,null,null,null,null,null,null,null,null,null,null,null,null,null,"North Bay Hydro Distribution Limited - North Bay service territory"]
[null,null,null,null,null,null,null,null,null,null,null,null,null,null,null,null,null,null,null,null,null,null,null,null,null,null,null,"Northern Ontario Wires Inc."]
[null,null,null,null,null,null,null,null,null,null,null,null,null,null,null,null,null,null,null,null,null,null,null,null,null,null,null,"Oakville Hydro Electricity Distribution Inc."]
[null,null,null,null,null,null,null,null,null,null,null,null,null,null,null,null,null,null,null,null,null,null,null,null,null,null,null,"Orangeville Hydro Limited"]
[null,null,null,null,null,null,null,null,null,null,null,null,null,null,null,null,null,null,null,null,null,null,null,null,null,null,null,"Orillia Power Distribution Corporation"]
[null,null,null,null,null,null,null,null,null,null,null,null,null,null,null,null,null,null,null,null,null,null,null,null,null,null,null,"Oshawa PUC Networks Inc."]
[null,null,null,null,null,null,null,null,null,null,null,null,null,null,null,null,null,null,null,null,null,null,null,null,null,null,null,"Ottawa River Power Corporation"]
[null,null,null,null,null,null,null,null,null,null,null,null,null,null,null,null,null,null,null,null,null,null,null,null,null,null,null,"Peterborough Distribution Incorporated"]
[null,null,null,null,null,null,null,null,null,null,null,null,null,null,null,null,null,null,null,null,null,null,null,null,null,null,null,"PUC Distribution Inc."]
[null,null,null,null,null,null,null,null,null,null,null,null,null,null,null,null,null,null,null,null,null,null,null,null,null,null,null,"Renfrew Hydro Inc."]
[null,null,null,null,null,null,null,null,null,null,null,null,null,null,null,null,null,null,null,null,null,null,null,null,null,null,null,"Rideau St. Lawrence Distribution Inc."]
[null,null,null,null,null,null,null,null,null,null,null,null,null,null,null,null,null,null,null,null,null,null,null,null,null,null,null,"Sioux Lookout Hydro Inc."]
[null,null,null,null,null,null,null,null,null,null,null,null,null,null,null,null,null,null,null,null,null,null,null,null,null,null,null,"Synergy North Corporation-Kenora Rate Zone"]
[null,null,null,null,null,null,null,null,null,null,null,null,null,null,null,null,null,null,null,null,null,null,null,null,null,null,null,"Synergy North Corporation-Thunder Bay Rate Zone "]
[null,null,null,null,null,null,null,null,null,null,null,null,null,null,null,null,null,null,null,null,null,null,null,null,null,null,null,"Tillsonburg Hydro Inc."]
[null,null,null,null,null,null,null,null,null,null,null,null,null,null,null,null,null,null,null,null,null,null,null,null,null,null,null,"Toronto Hydro-Electric System Limited"]
[null,null,null,null,null,null,null,null,null,null,null,null,null,null,null,null,null,null,null,null,null,null,null,null,null,null,null,"Wasaga Distribution Inc."]
[null,null,null,null,null,null,null,null,null,null,null,null,null,null,null,null,null,null,null,null,null,null,null,null,null,null,null,"Waterloo North Hydro Inc."]
[null,null,null,null,null,null,null,null,null,null,null,null,null,null,null,null,null,null,null,null,null,null,null,null,null,null,null,"Welland Hydro-Electric System Corp."]
[null,null,null,null,null,null,null,null,null,null,null,null,null,null,null,null,null,null,null,null,null,null,null,null,null,null,null,"Wellington North Power Inc."]
[null,null,null,null,null,null,null,null,null,null,null,null,null,null,null,null,null,null,null,null,null,null,null,null,null,null,null,"Westario Power Inc."]

{"sheet":"2016 List","index":1,"n_rows":73,"n_cols":2,"rows_kept":73,"cut":false,"hidden":true,"merged":[]}
["Alectra Utilities Corporation-Brampton Rate Zone","HHPNS717"]
["Alectra Utilities Corporation-Enersource Rate Zone","HHPNS717"]
["Alectra Utilities Corporation-Horizon Utilities Rate Zone","HHPNS717"]
["Alectra Utilities Corporation-PowerStream Rate Zone","HHPNS717"]
["Alectra Utilities Corporation-Guelph Rate Zone","HHPNS717"]
["Algoma Power Inc.","WKBSV849"]
["Atikokan Hydro Inc.","NJYBW716"]
["Bluewater Power Distribution Corporation","GQQHM388"]
["Brantford Power Inc.","SFXZP935"]
["Burlington Hydro Inc.","OARZC118"]
["Canadian Niagara Power Inc.","HJHBH994"]
["Centre Wellington Hydro Ltd.","KQEEH473"]
["Chapleau Public Utilities Corporation","CPEFQ593"]
["Cooperative Hydro Embrun Inc.","QXHJU641"]
["E.L.K. Energy Inc.","AVXSO594"]
["Elexicon Energy Inc.-Whitby Rate Zone","JMNNR431"]
["Elexicon Energy Inc.-Veridian Rate Zone","JMNNR431"]
["Energy+ Inc.","JKBZG525"]
["Entegrus Powerlines Inc.-For Entegrus-Main Rate Zone","YEOQG654"]
["Entegrus Powerlines Inc.-For Former St. Thomas Energy Rate Zone","YEOQG654"]
["ENWIN Utilities Ltd.","PTLUC812"]
["EPCOR Electricity Distribution Ontario Inc.","ADICB565"]
["ERTH Power Corporation - ERTH Power Main Rate Zone","LRECV427"]
["ERTH POWER CORPORATION – GODERICH RATE ZONE","KTCNY552"]
["Espanola Regional Hydro Distribution Corporation","YEPCI143"]
["Essex Powerlines Corporation","GRHTW113"]
["Festival Hydro Inc.","GMGHU415"]
["Fort Frances Power Corporation","YTPWF351"]
["Greater Sudbury Hydro Inc.","YCYKQ642"]
["Grimsby Power Incorporated","ADZFM459"]
["Halton Hills Hydro Inc.","RVWKN794"]
["Hearst Power Distribution Co. Ltd.","KESKM585"]
["Hydro 2000 Inc.","MQFNL784"]
["Hydro Hawkesbury Inc.","FNDHH648"]
["Hydro One Networks Inc.","PTREM828"]
["Hydro One Networks Inc.-Former Haldimand County Hydro Inc. Service Area","PTREM828"]
["Hydro One Networks Inc.-Former Norfolk Power Distribution Inc. Service Area","PTREM828"]
["Hydro One Networks Inc.-Former Woodstock Hydro Services Inc. Service Area","PTREM828"]
["Hydro One Remote Communites Inc.","UBBYF452"]
["Hydro Ottawa Limited","NSBED625"]
["InnPower Corporation","TXKTT167"]
["Kingston Hydro Corporation","ZHKLA874"]
["Kitchener-Wilmot Hydro Inc.","YLJHT264"]
["Lakefront Utilities Inc.","YLCEC559"]
["Lakeland Power Distribution Ltd.","NHKJF259"]
["Lakeland Power Distribution Ltd.-Parry Sound Service Area","NHKJF259"]
["London Hydro Inc.","SLRXO177"]
["Milton Hydro Distribution Inc.","UIFEM157"]
["Newmarket-Tay Power Distribution Ltd.-For Former Midland Power Utility Rate Zone","RUZIU984"]
["Newmarket-Tay Power Distribution Ltd.-For Newmarket-Tay Power Main Rate Zone","RUZIU984"]
["Niagara Peninsula Energy Inc.","KSUYD122"]
["Niagara-on-the-Lake Hydro Inc.","QHCKN852"]
["North Bay Hydro Distribution Limited","FUIJX538"]
["Northern Ontario Wires Inc.","PWKJP953"]
["Oakville Hydro Electricity Distribution Inc.","JEGGW178"]
["Orangeville Hydro Limited","TVKSH414"]
["Orillia Power Distribution Corporation","DUISI693"]
["Oshawa PUC Networks Inc.","PQZCY963"]
["Ottawa River Power Corporation","GTLBW445"]
["Peterborough Distribution Incorporated","XCFPH269"]
["PUC Distribution Inc.","MLWYG784"]
["Renfrew Hydro Inc.","QDKIF127"]
["Rideau St. Lawrence Distribution Inc.","AMZEN437"]
["Sioux Lookout Hydro Inc.","ACEVX242"]
["Synergy North Corporation-Kenora Rate Zone","DSPWZ318"]
["Synergy North Corporation-Thunder Bay Rate Zone ","DSPWZ318"]
["Tillsonburg Hydro Inc.","OLIUU862"]
["Toronto Hydro-Electric System Limited","NIOJF461"]
["Wasaga Distribution Inc.","ZYZFO848"]
["Waterloo North Hydro Inc.","ASEGZ471"]
["Welland Hydro-Electric System Corp.","IOKHC383"]
["Wellington North Power Inc.","SKVKJ649"]
["Westario Power Inc.","TPFNQ593"]

{"sheet":"Sheet1","index":2,"n_rows":11,"n_cols":2,"rows_kept":11,"cut":false,"hidden":true,"merged":[]}
[]
[]
[]
[]
["2. Table of Contents","X"]
["3. RRR Data","X"]
["4. UTRs and Sub-Transmission","X"]
["5. Historical Wholesale","X"]
["6. Current Wholesale","X"]
["7. Forecast Wholesale","X"]
["8. RTSR Rates to Forecast","X"]

{"sheet":"2. Table of Contents","index":3,"n_rows":26,"n_cols":9,"rows_kept":26,"cut":false,"hidden":false,"merged":[]}
[]
[]
[]
[]
[]
[]
[]
[]
[]
[]
[]
[]
[]
[]
[]
[]
[]
[]
[]
[null,null,null,"1. Info",null,null,null,null,"5. Historical Wholesale"]
[]
[null,null,null,"2. Table of Contents",null,null,null,null,"6. Current Wholesale"]
[]
[null,null,null,"3. RRR Data",null,null,null,null,"7. Forecast Wholesale"]
[]
[null,null,null,"4. UTRs and Sub-Transmission",null,null,null,null,"8. RTSR Rates to Forecast"]

{"sheet":"3. RRR Data","index":4,"n_rows":30,"n_cols":52,"rows_kept":30,"cut":false,"hidden":false,"merged":[[12,1,12,8]]}
[null,null,null,null,null,null,null,null,null,null,null,null,null,null,null,null,null,null,null,null,null,null,null,null,null,null,null,null,null,null,null,null,null,null,null,null,null,null,null,null,null,null,null,null,null,null,null,null,null,null,null,1]
[]
[]
[]
[]
[]
[]
[]
[]
[]
[]
[]
[]
[]
[null,"Rate Class","Rate Description","Unit","Rate","Non-Loss Adjusted Metered kWh","Non-Loss Adjusted Metered kW","Applicable \nLoss Factor\neg: (1.0325)","Loss Adjusted Billed kWh"]
[]
[null,"RESIDENTIAL SERVICE CLASSIFICATION","Retail Transmission Rate - Network Service Rate","$/kWh",6.4999999999999997E-3,75511832.900000006,0,1.0458000000000001,{"$f":"F17*H17","v":78970274.846820012}]
[null,"RESIDENTIAL SERVICE CLASSIFICATION","Retail Transmission Rate - Line and Transformation Connection Service Rate","$/kWh",5.4999999999999997E-3,75511832.900000006,0,1.0458000000000001,78970274.846820012]
[null,"GENERAL SERVICE LESS THAN 50 KW SERVICE CLASSIFICATION","Retail Transmission Rate - Network Service Rate","$/kWh",6.0000000000000001E-3,34695537.859999999,0,1.0458000000000001,36284593.493988]
[null,"GENERAL SERVICE LESS THAN 50 KW SERVICE CLASSIFICATION","Retail Transmission Rate - Line and Transformation Connection Service Rate","$/kWh",4.8999999999999998E-3,34695537.859999999,0,1.0458000000000001,36284593.493988]
[null,"GENERAL SERVICE 50 TO 2,999 KW SERVICE CLASSIFICATION","Retail Transmission Rate - Network Service Rate","$/kW",2.4062999999999999,117763686.06,319666.53999999998,1.0458000000000001,123157262.88154802]
[null,"GENERAL SERVICE 50 TO 2,999 KW SERVICE CLASSIFICATION","Retail Transmission Rate - Line and Transformation Connection Service Rate","$/kW",1.9749000000000001,117763686.06,319666.53999999998,1.0458000000000001,123157262.88154802]
[null,"GENERAL SERVICE 3,000 TO 4,999 KW SERVICE CLASSIFICATION","Retail Transmission Rate - Network Service Rate","$/kW",2.6913999999999998,19725659.73,42405.1,1.0458000000000001,20629094.945634]
[null,"GENERAL SERVICE 3,000 TO 4,999 KW SERVICE CLASSIFICATION","Retail Transmission Rate - Line and Transformation Connection Service Rate","$/kW",2.3294000000000001,19725659.73,42405.1,1.0458000000000001,20629094.945634]
[null,"UNMETERED SCATTERED LOAD SERVICE CLASSIFICATION","Retail Transmission Rate - Network Service Rate","$/kWh",6.7999999999999996E-3,616421.42000000004,0,1.0458000000000001,644653.52103600011]
[null,"UNMETERED SCATTERED LOAD SERVICE CLASSIFICATION","Retail Transmission Rate - Line and Transformation Connection Service Rate","$/kWh",6.1000000000000004E-3,616421.42000000004,0,1.0458000000000001,644653.52103600011]
[null,"SENTINEL LIGHTING SERVICE CLASSIFICATION","Retail Transmission Rate - Network Service Rate","$/kW",1.8237000000000001,44807.4,124.45,1.0458000000000001,46859.578920000007]
[null,"SENTINEL LIGHTING SERVICE CLASSIFICATION","Retail Transmission Rate - Line and Transformation Connection Service Rate","$/kW",1.5587,44807.4,124.45,1.0458000000000001,46859.578920000007]
[null,"STREET LIGHTING SERVICE CLASSIFICATION","Retail Transmission Rate - Network Service Rate","$/kW",1.8149,1077264.33,2922.66,1.0458000000000001,1126603.0363140001]
[null,"STREET LIGHTING SERVICE CLASSIFICATION","Retail Transmission Rate - Line and Transformation Connection Service Rate","$/kW",1.5267999999999999,1077264.33,2922.66,1.0458000000000001,1126603.0363140001]

{"sheet":"4. UTRs and Sub-Transmission","index":5,"n_rows":76,"n_cols":12,"rows_kept":76,"cut":false,"hidden":false,"merged":[[34,4,34,5],[20,4,20,5],[17,4,18,4],[17,5,18,5],[17,7,17,9],[29,4,30,4],[29,5,30,5],[29,7,29,9],[22,7,22,9],[20,7,20,9],[24,7,24,9],[26,7,26,9],[34,7,34,9],[49,4,49,5],[45,4,46,4],[45,5,46,5],[60,4,61,4],[60,5,61,5],[72,4,72,5],[75,4,75,5],[74,4,74,5],[57,4,57,5],[64,4,64,5],[45,7,45,9],[51,7,51,9],[53,7,53,9],[55,7,55,9],[36,7,36,9],[38,7,38,9],[40,7,40,9],[42,7,42,9],[57,7,57,9],[49,7,49,9],[60,7,60,9],[64,7,64,9],[66,7,66,9],[68,7,68,9],[70,7,70,9],[72,7,72,9],[74,7,74,9],[75,7,75,9]]}
[]
[]
[]
[]
[]
[]
[]
[]
[]
[]
[]
[]
[]
[]
[]
[]
[]
[null,"Uniform Transmission Rates","Unit",null,"2019\n(Jan. 1-June 30)","2019\n(July 1 - Dec. 31)",null,2020,null,null,null,2021]
[]
[]
[null,"Rate Description",null,null,"Rate",null,null,"Rate",null,null,null,"Rate"]
[]
[null,"Network Service Rate","kW",null,3.71,3.83,null,3.92,null,null,null,3.3980000000000001]
[]
[null,"Line Connection Service Rate","kW",null,0.94,0.96,null,0.97,null,null,null,0.80449999999999999]
[]
[null,"Transformation Connection Service Rate","kW",null,2.25,2.2999999999999998,null,2.33,null,null,null,2.0194000000000001]
[]
[]
[null,"Hydro One Sub-Transmission Rates","Unit",null,"2019\n(Jan. 1-June 30)","2019\n(July 1 - Dec. 31)",null,2020,null,null,null,2021]
[]
[]
[]
[]
[null,"Rate Description",null,null,"Rate",null,null,"Rate",null,null,null,"Rate"]
[]
[null,"Network Service Rate","kW",null,3.1941999999999999,3.2915000000000001,null,3.3980000000000001,null,null,null,3.3980000000000001]
[]
[null,"Line Connection Service Rate","kW",null,0.77100000000000002,0.78769999999999996,null,0.80449999999999999,null,null,null,0.80449999999999999]
[]
[null,"Transformation Connection Service Rate","kW",null,1.7493000000000001,1.9755,null,2.0194000000000001,null,null,null,2.0194000000000001]
[]
[null,"Both Line and Transformation Connection Service Rate","kW",null,{"$f":"E41+E39","v":2.5203000000000002},{"$f":"F41+F39","v":2.7631999999999999},null,{"$f":"SUM(H41,H39)","v":2.8239000000000001},null,null,null,{"$f":"SUM(L41,L39)","v":2.8239000000000001}]
[]
[]
[null,"If needed, add extra host here. (I)","Unit",null,"2019\n(Jan. 1-June 30)","2019\n(July 1 - Dec. 31)",null,2020,null,null,null,2021]
[]
[]
[]
[null,"Rate Description",null,null,"Rate",null,null,"Rate",null,null,null,"Rate"]
[]
[null,"Network Service Rate","kW"]
[]
[null,"Line Connection Service Rate","kW"]
[]
[null,"Transformation Connection Service Rate","kW"]
[]
[null,"Both Line and Transformation Connection Service Rate","kW",null,{"$f":"SUM(E54,E56)","v":0},null,null,{"$f":"SUM(H54,H56)","v":0},null,null,null,{"$f":"L56+L54","v":0}]
[]
[]
[null,"If needed, add extra host here. (II)","Unit",null,"2019\n(Jan. 1-June 30)","2019\n(July 1 - Dec. 31)",null,2020,null,null,null,2021]
[]
[]
[]
[null,"Rate Description",null,null,"Rate",null,null,"Rate",null,null,null,"Rate"]
[]
[null,"Network Service Rate","kW"]
[]
[null,"Line Connection Service Rate","kW"]
[]
[null,"Transformation Connection Service Rate","kW"]
[]
[null,"Both Line and Transformation Connection Service Rate","kW",null,{"$f":"SUM(E69,E71)","v":0},null,null,{"$f":"SUM(H69,H71)","v":0},null,null,null,{"$f":"L71+L69","v":0}]
[]
[null,null,null,null,"Historical 2019",null,null,"Current 2020",null,null,null,"Forecast 2021"]
[null,"Low Voltage Switchgear Credit (if applicable, enter as a negative value)","$"]

{"sheet":"5. Historical Wholesale","index":6,"n_rows":117,"n_cols":16,"rows_kept":117,"cut":false,"hidden":false,"merged":[[95,7,95,9],[95,11,95,13],[96,7,96,9],[96,11,96,13],[20,3,20,5],[20,7,20,9],[20,11,20,13],[96,3,96,5],[38,3,38,5],[38,7,38,9],[38,11,38,13],[95,3,95,5],[57,3,57,5],[57,7,57,9],[57,11,57,13],[76,3,76,5],[76,7,76,9],[76,11,76,13]]}
[]
[]
[]
[]
[]
[]
[]
[]
[]
[]
[]
[]
[]
[]
[]
[]
[]
[]
[]
[]
[null,"IESO",null,"Network",null,null,null,"Line Connection",null,null,null,"Transformation Connection",null,null,null,"Total Connection"]
[null,"Month",null,"Units Billed","Rate","Amount",null,"Units Billed","Rate","Amount",null,"Units Billed","Rate","Amount",null,"Amount"]
[]
[null,"January",null,null,{"$f":"IF(D24<>0,F24/D24,0)","v":0},null,null,null,{"$f":"IF(H24<>0,J24/H24,0)","v":0},null,null,null,{"$f":"IF(L24<>0,N24/L24,0)","v":0},null,null,{"$f":"J24+N24","v":0}]
[null,"February",null,null,0,null,null,null,0,null,null,null,0,null,null,0]
[null,"March",null,null,0,null,null,null,0,null,null,null,0,null,null,0]
[null,"April",null,null,0,null,null,null,0,null,null,null,0,null,null,0]
[null,"May",null,null,0,null,null,null,0,null,null,null,0,null,null,0]
[null,"June",null,null,0,null,null,null,0,null,null,null,0,null,null,0]
[null,"July",null,null,0,null,null,null,0,null,null,null,0,null,null,0]
[null,"August",null,null,0,null,null,null,0,null,null,null,0,null,null,0]
[null,"September",null,null,0,null,null,null,0,null,null,null,0,null,null,0]
[null,"October",null,null,0,null,null,null,0,null,null,null,0,null,null,0]
[null,"November",null,null,0,null,null,null,0,null,null,null,0,null,null,0]
[null,"December",null,null,0,null,null,null,0,null,null,null,0,null,null,0]
[]
[null,"Total",null,{"$f":"SUM(D24:D35)","v":0},{"$f":"IF(D37<>0,F37/D37,0)","v":0},{"$f":"SUM(F24:F35)","v":0},null,{"$f":"SUM(H24:H35)","v":0},{"$f":"IF(H37<>0,J37/H37,0)","v":0},{"$f":"SUM(J24:J35)","v":0},null,{"$f":"SUM(L24:L35)","v":0},{"$f":"IF(L37<>0,N37/L37,0)","v":0},{"$f":"SUM(N24:N35)","v":0},null,{"$f":"SUM(P24:P35)","v":0}]
[]
[null,"Hydro One",null,"Network",null,null,null,"Line Connection",null,null,null,"Transformation Connection",null,null,null,"Total Connection"]
[]
[null,"Month",null,"Units Billed","Rate","Amount",null,"Units Billed","Rate","Amount",null,"Units Billed","Rate","Amount",null,"Amount"]
[]
[null,"January",null,43928.06,{"$f":"ROUND(IF(D43<>0,F43/D43,0),4)","v":3.1941999999999999},140315.00925199999,null,43928.06,{"$f":"ROUND(IF(H43<>0,J43/H43,0),4)","v":0.77100000000000002},33868.53426,null,43928.06,{"$f":"ROUND(IF(L43<>0,N43/L43,0),4)","v":1.7493000000000001},76843.355358000001,null,{"$f":"J43+N43","v":110711.889618}]
[null,"February",null,40526.78,{"$f":"ROUND(IF(D44<>0,F44/D44,0),4)","v":3.1941999999999999},129450.640676,null,40526.78,{"$f":"ROUND(IF(H44<>0,J44/H44,0),4)","v":0.77100000000000002},31246.147379999999,null,40526.78,{"$f":"ROUND(IF(L44<>0,N44/L44,0),4)","v":1.7493000000000001},70893.496253999998,null,102139.64363399999]
[null,"March",null,39501.01,3.1941999999999999,126174.12614200001,null,39501.01,0.77100000000000002,30455.278710000002,null,39501.01,1.7493000000000001,69099.116793000008,null,99554.395503000007]
[null,"April",null,34751.9,3.1941999999999999,111004.51898000001,null,34751.9,0.77100000000000002,26793.714900000003,null,34751.9,1.7493000000000001,60791.498670000008,null,87585.213570000007]
[null,"May",null,33840.97,3.1941999999999999,108094.826374,null,33840.97,0.77100000000000002,26091.387870000002,null,33840.97,1.7493000000000001,59198.008821000003,null,85289.396691000002]
[null,"June",null,35005.07,3.1941999999999999,111813.194594,null,35005.07,0.77100000000000002,26988.90897,null,35005.07,1.7493000000000001,61234.368951000004,null,88223.277921000001]
[null,"July",null,41300.199999999997,3.2915000000000001,135939.60829999999,null,41300.199999999997,0.78769999999999996,32532.167539999995,null,41300.199999999997,1.9755,81588.545099999988,null,114120.71263999998]
[null,"August",null,40396.870000000003,3.2915000000000001,132966.297605,null,40396.870000000003,0.78769999999999996,31820.614498999999,null,40396.870000000003,1.9755,79804.01668500001,null,111624.63118400001]
[null,"September",null,36117.08,3.2915000000000001,118879.36882,null,36331.11,0.78769999999999996,28618.015347,null,36331.11,1.9755,71772.107805000007,null,100390.12315200001]
[null,"October",null,35070.6,3.2915000000000001,115434.8799,null,35070.6,0.78769999999999996,27625.111619999996,null,35070.6,1.9755,69281.970300000001,null,96907.081919999997]
[null,"November",null,38523.94,3.2915000000000001,126801.54851000001,null,38523.94,0.78769999999999996,30345.307538000001,null,38523.94,1.9755,76104.043470000004,null,106449.351008]
[null,"December",null,39728.550000000003,3.2915000000000001,130766.52232500001,null,39728.550000000003,0.78769999999999996,31294.178834999999,null,39728.550000000003,1.9755,78483.75052500001,null,109777.92936000001]
[]
[null,"Total",null,{"$f":"SUM(D43:D54)","v":458691.02999999997},{"$f":"IF(D56<>0,F56/D56,0)","v":3.2432300703111641},{"$f":"SUM(F43:F54)","v":1487640.5414780001},null,{"$f":"SUM(H43:H54)","v":458905.05999999994},{"$f":"IF(H56<>0,J56/H56,0)","v":0.77941909698925516},{"$f":"SUM(J43:J54)","v":357679.36746899993},null,{"$f":"SUM(L43:L54)","v":458905.05999999994},{"$f":"IF(L56<>0,N56/L56,0)","v":1.8633359125131466},{"$f":"SUM(N43:N54)","v":855094.27873200015},null,{"$f":"SUM(P43:P54)","v":1212773.6462010001}]
[]
[null,"Add Extra Host Here (I)",null,"Network",null,null,null,"Line Connection",null,null,null,"Transformation Connection",null,null,null,"Total Connection"]
[null,"(if needed)"]
[null,"Month",null,"Units Billed","Rate","Amount",null,"Units Billed","Rate","Amount",null,"Units Billed","Rate","Amount",null,"Amount"]
[]
[null,"January",null,null,{"$f":"IF(D62<>0,F62/D62,0)","v":0},null,null,null,{"$f":"IF(H62<>0,J62/H62,0)","v":0},null,null,null,{"$f":"IF(L62<>0,N62/L62,0)","v":0},null,null,{"$f":"J62+N62","v":0}]
[null,"February",null,null,0,null,null,null,0,null,null,null,0,null,null,0]
[null,"March",null,null,0,null,null,null,0,null,null,null,0,null,null,0]
[null,"April",null,null,0,null,null,null,0,null,null,null,0,null,null,0]
[null,"May",null,null,0,null,null,null,0,null,null,null,0,null,null,0]
[null,"June",null,null,0,null,null,null,0,null,null,null,0,null,null,0]
[null,"July",null,null,0,null,null,null,0,null,null,null,0,null,null,0]
[null,"August",null,null,0,null,null,null,0,null,null,null,0,null,null,0]
[null,"September",null,null,0,null,null,null,0,null,null,null,0,null,null,0]
[null,"October",null,null,0,null,null,null,0,null,null,null,0,null,null,0]
[null,"November",null,null,0,null,null,null,0,null,null,null,0,null,null,0]
[null,"December",null,null,0,null,null,null,0,null,null,null,0,null,null,0]
[]
[null,"Total",null,{"$f":"SUM(D62:D73)","v":0},{"$f":"IF(D75<>0,F75/D75,0)","v":0},{"$f":"SUM(F62:F73)","v":0},null,{"$f":"SUM(H62:H73)","v":0},{"$f":"IF(H75<>0,J75/H75,0)","v":0},{"$f":"SUM(J62:J73)","v":0},null,{"$f":"SUM(L62:L73)","v":0},{"$f":"IF(L75<>0,N75/L75,0)","v":0},{"$f":"SUM(N62:N73)","v":0},null,{"$f":"SUM(P62:P73)","v":0}]
[]
[null,"Add Extra Host Here (II)",null,"Network",null,null,null,"Line Connection",null,null,null,"Transformation Connection",null,null,null,"Total Connection"]
[null,"(if needed)"]
[null,"Month",null,"Units Billed","Rate","Amount",null,"Units Billed","Rate","Amount",null,"Units Billed","Rate","Amount",null,"Amount"]
[]
[null,"January",null,null,{"$f":"IF(D81<>0,F81/D81,0)","v":0},null,null,null,{"$f":"IF(H81<>0,J81/H81,0)","v":0},null,null,null,{"$f":"IF(L81<>0,N81/L81,0)","v":0},null,null,{"$f":"J81+N81","v":0}]
[null,"February",null,null,0,null,null,null,0,null,null,null,0,null,null,0]
[null,"March",null,null,0,null,null,null,0,null,null,null,0,null,null,0]
[null,"April",null,null,0,null,null,null,0,null,null,null,0,null,null,0]
[null,"May",null,null,0,null,null,null,0,null,null,null,0,null,null,0]
[null,"June",null,null,0,null,null,null,0,null,null,null,0,null,null,0]
[null,"July",null,null,0,null,null,null,0,null,null,null,0,null,null,0]
[null,"August",null,null,0,null,null,null,0,null,null,null,0,null,null,0]
[null,"September",null,null,0,null,null,null,0,null,null,null,0,null,null,0]
[null,"October",null,null,0,null,null,null,0,null,null,null,0,null,null,0]
[null,"November",null,null,0,null,null,null,0,null,null,null,0,null,null,0]
[null,"December",null,null,0,null,null,null,0,null,null,null,0,null,null,0]
[]
[null,"Total",null,{"$f":"SUM(D81:D92)","v":0},{"$f":"IF(D94<>0,F94/D94,0)","v":0},{"$f":"SUM(F81:F92)","v":0},null,{"$f":"SUM(H81:H92)","v":0},{"$f":"IF(H94<>0,J94/H94,0)","v":0},{"$f":"SUM(J81:J92)","v":0},null,{"$f":"SUM(L81:L92)","v":0},{"$f":"IF(L94<>0,N94/L94,0)","v":0},{"$f":"SUM(N81:N92)","v":0},null,{"$f":"SUM(P81:P92)","v":0}]
[]
[null,"Total",null,"Network",null,null,null,"Line Connection",null,null,null,"Transformation Connection",null,null,null,"Total Connection"]
[]
[null,"Month",null,"Units Billed","Rate","Amount",null,"Units Billed","Rate","Amount",null,"Units Billed","Rate","Amount",null,"Amount"]
[]
[null,"January",null,{"$f":"D24+D43+D62+D81","v":43928.06},{"$f":"IF(D100<>0,F100/D100,0)","v":3.1941999999999999},{"$f":"F24+F43+F62+F81","v":140315.00925199999},null,{"$f":"H24+H43+H62+H81","v":43928.06},{"$f":"IF(H100<>0,J100/H100,0)","v":0.77100000000000002},{"$f":"J24+J43+J62+J81","v":33868.53426},null,{"$f":"L24+L43+L62+L81","v":43928.06},{"$f":"IF(L100<>0,N100/L100,0)","v":1.7493000000000001},{"$f":"N24+N43+N62+N81","v":76843.355358000001},null,{"$f":"J100+N100","v":110711.889618}]
[null,"February",null,{"$f":"D25+D44+D63+D82","v":40526.78},3.1941999999999999,{"$f":"F25+F44+F63+F82","v":129450.640676},null,{"$f":"H25+H44+H63+H82","v":40526.78},0.77100000000000002,{"$f":"J25+J44+J63+J82","v":31246.147379999999},null,{"$f":"L25+L44+L63+L82","v":40526.78},1.7493000000000001,{"$f":"N25+N44+N63+N82","v":70893.496253999998},null,102139.64363399999]
[null,"March",null,39501.01,3.1941999999999999,126174.12614200001,null,39501.01,0.77100000000000002,30455.278710000002,null,39501.01,1.7493000000000001,69099.116793000008,null,99554.395503000007]
[null,"April",null,34751.9,3.1941999999999999,111004.51898000001,null,34751.9,0.77100000000000002,26793.714900000003,null,34751.9,1.7493000000000001,60791.498670000008,null,87585.213570000007]
[null,"May",null,33840.97,3.1941999999999999,108094.826374,null,33840.97,0.77100000000000002,26091.387870000002,null,33840.97,1.7493000000000001,59198.008821000003,null,85289.396691000002]
[null,"June",null,35005.07,3.1941999999999999,111813.194594,null,35005.07,0.77100000000000002,26988.90897,null,35005.07,1.7493000000000001,61234.368951000004,null,88223.277921000001]
[null,"July",null,41300.199999999997,3.2915000000000001,135939.60829999999,null,41300.199999999997,0.78769999999999996,32532.167539999995,null,41300.199999999997,1.9754999999999998,81588.545099999988,null,114120.71263999998]
[null,"August",null,40396.870000000003,3.2914999999999996,132966.297605,null,40396.870000000003,0.78769999999999996,31820.614498999999,null,40396.870000000003,1.9755,79804.01668500001,null,111624.63118400001]
[null,"September",null,36117.08,3.2915000000000001,118879.36882,null,36331.11,0.78769999999999996,28618.015347,null,36331.11,1.9755000000000003,71772.107805000007,null,100390.12315200001]
[null,"October",null,35070.6,3.2915000000000001,115434.8799,null,35070.6,0.78769999999999996,27625.111619999996,null,35070.6,1.9755,69281.970300000001,null,96907.081919999997]
[null,"November",null,38523.94,3.2915000000000001,126801.54851000001,null,38523.94,0.78769999999999996,30345.307538000001,null,38523.94,1.9755,76104.043470000004,null,106449.351008]
[null,"December",null,39728.550000000003,3.2915000000000001,130766.52232500001,null,39728.550000000003,0.78769999999999996,31294.178834999999,null,39728.550000000003,1.9755,78483.75052500001,null,109777.92936000001]
[]
[null,"Total",null,{"$f":"SUM(D100:D111)","v":458691.02999999997},{"$f":"IF(D113<>0,F113/D113,0)","v":3.2432300703111641},{"$f":"SUM(F100:F111)","v":1487640.5414780001},null,{"$f":"SUM(H100:H111)","v":458905.05999999994},{"$f":"IF(H113<>0,J113/H113,0)","v":0.77941909698925516},{"$f":"SUM(J100:J111)","v":357679.36746899993},null,{"$f":"SUM(L100:L111)","v":458905.05999999994},{"$f":"IF(L113<>0,N113/L113,0)","v":1.8633359125131466},{"$f":"SUM(N100:N111)","v":855094.27873200015},null,{"$f":"SUM(P100:P111)","v":1212773.6462010001}]
[]
[null,null,null,null,null,null,null,null,null,null,null,null,null,"Low Voltage Switchgear Credit (if applicable)",null,{"$f":"'4. UTRs and Sub-Transmission'!E76","v":0}]
[]
[null,null,null,null,null,null,null,null,null,null,null,null,null,"Total including deduction for Low Voltage Switchgear Credit",null,{"$f":"P113+P115","v":1212773.6462010001}]

{"sheet":"6. Current Wholesale","index":7,"n_rows":117,"n_cols":16,"rows_kept":117,"cut":false,"hidden":false,"merged":[[12,1,12,11],[19,3,19,5],[19,7,19,9],[19,11,19,13],[38,3,38,5],[38,7,38,9],[38,11,38,13],[96,7,96,9],[96,11,96,13],[20,3,20,5],[20,7,20,9],[20,11,20,13],[96,3,96,5],[95,3,95,5],[95,7,95,9],[95,11,95,13],[57,3,57,5],[57,7,57,9],[57,11,57,13],[76,3,76,5],[76,7,76,9],[76,11,76,13]]}
[]
[]
[]
[]
[]
[]
[]
[]
[]
[]
[]
[]
[null,"The purpose of this sheet is to calculate the expected billing when current 2020 Uniform Transmission Rates and Hydro One Sub-transmission Rates are applied against historical 2019 transmission units."]
[]
[]
[]
[]
[]
[]
[null,"IESO",null,"Network",null,null,null,"Line Connection",null,null,null,"Transformation Connection",null,null,null,"Total Connection"]
[]
[null,"Month",null,"Units Billed","Rate","Amount",null,"Units Billed","Rate","Amount",null,"Units Billed","Rate","Amount",null,"Amount"]
[]
[null,"January",null,{"$f":"'5. Historical Wholesale'!D24","v":0},{"$f":"'4. UTRs and Sub-Transmission'!H23","v":3.92},{"$f":"D24*E24","v":0},null,{"$f":"'5. Historical Wholesale'!H24","v":0},{"$f":"'4. UTRs and Sub-Transmission'!H25","v":0.97},{"$f":"H24*I24","v":0},null,{"$f":"'5. Historical Wholesale'!L24","v":0},{"$f":"'4. UTRs and Sub-Transmission'!H27","v":2.33},{"$f":"L24*M24","v":0},null,{"$f":"J24+N24","v":0}]
[null,"February",null,{"$f":"'5. Historical Wholesale'!D25","v":0},{"$f":"E24","v":3.92},{"$f":"D25*E25","v":0},null,{"$f":"'5. Historical Wholesale'!H25","v":0},{"$f":"I24","v":0.97},{"$f":"H25*I25","v":0},null,{"$f":"'5. Historical Wholesale'!L25","v":0},{"$f":"M24","v":2.33},{"$f":"L25*M25","v":0},null,0]
[null,"March",null,{"$f":"'5. Historical Wholesale'!D26","v":0},{"$f":"E25","v":3.92},0,null,{"$f":"'5. Historical Wholesale'!H26","v":0},{"$f":"I25","v":0.97},0,null,{"$f":"'5. Historical Wholesale'!L26","v":0},{"$f":"M25","v":2.33},0,null,0]
[null,"April",null,{"$f":"'5. Historical Wholesale'!D27","v":0},3.92,0,null,{"$f":"'5. Historical Wholesale'!H27","v":0},0.97,0,null,{"$f":"'5. Historical Wholesale'!L27","v":0},2.33,0,null,0]
[null,"May",null,{"$f":"'5. Historical Wholesale'!D28","v":0},3.92,0,null,{"$f":"'5. Historical Wholesale'!H28","v":0},0.97,0,null,{"$f":"'5. Historical Wholesale'!L28","v":0},2.33,0,null,0]
[null,"June",null,{"$f":"'5. Historical Wholesale'!D29","v":0},3.92,0,null,{"$f":"'5. Historical Wholesale'!H29","v":0},0.97,0,null,{"$f":"'5. Historical Wholesale'!L29","v":0},2.33,0,null,0]
[null,"July",null,{"$f":"'5. Historical Wholesale'!D30","v":0},3.92,0,null,{"$f":"'5. Historical Wholesale'!H30","v":0},0.97,0,null,{"$f":"'5. Historical Wholesale'!L30","v":0},2.33,0,null,0]
[null,"August",null,{"$f":"'5. Historical Wholesale'!D31","v":0},3.92,0,null,{"$f":"'5. Historical Wholesale'!H31","v":0},0.97,0,null,{"$f":"'5. Historical Wholesale'!L31","v":0},2.33,0,null,0]
[null,"September",null,{"$f":"'5. Historical Wholesale'!D32","v":0},3.92,0,null,{"$f":"'5. Historical Wholesale'!H32","v":0},0.97,0,null,{"$f":"'5. Historical Wholesale'!L32","v":0},2.33,0,null,0]
[null,"October",null,{"$f":"'5. Historical Wholesale'!D33","v":0},3.92,0,null,{"$f":"'5. Historical Wholesale'!H33","v":0},0.97,0,null,{"$f":"'5. Historical Wholesale'!L33","v":0},2.33,0,null,0]
[null,"November",null,{"$f":"'5. Historical Wholesale'!D34","v":0},3.92,0,null,{"$f":"'5. Historical Wholesale'!H34","v":0},0.97,0,null,{"$f":"'5. Historical Wholesale'!L34","v":0},2.33,0,null,0]
[null,"December",null,{"$f":"'5. Historical Wholesale'!D35","v":0},3.92,0,null,{"$f":"'5. Historical Wholesale'!H35","v":0},0.97,0,null,{"$f":"'5. Historical Wholesale'!L35","v":0},2.33,0,null,0]
[]
[null,"Total",null,{"$f":"SUM(D24:D35)","v":0},{"$f":"IF(D37<>0,F37/D37,0)","v":0},{"$f":"SUM(F24:F35)","v":0},null,{"$f":"SUM(H24:H35)","v":0},{"$f":"IF(H37<>0,J37/H37,0)","v":0},{"$f":"SUM(J24:J35)","v":0},null,{"$f":"SUM(L24:L35)","v":0},{"$f":"IF(L37<>0,N37/L37,0)","v":0},{"$f":"SUM(N24:N35)","v":0},null,{"$f":"SUM(P24:P35)","v":0}]
[]
[null,"Hydro One",null,"Network",null,null,null,"Line Connection",null,null,null,"Transformation Connection",null,null,null,"Total Connection"]
[]
[null,"Month",null,"Units Billed","Rate","Amount",null,"Units Billed","Rate","Amount",null,"Units Billed","Rate","Amount",null,"Amount"]
[]
[null,"January",null,{"$f":"'5. Historical Wholesale'!D43","v":43928.06},{"$f":"'4. UTRs and Sub-Transmission'!H37","v":3.3980000000000001},{"$f":"D43*E43","v":149267.54788},null,{"$f":"'5. Historical Wholesale'!H43","v":43928.06},{"$f":"'4. UTRs and Sub-Transmission'!H39","v":0.80449999999999999},{"$f":"H43*I43","v":35340.12427},null,{"$f":"'5. Historical Wholesale'!L43","v":43928.06},{"$f":"'4. UTRs and Sub-Transmission'!H41","v":2.0194000000000001},{"$f":"L43*M43","v":88708.324364},null,{"$f":"J43+N43","v":124048.448634}]
[null,"February",null,{"$f":"'5. Historical Wholesale'!D44","v":40526.78},{"$f":"E43","v":3.3980000000000001},{"$f":"D44*E44","v":137709.99844},null,{"$f":"'5. Historical Wholesale'!H44","v":40526.78},{"$f":"I43","v":0.80449999999999999},{"$f":"H44*I44","v":32603.79451},null,{"$f":"'5. Historical Wholesale'!L44","v":40526.78},{"$f":"M43","v":2.0194000000000001},{"$f":"L44*M44","v":81839.779532},null,114443.57404199999]
[null,"March",null,{"$f":"'5. Historical Wholesale'!D45","v":39501.01},3.3980000000000001,134224.43198000002,null,{"$f":"'5. Historical Wholesale'!H45","v":39501.01},0.80449999999999999,31778.562545000001,null,{"$f":"'5. Historical Wholesale'!L45","v":39501.01},{"$f":"M44","v":2.0194000000000001},79768.339594000005,null,111546.90213900001]
[null,"April",null,{"$f":"'5. Historical Wholesale'!D46","v":34751.9},3.3980000000000001,118086.95620000002,null,{"$f":"'5. Historical Wholesale'!H46","v":34751.9},0.80449999999999999,27957.903550000003,null,{"$f":"'5. Historical Wholesale'!L46","v":34751.9},{"$f":"M45","v":2.0194000000000001},70177.986860000005,null,98135.890410000007]
[null,"May",null,{"$f":"'5. Historical Wholesale'!D47","v":33840.97},3.3980000000000001,114991.61606000001,null,{"$f":"'5. Historical Wholesale'!H47","v":33840.97},0.80449999999999999,27225.060365000001,null,{"$f":"'5. Historical Wholesale'!L47","v":33840.97},2.0194000000000001,68338.454817999998,null,95563.515182999996]
[null,"June",null,{"$f":"'5. Historical Wholesale'!D48","v":35005.07},3.3980000000000001,118947.22786,null,{"$f":"'5. Historical Wholesale'!H48","v":35005.07},0.80449999999999999,28161.578815000001,null,{"$f":"'5. Historical Wholesale'!L48","v":35005.07},2.0194000000000001,70689.238358000002,null,98850.817173000003]
[null,"July",null,{"$f":"'5. Historical Wholesale'!D49","v":41300.199999999997},3.3980000000000001,140338.0796,null,{"$f":"'5. Historical Wholesale'!H49","v":41300.199999999997},0.80449999999999999,33226.010899999994,null,{"$f":"'5. Historical Wholesale'!L49","v":41300.199999999997},2.0194000000000001,83401.623879999999,null,116627.63477999999]
[null,"August",null,{"$f":"'5. Historical Wholesale'!D50","v":40396.870000000003},3.3980000000000001,137268.56426000001,null,{"$f":"'5. Historical Wholesale'!H50","v":40396.870000000003},0.80449999999999999,32499.281915000003,null,{"$f":"'5. Historical Wholesale'!L50","v":40396.870000000003},2.0194000000000001,81577.439278000005,null,114076.721193]
[null,"September",null,{"$f":"'5. Historical Wholesale'!D51","v":36117.08},3.3980000000000001,122725.83784000001,null,{"$f":"'5. Historical Wholesale'!H51","v":36331.11},0.80449999999999999,29228.377994999999,null,{"$f":"'5. Historical Wholesale'!L51","v":36331.11},2.0194000000000001,73367.043534000011,null,102595.42152900001]
[null,"October",null,{"$f":"'5. Historical Wholesale'!D52","v":35070.6},3.3980000000000001,119169.8988,null,{"$f":"'5. Historical Wholesale'!H52","v":35070.6},0.80449999999999999,28214.297699999999,null,{"$f":"'5. Historical Wholesale'!L52","v":35070.6},2.0194000000000001,70821.569640000002,null,99035.867339999997]
[null,"November",null,{"$f":"'5. Historical Wholesale'!D53","v":38523.94},3.3980000000000001,130904.34812000001,null,{"$f":"'5. Historical Wholesale'!H53","v":38523.94},0.80449999999999999,30992.509730000002,null,{"$f":"'5. Historical Wholesale'!L53","v":38523.94},2.0194000000000001,77795.244436000008,null,108787.75416600001]
[null,"December",null,{"$f":"'5. Historical Wholesale'!D54","v":39728.550000000003},3.3980000000000001,134997.61290000001,null,{"$f":"'5. Historical Wholesale'!H54","v":39728.550000000003},0.80449999999999999,31961.618475000003,null,{"$f":"'5. Historical Wholesale'!L54","v":39728.550000000003},2.0194000000000001,80227.833870000002,null,112189.452345]
[]
[null,"Total",null,{"$f":"SUM(D43:D54)","v":458691.02999999997},{"$f":"IF(D56<>0,F56/D56,0)","v":3.3980000000000006},{"$f":"SUM(F43:F54)","v":1558632.1199400001},null,{"$f":"SUM(H43:H54)","v":458905.05999999994},{"$f":"IF(H56<>0,J56/H56,0)","v":0.8045000000000001},{"$f":"SUM(J43:J54)","v":369189.12076999998},null,{"$f":"SUM(L43:L54)","v":458905.05999999994},{"$f":"IF(L56<>0,N56/L56,0)","v":2.0194000000000005},{"$f":"SUM(N43:N54)","v":926712.87816400011},null,{"$f":"SUM(P43:P54)","v":1295901.9989340003}]
[]
[null,{"$f":"'5. Historical Wholesale'!B58","v":"Add Extra Host Here (I)"},null,"Network",null,null,null,"Line Connection",null,null,null,"Transformation Connection",null,null,null,"Total Connection"]
[]
[null,"Month",null,"Units Billed","Rate","Amount",null,"Units Billed","Rate","Amount",null,"Units Billed","Rate","Amount",null,"Amount"]
[]
[null,"January",null,{"$f":"'5. Historical Wholesale'!D62","v":0},{"$f":"'4. UTRs and Sub-Transmission'!H52","v":0},{"$f":"D62*E62","v":0},null,{"$f":"'5. Historical Wholesale'!H62","v":0},{"$f":"'4. UTRs and Sub-Transmission'!H54","v":0},{"$f":"H62*I62","v":0},null,{"$f":"'5. Historical Wholesale'!L62","v":0},{"$f":"'4. UTRs and Sub-Transmission'!H56","v":0},{"$f":"L62*M62","v":0},null,{"$f":"J62+N62","v":0}]
[null,"February",null,{"$f":"'5. Historical Wholesale'!D63","v":0},{"$f":"E62","v":0},{"$f":"D63*E63","v":0},null,{"$f":"'5. Historical Wholesale'!H63","v":0},{"$f":"I62","v":0},{"$f":"H63*I63","v":0},null,{"$f":"'5. Historical Wholesale'!L63","v":0},{"$f":"M62","v":0},{"$f":"L63*M63","v":0},null,0]
[null,"March",null,{"$f":"'5. Historical Wholesale'!D64","v":0},{"$f":"E63","v":0},0,null,{"$f":"'5. Historical Wholesale'!H64","v":0},{"$f":"I63","v":0},0,null,{"$f":"'5. Historical Wholesale'!L64","v":0},{"$f":"M63","v":0},0,null,0]
[null,"April",null,{"$f":"'5. Historical Wholesale'!D65","v":0},0,0,null,{"$f":"'5. Historical Wholesale'!H65","v":0},0,0,null,{"$f":"'5. Historical Wholesale'!L65","v":0},{"$f":"M64","v":0},0,null,0]
[null,"May",null,{"$f":"'5. Historical Wholesale'!D66","v":0},0,0,null,{"$f":"'5. Historical Wholesale'!H66","v":0},0,0,null,{"$f":"'5. Historical Wholesale'!L66","v":0},0,0,null,0]
[null,"June",null,{"$f":"'5. Historical Wholesale'!D67","v":0},0,0,null,{"$f":"'5. Historical Wholesale'!H67","v":0},0,0,null,{"$f":"'5. Historical Wholesale'!L67","v":0},0,0,null,0]
[null,"July",null,{"$f":"'5. Historical Wholesale'!D68","v":0},0,0,null,{"$f":"'5. Historical Wholesale'!H68","v":0},0,0,null,{"$f":"'5. Historical Wholesale'!L68","v":0},0,0,null,0]
[null,"August",null,{"$f":"'5. Historical Wholesale'!D69","v":0},0,0,null,{"$f":"'5. Historical Wholesale'!H69","v":0},0,0,null,{"$f":"'5. Historical Wholesale'!L69","v":0},0,0,null,0]
[null,"September",null,{"$f":"'5. Historical Wholesale'!D70","v":0},0,0,null,{"$f":"'5. Historical Wholesale'!H70","v":0},0,0,null,{"$f":"'5. Historical Wholesale'!L70","v":0},0,0,null,0]
[null,"October",null,{"$f":"'5. Historical Wholesale'!D71","v":0},0,0,null,{"$f":"'5. Historical Wholesale'!H71","v":0},0,0,null,{"$f":"'5. Historical Wholesale'!L71","v":0},0,0,null,0]
[null,"November",null,{"$f":"'5. Historical Wholesale'!D72","v":0},0,0,null,{"$f":"'5. Historical Wholesale'!H72","v":0},0,0,null,{"$f":"'5. Historical Wholesale'!L72","v":0},0,0,null,0]
[null,"December",null,{"$f":"'5. Historical Wholesale'!D73","v":0},0,0,null,{"$f":"'5. Historical Wholesale'!H73","v":0},0,0,null,{"$f":"'5. Historical Wholesale'!L73","v":0},0,0,null,0]
[]
[null,"Total",null,{"$f":"SUM(D62:D73)","v":0},{"$f":"IF(D75<>0,F75/D75,0)","v":0},{"$f":"SUM(F62:F73)","v":0},null,{"$f":"SUM(H62:H73)","v":0},{"$f":"IF(H75<>0,J75/H75,0)","v":0},{"$f":"SUM(J62:J73)","v":0},null,{"$f":"SUM(L62:L73)","v":0},{"$f":"IF(L75<>0,N75/L75,0)","v":0},{"$f":"SUM(N62:N73)","v":0},null,{"$f":"SUM(P62:P73)","v":0}]
[]
[null,{"$f":"'5. Historical Wholesale'!B77","v":"Add Extra Host Here (II)"},null,"Network",null,null,null,"Line Connection",null,null,null,"Transformation Connection",null,null,null,"Total Connection"]
[]
[null,"Month",null,"Units Billed","Rate","Amount",null,"Units Billed","Rate","Amount",null,"Units Billed","Rate","Amount",null,"Amount"]
[]
[null,"January",null,{"$f":"'5. Historical Wholesale'!D81","v":0},{"$f":"'4. UTRs and Sub-Transmission'!H67","v":0},{"$f":"D81*E81","v":0},null,{"$f":"'5. Historical Wholesale'!H81","v":0},{"$f":"'4. UTRs and Sub-Transmission'!H69","v":0},{"$f":"H81*I81","v":0},null,{"$f":"'5. Historical Wholesale'!L81","v":0},{"$f":"'4. UTRs and Sub-Transmission'!H71","v":0},{"$f":"L81*M81","v":0},null,{"$f":"J81+N81","v":0}]
[null,"February",null,{"$f":"'5. Historical Wholesale'!D82","v":0},{"$f":"E81","v":0},{"$f":"D82*E82","v":0},null,{"$f":"'5. Historical Wholesale'!H82","v":0},{"$f":"I81","v":0},{"$f":"H82*I82","v":0},null,{"$f":"'5. Historical Wholesale'!L82","v":0},{"$f":"M81","v":0},{"$f":"L82*M82","v":0},null,0]
[null,"March",null,{"$f":"'5. Historical Wholesale'!D83","v":0},{"$f":"E82","v":0},0,null,{"$f":"'5. Historical Wholesale'!H83","v":0},{"$f":"I82","v":0},0,null,{"$f":"'5. Historical Wholesale'!L83","v":0},{"$f":"M82","v":0},0,null,0]
[null,"April",null,{"$f":"'5. Historical Wholesale'!D84","v":0},0,0,null,{"$f":"'5. Historical Wholesale'!H84","v":0},0,0,null,{"$f":"'5. Historical Wholesale'!L84","v":0},{"$f":"M83","v":0},0,null,0]
[null,"May",null,{"$f":"'5. Historical Wholesale'!D85","v":0},0,0,null,{"$f":"'5. Historical Wholesale'!H85","v":0},0,0,null,{"$f":"'5. Historical Wholesale'!L85","v":0},0,0,null,0]
[null,"June",null,{"$f":"'5. Historical Wholesale'!D86","v":0},0,0,null,{"$f":"'5. Historical Wholesale'!H86","v":0},0,0,null,{"$f":"'5. Historical Wholesale'!L86","v":0},0,0,null,0]
[null,"July",null,{"$f":"'5. Historical Wholesale'!D87","v":0},0,0,null,{"$f":"'5. Historical Wholesale'!H87","v":0},0,0,null,{"$f":"'5. Historical Wholesale'!L87","v":0},0,0,null,0]
[null,"August",null,{"$f":"'5. Historical Wholesale'!D88","v":0},0,0,null,{"$f":"'5. Historical Wholesale'!H88","v":0},0,0,null,{"$f":"'5. Historical Wholesale'!L88","v":0},0,0,null,0]
[null,"September",null,{"$f":"'5. Historical Wholesale'!D89","v":0},0,0,null,{"$f":"'5. Historical Wholesale'!H89","v":0},0,0,null,{"$f":"'5. Historical Wholesale'!L89","v":0},0,0,null,0]
[null,"October",null,{"$f":"'5. Historical Wholesale'!D90","v":0},0,0,null,{"$f":"'5. Historical Wholesale'!H90","v":0},0,0,null,{"$f":"'5. Historical Wholesale'!L90","v":0},0,0,null,0]
[null,"November",null,{"$f":"'5. Historical Wholesale'!D91","v":0},0,0,null,{"$f":"'5. Historical Wholesale'!H91","v":0},0,0,null,{"$f":"'5. Historical Wholesale'!L91","v":0},0,0,null,0]
[null,"December",null,{"$f":"'5. Historical Wholesale'!D92","v":0},0,0,null,{"$f":"'5. Historical Wholesale'!H92","v":0},0,0,null,{"$f":"'5. Historical Wholesale'!L92","v":0},0,0,null,0]
[]
[null,"Total",null,{"$f":"SUM(D81:D92)","v":0},{"$f":"IF(D94<>0,F94/D94,0)","v":0},{"$f":"SUM(F81:F92)","v":0},null,{"$f":"SUM(H81:H92)","v":0},{"$f":"IF(H94<>0,J94/H94,0)","v":0},{"$f":"SUM(J81:J92)","v":0},null,{"$f":"SUM(L81:L92)","v":0},{"$f":"IF(L94<>0,N94/L94,0)","v":0},{"$f":"SUM(N81:N92)","v":0},null,{"$f":"SUM(P81:P92)","v":0}]
[]
[null,"Total",null,"Network",null,null,null,"Line Connection",null,null,null,"Transformation Connection",null,null,null,"Total Connection"]
[]
[null,"Month",null,"Units Billed","Rate","Amount",null,"Units Billed","Rate","Amount",null,"Units Billed","Rate","Amount",null,"Amount"]
[]
[null,"January",null,{"$f":"D24+D43+D62+D81","v":43928.06},{"$f":"IF(D100<>0,F100/D100,0)","v":3.3980000000000001},{"$f":"F24+F43+F62+F81","v":149267.54788},null,{"$f":"H24+H43+H62+H81","v":43928.06},{"$f":"IF(H100<>0,J100/H100,0)","v":0.80449999999999999},{"$f":"J24+J43+J62+J81","v":35340.12427},null,{"$f":"L24+L43+L62+L81","v":43928.06},{"$f":"IF(L100<>0,N100/L100,0)","v":2.0194000000000001},{"$f":"N24+N43+N62+N81","v":88708.324364},null,{"$f":"J100+N100","v":124048.448634}]
[null,"February",null,{"$f":"D25+D44+D63+D82","v":40526.78},3.3980000000000001,{"$f":"F25+F44+F63+F82","v":137709.99844},null,{"$f":"H25+H44+H63+H82","v":40526.78},0.80449999999999999,{"$f":"J25+J44+J63+J82","v":32603.79451},null,{"$f":"L25+L44+L63+L82","v":40526.78},2.0194000000000001,{"$f":"N25+N44+N63+N82","v":81839.779532},null,114443.57404199999]
[null,"March",null,39501.01,3.3980000000000006,134224.43198000002,null,39501.01,0.80449999999999999,31778.562545000001,null,39501.01,2.0194000000000001,79768.339594000005,null,111546.90213900001]
[null,"April",null,34751.9,3.3980000000000001,118086.95620000002,null,34751.9,0.80449999999999999,27957.903550000003,null,34751.9,2.0194000000000001,70177.986860000005,null,98135.890410000007]
[null,"May",null,33840.97,3.3980000000000001,114991.61606000001,null,33840.97,0.80449999999999999,27225.060365000001,null,33840.97,2.0194000000000001,68338.454817999998,null,95563.515182999996]
[null,"June",null,35005.07,3.3980000000000001,118947.22786,null,35005.07,0.80449999999999999,28161.578815000001,null,35005.07,2.0194000000000001,70689.238358000002,null,98850.817173000003]
[null,"July",null,41300.199999999997,3.3980000000000001,140338.0796,null,41300.199999999997,0.80449999999999988,33226.010899999994,null,41300.199999999997,2.0194000000000001,83401.623879999999,null,116627.63477999999]
[null,"August",null,40396.870000000003,3.3980000000000001,137268.56426000001,null,40396.870000000003,0.80449999999999999,32499.281915000003,null,40396.870000000003,2.0194000000000001,81577.439278000005,null,114076.721193]
[null,"September",null,36117.08,3.3980000000000001,122725.83784000001,null,36331.11,0.80449999999999999,29228.377994999999,null,36331.11,2.0194000000000001,73367.043534000011,null,102595.42152900001]
[null,"October",null,35070.6,3.3980000000000001,119169.8988,null,35070.6,0.80449999999999999,28214.297699999999,null,35070.6,2.0194000000000001,70821.569640000002,null,99035.867339999997]
[null,"November",null,38523.94,3.3980000000000001,130904.34812000001,null,38523.94,0.80449999999999999,30992.509730000002,null,38523.94,2.0194000000000001,77795.244436000008,null,108787.75416600001]
[null,"December",null,39728.550000000003,3.3980000000000001,134997.61290000001,null,39728.550000000003,0.80449999999999999,31961.618475000003,null,39728.550000000003,2.0194000000000001,80227.833870000002,null,112189.452345]
[]
[null,"Total",null,{"$f":"SUM(D100:D111)","v":458691.02999999997},{"$f":"IF(D113<>0,F113/D113,0)","v":3.3980000000000006},{"$f":"SUM(F100:F111)","v":1558632.1199400001},null,{"$f":"SUM(H100:H111)","v":458905.05999999994},{"$f":"IF(H113<>0,J113/H113,0)","v":0.8045000000000001},{"$f":"SUM(J100:J111)","v":369189.12076999998},null,{"$f":"SUM(L100:L111)","v":458905.05999999994},{"$f":"IF(L113<>0,N113/L113,0)","v":2.0194000000000005},{"$f":"SUM(N100:N111)","v":926712.87816400011},null,{"$f":"SUM(P100:P111)","v":1295901.9989340003}]
[]
[null,null,null,null,null,null,null,null,null,null,null,null,null,"Low Voltage Switchgear Credit (if applicable)",null,{"$f":"'4. UTRs and Sub-Transmission'!H76","v":0}]
[]
[null,null,null,null,null,null,null,null,null,null,null,null,null,"Total including deduction for Low Voltage Switchgear Credit",null,{"$f":"P113+P115","v":1295901.9989340003}]

{"sheet":"7. Forecast Wholesale","index":8,"n_rows":117,"n_cols":16,"rows_kept":117,"cut":false,"hidden":false,"merged":[[12,1,12,12],[19,3,19,5],[19,7,19,9],[19,11,19,13],[38,3,38,5],[38,7,38,9],[38,11,38,13],[96,7,96,9],[96,11,96,13],[20,3,20,5],[20,7,20,9],[20,11,20,13],[96,3,96,5],[95,3,95,5],[95,7,95,9],[95,11,95,13],[57,3,57,5],[57,7,57,9],[57,11,57,13],[76,3,76,5],[76,7,76,9],[76,11,76,13]]}
[]
[]
[]
[]
[]
[]
[]
[]
[]
[]
[]
[]
[null,"The purpose of this sheet is to calculate the expected billing when forecasted 2021 Uniform Transmission Rates and Hydro One Sub-transmission Rates are applied against historical 2019 transmission units."]
[]
[]
[]
[]
[]
[]
[null,"IESO",null,"Network",null,null,null,"Line Connection",null,null,null,"Transformation Connection",null,null,null,"Total Connection"]
[]
[null,"Month",null,"Units Billed","Rate","Amount",null,"Units Billed","Rate","Amount",null,"Units Billed","Rate","Amount",null,"Amount"]
[]
[null,"January",null,{"$f":"'5. Historical Wholesale'!D24","v":0},{"$f":"'4. UTRs and Sub-Transmission'!L23","v":3.3980000000000001},{"$f":"D24*E24","v":0},null,{"$f":"'5. Historical Wholesale'!H24","v":0},{"$f":"'4. UTRs and Sub-Transmission'!L25","v":0.80449999999999999},{"$f":"H24*I24","v":0},null,{"$f":"'5. Historical Wholesale'!L24","v":0},{"$f":"'4. UTRs and Sub-Transmission'!L27","v":2.0194000000000001},{"$f":"L24*M24","v":0},null,{"$f":"J24+N24","v":0}]
[null,"February",null,{"$f":"'5. Historical Wholesale'!D25","v":0},{"$f":"E24","v":3.3980000000000001},0,null,{"$f":"'5. Historical Wholesale'!H25","v":0},{"$f":"I24","v":0.80449999999999999},0,null,{"$f":"'5. Historical Wholesale'!L25","v":0},{"$f":"M24","v":2.0194000000000001},0,null,0]
[null,"March",null,{"$f":"'5. Historical Wholesale'!D26","v":0},3.3980000000000001,0,null,{"$f":"'5. Historical Wholesale'!H26","v":0},0.80449999999999999,0,null,{"$f":"'5. Historical Wholesale'!L26","v":0},2.0194000000000001,0,null,0]
[null,"April",null,{"$f":"'5. Historical Wholesale'!D27","v":0},3.3980000000000001,0,null,{"$f":"'5. Historical Wholesale'!H27","v":0},0.80449999999999999,0,null,{"$f":"'5. Historical Wholesale'!L27","v":0},2.0194000000000001,0,null,0]
[null,"May",null,{"$f":"'5. Historical Wholesale'!D28","v":0},3.3980000000000001,0,null,{"$f":"'5. Historical Wholesale'!H28","v":0},0.80449999999999999,0,null,{"$f":"'5. Historical Wholesale'!L28","v":0},2.0194000000000001,0,null,0]
[null,"June",null,{"$f":"'5. Historical Wholesale'!D29","v":0},3.3980000000000001,0,null,{"$f":"'5. Historical Wholesale'!H29","v":0},0.80449999999999999,0,null,{"$f":"'5. Historical Wholesale'!L29","v":0},2.0194000000000001,0,null,0]
[null,"July",null,{"$f":"'5. Historical Wholesale'!D30","v":0},3.3980000000000001,0,null,{"$f":"'5. Historical Wholesale'!H30","v":0},0.80449999999999999,0,null,{"$f":"'5. Historical Wholesale'!L30","v":0},2.0194000000000001,0,null,0]
[null,"August",null,{"$f":"'5. Historical Wholesale'!D31","v":0},3.3980000000000001,0,null,{"$f":"'5. Historical Wholesale'!H31","v":0},0.80449999999999999,0,null,{"$f":"'5. Historical Wholesale'!L31","v":0},2.0194000000000001,0,null,0]
[null,"September",null,{"$f":"'5. Historical Wholesale'!D32","v":0},3.3980000000000001,0,null,{"$f":"'5. Historical Wholesale'!H32","v":0},0.80449999999999999,0,null,{"$f":"'5. Historical Wholesale'!L32","v":0},2.0194000000000001,0,null,0]
[null,"October",null,{"$f":"'5. Historical Wholesale'!D33","v":0},3.3980000000000001,0,null,{"$f":"'5. Historical Wholesale'!H33","v":0},0.80449999999999999,0,null,{"$f":"'5. Historical Wholesale'!L33","v":0},2.0194000000000001,0,null,0]
[null,"November",null,{"$f":"'5. Historical Wholesale'!D34","v":0},3.3980000000000001,0,null,{"$f":"'5. Historical Wholesale'!H34","v":0},0.80449999999999999,0,null,{"$f":"'5. Historical Wholesale'!L34","v":0},2.0194000000000001,0,null,0]
[null,"December",null,{"$f":"'5. Historical Wholesale'!D35","v":0},3.3980000000000001,0,null,{"$f":"'5. Historical Wholesale'!H35","v":0},0.80449999999999999,0,null,{"$f":"'5. Historical Wholesale'!L35","v":0},2.0194000000000001,0,null,0]
[]
[null,"Total",null,{"$f":"SUM(D24:D35)","v":0},{"$f":"IF(D37<>0,F37/D37,0)","v":0},{"$f":"SUM(F24:F35)","v":0},null,{"$f":"SUM(H24:H35)","v":0},{"$f":"IF(H37<>0,J37/H37,0)","v":0},{"$f":"SUM(J24:J35)","v":0},null,{"$f":"SUM(L24:L35)","v":0},{"$f":"IF(L37<>0,N37/L37,0)","v":0},{"$f":"SUM(N24:N35)","v":0},null,{"$f":"SUM(P24:P35)","v":0}]
[]
[null,"Hydro One",null,"Network",null,null,null,"Line Connection",null,null,null,"Transformation Connection",null,null,null,"Total Connection"]
[]
[null,"Month",null,"Units Billed","Rate","Amount",null,"Units Billed","Rate","Amount",null,"Units Billed","Rate","Amount",null,"Amount"]
[]
[null,"January",null,{"$f":"'5. Historical Wholesale'!D43","v":43928.06},{"$f":"'4. UTRs and Sub-Transmission'!L37","v":3.3980000000000001},{"$f":"D43*E43","v":149267.54788},null,{"$f":"'5. Historical Wholesale'!H43","v":43928.06},{"$f":"'4. UTRs and Sub-Transmission'!L39","v":0.80449999999999999},{"$f":"H43*I43","v":35340.12427},null,{"$f":"'5. Historical Wholesale'!L43","v":43928.06},{"$f":"'4. UTRs and Sub-Transmission'!L41","v":2.0194000000000001},{"$f":"L43*M43","v":88708.324364},null,{"$f":"J43+N43","v":124048.448634}]
[null,"February",null,{"$f":"'5. Historical Wholesale'!D44","v":40526.78},{"$f":"E43","v":3.3980000000000001},137709.99844,null,{"$f":"'5. Historical Wholesale'!H44","v":40526.78},{"$f":"I43","v":0.80449999999999999},32603.79451,null,{"$f":"'5. Historical Wholesale'!L44","v":40526.78},{"$f":"M43","v":2.0194000000000001},81839.779532,null,114443.57404199999]
[null,"March",null,{"$f":"'5. Historical Wholesale'!D45","v":39501.01},3.3980000000000001,134224.43198000002,null,{"$f":"'5. Historical Wholesale'!H45","v":39501.01},0.80449999999999999,31778.562545000001,null,{"$f":"'5. Historical Wholesale'!L45","v":39501.01},2.0194000000000001,79768.339594000005,null,111546.90213900001]
[null,"April",null,{"$f":"'5. Historical Wholesale'!D46","v":34751.9},3.3980000000000001,118086.95620000002,null,{"$f":"'5. Historical Wholesale'!H46","v":34751.9},0.80449999999999999,27957.903550000003,null,{"$f":"'5. Historical Wholesale'!L46","v":34751.9},2.0194000000000001,70177.986860000005,null,98135.890410000007]
[null,"May",null,{"$f":"'5. Historical Wholesale'!D47","v":33840.97},3.3980000000000001,114991.61606000001,null,{"$f":"'5. Historical Wholesale'!H47","v":33840.97},0.80449999999999999,27225.060365000001,null,{"$f":"'5. Historical Wholesale'!L47","v":33840.97},2.0194000000000001,68338.454817999998,null,95563.515182999996]
[null,"June",null,{"$f":"'5. Historical Wholesale'!D48","v":35005.07},3.3980000000000001,118947.22786,null,{"$f":"'5. Historical Wholesale'!H48","v":35005.07},0.80449999999999999,28161.578815000001,null,{"$f":"'5. Historical Wholesale'!L48","v":35005.07},2.0194000000000001,70689.238358000002,null,98850.817173000003]
[null,"July",null,{"$f":"'5. Historical Wholesale'!D49","v":41300.199999999997},3.3980000000000001,140338.0796,null,{"$f":"'5. Historical Wholesale'!H49","v":41300.199999999997},0.80449999999999999,33226.010899999994,null,{"$f":"'5. Historical Wholesale'!L49","v":41300.199999999997},2.0194000000000001,83401.623879999999,null,116627.63477999999]
[null,"August",null,{"$f":"'5. Historical Wholesale'!D50","v":40396.870000000003},3.3980000000000001,137268.56426000001,null,{"$f":"'5. Historical Wholesale'!H50","v":40396.870000000003},0.80449999999999999,32499.281915000003,null,{"$f":"'5. Historical Wholesale'!L50","v":40396.870000000003},2.0194000000000001,81577.439278000005,null,114076.721193]
[null,"September",null,{"$f":"'5. Historical Wholesale'!D51","v":36117.08},3.3980000000000001,122725.83784000001,null,{"$f":"'5. Historical Wholesale'!H51","v":36331.11},0.80449999999999999,29228.377994999999,null,{"$f":"'5. Historical Wholesale'!L51","v":36331.11},2.0194000000000001,73367.043534000011,null,102595.42152900001]
[null,"October",null,{"$f":"'5. Historical Wholesale'!D52","v":35070.6},3.3980000000000001,119169.8988,null,{"$f":"'5. Historical Wholesale'!H52","v":35070.6},0.80449999999999999,28214.297699999999,null,{"$f":"'5. Historical Wholesale'!L52","v":35070.6},2.0194000000000001,70821.569640000002,null,99035.867339999997]
[null,"November",null,{"$f":"'5. Historical Wholesale'!D53","v":38523.94},3.3980000000000001,130904.34812000001,null,{"$f":"'5. Historical Wholesale'!H53","v":38523.94},0.80449999999999999,30992.509730000002,null,{"$f":"'5. Historical Wholesale'!L53","v":38523.94},2.0194000000000001,77795.244436000008,null,108787.75416600001]
[null,"December",null,{"$f":"'5. Historical Wholesale'!D54","v":39728.550000000003},3.3980000000000001,134997.61290000001,null,{"$f":"'5. Historical Wholesale'!H54","v":39728.550000000003},0.80449999999999999,31961.618475000003,null,{"$f":"'5. Historical Wholesale'!L54","v":39728.550000000003},2.0194000000000001,80227.833870000002,null,112189.452345]
[]
[null,"Total",null,{"$f":"SUM(D43:D54)","v":458691.02999999997},{"$f":"IF(D56<>0,F56/D56,0)","v":3.3980000000000006},{"$f":"SUM(F43:F54)","v":1558632.1199400001},null,{"$f":"SUM(H43:H54)","v":458905.05999999994},{"$f":"IF(H56<>0,J56/H56,0)","v":0.8045000000000001},{"$f":"SUM(J43:J54)","v":369189.12076999998},null,{"$f":"SUM(L43:L54)","v":458905.05999999994},{"$f":"IF(L56<>0,N56/L56,0)","v":2.0194000000000005},{"$f":"SUM(N43:N54)","v":926712.87816400011},null,{"$f":"SUM(P43:P54)","v":1295901.9989340003}]
[]
[null,{"$f":"'5. Historical Wholesale'!B58","v":"Add Extra Host Here (I)"},null,"Network",null,null,null,"Line Connection",null,null,null,"Transformation Connection",null,null,null,"Total Connection"]
[]
[null,"Month",null,"Units Billed","Rate","Amount",null,"Units Billed","Rate","Amount",null,"Units Billed","Rate","Amount",null,"Amount"]
[]
[null,"January",null,{"$f":"'5. Historical Wholesale'!D62","v":0},{"$f":"'4. UTRs and Sub-Transmission'!L52","v":0},{"$f":"D62*E62","v":0},null,{"$f":"'5. Historical Wholesale'!H62","v":0},{"$f":"'4. UTRs and Sub-Transmission'!L54","v":0},{"$f":"H62*I62","v":0},null,{"$f":"'5. Historical Wholesale'!L62","v":0},{"$f":"'4. UTRs and Sub-Transmission'!L56","v":0},{"$f":"L62*M62","v":0},null,{"$f":"J62+N62","v":0}]
[null,"February",null,{"$f":"'5. Historical Wholesale'!D63","v":0},{"$f":"E62","v":0},0,null,{"$f":"'5. Historical Wholesale'!H63","v":0},{"$f":"I62","v":0},0,null,{"$f":"'5. Historical Wholesale'!L63","v":0},{"$f":"M62","v":0},0,null,0]
[null,"March",null,{"$f":"'5. Historical Wholesale'!D64","v":0},0,0,null,{"$f":"'5. Historical Wholesale'!H64","v":0},0,0,null,{"$f":"'5. Historical Wholesale'!L64","v":0},0,0,null,0]
[null,"April",null,{"$f":"'5. Historical Wholesale'!D65","v":0},0,0,null,{"$f":"'5. Historical Wholesale'!H65","v":0},0,0,null,{"$f":"'5. Historical Wholesale'!L65","v":0},0,0,null,0]
[null,"May",null,{"$f":"'5. Historical Wholesale'!D66","v":0},0,0,null,{"$f":"'5. Historical Wholesale'!H66","v":0},0,0,null,{"$f":"'5. Historical Wholesale'!L66","v":0},0,0,null,0]
[null,"June",null,{"$f":"'5. Historical Wholesale'!D67","v":0},0,0,null,{"$f":"'5. Historical Wholesale'!H67","v":0},0,0,null,{"$f":"'5. Historical Wholesale'!L67","v":0},0,0,null,0]
[null,"July",null,{"$f":"'5. Historical Wholesale'!D68","v":0},0,0,null,{"$f":"'5. Historical Wholesale'!H68","v":0},0,0,null,{"$f":"'5. Historical Wholesale'!L68","v":0},0,0,null,0]
[null,"August",null,{"$f":"'5. Historical Wholesale'!D69","v":0},0,0,null,{"$f":"'5. Historical Wholesale'!H69","v":0},0,0,null,{"$f":"'5. Historical Wholesale'!L69","v":0},0,0,null,0]
[null,"September",null,{"$f":"'5. Historical Wholesale'!D70","v":0},0,0,null,{"$f":"'5. Historical Wholesale'!H70","v":0},0,0,null,{"$f":"'5. Historical Wholesale'!L70","v":0},0,0,null,0]
[null,"October",null,{"$f":"'5. Historical Wholesale'!D71","v":0},0,0,null,{"$f":"'5. Historical Wholesale'!H71","v":0},0,0,null,{"$f":"'5. Historical Wholesale'!L71","v":0},0,0,null,0]
[null,"November",null,{"$f":"'5. Historical Wholesale'!D72","v":0},0,0,null,{"$f":"'5. Historical Wholesale'!H72","v":0},0,0,null,{"$f":"'5. Historical Wholesale'!L72","v":0},0,0,null,0]
[null,"December",null,{"$f":"'5. Historical Wholesale'!D73","v":0},0,0,null,{"$f":"'5. Historical Wholesale'!H73","v":0},0,0,null,{"$f":"'5. Historical Wholesale'!L73","v":0},0,0,null,0]
[]
[null,"Total",null,{"$f":"SUM(D62:D73)","v":0},{"$f":"IF(D75<>0,F75/D75,0)","v":0},{"$f":"SUM(F62:F73)","v":0},null,{"$f":"SUM(H62:H73)","v":0},{"$f":"IF(H75<>0,J75/H75,0)","v":0},{"$f":"SUM(J62:J73)","v":0},null,{"$f":"SUM(L62:L73)","v":0},{"$f":"IF(L75<>0,N75/L75,0)","v":0},{"$f":"SUM(N62:N73)","v":0},null,{"$f":"SUM(P62:P73)","v":0}]
[]
[null,{"$f":"'5. Historical Wholesale'!B77","v":"Add Extra Host Here (II)"},null,"Network",null,null,null,"Line Connection",null,null,null,"Transformation Connection",null,null,null,"Total Connection"]
[]
[null,"Month",null,"Units Billed","Rate","Amount",null,"Units Billed","Rate","Amount",null,"Units Billed","Rate","Amount",null,"Amount"]
[]
[null,"January",null,{"$f":"'5. Historical Wholesale'!D81","v":0},{"$f":"'4. UTRs and Sub-Transmission'!L67","v":0},{"$f":"D81*E81","v":0},null,{"$f":"'5. Historical Wholesale'!H81","v":0},{"$f":"'4. UTRs and Sub-Transmission'!L69","v":0},{"$f":"H81*I81","v":0},null,{"$f":"'5. Historical Wholesale'!L81","v":0},{"$f":"'4. UTRs and Sub-Transmission'!L71","v":0},{"$f":"L81*M81","v":0},null,{"$f":"J81+N81","v":0}]
[null,"February",null,{"$f":"'5. Historical Wholesale'!D82","v":0},{"$f":"E81","v":0},0,null,{"$f":"'5. Historical Wholesale'!H82","v":0},{"$f":"I81","v":0},0,null,{"$f":"'5. Historical Wholesale'!L82","v":0},{"$f":"M81","v":0},0,null,0]
[null,"March",null,{"$f":"'5. Historical Wholesale'!D83","v":0},0,0,null,{"$f":"'5. Historical Wholesale'!H83","v":0},0,0,null,{"$f":"'5. Historical Wholesale'!L83","v":0},0,0,null,0]
[null,"April",null,{"$f":"'5. Historical Wholesale'!D84","v":0},0,0,null,{"$f":"'5. Historical Wholesale'!H84","v":0},0,0,null,{"$f":"'5. Historical Wholesale'!L84","v":0},0,0,null,0]
[null,"May",null,{"$f":"'5. Historical Wholesale'!D85","v":0},0,0,null,{"$f":"'5. Historical Wholesale'!H85","v":0},0,0,null,{"$f":"'5. Historical Wholesale'!L85","v":0},0,0,null,0]
[null,"June",null,{"$f":"'5. Historical Wholesale'!D86","v":0},0,0,null,{"$f":"'5. Historical Wholesale'!H86","v":0},0,0,null,{"$f":"'5. Historical Wholesale'!L86","v":0},0,0,null,0]
[null,"July",null,{"$f":"'5. Historical Wholesale'!D87","v":0},0,0,null,{"$f":"'5. Historical Wholesale'!H87","v":0},0,0,null,{"$f":"'5. Historical Wholesale'!L87","v":0},0,0,null,0]
[null,"August",null,{"$f":"'5. Historical Wholesale'!D88","v":0},0,0,null,{"$f":"'5. Historical Wholesale'!H88","v":0},0,0,null,{"$f":"'5. Historical Wholesale'!L88","v":0},0,0,null,0]
[null,"September",null,{"$f":"'5. Historical Wholesale'!D89","v":0},0,0,null,{"$f":"'5. Historical Wholesale'!H89","v":0},0,0,null,{"$f":"'5. Historical Wholesale'!L89","v":0},0,0,null,0]
[null,"October",null,{"$f":"'5. Historical Wholesale'!D90","v":0},0,0,null,{"$f":"'5. Historical Wholesale'!H90","v":0},0,0,null,{"$f":"'5. Historical Wholesale'!L90","v":0},0,0,null,0]
[null,"November",null,{"$f":"'5. Historical Wholesale'!D91","v":0},0,0,null,{"$f":"'5. Historical Wholesale'!H91","v":0},0,0,null,{"$f":"'5. Historical Wholesale'!L91","v":0},0,0,null,0]
[null,"December",null,{"$f":"'5. Historical Wholesale'!D92","v":0},0,0,null,{"$f":"'5. Historical Wholesale'!H92","v":0},0,0,null,{"$f":"'5. Historical Wholesale'!L92","v":0},0,0,null,0]
[]
[null,"Total",null,{"$f":"SUM(D81:D92)","v":0},{"$f":"IF(D94<>0,F94/D94,0)","v":0},{"$f":"SUM(F81:F92)","v":0},null,{"$f":"SUM(H81:H92)","v":0},{"$f":"IF(H94<>0,J94/H94,0)","v":0},{"$f":"SUM(J81:J92)","v":0},null,{"$f":"SUM(L81:L92)","v":0},{"$f":"IF(L94<>0,N94/L94,0)","v":0},{"$f":"SUM(N81:N92)","v":0},null,{"$f":"SUM(P81:P92)","v":0}]
[]
[null,"Total",null,"Network",null,null,null,"Line Connection",null,null,null,"Transformation Connection",null,null,null,"Total Connection"]
[]
[null,"Month",null,"Units Billed","Rate","Amount",null,"Units Billed","Rate","Amount",null,"Units Billed","Rate","Amount",null,"Amount"]
[]
[null,"January",null,{"$f":"D24+D43+D62+D81","v":43928.06},{"$f":"IF(D100<>0,F100/D100,0)","v":3.3980000000000001},{"$f":"F24+F43+F62+F81","v":149267.54788},null,{"$f":"H24+H43+H62+H81","v":43928.06},{"$f":"IF(H100<>0,J100/H100,0)","v":0.80449999999999999},{"$f":"J24+J43+J62+J81","v":35340.12427},null,{"$f":"L24+L43+L62+L81","v":43928.06},{"$f":"IF(L100<>0,N100/L100,0)","v":2.0194000000000001},{"$f":"N24+N43+N62+N81","v":88708.324364},null,{"$f":"J100+N100","v":124048.448634}]
[null,"February",null,{"$f":"D25+D44+D63+D82","v":40526.78},3.3980000000000001,137709.99844,null,{"$f":"H25+H44+H63+H82","v":40526.78},0.80449999999999999,{"$f":"J25+J44+J63+J82","v":32603.79451},null,{"$f":"L25+L44+L63+L82","v":40526.78},2.0194000000000001,{"$f":"N25+N44+N63+N82","v":81839.779532},null,114443.57404199999]
[null,"March",null,39501.01,3.3980000000000006,134224.43198000002,null,{"$f":"H26+H45+H64+H83","v":39501.01},0.80449999999999999,{"$f":"J26+J45+J64+J83","v":31778.562545000001},null,{"$f":"L26+L45+L64+L83","v":39501.01},2.0194000000000001,{"$f":"N26+N45+N64+N83","v":79768.339594000005},null,111546.90213900001]
[null,"April",null,34751.9,3.3980000000000001,118086.95620000002,null,{"$f":"H27+H46+H65+H84","v":34751.9},0.80449999999999999,{"$f":"J27+J46+J65+J84","v":27957.903550000003},null,{"$f":"L27+L46+L65+L84","v":34751.9},2.0194000000000001,{"$f":"N27+N46+N65+N84","v":70177.986860000005},null,98135.890410000007]
[null,"May",null,33840.97,3.3980000000000001,114991.61606000001,null,{"$f":"H28+H47+H66+H85","v":33840.97},0.80449999999999999,{"$f":"J28+J47+J66+J85","v":27225.060365000001},null,{"$f":"L28+L47+L66+L85","v":33840.97},2.0194000000000001,{"$f":"N28+N47+N66+N85","v":68338.454817999998},null,95563.515182999996]
[null,"June",null,35005.07,3.3980000000000001,118947.22786,null,{"$f":"H29+H48+H67+H86","v":35005.07},0.80449999999999999,{"$f":"J29+J48+J67+J86","v":28161.578815000001},null,{"$f":"L29+L48+L67+L86","v":35005.07},2.0194000000000001,{"$f":"N29+N48+N67+N86","v":70689.238358000002},null,98850.817173000003]
[null,"July",null,41300.199999999997,3.3980000000000001,140338.0796,null,{"$f":"H30+H49+H68+H87","v":41300.199999999997},0.80449999999999988,{"$f":"J30+J49+J68+J87","v":33226.010899999994},null,{"$f":"L30+L49+L68+L87","v":41300.199999999997},2.0194000000000001,{"$f":"N30+N49+N68+N87","v":83401.623879999999},null,116627.63477999999]
[null,"August",null,40396.870000000003,3.3980000000000001,137268.56426000001,null,{"$f":"H31+H50+H69+H88","v":40396.870000000003},0.80449999999999999,{"$f":"J31+J50+J69+J88","v":32499.281915000003},null,{"$f":"L31+L50+L69+L88","v":40396.870000000003},2.0194000000000001,{"$f":"N31+N50+N69+N88","v":81577.439278000005},null,114076.721193]
[null,"September",null,36117.08,3.3980000000000001,122725.83784000001,null,{"$f":"H32+H51+H70+H89","v":36331.11},0.80449999999999999,{"$f":"J32+J51+J70+J89","v":29228.377994999999},null,{"$f":"L32+L51+L70+L89","v":36331.11},2.0194000000000001,{"$f":"N32+N51+N70+N89","v":73367.043534000011},null,102595.42152900001]
[null,"October",null,35070.6,3.3980000000000001,119169.8988,null,{"$f":"H33+H52+H71+H90","v":35070.6},0.80449999999999999,{"$f":"J33+J52+J71+J90","v":28214.297699999999},null,{"$f":"L33+L52+L71+L90","v":35070.6},2.0194000000000001,{"$f":"N33+N52+N71+N90","v":70821.569640000002},null,99035.867339999997]
[null,"November",null,38523.94,3.3980000000000001,130904.34812000001,null,{"$f":"H34+H53+H72+H91","v":38523.94},0.80449999999999999,{"$f":"J34+J53+J72+J91","v":30992.509730000002},null,{"$f":"L34+L53+L72+L91","v":38523.94},2.0194000000000001,{"$f":"N34+N53+N72+N91","v":77795.244436000008},null,108787.75416600001]
[null,"December",null,39728.550000000003,3.3980000000000001,134997.61290000001,null,{"$f":"H35+H54+H73+H92","v":39728.550000000003},0.80449999999999999,{"$f":"J35+J54+J73+J92","v":31961.618475000003},null,{"$f":"L35+L54+L73+L92","v":39728.550000000003},2.0194000000000001,{"$f":"N35+N54+N73+N92","v":80227.833870000002},null,112189.452345]
[]
[null,"Total",null,{"$f":"SUM(D100:D111)","v":458691.02999999997},{"$f":"IF(D113<>0,F113/D113,0)","v":3.3980000000000006},{"$f":"SUM(F100:F111)","v":1558632.1199400001},null,{"$f":"SUM(H100:H111)","v":458905.05999999994},{"$f":"IF(H113<>0,J113/H113,0)","v":0.8045000000000001},{"$f":"SUM(J100:J111)","v":369189.12076999998},null,{"$f":"SUM(L100:L111)","v":458905.05999999994},{"$f":"IF(L113<>0,N113/L113,0)","v":2.0194000000000005},{"$f":"SUM(N100:N111)","v":926712.87816400011},null,{"$f":"SUM(P100:P111)","v":1295901.9989340003}]
[]
[null,null,null,null,null,null,null,null,null,null,null,null,null,"Low Voltage Switchgear Credit (if applicable)",null,{"$f":"'4. UTRs and Sub-Transmission'!L76","v":0}]
[]
[null,null,null,null,null,null,null,null,null,null,null,null,null,"Total including deduction for Low Voltage Switchgear Credit",null,{"$f":"P113+P115","v":1295901.9989340003}]

{"sheet":"8. RTSR Rates to Forecast","index":9,"n_rows":56,"n_cols":10,"rows_kept":56,"cut":false,"hidden":false,"merged":[]}
[]
[]
[]
[]
[]
[]
[]
[]
[]
[]
[]
[]
["The purpose of this sheet is to re-align the current RTS Network Rates to recover current wholesale network costs."]
[]
["Rate Class","Rate Description","Unit","Current RTSR-Network","Loss Adjusted Billed kWh","Billed kW","Billed Amount","Billed Amount %","Current Wholesale Billing","Adjusted RTSR Network"]
[]
["RESIDENTIAL SERVICE CLASSIFICATION","Retail Transmission Rate - Network Service Rate","$/kWh",6.4999999999999997E-3,78970274.846820012,0,{"$f":"ROUND(D17*E17, 2)","v":513306.79},{"$f":"G17/1624271.98","v":0.3160226835902199},{"$f":"H17*total_current_wholesale_network","v":492563.10527335235},{"$f":"IF(ISERROR(I17/E17), 0, I17/E17)","v":6.2373229196528114E-3}]
["GENERAL SERVICE LESS THAN 50 KW SERVICE CLASSIFICATION","Retail Transmission Rate - Network Service Rate","$/kWh",6.0000000000000001E-3,36284593.493988,0,{"$f":"ROUND(D18*E18, 2)","v":217707.56},0.13403393192807525,208909.5914649496,{"$f":"IF(ISERROR(I18/E18), 0, I18/E18)","v":5.757528784208754E-3}]
["GENERAL SERVICE 50 TO 2,999 KW SERVICE CLASSIFICATION","Retail Transmission Rate - Network Service Rate","$/kW",2.4062999999999999,123157262.88154802,319666.53999999998,{"$f":"ROUND(D19*F19, 2)","v":769213.6},0.47357438253659956,738128.2438022967,{"$f":"IF(ISERROR(I19/F19), 0, I19/F19)","v":2.3090569435333981}]
["GENERAL SERVICE 3,000 TO 4,999 KW SERVICE CLASSIFICATION","Retail Transmission Rate - Network Service Rate","$/kW",2.6913999999999998,20629094.945634,42405.1,{"$f":"ROUND(D20*F20, 2)","v":114129.09},7.0264765633647142E-2,109516.92061665871,{"$f":"IF(ISERROR(I20/F20), 0, I20/F20)","v":2.5826355937530794}]
["UNMETERED SCATTERED LOAD SERVICE CLASSIFICATION","Retail Transmission Rate - Network Service Rate","$/kWh",6.7999999999999996E-3,644653.52103600011,0,{"$f":"ROUND(D21*E21, 2)","v":4383.6400000000003},2.698833726110328E-3,4206.4889318929099,{"$f":"IF(ISERROR(I21/E21), 0, I21/E21)","v":6.5251934483081843E-3}]
["SENTINEL LIGHTING SERVICE CLASSIFICATION","Retail Transmission Rate - Network Service Rate","$/kW",1.8237000000000001,46859.578920000007,124.45,{"$f":"ROUND(D22*F22, 2)","v":226.96},1.3973029319880282E-4,217.78812310828783,{"$f":"IF(ISERROR(I22/F22), 0, I22/F22)","v":1.750005006896648}]
["STREET LIGHTING SERVICE CLASSIFICATION","Retail Transmission Rate - Network Service Rate","$/kW",1.8149,1126603.0363140001,2922.66,{"$f":"ROUND(D23*F23, 2)","v":5304.34},3.2656722921490032E-3,5089.9817277415204,{"$f":"IF(ISERROR(I23/F23), 0, I23/F23)","v":1.7415579395966416}]
[]
["The purpose of this table is to re-align the current RTS Connection Rates to recover current wholesale connection costs."]
["Rate Class","Rate Description","Unit","Current RTSR-Connection","Loss Adjusted Billed kWh","Billed kW","Billed Amount","Billed Amount %","Current Wholesale Billing","Adjusted RTSR-Connection"]
[]
["RESIDENTIAL SERVICE CLASSIFICATION","Retail Transmission Rate - Line and Transformation Connection Service Rate","$/kWh",5.4999999999999997E-3,78970274.846820012,0,{"$f":"ROUND(D28*E28, 2)","v":434336.51},{"$f":"G28/1350807.6","v":0.3215383967339242},{"$f":"H28*Total_Current_Wholesale_Lineplus","v":416682.25106152601},{"$f":"IF(ISERROR(I28/E28), 0, I28/E28)","v":5.2764442300570905E-3}]
["GENERAL SERVICE LESS THAN 50 KW SERVICE CLASSIFICATION","Retail Transmission Rate - Line and Transformation Connection Service Rate","$/kWh",4.8999999999999998E-3,36284593.493988,0,{"$f":"ROUND(D29*E29, 2)","v":177794.51},0.13162089849065106,170567.78545552384,{"$f":"IF(ISERROR(I29/E29), 0, I29/E29)","v":4.7008321998642548E-3}]
["GENERAL SERVICE 50 TO 2,999 KW SERVICE CLASSIFICATION","Retail Transmission Rate - Line and Transformation Connection Service Rate","$/kW",1.9749000000000001,123157262.88154802,319666.53999999998,{"$f":"ROUND(D30*F30, 2)","v":631309.44999999995},0.46735704625884539,605648.93046272779,{"$f":"IF(ISERROR(I30/F30), 0, I30/F30)","v":1.8946272276814702}]
["GENERAL SERVICE 3,000 TO 4,999 KW SERVICE CLASSIFICATION","Retail Transmission Rate - Line and Transformation Connection Service Rate","$/kW",2.3294000000000001,20629094.945634,42405.1,{"$f":"ROUND(D31*F31, 2)","v":98778.44},7.3125469533929177E-2,94763.442142006155,{"$f":"IF(ISERROR(I31/F31), 0, I31/F31)","v":2.2347180443391514}]
["UNMETERED SCATTERED LOAD SERVICE CLASSIFICATION","Retail Transmission Rate - Line and Transformation Connection Service Rate","$/kWh",6.1000000000000004E-3,644653.52103600011,0,{"$f":"ROUND(D32*E32, 2)","v":3932.39},2.9111399728577185E-3,3772.5521100029887,{"$f":"IF(ISERROR(I32/E32), 0, I32/E32)","v":5.852061591070273E-3}]
["SENTINEL LIGHTING SERVICE CLASSIFICATION","Retail Transmission Rate - Line and Transformation Connection Service Rate","$/kW",1.5587,46859.578920000007,124.45,{"$f":"ROUND(D33*F33, 2)","v":193.98},1.4360298239364362E-4,186.09539193680681,{"$f":"IF(ISERROR(I33/F33), 0, I33/F33)","v":1.495342643124201}]
["STREET LIGHTING SERVICE CLASSIFICATION","Retail Transmission Rate - Line and Transformation Connection Service Rate","$/kW",1.5267999999999999,1126603.0363140001,2922.66,{"$f":"ROUND(D34*F34, 2)","v":4462.32},3.3034460273987203E-3,4280.9423102765841,{"$f":"IF(ISERROR(I34/F34), 0, I34/F34)","v":1.4647418140586261}]
[]
["The purpose of this table is to update the re-aligned RTS Network Rates to recover future wholesale network costs."]
["Rate Class","Rate Description","Unit","Adjusted RTSR-Network","Loss Adjusted Billed kWh","Billed kW","Billed Amount","Billed Amount %","Forecast Wholesale Billing","Proposed RTSR-Network"]
[]
["RESIDENTIAL SERVICE CLASSIFICATION","Retail Transmission Rate - Network Service Rate","$/kWh",6.2373229196528114E-3,78970274.846820012,0,{"$f":"IF(ISERROR(D39*E39), 0, ROUND(D39*E39, 2))","v":492563.11},{"$f":"G39/1558632.12","v":0.31602268661061594},{"$f":"H39*forecast_wholesale_network","v":492563.10998103861},{"$f":"IF(ISERROR(I39/E39), 0, I39/E39)","v":6.2373229792662072E-3}]
["GENERAL SERVICE LESS THAN 50 KW SERVICE CLASSIFICATION","Retail Transmission Rate - Network Service Rate","$/kWh",5.757528784208754E-3,36284593.493988,0,{"$f":"IF(ISERROR(D40*E40), 0, ROUND(D40*E40, 2))","v":208909.59},0.13403393098302119,208909.58999195797,{"$f":"IF(ISERROR(I40/E40), 0, I40/E40)","v":5.7575287436132426E-3}]
["GENERAL SERVICE 50 TO 2,999 KW SERVICE CLASSIFICATION","Retail Transmission Rate - Network Service Rate","$/kW",2.3090569435333981,123157262.88154802,319666.53999999998,{"$f":"ROUND(D41*F41, 2)","v":738128.24},0.47357438007886038,738128.23997158557,{"$f":"IF(ISERROR(I41/F41), 0, I41/F41)","v":2.3090569315499385}]
["GENERAL SERVICE 3,000 TO 4,999 KW SERVICE CLASSIFICATION","Retail Transmission Rate - Network Service Rate","$/kW",2.5826355937530794,20629094.945634,42405.1,{"$f":"ROUND(D42*F42, 2)","v":109516.92},7.0264765235301313E-2,109516.9199957841,{"$f":"IF(ISERROR(I42/F42), 0, I42/F42)","v":2.5826355791115718}]
["UNMETERED SCATTERED LOAD SERVICE CLASSIFICATION","Retail Transmission Rate - Network Service Rate","$/kWh",6.5251934483081843E-3,644653.52103600011,0,{"$f":"IF(ISERROR(D43*E43), 0, ROUND(D43*E43, 2))","v":4206.49},2.6988344112913567E-3,4206.4899998380697,{"$f":"IF(ISERROR(I43/E43), 0, I43/E43)","v":6.5251951049270108E-3}]
["SENTINEL LIGHTING SERVICE CLASSIFICATION","Retail Transmission Rate - Network Service Rate","$/kW",1.750005006896648,46859.578920000007,124.45,{"$f":"ROUND(D44*F44, 2)","v":217.79},1.3973149738502757E-4,217.7899999916161,{"$f":"IF(ISERROR(I44/F44), 0, I44/F44)","v":1.7500200883215435}]
["STREET LIGHTING SERVICE CLASSIFICATION","Retail Transmission Rate - Network Service Rate","$/kW",1.7415579395966416,1126603.0363140001,2922.66,{"$f":"ROUND(D45*F45, 2)","v":5089.9799999999996},3.2656711835246915E-3,5089.9799998040589,{"$f":"IF(ISERROR(I45/F45), 0, I45/F45)","v":1.7415573483758149}]
[]
["The purpose of this table is to update the re-aligned RTS Connection Rates to recover future wholesale connection costs."]
["Rate Class","Rate Description","Unit","Adjusted RTSR-Connection","Loss Adjusted Billed kWh","Billed kW","Billed Amount","Billed Amount %","Forecast Wholesale Billing","Proposed RTSR-Connection"]
[]
["RESIDENTIAL SERVICE CLASSIFICATION","Retail Transmission Rate - Line and Transformation Connection Service Rate","$/kWh",5.2764442300570905E-3,78970274.846820012,0,{"$f":"ROUND(D50*E50, 2)","v":416682.25},{"$f":"G50/1295902","v":0.32153839565028836},{"$f":"H50*forecast_wholesale_lineplus","v":416682.24965724011},{"$f":"IF(ISERROR(I50/E50), 0, I50/E50)","v":5.2764442122746284E-3}]
["GENERAL SERVICE LESS THAN 50 KW SERVICE CLASSIFICATION","Retail Transmission Rate - Line and Transformation Connection Service Rate","$/kWh",4.7008321998642548E-3,36284593.493988,0,{"$f":"ROUND(D51*E51, 2)","v":170567.79},0.13162090188918607,170567.78985969216,{"$f":"IF(ISERROR(I51/E51), 0, I51/E51)","v":4.7008323212427211E-3}]
["GENERAL SERVICE 50 TO 2,999 KW SERVICE CLASSIFICATION","Retail Transmission Rate - Line and Transformation Connection Service Rate","$/kW",1.8946272276814702,123157262.88154802,319666.53999999998,{"$f":"ROUND(D52*F52, 2)","v":605648.93000000005},0.46735704551733082,605648.92950179754,{"$f":"IF(ISERROR(I52/F52), 0, I52/F52)","v":1.8946272246754308}]
["GENERAL SERVICE 3,000 TO 4,999 KW SERVICE CLASSIFICATION","Retail Transmission Rate - Line and Transformation Connection Service Rate","$/kW",2.2347180443391514,20629094.945634,42405.1,{"$f":"ROUND(D53*F53, 2)","v":94763.44},7.3125467820869178E-2,94763.439922048274,{"$f":"IF(ISERROR(I53/F53), 0, I53/F53)","v":2.2347179919879512}]
["UNMETERED SCATTERED LOAD SERVICE CLASSIFICATION","Retail Transmission Rate - Line and Transformation Connection Service Rate","$/kWh",5.852061591070273E-3,644653.52103600011,0,{"$f":"ROUND(D54*E54, 2)","v":3772.55},2.9111383422511889E-3,3772.5499968967274,{"$f":"IF(ISERROR(I54/E54), 0, I54/E54)","v":5.8520583131757261E-3}]
["SENTINEL LIGHTING SERVICE CLASSIFICATION","Retail Transmission Rate - Line and Transformation Connection Service Rate","$/kW",1.495342643124201,46859.578920000007,124.45,{"$f":"ROUND(D55*F55, 2)","v":186.1},1.4360653814871803E-4,186.09999984691547,{"$f":"IF(ISERROR(I55/F55), 0, I55/F55)","v":1.4953796693203332}]
["STREET LIGHTING SERVICE CLASSIFICATION","Retail Transmission Rate - Line and Transformation Connection Service Rate","$/kW",1.4647418140586261,1126603.0363140001,2922.66,{"$f":"ROUND(D56*F56, 2)","v":4280.9399999999996},3.3034442419257008E-3,4280.9399964785289,{"$f":"IF(ISERROR(I56/F56), 0, I56/F56)","v":1.4647410223832156}]

{"sheet":"RateClasses","index":10,"n_rows":76,"n_cols":28,"rows_kept":76,"cut":false,"hidden":true,"merged":[]}
[]
["Alectra Utilities Corporation-Brampton Rate Zone","RESIDENTIAL SERVICE CLASSIFICATION~Retail Transmission Rate - Network Service Rate","RESIDENTIAL SERVICE CLASSIFICATION~Retail Transmission Rate - Line and Transformation Connection Service Rate","GENERAL SERVICE LESS THAN 50 KW SERVICE CLASSIFICATION~Retail Transmission Rate - Network Service Rate","GENERAL SERVICE LESS THAN 50 KW SERVICE CLASSIFICATION~Retail Transmission Rate - Line and Transformation Connection Service Rate","GENERAL SERVICE 50 TO 699 KW SERVICE CLASSIFICATION~Retail Transmission Rate - Network Service Rate","GENERAL SERVICE 50 TO 699 KW SERVICE CLASSIFICATION~Retail Transmission Rate - Line and Transformation Connection Service Rate","GENERAL SERVICE 700 TO 4,999 KW SERVICE CLASSIFICATION~Retail Transmission Rate - Network Service Rate","GENERAL SERVICE 700 TO 4,999 KW SERVICE CLASSIFICATION~Retail Transmission Rate - Line and Transformation Connection Service Rate","LARGE USE SERVICE CLASSIFICATION~Retail Transmission Rate - Network Service Rate","LARGE USE SERVICE CLASSIFICATION~Retail Transmission Rate - Line and Transformation Connection Service Rate","UNMETERED SCATTERED LOAD SERVICE CLASSIFICATION~Retail Transmission Rate - Network Service Rate","UNMETERED SCATTERED LOAD SERVICE CLASSIFICATION~Retail Transmission Rate - Line and Transformation Connection Service Rate","STREET LIGHTING SERVICE CLASSIFICATION~Retail Transmission Rate - Network Service Rate","STREET LIGHTING SERVICE CLASSIFICATION~Retail Transmission Rate - Line and Transformation Connection Service Rate","EMBEDDED DISTRIBUTOR SERVICE CLASSIFICATION~Retail Transmission Rate - Network Service Rate","EMBEDDED DISTRIBUTOR SERVICE CLASSIFICATION~Retail Transmission Rate - Line and Transformation Connection Service Rate","DISTRIBUTED GENERATION [DGEN] SERVICE CLASSIFICATION~Retail Transmission Rate - Network Service Rate","DISTRIBUTED GENERATION [DGEN] SERVICE CLASSIFICATION~Retail Transmission Rate - Line and Transformation Connection Service Rate"]
["Alectra Utilities Corporation-Enersource Rate Zone","RESIDENTIAL SERVICE CLASSIFICATION~Retail Transmission Rate - Network Service Rate","RESIDENTIAL SERVICE CLASSIFICATION~Retail Transmission Rate - Line and Transformation Connection Service Rate","GENERAL SERVICE LESS THAN 50 KW SERVICE CLASSIFICATION~Retail Transmission Rate - Network Service Rate","GENERAL SERVICE LESS THAN 50 KW SERVICE CLASSIFICATION~Retail Transmission Rate - Line and Transformation Connection Service Rate","GENERAL SERVICE 50 TO 499 KW SERVICE CLASSIFICATION~Retail Transmission Rate - Network Service Rate","GENERAL SERVICE 50 TO 499 KW SERVICE CLASSIFICATION~Retail Transmission Rate - Line and Transformation Connection Service Rate","GENERAL SERVICE 500 TO 4,999 KW SERVICE CLASSIFICATION~Retail Transmission Rate - Network Service Rate ","GENERAL SERVICE 500 TO 4,999 KW SERVICE CLASSIFICATION~Retail Transmission Rate - Line and Transformation Connection Service Rate ","LARGE USE SERVICE CLASSIFICATION~Retail Transmission Rate - Network Service Rate – Interval Metered","LARGE USE SERVICE CLASSIFICATION~Retail Transmission Rate - Line and Transformation Connection Service Rate – Interval Metered ","UNMETERED SCATTERED LOAD SERVICE CLASSIFICATION~Retail Transmission Rate - Network Service Rate","UNMETERED SCATTERED LOAD SERVICE CLASSIFICATION~Retail Transmission Rate - Line and Transformation Connection Service Rate","STREET LIGHTING SERVICE CLASSIFICATION~Retail Transmission Rate - Network Service Rate","STREET LIGHTING SERVICE CLASSIFICATION~Retail Transmission Rate - Line and Transformation Connection Service Rate"]
["Alectra Utilities Corporation-Horizon Utilities Rate Zone","RESIDENTIAL SERVICE CLASSIFICATION~Retail Transmission Rate - Network Service Rate","RESIDENTIAL SERVICE CLASSIFICATION~Retail Transmission Rate - Line and Transformation Connection Service Rate","GENERAL SERVICE LESS THAN 50 KW SERVICE CLASSIFICATION~Retail Transmission Rate - Network Service Rate","GENERAL SERVICE LESS THAN 50 KW SERVICE CLASSIFICATION~Retail Transmission Rate - Line and Transformation Connection Service Rate","GENERAL SERVICE 50 to 4,999 kW SERVICE CLASSIFICATION~Retail Transmission Rate - Network Service Rate","GENERAL SERVICE 50 to 4,999 kW SERVICE CLASSIFICATION~Retail Transmission Rate - Line and Transformation Connection Service Rate","LARGE USE SERVICE CLASSIFICATION~Retail Transmission Rate - Network Service Rate","LARGE USE SERVICE CLASSIFICATION~Retail Transmission Rate - Line and Transformation Connection Service Rate","LARGE USE WITH DEDICATED ASSETS SERVICE CLASSIFICATION~Retail Transmission Rate - Network Service Rate","LARGE USE WITH DEDICATED ASSETS SERVICE CLASSIFICATION~Retail Transmission Rate - Line and Transformation Connection Service Rate","UNMETERED SCATTERED LOAD SERVICE CLASSIFICATION~Retail Transmission Rate - Network Service Rate","UNMETERED SCATTERED LOAD SERVICE CLASSIFICATION~Retail Transmission Rate - Line and Transformation Connection Service Rate","SENTINEL LIGHTING SERVICE CLASSIFICATION~Retail Transmission Rate - Network Service Rate","SENTINEL LIGHTING SERVICE CLASSIFICATION~Retail Transmission Rate - Line and Transformation Connection Service Rate","STREET LIGHTING SERVICE CLASSIFICATION~Retail Transmission Rate - Network Service Rate","STREET LIGHTING SERVICE CLASSIFICATION~Retail Transmission Rate - Line and Transformation Connection Service Rate"]
["Alectra Utilities Corporation-PowerStream Rate Zone","RESIDENTIAL SERVICE CLASSIFICATION~Retail Transmission Rate - Network Service Rate","RESIDENTIAL SERVICE CLASSIFICATION~Retail Transmission Rate - Line and Transformation Connection Service Rate","GENERAL SERVICE LESS THAN 50 KW SERVICE CLASSIFICATION~Retail Transmission Rate - Network Service Rate","GENERAL SERVICE LESS THAN 50 KW SERVICE CLASSIFICATION~Retail Transmission Rate - Line and Transformation Connection Service Rate","GENERAL SERVICE 50 to 4,999 kW SERVICE CLASSIFICATION~Retail Transmission Rate - Network Service Rate","GENERAL SERVICE 50 to 4,999 kW SERVICE CLASSIFICATION~Retail Transmission Rate - Line and Transformation Connection Service Rate","GENERAL SERVICE 50 to 4,999 kW SERVICE CLASSIFICATION~Retail Transmission Rate - Network Service Rate – Interval Metered","GENERAL SERVICE 50 to 4,999 kW SERVICE CLASSIFICATION~Retail Transmission Rate - Line and Transformation Connection Service Rate – Interval Metered","LARGE USE SERVICE CLASSIFICATION~Retail Transmission Rate - Network Service Rate","LARGE USE SERVICE CLASSIFICATION~Retail Transmission Rate - Line and Transformation Connection Service Rate","UNMETERED SCATTERED LOAD SERVICE CLASSIFICATION~Retail Transmission Rate - Network Service Rate","UNMETERED SCATTERED LOAD SERVICE CLASSIFICATION~Retail Transmission Rate - Line and Transformation Connection Service Rate","SENTINEL LIGHTING SERVICE CLASSIFICATION~Retail Transmission Rate - Network Service Rate","SENTINEL LIGHTING SERVICE CLASSIFICATION~Retail Transmission Rate - Line and Transformation Connection Service Rate","STREET LIGHTING SERVICE CLASSIFICATION~Retail Transmission Rate - Network Service Rate","STREET LIGHTING SERVICE CLASSIFICATION~Retail Transmission Rate - Line and Transformation Connection Service Rate"]
["Algoma Power Inc.","RESIDENTIAL R1 SERVICE CLASSIFICATION~Retail Transmission Rate - Network Service Rate","RESIDENTIAL R1 SERVICE CLASSIFICATION~Retail Transmission Rate - Line and Transformation Connection Service Rate","RESIDENTIAL R2 SERVICE CLASSIFICATION~Retail Transmission Rate - Network Service Rate","RESIDENTIAL R2 SERVICE CLASSIFICATION~Retail Transmission Rate - Line and Transformation Connection Service Rate","SEASONAL CUSTOMERS SERVICE CLASSIFICATION~Retail Transmission Rate - Network Service Rate","SEASONAL CUSTOMERS SERVICE CLASSIFICATION~Retail Transmission Rate - Line and Transformation Connection Service Rate","STREET LIGHTING SERVICE CLASSIFICATION~Retail Transmission Rate - Network Service Rate","STREET LIGHTING SERVICE CLASSIFICATION~Retail Transmission Rate - Line and Transformation Connection Service Rate"]
["Centre Wellington Hydro Ltd.","RESIDENTIAL SERVICE CLASSIFICATION~Retail Transmission Rate - Network Service Rate","RESIDENTIAL SERVICE CLASSIFICATION~Retail Transmission Rate - Line and Transformation Connection Service Rate","GENERAL SERVICE LESS THAN 50 KW SERVICE CLASSIFICATION~Retail Transmission Rate - Network Service Rate","GENERAL SERVICE LESS THAN 50 KW SERVICE CLASSIFICATION~Retail Transmission Rate - Line and Transformation Connection Service Rate","GENERAL SERVICE 50 TO 2,999 KW SERVICE CLASSIFICATION~Retail Transmission Rate - Network Service Rate","GENERAL SERVICE 50 TO 2,999 KW SERVICE CLASSIFICATION~Retail Transmission Rate - Line and Transformation Connection Service Rate","GENERAL SERVICE 3,000 TO 4,999 KW SERVICE CLASSIFICATION~Retail Transmission Rate - Network Service Rate","GENERAL SERVICE 3,000 TO 4,999 KW SERVICE CLASSIFICATION~Retail Transmission Rate - Line and Transformation Connection Service Rate","UNMETERED SCATTERED LOAD SERVICE CLASSIFICATION~Retail Transmission Rate - Network Service Rate","UNMETERED SCATTERED LOAD SERVICE CLASSIFICATION~Retail Transmission Rate - Line and Transformation Connection Service Rate","SENTINEL LIGHTING SERVICE CLASSIFICATION~Retail Transmission Rate - Network Service Rate","SENTINEL LIGHTING SERVICE CLASSIFICATION~Retail Transmission Rate - Line and Transformation Connection Service Rate","STREET LIGHTING SERVICE CLASSIFICATION~Retail Transmission Rate - Network Service Rate","STREET LIGHTING SERVICE CLASSIFICATION~Retail Transmission Rate - Line and Transformation Connection Service Rate"]
["Canadian Niagara Power Inc.","RESIDENTIAL SERVICE CLASSIFICATION~Retail Transmission Rate - Network Service Rate","RESIDENTIAL SERVICE CLASSIFICATION~Retail Transmission Rate - Line and Transformation Connection Service Rate","GENERAL SERVICE LESS THAN 50 KW SERVICE CLASSIFICATION~Retail Transmission Rate - Network Service Rate","GENERAL SERVICE LESS THAN 50 KW SERVICE CLASSIFICATION~Retail Transmission Rate - Line and Transformation Connection Service Rate","GENERAL SERVICE 50 to 4,999 kW SERVICE CLASSIFICATION~Retail Transmission Rate - Network Service Rate","GENERAL SERVICE 50 to 4,999 kW SERVICE CLASSIFICATION~Retail Transmission Rate - Line and Transformation Connection Service Rate","EMBEDDED DISTRIBUTOR SERVICE CLASSIFICATION~Retail Transmission Rate - Network Service Rate","EMBEDDED DISTRIBUTOR SERVICE CLASSIFICATION~Retail Transmission Rate - Line and Transformation Connection Service Rate","UNMETERED SCATTERED LOAD SERVICE CLASSIFICATION~Retail Transmission Rate - Network Service Rate","UNMETERED SCATTERED LOAD SERVICE CLASSIFICATION~Retail Transmission Rate - Line and Transformation Connection Service Rate","SENTINEL LIGHTING SERVICE CLASSIFICATION~Retail Transmission Rate - Network Service Rate","SENTINEL LIGHTING SERVICE CLASSIFICATION~Retail Transmission Rate - Line and Transformation Connection Service Rate","STREET LIGHTING SERVICE CLASSIFICATION~Retail Transmission Rate - Network Service Rate","STREET LIGHTING SERVICE CLASSIFICATION~Retail Transmission Rate - Line and Transformation Connection Service Rate"]
["Entegrus Powerlines Inc.","RESIDENTIAL SERVICE CLASSIFICATION~Retail Transmission Rate - Network Service Rate","RESIDENTIAL SERVICE CLASSIFICATION~Retail Transmission Rate - Line and Transformation Connection Service Rate","GENERAL SERVICE LESS THAN 50 KW SERVICE CLASSIFICATION~Retail Transmission Rate - Network Service Rate","GENERAL SERVICE LESS THAN 50 KW SERVICE CLASSIFICATION~Retail Transmission Rate - Line and Transformation Connection Service Rate","GENERAL SERVICE 50 to 4,999 kW SERVICE CLASSIFICATION~Retail Transmission Rate - Network Service Rate","GENERAL SERVICE 50 to 4,999 kW SERVICE CLASSIFICATION~Retail Transmission Rate - Line and Transformation Connection Service Rate (see Note 1)","LARGE USE SERVICE CLASSIFICATION~Retail Transmission Rate - Network Service Rate","LARGE USE SERVICE CLASSIFICATION~Retail Transmission Rate - Line and Transformation Connection Service Rate (see Note 1)","UNMETERED SCATTERED LOAD SERVICE CLASSIFICATION~Retail Transmission Rate - Network Service Rate","UNMETERED SCATTERED LOAD SERVICE CLASSIFICATION~Retail Transmission Rate - Line and Transformation Connection Service Rate","SENTINEL LIGHTING SERVICE CLASSIFICATION~Retail Transmission Rate - Network Service Rate","SENTINEL LIGHTING SERVICE CLASSIFICATION~Retail Transmission Rate - Line and Transformation Connection Service Rate","STREET LIGHTING SERVICE CLASSIFICATION~Retail Transmission Rate - Network Service Rate","STREET LIGHTING SERVICE CLASSIFICATION~Retail Transmission Rate - Line and Transformation Connection Service Rate","EMBEDDED DISTRIBUTOR SERVICE CLASSIFICATION~Retail Transmission Rate - Network Service Rate","EMBEDDED DISTRIBUTOR SERVICE CLASSIFICATION~Retail Transmission Rate - Line and Transformation Connection Service Rate"]
["Entegrus Powerlines Inc.-For Former St. Thomas Energy Rate Zone","RESIDENTIAL SERVICE CLASSIFICATION~Retail Transmission Rate - Network Service Rate","RESIDENTIAL SERVICE CLASSIFICATION~Retail Transmission Rate - Line and Transformation Connection Service Rate","GENERAL SERVICE LESS THAN 50 KW SERVICE CLASSIFICATION~Retail Transmission Rate - Network Service Rate","GENERAL SERVICE LESS THAN 50 KW SERVICE CLASSIFICATION~Retail Transmission Rate - Line and Transformation Connection Service Rate","GENERAL SERVICE 50 to 4,999 kW SERVICE CLASSIFICATION~Retail Transmission Rate - Network Service Rate","GENERAL SERVICE 50 to 4,999 kW SERVICE CLASSIFICATION~Retail Transmission Rate - Line and Transformation Connection Service Rate","SENTINEL LIGHTING SERVICE CLASSIFICATION~Retail Transmission Rate - Network Service Rate","SENTINEL LIGHTING SERVICE CLASSIFICATION~Retail Transmission Rate - Line and Transformation Connection Service Rate","STREET LIGHTING SERVICE CLASSIFICATION~Retail Transmission Rate - Network Service Rate","STREET LIGHTING SERVICE CLASSIFICATION~Retail Transmission Rate - Line and Transformation Connection Service Rate"]
["Festival Hydro Inc.","RESIDENTIAL SERVICE CLASSIFICATION~Retail Transmission Rate - Network Service Rate","RESIDENTIAL SERVICE CLASSIFICATION~Retail Transmission Rate - Line and Transformation Connection Service Rate","GENERAL SERVICE LESS THAN 50 KW SERVICE CLASSIFICATION~Retail Transmission Rate - Network Service Rate","GENERAL SERVICE LESS THAN 50 KW SERVICE CLASSIFICATION~Retail Transmission Rate - Line and Transformation Connection Service Rate","GENERAL SERVICE 50 to 4,999 kW SERVICE CLASSIFICATION~Retail Transmission Rate - Network Service Rate","GENERAL SERVICE 50 to 4,999 kW SERVICE CLASSIFICATION~Retail Transmission Rate - Line and Transformation Connection Service Rate","GENERAL SERVICE 50 to 4,999 kW SERVICE CLASSIFICATION~Retail Transmission Rate - Network Service Rate - Interval Metered","GENERAL SERVICE 50 to 4,999 kW SERVICE CLASSIFICATION~Retail Transmission Rate - Line and Transformation Connection Service Rate - Interval Metered","LARGE USE SERVICE CLASSIFICATION~Retail Transmission Rate - Network Service Rate - Interval Metered","LARGE USE SERVICE CLASSIFICATION~Retail Transmission Rate - Line and Transformation Connection Service Rate - Interval Metered","UNMETERED SCATTERED LOAD SERVICE CLASSIFICATION~Retail Transmission Rate - Network Service Rate","UNMETERED SCATTERED LOAD SERVICE CLASSIFICATION~Retail Transmission Rate - Line and Transformation Connection Service Rate","SENTINEL LIGHTING SERVICE CLASSIFICATION~Retail Transmission Rate - Network Service Rate","SENTINEL LIGHTING SERVICE CLASSIFICATION~Retail Transmission Rate - Line and Transformation Connection Service Rate","STREET LIGHTING SERVICE CLASSIFICATION~Retail Transmission Rate - Network Service Rate","STREET LIGHTING SERVICE CLASSIFICATION~Retail Transmission Rate - Line and Transformation Connection Service Rate"]
["Grimsby Power Incorporated","RESIDENTIAL SERVICE CLASSIFICATION~Retail Transmission Rate - Network Service Rate","RESIDENTIAL SERVICE CLASSIFICATION~Retail Transmission Rate - Line and Transformation Connection Service Rate","GENERAL SERVICE LESS THAN 50 KW SERVICE CLASSIFICATION~Retail Transmission Rate - Network Service Rate","GENERAL SERVICE LESS THAN 50 KW SERVICE CLASSIFICATION~Retail Transmission Rate - Line and Transformation Connection Service Rate","GENERAL SERVICE 50 to 4,999 kW SERVICE CLASSIFICATION~Retail Transmission Rate - Network Service Rate","GENERAL SERVICE 50 to 4,999 kW SERVICE CLASSIFICATION~Retail Transmission Rate - Line and Transformation Connection Service Rate","GENERAL SERVICE 50 to 4,999 kW SERVICE CLASSIFICATION~Retail Transmission Rate - Network Service Rate - Interval Metered","GENERAL SERVICE 50 to 4,999 kW SERVICE CLASSIFICATION~Retail Transmission Rate - Line and Transformation Connection Service Rate - Interval Metered","UNMETERED SCATTERED LOAD SERVICE CLASSIFICATION~Retail Transmission Rate - Network Service Rate","UNMETERED SCATTERED LOAD SERVICE CLASSIFICATION~Retail Transmission Rate - Line and Transformation Connection Service Rate","STREET LIGHTING SERVICE CLASSIFICATION~Retail Transmission Rate - Network Service Rate","STREET LIGHTING SERVICE CLASSIFICATION~Retail Transmission Rate - Line and Transformation Connection Service Rate","EMBEDDED DISTRIBUTOR SERVICE CLASSIFICATION~Retail Transmission Rate - Network Service Rate","EMBEDDED DISTRIBUTOR SERVICE CLASSIFICATION~Retail Transmission Rate - Line and Transformation Connection Service Rate"]
["Alectra Utilities Corporation-Guelph Rate Zone","RESIDENTIAL SERVICE CLASSIFICATION~Retail Transmission Rate - Network Service Rate","RESIDENTIAL SERVICE CLASSIFICATION~Retail Transmission Rate - Line and Transformation Connection Service Rate","GENERAL SERVICE LESS THAN 50 KW SERVICE CLASSIFICATION~Retail Transmission Rate - Network Service Rate","GENERAL SERVICE LESS THAN 50 KW SERVICE CLASSIFICATION~Retail Transmission Rate - Line and Transformation Connection Service Rate","GENERAL SERVICE 50 TO 999 KW SERVICE CLASSIFICATION~Retail Transmission Rate - Network Service Rate","GENERAL SERVICE 50 TO 999 KW SERVICE CLASSIFICATION~Retail Transmission Rate - Network Service Rate - Interval Metered","GENERAL SERVICE 50 TO 999 KW SERVICE CLASSIFICATION~Retail Transmission Rate - Line and Transformation Connection Service Rate","GENERAL SERVICE 50 TO 999 KW SERVICE CLASSIFICATION~Retail Transmission Rate - Line and Transformation Connection Service Rate - Interval Metered","GENERAL SERVICE 1,000 TO 4,999 KW SERVICE CLASSIFICATION~Retail Transmission Rate - Network Service Rate - Interval Metered","GENERAL SERVICE 1,000 TO 4,999 KW SERVICE CLASSIFICATION~Retail Transmission Rate - Line and Transformation Connection Service Rate - Interval Metered","LARGE USE SERVICE CLASSIFICATION~Retail Transmission Rate - Network Service Rate - Interval Metered","LARGE USE SERVICE CLASSIFICATION~Retail Transmission Rate - Line and Transformation Connection Service Rate - Interval Metered","UNMETERED SCATTERED LOAD SERVICE CLASSIFICATION~Retail Transmission Rate - Network Service Rate","UNMETERED SCATTERED LOAD SERVICE CLASSIFICATION~Retail Transmission Rate - Line and Transformation Connection Service Rate","SENTINEL LIGHTING SERVICE CLASSIFICATION~Retail Transmission Rate - Network Service Rate","SENTINEL LIGHTING SERVICE CLASSIFICATION~Retail Transmission Rate - Line and Transformation Connection Service Rate","STREET LIGHTING SERVICE CLASSIFICATION~Retail Transmission Rate - Network Service Rate","STREET LIGHTING SERVICE CLASSIFICATION~Retail Transmission Rate - Line and Transformation Connection Service Rate"]
["Hydro Hawkesbury Inc.","RESIDENTIAL SERVICE CLASSIFICATION~Retail Transmission Rate - Network Service Rate","RESIDENTIAL SERVICE CLASSIFICATION~Retail Transmission Rate - Line and Transformation Connection Service Rate","GENERAL SERVICE LESS THAN 50 KW SERVICE CLASSIFICATION~Retail Transmission Rate - Network Service Rate","GENERAL SERVICE LESS THAN 50 KW SERVICE CLASSIFICATION~Retail Transmission Rate - Line and Transformation Connection Service Rate","GENERAL SERVICE 50 to 4,999 kW SERVICE CLASSIFICATION~Retail Transmission Rate - Network Service Rate","GENERAL SERVICE 50 to 4,999 kW SERVICE CLASSIFICATION~Retail Transmission Rate - Line and Transformation Connection Service Rate","UNMETERED SCATTERED LOAD SERVICE CLASSIFICATION~Retail Transmission Rate - Network Service Rate","UNMETERED SCATTERED LOAD SERVICE CLASSIFICATION~Retail Transmission Rate - Line and Transformation Connection Service Rate","SENTINEL LIGHTING SERVICE CLASSIFICATION~Retail Transmission Rate - Network Service Rate","SENTINEL LIGHTING SERVICE CLASSIFICATION~Retail Transmission Rate - Line and Transformation Connection Service Rate","STREET LIGHTING SERVICE CLASSIFICATION~Retail Transmission Rate - Network Service Rate","STREET LIGHTING SERVICE CLASSIFICATION~Retail Transmission Rate - Line and Transformation Connection Service Rate"]
["Hydro Ottawa Limited","RESIDENTIAL SERVICE CLASSIFICATION~Retail Transmission Rate - Network Service Rate","RESIDENTIAL SERVICE CLASSIFICATION~Retail Transmission Rate - Line and Transformation Connection Service Rate","GENERAL SERVICE LESS THAN 50 KW SERVICE CLASSIFICATION~Retail Transmission Rate - Network Service Rate","GENERAL SERVICE LESS THAN 50 KW SERVICE CLASSIFICATION~Retail Transmission Rate - Line and Transformation Connection Service Rate","GENERAL SERVICE 50 TO 1,499 KW SERVICE CLASSIFICATION~Retail Transmission Rate - Network Service Rate","GENERAL SERVICE 50 TO 1,499 KW SERVICE CLASSIFICATION~Retail Transmission Rate - Line and Transformation Connection Service Rate","GENERAL SERVICE 1,500 TO 4,999 KW SERVICE CLASSIFICATION~Retail Transmission Rate - Network Service Rate","GENERAL SERVICE 1,500 TO 4,999 KW SERVICE CLASSIFICATION~Retail Transmission Rate - Line and Transformation Connection Service Rate","LARGE USE SERVICE CLASSIFICATION~Retail Transmission Rate - Network Service Rate","LARGE USE SERVICE CLASSIFICATION~Retail Transmission Rate - Line and Transformation Connection Service Rate","UNMETERED SCATTERED LOAD SERVICE CLASSIFICATION~Retail Transmission Rate - Network Service Rate","UNMETERED SCATTERED LOAD SERVICE CLASSIFICATION~Retail Transmission Rate - Line and Transformation Connection Service Rate","SENTINEL LIGHTING SERVICE CLASSIFICATION~Retail Transmission Rate - Network Service Rate","SENTINEL LIGHTING SERVICE CLASSIFICATION~Retail Transmission Rate - Line and Transformation Connection Service Rate","STREET LIGHTING SERVICE CLASSIFICATION~Retail Transmission Rate - Network Service Rate","STREET LIGHTING SERVICE CLASSIFICATION~Retail Transmission Rate - Line and Transformation Connection Service Rate"]
["InnPower Corporation","RESIDENTIAL SERVICE CLASSIFICATION~Retail Transmission Rate - Network Service Rate","RESIDENTIAL SERVICE CLASSIFICATION~Retail Transmission Rate - Line and Transformation Connection Service Rate","GENERAL SERVICE LESS THAN 50 KW SERVICE CLASSIFICATION~Retail Transmission Rate - Network Service Rate","GENERAL SERVICE LESS THAN 50 KW SERVICE CLASSIFICATION~Retail Transmission Rate - Line and Transformation Connection Service Rate","GENERAL SERVICE 50 to 4,999 kW SERVICE CLASSIFICATION~Retail Transmission Rate - Network Service Rate","GENERAL SERVICE 50 to 4,999 kW SERVICE CLASSIFICATION~Retail Transmission Rate - Line and Transformation Connection Service Rate ","GENERAL SERVICE 50 to 4,999 kW SERVICE CLASSIFICATION~Retail Transmission Rate - Network Service Rate - Interval Metered","GENERAL SERVICE 50 to 4,999 kW SERVICE CLASSIFICATION~Retail Transmission Rate - Line and Transformation Connection Service Rate - Interval Metered ","UNMETERED SCATTERED LOAD SERVICE CLASSIFICATION~Retail Transmission Rate - Network Service Rate","UNMETERED SCATTERED LOAD SERVICE CLASSIFICATION~Retail Transmission Rate - Line and Transformation Connection Service Rate","SENTINEL LIGHTING SERVICE CLASSIFICATION~Retail Transmission Rate - Network Service Rate","SENTINEL LIGHTING SERVICE CLASSIFICATION~Retail Transmission Rate - Line and Transformation Connection Service Rate","STREET LIGHTING SERVICE CLASSIFICATION~Retail Transmission Rate - Network Service Rate","STREET LIGHTING SERVICE CLASSIFICATION~Retail Transmission Rate - Line and Transformation Connection Service Rate"]
["Kingston Hydro Corporation","RESIDENTIAL SERVICE CLASSIFICATION~Retail Transmission Rate - Network Service Rate","RESIDENTIAL SERVICE CLASSIFICATION~Retail Transmission Rate - Line and Transformation Connection Service Rate","GENERAL SERVICE LESS THAN 50 KW SERVICE CLASSIFICATION~Retail Transmission Rate - Network Service Rate","GENERAL SERVICE LESS THAN 50 KW SERVICE CLASSIFICATION~Retail Transmission Rate - Line and Transformation Connection Service Rate","GENERAL SERVICE 50 to 4,999 kW SERVICE CLASSIFICATION~Retail Transmission Rate - Network Service Rate","GENERAL SERVICE 50 to 4,999 kW SERVICE CLASSIFICATION~Retail Transmission Rate - Line and Transformation Connection Service Rate","LARGE USE SERVICE CLASSIFICATION~Retail Transmission Rate - Network Service Rate","LARGE USE SERVICE CLASSIFICATION~Retail Transmission Rate - Line and Transformation Connection Service Rate","UNMETERED SCATTERED LOAD SERVICE CLASSIFICATION~Retail Transmission Rate - Network Service Rate","UNMETERED SCATTERED LOAD SERVICE CLASSIFICATION~Retail Transmission Rate - Line and Transformation Connection Service Rate","STREET LIGHTING SERVICE CLASSIFICATION~Retail Transmission Rate - Network Service Rate","STREET LIGHTING SERVICE CLASSIFICATION~Retail Transmission Rate - Line and Transformation Connection Service Rate"]
["Kitchener-Wilmot Hydro Inc.","RESIDENTIAL SERVICE CLASSIFICATION~Retail Transmission Rate - Network Service Rate","RESIDENTIAL SERVICE CLASSIFICATION~Retail Transmission Rate - Line and Transformation Connection Service Rate","GENERAL SERVICE LESS THAN 50 KW SERVICE CLASSIFICATION~Retail Transmission Rate - Network Service Rate","GENERAL SERVICE LESS THAN 50 KW SERVICE CLASSIFICATION~Retail Transmission Rate - Line and Transformation Connection Service Rate","GENERAL SERVICE 50 to 4,999 kW SERVICE CLASSIFICATION~Retail Transmission Rate - Network Service Rate","GENERAL SERVICE 50 to 4,999 kW SERVICE CLASSIFICATION~Retail Transmission Rate - Line and Transformation Connection Service Rate","LARGE USE SERVICE CLASSIFICATION~Retail Transmission Rate - Network Service Rate - Interval Metered","LARGE USE SERVICE CLASSIFICATION~Retail Transmission Rate - Line and Transformation Connection Service Rate - Interval Metered","UNMETERED SCATTERED LOAD SERVICE CLASSIFICATION~Retail Transmission Rate - Network Service Rate","UNMETERED SCATTERED LOAD SERVICE CLASSIFICATION~Retail Transmission Rate - Line and Transformation Connection Service Rate","STREET LIGHTING SERVICE CLASSIFICATION~Retail Transmission Rate - Network Service Rate","STREET LIGHTING SERVICE CLASSIFICATION~Retail Transmission Rate - Line and Transformation Connection Service Rate","EMBEDDED DISTRIBUTOR SERVICE CLASSIFICATION~Retail Transmission Rate - Network Service Rate","EMBEDDED DISTRIBUTOR SERVICE CLASSIFICATION~Retail Transmission Rate - Line and Transformation Connection Service Rate"]
["Renfrew Hydro Inc.","RESIDENTIAL SERVICE CLASSIFICATION~Retail Transmission Rate - Network Service Rate","RESIDENTIAL SERVICE CLASSIFICATION~Retail Transmission Rate - Line and Transformation Connection Service Rate","GENERAL SERVICE LESS THAN 50 KW SERVICE CLASSIFICATION~Retail Transmission Rate - Network Service Rate","GENERAL SERVICE LESS THAN 50 KW SERVICE CLASSIFICATION~Retail Transmission Rate - Line and Transformation Connection Service Rate","GENERAL SERVICE 50 to 4,999 kW SERVICE CLASSIFICATION~Retail Transmission Rate - Network Service Rate","GENERAL SERVICE 50 to 4,999 kW SERVICE CLASSIFICATION~Retail Transmission Rate - Line and Transformation Connection Service Rate","UNMETERED SCATTERED LOAD SERVICE CLASSIFICATION~Retail Transmission Rate - Network Service Rate","UNMETERED SCATTERED LOAD SERVICE CLASSIFICATION~Retail Transmission Rate - Line and Transformation Connection Service Rate","STREET LIGHTING SERVICE CLASSIFICATION~Retail Transmission Rate - Network Service Rate","STREET LIGHTING SERVICE CLASSIFICATION~Retail Transmission Rate - Line and Transformation Connection Service Rate"]
["Cooperative Hydro Embrun Inc.","RESIDENTIAL SERVICE CLASSIFICATION~Retail Transmission Rate - Network Service Rate","RESIDENTIAL SERVICE CLASSIFICATION~Retail Transmission Rate - Line and Transformation Connection Service Rate","GENERAL SERVICE LESS THAN 50 KW SERVICE CLASSIFICATION~Retail Transmission Rate - Network Service Rate","GENERAL SERVICE LESS THAN 50 KW SERVICE CLASSIFICATION~Retail Transmission Rate - Line and Transformation Connection Service Rate","GENERAL SERVICE 50 to 4,999 kW SERVICE CLASSIFICATION~Retail Transmission Rate - Network Service Rate","GENERAL SERVICE 50 to 4,999 kW SERVICE CLASSIFICATION~Retail Transmission Rate - Line and Transformation Connection Service Rate","UNMETERED SCATTERED LOAD SERVICE CLASSIFICATION~Retail Transmission Rate - Network Service Rate","UNMETERED SCATTERED LOAD SERVICE CLASSIFICATION~Retail Transmission Rate - Line and Transformation Connection Service Rate","STREET LIGHTING SERVICE CLASSIFICATION~Retail Transmission Rate - Network Service Rate","STREET LIGHTING SERVICE CLASSIFICATION~Retail Transmission Rate - Line and Transformation Connection Service Rate"]
["Lakefront Utilities Inc.","RESIDENTIAL SERVICE CLASSIFICATION~Retail Transmission Rate - Network Service Rate","RESIDENTIAL SERVICE CLASSIFICATION~Retail Transmission Rate - Line and Transformation Connection Service Rate","GENERAL SERVICE LESS THAN 50 KW SERVICE CLASSIFICATION~Retail Transmission Rate - Network Service Rate","GENERAL SERVICE LESS THAN 50 KW SERVICE CLASSIFICATION~Retail Transmission Rate - Line and Transformation Connection Service Rate","GENERAL SERVICE 50 TO 2,999 KW SERVICE CLASSIFICATION~Retail Transmission Rate - Network Service Rate","GENERAL SERVICE 50 TO 2,999 KW SERVICE CLASSIFICATION~Retail Transmission Rate - Line and Transformation Connection Service Rate","GENERAL SERVICE 3,000 TO 4,999 KW SERVICE CLASSIFICATION~Retail Transmission Rate - Network Service Rate","GENERAL SERVICE 3,000 TO 4,999 KW SERVICE CLASSIFICATION~Retail Transmission Rate - Line and Transformation Connection Service Rate","UNMETERED SCATTERED LOAD SERVICE CLASSIFICATION~Retail Transmission Rate - Network Service Rate","UNMETERED SCATTERED LOAD SERVICE CLASSIFICATION~Retail Transmission Rate - Line and Transformation Connection Service Rate","SENTINEL LIGHTING SERVICE CLASSIFICATION~Retail Transmission Rate - Network Service Rate","SENTINEL LIGHTING SERVICE CLASSIFICATION~Retail Transmission Rate - Line and Transformation Connection Service Rate","STREET LIGHTING SERVICE CLASSIFICATION~Retail Transmission Rate - Network Service Rate","STREET LIGHTING SERVICE CLASSIFICATION~Retail Transmission Rate - Line and Transformation Connection Service Rate"]
["Toronto Hydro-Electric System Limited","RESIDENTIAL SERVICE CLASSIFICATION~Retail Transmission Rate - Network Service Rate","RESIDENTIAL SERVICE CLASSIFICATION~Retail Transmission Rate - Line and Transformation Connection Service Rate","COMPETITIVE SECTOR MULTI-UNIT RESIDENTIAL SERVICE CLASSIFICATION~Retail Transmission Rate - Network Service Rate","COMPETITIVE SECTOR MULTI-UNIT RESIDENTIAL SERVICE CLASSIFICATION~Retail Transmission Rate - Line and Transformation Connection Service Rate","GENERAL SERVICE LESS THAN 50 KW SERVICE CLASSIFICATION~Retail Transmission Rate - Network Service Rate","GENERAL SERVICE LESS THAN 50 KW SERVICE CLASSIFICATION~Retail Transmission Rate - Line and Transformation Connection Service Rate","GENERAL SERVICE 50 TO 999 KW SERVICE CLASSIFICATION~Retail Transmission Rate - Network Service Rate","GENERAL SERVICE 50 TO 999 KW SERVICE CLASSIFICATION~Retail Transmission Rate - Line and Transformation Connection Service Rate","GENERAL SERVICE 1,000 TO 4,999 KW SERVICE CLASSIFICATION~Retail Transmission Rate - Network Service Rate","GENERAL SERVICE 1,000 TO 4,999 KW SERVICE CLASSIFICATION~Retail Transmission Rate - Line and Transformation Connection Service Rate","LARGE USE SERVICE CLASSIFICATION~Retail Transmission Rate - Network Service Rate","LARGE USE SERVICE CLASSIFICATION~Retail Transmission Rate - Line and Transformation Connection Service Rate","UNMETERED SCATTERED LOAD SERVICE CLASSIFICATION~Retail Transmission Rate - Network Service Rate","UNMETERED SCATTERED LOAD SERVICE CLASSIFICATION~Retail Transmission Rate - Line and Transformation Connection Service Rate","STREET LIGHTING SERVICE CLASSIFICATION~Retail Transmission Rate - Network Service Rate","STREET LIGHTING SERVICE CLASSIFICATION~Retail Transmission Rate - Line and Transformation Connection Service Rate"]
["Waterloo North Hydro Inc.","RESIDENTIAL SERVICE CLASSIFICATION~Retail Transmission Rate - Network Service Rate","RESIDENTIAL SERVICE CLASSIFICATION~Retail Transmission Rate - Line and Transformation Connection Service Rate","GENERAL SERVICE LESS THAN 50 KW SERVICE CLASSIFICATION~Retail Transmission Rate - Network Service Rate","GENERAL SERVICE LESS THAN 50 KW SERVICE CLASSIFICATION~Retail Transmission Rate - Line and Transformation Connection Service Rate","GENERAL SERVICE 50 to 4,999 kW SERVICE CLASSIFICATION~Retail Transmission Rate - Network Service Rate - (less than 1,000 kW)","GENERAL SERVICE 50 to 4,999 kW SERVICE CLASSIFICATION~Retail Transmission Rate - Network Service Rate - Interval Metered (less than 1,000 kW)","GENERAL SERVICE 50 to 4,999 kW SERVICE CLASSIFICATION~Retail Transmission Rate - Network Service Rate - Interval Metered (1,000 to 4,999 kW)","GENERAL SERVICE 50 to 4,999 kW SERVICE CLASSIFICATION~Retail Transmission Rate - Line and Transformation Connection Service Rate - (less than 1,000 kW)","GENERAL SERVICE 50 to 4,999 kW SERVICE CLASSIFICATION~Retail Transmission Rate - Line and Trans. Connection Service Rate - Interval Metered (less than 1,000 kW)","GENERAL SERVICE 50 to 4,999 kW SERVICE CLASSIFICATION~Retail Transmission Rate - Line and Trans. Connection Service Rate - Interval Metered (1,000 to 4,999 kW)","LARGE USE SERVICE CLASSIFICATION~Retail Transmission Rate - Network Service Rate - Interval Metered","LARGE USE SERVICE CLASSIFICATION~Retail Transmission Rate - Line and Transformation Connection Service Rate - Interval Metered","UNMETERED SCATTERED LOAD SERVICE CLASSIFICATION~Retail Transmission Rate - Network Service Rate","UNMETERED SCATTERED LOAD SERVICE CLASSIFICATION~Retail Transmission Rate - Line and Transformation Connection Service Rate","STREET LIGHTING SERVICE CLASSIFICATION~Retail Transmission Rate - Network Service Rate","STREET LIGHTING SERVICE CLASSIFICATION~Retail Transmission Rate - Line and Transformation Connection Service Rate"]
["Westario Power Inc.","RESIDENTIAL SERVICE CLASSIFICATION~Retail Transmission Rate - Network Service Rate","RESIDENTIAL SERVICE CLASSIFICATION~Retail Transmission Rate - Line and Transformation Connection Service Rate","GENERAL SERVICE LESS THAN 50 KW SERVICE CLASSIFICATION~Retail Transmission Rate - Network Service Rate","GENERAL SERVICE LESS THAN 50 KW SERVICE CLASSIFICATION~Retail Transmission Rate - Line and Transformation Connection Service Rate","GENERAL SERVICE 50 to 4,999 kW SERVICE CLASSIFICATION~Retail Transmission Rate - Network Service Rate","GENERAL SERVICE 50 to 4,999 kW SERVICE CLASSIFICATION~Retail Transmission Rate - Line and Transformation Connection Service Rate","UNMETERED SCATTERED LOAD SERVICE CLASSIFICATION~Retail Transmission Rate - Network Service Rate","UNMETERED SCATTERED LOAD SERVICE CLASSIFICATION~Retail Transmission Rate - Line and Transformation Connection Service Rate","SENTINEL LIGHTING SERVICE CLASSIFICATION~Retail Transmission Rate - Network Service Rate","SENTINEL LIGHTING SERVICE CLASSIFICATION~Retail Transmission Rate - Line and Transformation Connection Service Rate","STREET LIGHTING SERVICE CLASSIFICATION~Retail Transmission Rate - Network Service Rate","STREET LIGHTING SERVICE CLASSIFICATION~Retail Transmission Rate - Line and Transformation Connection Service Rate"]
["Elexicon Energy Inc.-Whitby Rate Zone","RESIDENTIAL SERVICE CLASSIFICATION~Retail Transmission Rate - Network Service Rate","RESIDENTIAL SERVICE CLASSIFICATION~Retail Transmission Rate - Line and Transformation Connection Service Rate","GENERAL SERVICE LESS THAN 50 KW SERVICE CLASSIFICATION~Retail Transmission Rate - Network Service Rate","GENERAL SERVICE LESS THAN 50 KW SERVICE CLASSIFICATION~Retail Transmission Rate - Line and Transformation Connection Service Rate","GENERAL SERVICE 50 to 4,999 kW SERVICE CLASSIFICATION~Retail Transmission Rate - Network Service Rate","GENERAL SERVICE 50 to 4,999 kW SERVICE CLASSIFICATION~Retail Transmission Rate - Line and Transformation Connection Service Rate","UNMETERED SCATTERED LOAD SERVICE CLASSIFICATION~Retail Transmission Rate - Network Service Rate","UNMETERED SCATTERED LOAD SERVICE CLASSIFICATION~Retail Transmission Rate - Line and Transformation Connection Service Rate","SENTINEL LIGHTING SERVICE CLASSIFICATION~Retail Transmission Rate - Network Service Rate","SENTINEL LIGHTING SERVICE CLASSIFICATION~Retail Transmission Rate - Line and Transformation Connection Service Rate","STREET LIGHTING SERVICE CLASSIFICATION~Retail Transmission Rate - Network Service Rate","STREET LIGHTING SERVICE CLASSIFICATION~Retail Transmission Rate - Line and Transformation Connection Service Rate"]
["Erie Thames Powerlines Corporation","RESIDENTIAL SERVICE CLASSIFICATION~Retail Transmission Rate - Network Service Rate","RESIDENTIAL SERVICE CLASSIFICATION~Retail Transmission Rate - Line and Transformation Connection Service Rate","GENERAL SERVICE LESS THAN 50 KW SERVICE CLASSIFICATION~Retail Transmission Rate - Network Service Rate","GENERAL SERVICE LESS THAN 50 KW SERVICE CLASSIFICATION~Retail Transmission Rate - Line and Transformation Connection Service Rate","GENERAL SERVICE 50 TO 999 KW SERVICE CLASSIFICATION~Retail Transmission Rate - Network Service Rate","GENERAL SERVICE 50 TO 999 KW SERVICE CLASSIFICATION~Retail Transmission Rate - Line and Transformation Connection Service Rate","GENERAL SERVICE 1,000 TO 4,999 KW SERVICE CLASSIFICATION~Retail Transmission Rate - Network Service Rate","GENERAL SERVICE 1,000 TO 4,999 KW SERVICE CLASSIFICATION~Retail Transmission Rate - Line and Transformation Connection Service Rate","LARGE USE SERVICE CLASSIFICATION~Retail Transmission Rate - Network Service Rate","LARGE USE SERVICE CLASSIFICATION~Retail Transmission Rate - Line and Transformation Connection Service Rate","UNMETERED SCATTERED LOAD SERVICE CLASSIFICATION~Retail Transmission Rate - Network Service Rate","UNMETERED SCATTERED LOAD SERVICE CLASSIFICATION~Retail Transmission Rate - Line and Transformation Connection Service Rate","SENTINEL LIGHTING SERVICE CLASSIFICATION~Retail Transmission Rate - Network Service Rate","SENTINEL LIGHTING SERVICE CLASSIFICATION~Retail Transmission Rate - Line and Transformation Connection Service Rate","STREET LIGHTING SERVICE CLASSIFICATION~Retail Transmission Rate - Network Service Rate","STREET LIGHTING SERVICE CLASSIFICATION~Retail Transmission Rate - Line and Transformation Connection Service Rate","EMBEDDED DISTRIBUTOR SERVICE CLASSIFICATION~Retail Transmission Rate - Network Service Rate","EMBEDDED DISTRIBUTOR SERVICE CLASSIFICATION~Retail Transmission Rate - Line and Transformation Connection Service Rate"]
["Entegrus Powerlines Inc.-For Entegrus-Main Rate Zone","RESIDENTIAL SERVICE CLASSIFICATION~Retail Transmission Rate - Network Service Rate","RESIDENTIAL SERVICE CLASSIFICATION~Retail Transmission Rate - Line and Transformation Connection Service Rate","GENERAL SERVICE LESS THAN 50 KW SERVICE CLASSIFICATION~Retail Transmission Rate - Network Service Rate","GENERAL SERVICE LESS THAN 50 KW SERVICE CLASSIFICATION~Retail Transmission Rate - Line and Transformation Connection Service Rate","GENERAL SERVICE 50 to 4,999 kW SERVICE CLASSIFICATION~Retail Transmission Rate - Network Service Rate","GENERAL SERVICE 50 to 4,999 kW SERVICE CLASSIFICATION~Retail Transmission Rate - Line and Transformation Connection Service Rate (see Note 1)","LARGE USE SERVICE CLASSIFICATION~Retail Transmission Rate - Network Service Rate","LARGE USE SERVICE CLASSIFICATION~Retail Transmission Rate - Line and Transformation Connection Service Rate (see Note 1)","UNMETERED SCATTERED LOAD SERVICE CLASSIFICATION~Retail Transmission Rate - Network Service Rate","UNMETERED SCATTERED LOAD SERVICE CLASSIFICATION~Retail Transmission Rate - Line and Transformation Connection Service Rate","SENTINEL LIGHTING SERVICE CLASSIFICATION~Retail Transmission Rate - Network Service Rate","SENTINEL LIGHTING SERVICE CLASSIFICATION~Retail Transmission Rate - Line and Transformation Connection Service Rate","STREET LIGHTING SERVICE CLASSIFICATION~Retail Transmission Rate - Network Service Rate","STREET LIGHTING SERVICE CLASSIFICATION~Retail Transmission Rate - Line and Transformation Connection Service Rate","EMBEDDED DISTRIBUTOR SERVICE CLASSIFICATION~Retail Transmission Rate - Network Service Rate","EMBEDDED DISTRIBUTOR SERVICE CLASSIFICATION~Retail Transmission Rate - Line and Transformation Connection Service Rate"]
["Lakeland Power Distribution Ltd.-Parry Sound Service Area","RESIDENTIAL SERVICE CLASSIFICATION~Retail Transmission Rate - Network Service Rate","RESIDENTIAL SERVICE CLASSIFICATION~Retail Transmission Rate - Line and Transformation Connection Service Rate","GENERAL SERVICE LESS THAN 50 KW SERVICE CLASSIFICATION~Retail Transmission Rate - Network Service Rate","GENERAL SERVICE LESS THAN 50 KW SERVICE CLASSIFICATION~Retail Transmission Rate - Line and Transformation Connection Service Rate","GENERAL SERVICE 50 to 4,999 kW SERVICE CLASSIFICATION~Retail Transmission Rate - Network Service Rate","GENERAL SERVICE 50 to 4,999 kW SERVICE CLASSIFICATION~Retail Transmission Rate - Line and Transformation Connection Service Rate","UNMETERED SCATTERED LOAD SERVICE CLASSIFICATION~Retail Transmission Rate - Network Service Rate","UNMETERED SCATTERED LOAD SERVICE CLASSIFICATION~Retail Transmission Rate - Line and Transformation Connection Service Rate","SENTINEL LIGHTING SERVICE CLASSIFICATION~Retail Transmission Rate - Network Service Rate","SENTINEL LIGHTING SERVICE CLASSIFICATION~Retail Transmission Rate - Line and Transformation Connection Service Rate","STREET LIGHTING SERVICE CLASSIFICATION~Retail Transmission Rate - Network Service Rate","STREET LIGHTING SERVICE CLASSIFICATION~Retail Transmission Rate - Line and Transformation Connection Service Rate"]
["Lakeland Power Distribution Ltd.","RESIDENTIAL SERVICE CLASSIFICATION~Retail Transmission Rate - Network Service Rate","RESIDENTIAL SERVICE CLASSIFICATION~Retail Transmission Rate - Line and Transformation Connection Service Rate","GENERAL SERVICE LESS THAN 50 KW SERVICE CLASSIFICATION~Retail Transmission Rate - Network Service Rate","GENERAL SERVICE LESS THAN 50 KW SERVICE CLASSIFICATION~Retail Transmission Rate - Line and Transformation Connection Service Rate","GENERAL SERVICE 50 to 4,999 kW SERVICE CLASSIFICATION~Retail Transmission Rate - Network Service Rate","GENERAL SERVICE 50 to 4,999 kW SERVICE CLASSIFICATION~Retail Transmission Rate - Line and Transformation Connection Service Rate","UNMETERED SCATTERED LOAD SERVICE CLASSIFICATION~Retail Transmission Rate - Network Service Rate","UNMETERED SCATTERED LOAD SERVICE CLASSIFICATION~Retail Transmission Rate - Line and Transformation Connection Service Rate","SENTINEL LIGHTING SERVICE CLASSIFICATION~Retail Transmission Rate - Network Service Rate","SENTINEL LIGHTING SERVICE CLASSIFICATION~Retail Transmission Rate - Line and Transformation Connection Service Rate","STREET LIGHTING SERVICE CLASSIFICATION~Retail Transmission Rate - Network Service Rate","STREET LIGHTING SERVICE CLASSIFICATION~Retail Transmission Rate - Line and Transformation Connection Service Rate"]
["Newmarket-Tay Power Distribution Ltd.-For Former Midland Power Utility Rate Zone","RESIDENTIAL SERVICE CLASSIFICATION~Retail Transmission Rate - Network Service Rate","RESIDENTIAL SERVICE CLASSIFICATION~Retail Transmission Rate - Line and Transformation Connection Service Rate","GENERAL SERVICE LESS THAN 50 KW SERVICE CLASSIFICATION~Retail Transmission Rate - Network Service Rate","GENERAL SERVICE LESS THAN 50 KW SERVICE CLASSIFICATION~Retail Transmission Rate - Line and Transformation Connection Service Rate","GENERAL SERVICE 50 to 4,999 kW SERVICE CLASSIFICATION~Retail Transmission Rate - Network Service Rate","GENERAL SERVICE 50 to 4,999 kW SERVICE CLASSIFICATION~Retail Transmission Rate - Line and Transformation Connection Service Rate ","UNMETERED SCATTERED LOAD SERVICE CLASSIFICATION~Retail Transmission Rate - Network Service Rate","UNMETERED SCATTERED LOAD SERVICE CLASSIFICATION~Retail Transmission Rate - Line and Transformation Connection Service Rate","STREET LIGHTING SERVICE CLASSIFICATION~Retail Transmission Rate - Network Service Rate","STREET LIGHTING SERVICE CLASSIFICATION~Retail Transmission Rate - Line and Transformation Connection Service Rate"]
["Newmarket-Tay Power Distribution Ltd.-For Newmarket-Tay Power Main Rate Zone","RESIDENTIAL SERVICE CLASSIFICATION~Retail Transmission Rate - Network Service Rate","RESIDENTIAL SERVICE CLASSIFICATION~Retail Transmission Rate - Line and Transformation Connection Service Rate","GENERAL SERVICE LESS THAN 50 KW SERVICE CLASSIFICATION~Retail Transmission Rate - Network Service Rate","GENERAL SERVICE LESS THAN 50 KW SERVICE CLASSIFICATION~Retail Transmission Rate - Line and Transformation Connection Service Rate","GENERAL SERVICE 50 to 4,999 kW SERVICE CLASSIFICATION~Retail Transmission Rate - Network Service Rate","GENERAL SERVICE 50 to 4,999 kW SERVICE CLASSIFICATION~Retail Transmission Rate - Line and Transformation Connection Service Rate","UNMETERED SCATTERED LOAD SERVICE CLASSIFICATION~Retail Transmission Rate - Network Service Rate","UNMETERED SCATTERED LOAD SERVICE CLASSIFICATION~Retail Transmission Rate - Line and Transformation Connection Service Rate","SENTINEL LIGHTING SERVICE CLASSIFICATION~Retail Transmission Rate - Network Service Rate","SENTINEL LIGHTING SERVICE CLASSIFICATION~Retail Transmission Rate - Line and Transformation Connection Service Rate","STREET LIGHTING SERVICE CLASSIFICATION~Retail Transmission Rate - Network Service Rate","STREET LIGHTING SERVICE CLASSIFICATION~Retail Transmission Rate - Line and Transformation Connection Service Rate"]
["Bluewater Power Distribution Corporation","RESIDENTIAL SERVICE CLASSIFICATION~Retail Transmission Rate - Network Service Rate","RESIDENTIAL SERVICE CLASSIFICATION~Retail Transmission Rate - Line and Transformation Connection Service Rate","GENERAL SERVICE LESS THAN 50 KW SERVICE CLASSIFICATION~Retail Transmission Rate - Network Service Rate","GENERAL SERVICE LESS THAN 50 KW SERVICE CLASSIFICATION~Retail Transmission Rate - Line and Transformation Connection Service Rate","GENERAL SERVICE 50 TO 999 KW SERVICE CLASSIFICATION~Retail Transmission Rate - Network Service Rate","GENERAL SERVICE 50 TO 999 KW SERVICE CLASSIFICATION~Retail Transmission Rate - Line and Transformation Connection Service Rate","GENERAL SERVICE 1,000 TO 4,999 KW SERVICE CLASSIFICATION~Retail Transmission Rate - Network Service Rate","GENERAL SERVICE 1,000 TO 4,999 KW SERVICE CLASSIFICATION~Retail Transmission Rate - Line and Transformation Connection Service Rate","LARGE USE SERVICE CLASSIFICATION~Retail Transmission Rate - Network Service Rate - Interval Metered","LARGE USE SERVICE CLASSIFICATION~Retail Transmission Rate - Line and Transformation Connection Service Rate - Interval Metered","UNMETERED SCATTERED LOAD SERVICE CLASSIFICATION~Retail Transmission Rate - Network Service Rate","UNMETERED SCATTERED LOAD SERVICE CLASSIFICATION~Retail Transmission Rate - Line and Transformation Connection Service Rate","SENTINEL LIGHTING SERVICE CLASSIFICATION~Retail Transmission Rate - Network Service Rate","SENTINEL LIGHTING SERVICE CLASSIFICATION~Retail Transmission Rate - Line and Transformation Connection Service Rate","STREET LIGHTING SERVICE CLASSIFICATION~Retail Transmission Rate - Network Service Rate","STREET LIGHTING SERVICE CLASSIFICATION~Retail Transmission Rate - Line and Transformation Connection Service Rate"]
["Atikokan Hydro Inc.","RESIDENTIAL SERVICE CLASSIFICATION~Retail Transmission Rate - Network Service Rate","RESIDENTIAL SERVICE CLASSIFICATION~Retail Transmission Rate - Transformation Connection Service Rate","GENERAL SERVICE LESS THAN 50 KW SERVICE CLASSIFICATION~Retail Transmission Rate - Network Service Rate","GENERAL SERVICE LESS THAN 50 KW SERVICE CLASSIFICATION~Retail Transmission Rate - Transformation Connection Service Rate","GENERAL SERVICE 50 to 4,999 kW SERVICE CLASSIFICATION~Retail Transmission Rate - Network Service Rate","GENERAL SERVICE 50 to 4,999 kW SERVICE CLASSIFICATION~Retail Transmission Rate - Line and Transformation Connection Service Rate","GENERAL SERVICE 50 to 4,999 kW SERVICE CLASSIFICATION~Retail Transmission Rate - Network Service Rate - Interval Metered","GENERAL SERVICE 50 to 4,999 kW SERVICE CLASSIFICATION~Retail Transmission Rate - Line and Transformation Connection Service Rate - Interval Metered","STREET LIGHTING SERVICE CLASSIFICATION~Retail Transmission Rate - Network Service Rate","STREET LIGHTING SERVICE CLASSIFICATION~Retail Transmission Rate - Line and Transformation Connection Service Rate"]
["Burlington Hydro Inc.","RESIDENTIAL SERVICE CLASSIFICATION~Retail Transmission Rate - Network Service Rate","RESIDENTIAL SERVICE CLASSIFICATION~Retail Transmission Rate - Line and Transformation Connection Service Rate","GENERAL SERVICE LESS THAN 50 KW SERVICE CLASSIFICATION~Retail Transmission Rate - Network Service Rate","GENERAL SERVICE LESS THAN 50 KW SERVICE CLASSIFICATION~Retail Transmission Rate - Line and Transformation Connection Service Rate","GENERAL SERVICE 50 to 4,999 kW SERVICE CLASSIFICATION~Retail Transmission Rate - Network Service Rate - Interval Metered","GENERAL SERVICE 50 to 4,999 kW SERVICE CLASSIFICATION~Retail Transmission Rate - Line and Transformation Connection Service Rate - Interval Metered ","UNMETERED SCATTERED LOAD SERVICE CLASSIFICATION~Retail Transmission Rate - Network Service Rate","UNMETERED SCATTERED LOAD SERVICE CLASSIFICATION~Retail Transmission Rate - Line and Transformation Connection Service Rate","STREET LIGHTING SERVICE CLASSIFICATION~Retail Transmission Rate - Network Service Rate","STREET LIGHTING SERVICE CLASSIFICATION~Retail Transmission Rate - Line Connection Service Rate"]
["E.L.K. Energy Inc.","RESIDENTIAL SERVICE CLASSIFICATION~Retail Transmission Rate - Network Service Rate","RESIDENTIAL SERVICE CLASSIFICATION~Retail Transmission Rate - Line and Transformation Connection Service Rate","GENERAL SERVICE LESS THAN 50 KW SERVICE CLASSIFICATION~Retail Transmission Rate - Network Service Rate","GENERAL SERVICE LESS THAN 50 KW SERVICE CLASSIFICATION~Retail Transmission Rate - Line and Transformation Connection Service Rate","GENERAL SERVICE 50 to 4,999 kW SERVICE CLASSIFICATION~Retail Transmission Rate - Network Service Rate","GENERAL SERVICE 50 to 4,999 kW SERVICE CLASSIFICATION~Retail Transmission Rate - Line and Transformation Connection Service Rate ","UNMETERED SCATTERED LOAD SERVICE CLASSIFICATION~Retail Transmission Rate - Network Service Rate","UNMETERED SCATTERED LOAD SERVICE CLASSIFICATION~Retail Transmission Rate - Line and Transformation Connection Service Rate","SENTINEL LIGHTING SERVICE CLASSIFICATION~Retail Transmission Rate - Network Service Rate","SENTINEL LIGHTING SERVICE CLASSIFICATION~Retail Transmission Rate - Line and Transformation Connection Service Rate","STREET LIGHTING SERVICE CLASSIFICATION~Retail Transmission Rate - Network Service Rate","STREET LIGHTING SERVICE CLASSIFICATION~Retail Transmission Rate - Line and Transformation Connection Service Rate","EMBEDDED DISTRIBUTOR SERVICE CLASSIFICATION~Retail Transmission Rate - Network Service Rate","EMBEDDED DISTRIBUTOR SERVICE CLASSIFICATION~Retail Transmission Rate - Line and Transformation Connection Service Rate"]
["EPCOR Electricity Distribution Ontario Inc.","RESIDENTIAL SERVICE CLASSIFICATION~Retail Transmission Rate - Network Service Rate","RESIDENTIAL SERVICE CLASSIFICATION~Retail Transmission Rate - Line and Transformation Connection Service Rate","GENERAL SERVICE LESS THAN 50 KW SERVICE CLASSIFICATION~Retail Transmission Rate - Network Service Rate","GENERAL SERVICE LESS THAN 50 KW SERVICE CLASSIFICATION~Retail Transmission Rate - Line and Transformation Connection Service Rate","GENERAL SERVICE 50 to 4,999 kW SERVICE CLASSIFICATION~Retail Transmission Rate - Network Service Rate","GENERAL SERVICE 50 to 4,999 kW SERVICE CLASSIFICATION~Retail Transmission Rate - Line and Transformation Connection Service Rate ","UNMETERED SCATTERED LOAD SERVICE CLASSIFICATION~Retail Transmission Rate - Network Service Rate","UNMETERED SCATTERED LOAD SERVICE CLASSIFICATION~Retail Transmission Rate - Line and Transformation Connection Service Rate","STREET LIGHTING SERVICE CLASSIFICATION~Retail Transmission Rate - Network Service Rate","STREET LIGHTING SERVICE CLASSIFICATION~Retail Transmission Rate - Line and Transformation Connection Service Rate"]
["Essex Powerlines Corporation","RESIDENTIAL SERVICE CLASSIFICATION~Retail Transmission Rate - Network Service Rate","RESIDENTIAL SERVICE CLASSIFICATION~Retail Transmission Rate - Line and Transformation Connection Service Rate","GENERAL SERVICE LESS THAN 50 KW SERVICE CLASSIFICATION~Retail Transmission Rate - Network Service Rate","GENERAL SERVICE LESS THAN 50 KW SERVICE CLASSIFICATION~Retail Transmission Rate - Line and Transformation Connection Service Rate","GENERAL SERVICE 50 to 4,999 kW SERVICE CLASSIFICATION~Retail Transmission Rate - Network Service Rate","GENERAL SERVICE 50 to 4,999 kW SERVICE CLASSIFICATION~Retail Transmission Rate - Line and Transformation Connection Service Rate","GENERAL SERVICE 50 to 4,999 kW SERVICE CLASSIFICATION~Retail Transmission Rate - Network Service Rate - Interval Metered","GENERAL SERVICE 50 to 4,999 kW SERVICE CLASSIFICATION~Retail Transmission Rate - Line and Transformation Connection Service Rate - Interval Metered","UNMETERED SCATTERED LOAD SERVICE CLASSIFICATION~Retail Transmission Rate - Network Service Rate","UNMETERED SCATTERED LOAD SERVICE CLASSIFICATION~Retail Transmission Rate - Line and Transformation Connection Service Rate","SENTINEL LIGHTING SERVICE CLASSIFICATION~Retail Transmission Rate - Network Service Rate","SENTINEL LIGHTING SERVICE CLASSIFICATION~Retail Transmission Rate - Line and Transformation Connection Service Rate","STREET LIGHTING SERVICE CLASSIFICATION~Retail Transmission Rate - Network Service Rate","STREET LIGHTING SERVICE CLASSIFICATION~Retail Transmission Rate - Line and Transformation Connection Service Rate"]
["Fort Frances Power Corporation","RESIDENTIAL SERVICE CLASSIFICATION~Retail Transmission Rate - Network Service Rate","RESIDENTIAL SERVICE CLASSIFICATION~Retail Transmission Rate - Line and Transformation Connection Service Rate","GENERAL SERVICE LESS THAN 50 KW SERVICE CLASSIFICATION~Retail Transmission Rate - Network Service Rate","GENERAL SERVICE LESS THAN 50 KW SERVICE CLASSIFICATION~Retail Transmission Rate - Line and Transformation Connection Service Rate","GENERAL SERVICE 50 to 4,999 kW SERVICE CLASSIFICATION~Retail Transmission Rate - Network Service Rate","GENERAL SERVICE 50 to 4,999 kW SERVICE CLASSIFICATION~Retail Transmission Rate - Line and Transformation Connection Service Rate","UNMETERED SCATTERED LOAD SERVICE CLASSIFICATION~Retail Transmission Rate - Network Service Rate","UNMETERED SCATTERED LOAD SERVICE CLASSIFICATION~Retail Transmission Rate - Line and Transformation Connection Service Rate","STREET LIGHTING SERVICE CLASSIFICATION~Retail Transmission Rate - Network Service Rate","STREET LIGHTING SERVICE CLASSIFICATION~Retail Transmission Rate - Line and Transformation Connection Service Rate"]
["Greater Sudbury Hydro Inc.","RESIDENTIAL SERVICE CLASSIFICATION~Retail Transmission Rate - Network Service Rate","RESIDENTIAL SERVICE CLASSIFICATION~Retail Transmission Rate - Line and Transformation Connection Service Rate","GENERAL SERVICE LESS THAN 50 KW SERVICE CLASSIFICATION~Retail Transmission Rate - Network Service Rate","GENERAL SERVICE LESS THAN 50 KW SERVICE CLASSIFICATION~Retail Transmission Rate - Line and Transformation Connection Service Rate","GENERAL SERVICE 50 to 4,999 kW SERVICE CLASSIFICATION~Retail Transmission Rate - Network Service Rate","GENERAL SERVICE 50 to 4,999 kW SERVICE CLASSIFICATION~Retail Transmission Rate - Line and Transformation Connection Service Rate","UNMETERED SCATTERED LOAD SERVICE CLASSIFICATION~Retail Transmission Rate - Network Service Rate","UNMETERED SCATTERED LOAD SERVICE CLASSIFICATION~Retail Transmission Rate - Line and Transformation Connection Service Rate","SENTINEL LIGHTING SERVICE CLASSIFICATION~Retail Transmission Rate - Network Service Rate","SENTINEL LIGHTING SERVICE CLASSIFICATION~Retail Transmission Rate - Line and Transformation Connection Service Rate","STREET LIGHTING SERVICE CLASSIFICATION~Retail Transmission Rate - Network Service Rate","STREET LIGHTING SERVICE CLASSIFICATION~Retail Transmission Rate - Line and Transformation Connection Service Rate"]
["Halton Hills Hydro Inc.","RESIDENTIAL SERVICE CLASSIFICATION~Retail Transmission Rate - Network Service Rate","RESIDENTIAL SERVICE CLASSIFICATION~Retail Transmission Rate - Line and Transformation Connection Service Rate","GENERAL SERVICE LESS THAN 50 KW SERVICE CLASSIFICATION~Retail Transmission Rate - Network Service Rate","GENERAL SERVICE LESS THAN 50 KW SERVICE CLASSIFICATION~Retail Transmission Rate - Line and Transformation Connection Service Rate","GENERAL SERVICE 50 TO 999 KW SERVICE CLASSIFICATION~Retail Transmission Rate - Network Service Rate","GENERAL SERVICE 50 TO 999 KW SERVICE CLASSIFICATION~Retail Transmission Rate - Line and Transformation Connection Service Rate","GENERAL SERVICE 1,000 TO 4,999 KW SERVICE CLASSIFICATION~Retail Transmission Rate - Network Service Rate","GENERAL SERVICE 1,000 TO 4,999 KW SERVICE CLASSIFICATION~Retail Transmission Rate - Line and Transformation Connection Service Rate","UNMETERED SCATTERED LOAD SERVICE CLASSIFICATION~Retail Transmission Rate - Network Service Rate","UNMETERED SCATTERED LOAD SERVICE CLASSIFICATION~Retail Transmission Rate - Line and Transformation Connection Service Rate","SENTINEL LIGHTING SERVICE CLASSIFICATION~Retail Transmission Rate - Network Service Rate","SENTINEL LIGHTING SERVICE CLASSIFICATION~Retail Transmission Rate - Line and Transformation Connection Service Rate","STREET LIGHTING SERVICE CLASSIFICATION~Retail Transmission Rate - Network Service Rate","STREET LIGHTING SERVICE CLASSIFICATION~Retail Transmission Rate - Line and Transformation Connection Service Rate"]
["Hydro One Networks Inc.-Former Haldimand County Hydro Inc. Service Area","RESIDENTIAL SERVICE CLASSIFICATION~Retail Transmission Rate - Network Service Rate","RESIDENTIAL SERVICE CLASSIFICATION~Retail Transmission Rate - Line and Transformation Connection Service Rate","GENERAL SERVICE LESS THAN 50 KW SERVICE CLASSIFICATION~Retail Transmission Rate - Network Service Rate","GENERAL SERVICE LESS THAN 50 KW SERVICE CLASSIFICATION~Retail Transmission Rate - Line and Transformation Connection Service Rate","GENERAL SERVICE 50 to 4,999 kW SERVICE CLASSIFICATION~Retail Transmission Rate - Network Service Rate","GENERAL SERVICE 50 to 4,999 kW SERVICE CLASSIFICATION~Retail Transmission Rate - Line and Transformation Connection Service Rate","UNMETERED SCATTERED LOAD SERVICE CLASSIFICATION~Retail Transmission Rate - Network Service Rate","UNMETERED SCATTERED LOAD SERVICE CLASSIFICATION~Retail Transmission Rate - Line and Transformation Connection Service Rate","SENTINEL LIGHTING SERVICE CLASSIFICATION~Retail Transmission Rate - Network Service Rate","SENTINEL LIGHTING SERVICE CLASSIFICATION~Retail Transmission Rate - Line and Transformation Connection Service Rate","STREET LIGHTING SERVICE CLASSIFICATION~Retail Transmission Rate - Network Service Rate","STREET LIGHTING SERVICE CLASSIFICATION~Retail Transmission Rate - Line and Transformation Connection Service Rate","EMBEDDED DISTRIBUTOR SERVICE CLASSIFICATION FOR HYDRO ONE NETWORKS INC.~Retail Transmission Rate - Network Service Rate","EMBEDDED DISTRIBUTOR SERVICE CLASSIFICATION FOR HYDRO ONE NETWORKS INC.~Retail Transmission Rate - Line and Transformation Connection Service Rate"]
["Hydro One Networks Inc.-Former Norfolk Power Distribution Inc. Service Area","RESIDENTIAL SERVICE CLASSIFICATION~Retail Transmission Rate - Network Service Rate","RESIDENTIAL SERVICE CLASSIFICATION~Retail Transmission Rate - Line and Transformation Connection Service Rate","GENERAL SERVICE LESS THAN 50 KW SERVICE CLASSIFICATION~Retail Transmission Rate - Network Service Rate","GENERAL SERVICE LESS THAN 50 KW SERVICE CLASSIFICATION~Retail Transmission Rate - Line and Transformation Connection Service Rate","GENERAL SERVICE 50 to 4,999 kW SERVICE CLASSIFICATION~Retail Transmission Rate - Network Service Rate","GENERAL SERVICE 50 to 4,999 kW SERVICE CLASSIFICATION~Retail Transmission Rate - Line and Transformation Connection Service Rate","UNMETERED SCATTERED LOAD SERVICE CLASSIFICATION~Retail Transmission Rate - Network Service Rate","UNMETERED SCATTERED LOAD SERVICE CLASSIFICATION~Retail Transmission Rate - Line and Transformation Connection Service Rate","SENTINEL LIGHTING SERVICE CLASSIFICATION~Retail Transmission Rate - Network Service Rate","SENTINEL LIGHTING SERVICE CLASSIFICATION~Retail Transmission Rate - Line and Transformation Connection Service Rate","STREET LIGHTING SERVICE CLASSIFICATION~Retail Transmission Rate - Network Service Rate","STREET LIGHTING SERVICE CLASSIFICATION~Retail Transmission Rate - Line and Transformation Connection Service Rate"]
["Hydro One Networks Inc.-Former Woodstock Hydro Services Inc. Service Area","RESIDENTIAL SERVICE CLASSIFICATION~Retail Transmission Rate - Network Service Rate","RESIDENTIAL SERVICE CLASSIFICATION~Retail Transmission Rate - Line and Transformation Connection Service Rate","GENERAL SERVICE LESS THAN 50 KW SERVICE CLASSIFICATION~Retail Transmission Rate - Network Service Rate","GENERAL SERVICE LESS THAN 50 KW SERVICE CLASSIFICATION~Retail Transmission Rate - Line and Transformation Connection Service Rate","GENERAL SERVICE 50 TO 999 KW SERVICE CLASSIFICATION~Retail Transmission Rate - Network Service Rate","GENERAL SERVICE 50 TO 999 KW SERVICE CLASSIFICATION~Retail Transmission Rate - Line and Transformation Connection Service Rate","GENERAL SERVICE GREATER THAN 1,000 KW SERVICE CLASSIFICATION~Retail Transmission Rate - Network Service Rate","GENERAL SERVICE GREATER THAN 1,000 KW SERVICE CLASSIFICATION~Retail Transmission Rate - Line and Transformation Connection Service Rate","UNMETERED SCATTERED LOAD SERVICE CLASSIFICATION~Retail Transmission Rate - Network Service Rate","UNMETERED SCATTERED LOAD SERVICE CLASSIFICATION~Retail Transmission Rate - Line and Transformation Connection Service Rate","STREET LIGHTING SERVICE CLASSIFICATION~Retail Transmission Rate - Network Service Rate","STREET LIGHTING SERVICE CLASSIFICATION~Retail Transmission Rate - Line and Transformation Connection Service Rate"]
["Synergy North Corporation-Kenora Rate Zone","RESIDENTIAL SERVICE CLASSIFICATION~Retail Transmission Rate - Network Service Rate","RESIDENTIAL SERVICE CLASSIFICATION~Retail Transmission Rate - Line and Transformation Connection Service Rate","GENERAL SERVICE LESS THAN 50 KW SERVICE CLASSIFICATION~Retail Transmission Rate - Network Service Rate","GENERAL SERVICE LESS THAN 50 KW SERVICE CLASSIFICATION~Retail Transmission Rate - Line and Transformation Connection Service Rate","GENERAL SERVICE 50 to 4,999 kW SERVICE CLASSIFICATION~Retail Transmission Rate - Network Service Rate","GENERAL SERVICE 50 to 4,999 kW SERVICE CLASSIFICATION~Retail Transmission Rate - Line and Transformation Connection Service Rate","UNMETERED SCATTERED LOAD SERVICE CLASSIFICATION~Retail Transmission Rate - Network Service Rate","UNMETERED SCATTERED LOAD SERVICE CLASSIFICATION~Retail Transmission Rate - Line and Transformation Connection Service Rate","STREET LIGHTING SERVICE CLASSIFICATION~Retail Transmission Rate - Network Service Rate","STREET LIGHTING SERVICE CLASSIFICATION~Retail Transmission Rate - Line and Transformation Connection Service Rate"]
["London Hydro Inc.","RESIDENTIAL SERVICE CLASSIFICATION~Retail Transmission Rate - Network Service Rate","RESIDENTIAL SERVICE CLASSIFICATION~Retail Transmission Rate - Line and Transformation Connection Service Rate","GENERAL SERVICE LESS THAN 50 KW SERVICE CLASSIFICATION~Retail Transmission Rate - Network Service Rate","GENERAL SERVICE LESS THAN 50 KW SERVICE CLASSIFICATION~Retail Transmission Rate - Line and Transformation Connection Service Rate ","GENERAL SERVICE 50 to 4,999 kW SERVICE CLASSIFICATION~Retail Transmission Rate - Network Service Rate","GENERAL SERVICE 50 to 4,999 kW SERVICE CLASSIFICATION~Retail Transmission Rate - Line and Transformation Connection Service Rate ","GENERAL SERVICE 50 to 4,999 kW SERVICE CLASSIFICATION~Retail Transmission Rate - Network Service Rate - Interval Metered","GENERAL SERVICE 50 to 4,999 kW SERVICE CLASSIFICATION~Retail Transmission Rate - Line and Transformation Connection Service Rate - Interval Metered ","GENERAL SERVICE 1,000 TO 4,999 KW (CO-GENERATION) SERVICE CLASSIFICATION~Retail Transmission Rate - Network Service Rate","GENERAL SERVICE 1,000 TO 4,999 KW (CO-GENERATION) SERVICE CLASSIFICATION~Retail Transmission Rate - Line and Transformation Connection Service Rate ","LARGE USE SERVICE CLASSIFICATION~Retail Transmission Rate - Network Service Rate - Interval Metered","LARGE USE SERVICE CLASSIFICATION~Retail Transmission Rate - Line and Transformation Connection Service Rate - Interval Metered ","STREET LIGHTING SERVICE CLASSIFICATION~Retail Transmission Rate - Network Service Rate","STREET LIGHTING SERVICE CLASSIFICATION~Retail Transmission Rate - Line and Transformation Connection Service Rate ","SENTINEL LIGHTING SERVICE CLASSIFICATION~Retail Transmission Rate - Network Service Rate","SENTINEL LIGHTING SERVICE CLASSIFICATION~Retail Transmission Rate - Line and Transformation Connection Service Rate","UNMETERED SCATTERED LOAD SERVICE CLASSIFICATION~Retail Transmission Rate - Network Service Rate","UNMETERED SCATTERED LOAD SERVICE CLASSIFICATION~Retail Transmission Rate - Line and Transformation Connection Service Rate"]
["Milton Hydro Distribution Inc.","RESIDENTIAL SERVICE CLASSIFICATION~Retail Transmission Rate - Network Service Rate","RESIDENTIAL SERVICE CLASSIFICATION~Retail Transmission Rate - Line and Transformation Connection Service Rate","GENERAL SERVICE LESS THAN 50 KW SERVICE CLASSIFICATION~Retail Transmission Rate - Network Service Rate","GENERAL SERVICE LESS THAN 50 KW SERVICE CLASSIFICATION~Retail Transmission Rate - Line and Transformation Connection Service Rate","GENERAL SERVICE 50 TO 999 KW SERVICE CLASSIFICATION~Retail Transmission Rate - Network Service Rate","GENERAL SERVICE 50 TO 999 KW SERVICE CLASSIFICATION~Retail Transmission Rate - Line and Transformation Connection Service Rate","GENERAL SERVICE 1,000 TO 4,999 KW SERVICE CLASSIFICATION~Retail Transmission Rate - Network Service Rate","GENERAL SERVICE 1,000 TO 4,999 KW SERVICE CLASSIFICATION~Retail Transmission Rate - Line and Transformation Connection Service Rate","LARGE USE SERVICE CLASSIFICATION~Retail Transmission Rate - Network Service Rate - Interval Metered","LARGE USE SERVICE CLASSIFICATION~Retail Transmission Rate - Line and Transformation Connection Service Rate - Interval Metered","UNMETERED SCATTERED LOAD SERVICE CLASSIFICATION~Retail Transmission Rate - Network Service Rate","UNMETERED SCATTERED LOAD SERVICE CLASSIFICATION~Retail Transmission Rate - Line and Transformation Connection Service Rate","SENTINEL LIGHTING SERVICE CLASSIFICATION~Retail Transmission Rate - Network Service Rate","SENTINEL LIGHTING SERVICE CLASSIFICATION~Retail Transmission Rate - Line and Transformation Connection Service Rate","STREET LIGHTING SERVICE CLASSIFICATION~Retail Transmission Rate - Network Service Rate","STREET LIGHTING SERVICE CLASSIFICATION~Retail Transmission Rate - Line and Transformation Connection Service Rate"]
["North Bay Hydro Distribution Limited","RESIDENTIAL SERVICE CLASSIFICATION~Retail Transmission Rate - Network Service Rate","RESIDENTIAL SERVICE CLASSIFICATION~Retail Transmission Rate - Line and Transformation Connection Service Rate","GENERAL SERVICE LESS THAN 50 KW SERVICE CLASSIFICATION~Retail Transmission Rate - Network Service Rate","GENERAL SERVICE LESS THAN 50 KW SERVICE CLASSIFICATION~Retail Transmission Rate - Line and Transformation Connection Service Rate","GENERAL SERVICE 50 TO 2,999 KW SERVICE CLASSIFICATION~Retail Transmission Rate - Network Service Rate","GENERAL SERVICE 50 TO 2,999 KW SERVICE CLASSIFICATION~Retail Transmission Rate - Line and Transformation Connection Service Rate","GENERAL SERVICE 3,000 TO 4,999 KW SERVICE CLASSIFICATION~Retail Transmission Rate - Network Service Rate - Interval Metered","GENERAL SERVICE 3,000 TO 4,999 KW SERVICE CLASSIFICATION~Retail Transmission Rate - Line and Transformation Connection Service Rate - Interval Metered","UNMETERED SCATTERED LOAD SERVICE CLASSIFICATION~Retail Transmission Rate - Network Service Rate","UNMETERED SCATTERED LOAD SERVICE CLASSIFICATION~Retail Transmission Rate - Line and Transformation Connection Service Rate","SENTINEL LIGHTING SERVICE CLASSIFICATION~Retail Transmission Rate - Network Service Rate","SENTINEL LIGHTING SERVICE CLASSIFICATION~Retail Transmission Rate - Line and Transformation Connection Service Rate","STREET LIGHTING SERVICE CLASSIFICATION~Retail Transmission Rate - Network Service Rate","STREET LIGHTING SERVICE CLASSIFICATION~Retail Transmission Rate - Line and Transformation Connection Service Rate"]
["Northern Ontario Wires Inc.","RESIDENTIAL SERVICE CLASSIFICATION~Retail Transmission Rate - Network Service Rate","RESIDENTIAL SERVICE CLASSIFICATION~Retail Transmission Rate - Line and Transformation Connection Service Rate","GENERAL SERVICE LESS THAN 50 KW SERVICE CLASSIFICATION~Retail Transmission Rate - Network Service Rate","GENERAL SERVICE LESS THAN 50 KW SERVICE CLASSIFICATION~Retail Transmission Rate - Line and Transformation Connection Service Rate","GENERAL SERVICE 50 to 4,999 kW SERVICE CLASSIFICATION~Retail Transmission Rate - Network Service Rate","GENERAL SERVICE 50 to 4,999 kW SERVICE CLASSIFICATION~Retail Transmission Rate - Line and Transformation Connection Service Rate ","UNMETERED SCATTERED LOAD SERVICE CLASSIFICATION~Retail Transmission Rate - Network Service Rate","UNMETERED SCATTERED LOAD SERVICE CLASSIFICATION~Retail Transmission Rate - Line and Transformation Connection Service Rate","STREET LIGHTING SERVICE CLASSIFICATION~Retail Transmission Rate - Network Service Rate","STREET LIGHTING SERVICE CLASSIFICATION~Retail Transmission Rate - Line and Transformation Connection Service Rate"]
["Niagara Peninsula Energy Inc.","RESIDENTIAL SERVICE CLASSIFICATION~Retail Transmission Rate - Network Service Rate","RESIDENTIAL SERVICE CLASSIFICATION~Retail Transmission Rate - Line and Transformation Connection Service Rate","GENERAL SERVICE LESS THAN 50 KW SERVICE CLASSIFICATION~Retail Transmission Rate - Network Service Rate","GENERAL SERVICE LESS THAN 50 KW SERVICE CLASSIFICATION~Retail Transmission Rate - Line and Transformation Connection Service Rate","GENERAL SERVICE 50 to 4,999 kW SERVICE CLASSIFICATION~Retail Transmission Rate - Network Service Rate","GENERAL SERVICE 50 to 4,999 kW SERVICE CLASSIFICATION~Retail Transmission Rate - Line and Transformation Connection Service Rate ","UNMETERED SCATTERED LOAD SERVICE CLASSIFICATION~Retail Transmission Rate - Network Service Rate","UNMETERED SCATTERED LOAD SERVICE CLASSIFICATION~Retail Transmission Rate - Line and Transformation Connection Service Rate","SENTINEL LIGHTING SERVICE CLASSIFICATION~Retail Transmission Rate - Network Service Rate","SENTINEL LIGHTING SERVICE CLASSIFICATION~Retail Transmission Rate - Line and Transformation Connection Service Rate","STREET LIGHTING SERVICE CLASSIFICATION~Retail Transmission Rate - Network Service Rate","STREET LIGHTING SERVICE CLASSIFICATION~Retail Transmission Rate - Line and Transformation Connection Service Rate"]
["Orangeville Hydro Limited","RESIDENTIAL SERVICE CLASSIFICATION~Retail Transmission Rate - Network Service Rate","RESIDENTIAL SERVICE CLASSIFICATION~Retail Transmission Rate - Line and Transformation Connection Service Rate","GENERAL SERVICE LESS THAN 50 KW SERVICE CLASSIFICATION~Retail Transmission Rate - Network Service Rate","GENERAL SERVICE LESS THAN 50 KW SERVICE CLASSIFICATION~Retail Transmission Rate - Line and Transformation Connection Service Rate","GENERAL SERVICE 50 to 4,999 kW SERVICE CLASSIFICATION~Retail Transmission Rate - Network Service Rate","GENERAL SERVICE 50 to 4,999 kW SERVICE CLASSIFICATION~Retail Transmission Rate - Line and Transformation Connection Service Rate","SENTINEL LIGHTING SERVICE CLASSIFICATION~Retail Transmission Rate - Network Service Rate","SENTINEL LIGHTING SERVICE CLASSIFICATION~Retail Transmission Rate - Line and Transformation Connection Service Rate","STREET LIGHTING SERVICE CLASSIFICATION~Retail Transmission Rate - Network Service Rate","STREET LIGHTING SERVICE CLASSIFICATION~Retail Transmission Rate - Line and Transformation Connection Service Rate","UNMETERED SCATTERED LOAD SERVICE CLASSIFICATION~Retail Transmission Rate - Network Service Rate","UNMETERED SCATTERED LOAD SERVICE CLASSIFICATION~Retail Transmission Rate - Line and Transformation Connection Service Rate"]
["Orillia Power Distribution Corporation","RESIDENTIAL SERVICE CLASSIFICATION~Retail Transmission Rate - Network Service Rate","RESIDENTIAL SERVICE CLASSIFICATION~Retail Transmission Rate - Line and Transformation Connection Service Rate","GENERAL SERVICE LESS THAN 50 KW SERVICE CLASSIFICATION~Retail Transmission Rate - Network Service Rate","GENERAL SERVICE LESS THAN 50 KW SERVICE CLASSIFICATION~Retail Transmission Rate - Line and Transformation Connection Service Rate","GENERAL SERVICE 50 to 4,999 kW SERVICE CLASSIFICATION~Retail Transmission Rate - Network Service Rate","GENERAL SERVICE 50 to 4,999 kW SERVICE CLASSIFICATION~Retail Transmission Rate - Line and Transformation Connection Service Rate","UNMETERED SCATTERED LOAD SERVICE CLASSIFICATION~Retail Transmission Rate - Network Service Rate","UNMETERED SCATTERED LOAD SERVICE CLASSIFICATION~Retail Transmission Rate - Line and Transformation Connection Service Rate","SENTINEL LIGHTING SERVICE CLASSIFICATION~Retail Transmission Rate - Network Service Rate","SENTINEL LIGHTING SERVICE CLASSIFICATION~Retail Transmission Rate - Line and Transformation Connection Service Rate","STREET LIGHTING SERVICE CLASSIFICATION~Retail Transmission Rate - Network Service Rate","STREET LIGHTING SERVICE CLASSIFICATION~Retail Transmission Rate - Line and Transformation Connection Service Rate"]
["Ottawa River Power Corporation","RESIDENTIAL SERVICE CLASSIFICATION~Retail Transmission Rate - Network Service Rate","RESIDENTIAL SERVICE CLASSIFICATION~Retail Transmission Rate - Line and Transformation Connection Service Rate","GENERAL SERVICE LESS THAN 50 KW SERVICE CLASSIFICATION~Retail Transmission Rate - Network Service Rate","GENERAL SERVICE LESS THAN 50 KW SERVICE CLASSIFICATION~Retail Transmission Rate - Line and Transformation Connection Service Rate","GENERAL SERVICE 50 to 4,999 kW SERVICE CLASSIFICATION~Retail Transmission Rate - Network Service Rate","GENERAL SERVICE 50 to 4,999 kW SERVICE CLASSIFICATION~Retail Transmission Rate - Line and Transformation Connection Service Rate","SENTINEL LIGHTING SERVICE CLASSIFICATION~Retail Transmission Rate - Network Service Rate","SENTINEL LIGHTING SERVICE CLASSIFICATION~Retail Transmission Rate - Line and Transformation Connection Service Rate","STREET LIGHTING SERVICE CLASSIFICATION~Retail Transmission Rate - Network Service Rate","STREET LIGHTING SERVICE CLASSIFICATION~Retail Transmission Rate - Line and Transformation Connection Service Rate","UNMETERED SCATTERED LOAD SERVICE CLASSIFICATION~Retail Transmission Rate - Network Service Rate","UNMETERED SCATTERED LOAD SERVICE CLASSIFICATION~Retail Transmission Rate - Line and Transformation Connection Service Rate"]
["Peterborough Distribution Incorporated","RESIDENTIAL SERVICE CLASSIFICATION~Retail Transmission Rate - Network Service Rate","RESIDENTIAL SERVICE CLASSIFICATION~Retail Transmission Rate - Line and Transformation Connection Service Rate","GENERAL SERVICE LESS THAN 50 KW SERVICE CLASSIFICATION~Retail Transmission Rate - Network Service Rate","GENERAL SERVICE LESS THAN 50 KW SERVICE CLASSIFICATION~Retail Transmission Rate - Line and Transformation Connection Service Rate","GENERAL SERVICE 50 to 4,999 kW SERVICE CLASSIFICATION~Retail Transmission Rate - Network Service Rate","GENERAL SERVICE 50 to 4,999 kW SERVICE CLASSIFICATION~Retail Transmission Rate - Line and Transformation Connection Service Rate","LARGE USE SERVICE CLASSIFICATION~Retail Transmission Rate - Network Service Rate","LARGE USE SERVICE CLASSIFICATION~Retail Transmission Rate - Line and Transformation Connection Service Rate","UNMETERED SCATTERED LOAD SERVICE CLASSIFICATION~Retail Transmission Rate - Network Service Rate","UNMETERED SCATTERED LOAD SERVICE CLASSIFICATION~Retail Transmission Rate - Line and Transformation Connection Service Rate","SENTINEL LIGHTING SERVICE CLASSIFICATION~Retail Transmission Rate - Network Service Rate","SENTINEL LIGHTING SERVICE CLASSIFICATION~Retail Transmission Rate - Line and Transformation Connection Service Rate","STREET LIGHTING SERVICE CLASSIFICATION~Retail Transmission Rate - Network Service Rate","STREET LIGHTING SERVICE CLASSIFICATION~Retail Transmission Rate - Line and Transformation Connection Service Rate"]
["Rideau St. Lawrence Distribution Inc.","RESIDENTIAL SERVICE CLASSIFICATION~Retail Transmission Rate - Network Service Rate ","RESIDENTIAL SERVICE CLASSIFICATION~Retail Transmission Rate - Line and Transformation Connection Service Rate ","GENERAL SERVICE LESS THAN 50 KW SERVICE CLASSIFICATION~Retail Transmission Rate - Network Service Rate ","GENERAL SERVICE LESS THAN 50 KW SERVICE CLASSIFICATION~Retail Transmission Rate - Line and Transformation Connection Service Rate ","GENERAL SERVICE 50 to 4,999 kW SERVICE CLASSIFICATION~Retail Transmission Rate - Network Service Rate ","GENERAL SERVICE 50 to 4,999 kW SERVICE CLASSIFICATION~Retail Transmission Rate - Line and Transformation Connection Service Rate","GENERAL SERVICE 50 to 4,999 kW SERVICE CLASSIFICATION~Retail Transmission Rate - Network Service Rate - Interval Metered ","GENERAL SERVICE 50 to 4,999 kW SERVICE CLASSIFICATION~Retail Transmission Rate - Line and Transformation Connection Service Rate - Interval Metered","UNMETERED SCATTERED LOAD SERVICE CLASSIFICATION~Retail Transmission Rate - Network Service Rate ","UNMETERED SCATTERED LOAD SERVICE CLASSIFICATION~Retail Transmission Rate - Line and Transformation Connection Service Rate ","SENTINEL LIGHTING SERVICE CLASSIFICATION~Retail Transmission Rate - Network Service Rate","SENTINEL LIGHTING SERVICE CLASSIFICATION~Retail Transmission Rate - Line and Transformation Connection Service Rate ","STREET LIGHTING SERVICE CLASSIFICATION~Retail Transmission Rate - Network Service Rate ","STREET LIGHTING SERVICE CLASSIFICATION~Retail Transmission Rate - Line and Transformation Connection Service Rate "]
["Sioux Lookout Hydro Inc.","RESIDENTIAL SERVICE CLASSIFICATION~Retail Transmission Rate - Network Service Rate","RESIDENTIAL SERVICE CLASSIFICATION~Retail Transmission Rate - Line and Transformation Connection Service Rate","GENERAL SERVICE LESS THAN 50 KW SERVICE CLASSIFICATION~Retail Transmission Rate - Network Service Rate","GENERAL SERVICE LESS THAN 50 KW SERVICE CLASSIFICATION~Retail Transmission Rate - Line and Transformation Connection Service Rate","GENERAL SERVICE 50 to 4,999 kW SERVICE CLASSIFICATION~Retail Transmission Rate - Network Service Rate","GENERAL SERVICE 50 to 4,999 kW SERVICE CLASSIFICATION~Retail Transmission Rate - Line and Transformation Connection Service Rate","GENERAL SERVICE 50 to 4,999 kW SERVICE CLASSIFICATION~Retail Transmission Rate - Network Service Rate - Interval Metered > 1,000 kW","GENERAL SERVICE 50 to 4,999 kW SERVICE CLASSIFICATION~Retail Transmission Rate - Line and Transformation Connection Service Rate - Interval Metered > 1,000 kW","STREET LIGHTING SERVICE CLASSIFICATION~Retail Transmission Rate - Network Service Rate","STREET LIGHTING SERVICE CLASSIFICATION~Retail Transmission Rate - Line and Transformation Connection Service Rate"]
["Synergy North Corporation-Thunder Bay Rate Zone","RESIDENTIAL SERVICE CLASSIFICATION~Retail Transmission Rate - Network Service Rate","RESIDENTIAL SERVICE CLASSIFICATION~Retail Transmission Rate - Line and Transformation Connection Service Rate","GENERAL SERVICE LESS THAN 50 KW SERVICE CLASSIFICATION~Retail Transmission Rate - Network Service Rate","GENERAL SERVICE LESS THAN 50 KW SERVICE CLASSIFICATION~Retail Transmission Rate - Line and Transformation Connection Service Rate","GENERAL SERVICE 50 TO 999 KW SERVICE CLASSIFICATION~Retail Transmission Rate - Network Service Rate","GENERAL SERVICE 50 TO 999 KW SERVICE CLASSIFICATION~Retail Transmission Rate - Line and Transformation Connection Service Rate ","GENERAL SERVICE 50 TO 999 KW SERVICE CLASSIFICATION~Retail Transmission Rate - Network Service Rate - Interval Metered","GENERAL SERVICE 50 TO 999 KW SERVICE CLASSIFICATION~Retail Transmission Rate - Line and Transformation Connection Service Rate - Interval Metered ","GENERAL SERVICE 1,000 KW OR GREATER SERVICE CLASSIFICATION~Retail Transmission Rate - Network Service Rate","GENERAL SERVICE 1,000 KW OR GREATER SERVICE CLASSIFICATION~Retail Transmission Rate - Line and Transformation Connection Service Rate ","UNMETERED SCATTERED LOAD SERVICE CLASSIFICATION~Retail Transmission Rate - Network Service Rate","UNMETERED SCATTERED LOAD SERVICE CLASSIFICATION~Retail Transmission Rate - Line and Transformation Connection Service Rate ","SENTINEL LIGHTING SERVICE CLASSIFICATION~Retail Transmission Rate - Network Service Rate","SENTINEL LIGHTING SERVICE CLASSIFICATION~Retail Transmission Rate - Line and Transformation Connection Service Rate ","STREET LIGHTING SERVICE CLASSIFICATION~Retail Transmission Rate - Network Service Rate","STREET LIGHTING SERVICE CLASSIFICATION~Retail Transmission Rate - Line and Transformation Connection Service Rate"]
["ENWIN Utilities Ltd.","RESIDENTIAL SERVICE CLASSIFICATION~Retail Transmission Rate - Network Service Rate","RESIDENTIAL SERVICE CLASSIFICATION~Retail Transmission Rate - Line and Transformation Connection Service Rate","GENERAL SERVICE LESS THAN 50 KW SERVICE CLASSIFICATION~Retail Transmission Rate - Network Service Rate","GENERAL SERVICE LESS THAN 50 KW SERVICE CLASSIFICATION~Retail Transmission Rate - Line and Transformation Connection Service Rate","GENERAL SERVICE 50 to 4,999 kW SERVICE CLASSIFICATION~Retail Transmission Rate - Network Service Rate","GENERAL SERVICE 50 to 4,999 kW SERVICE CLASSIFICATION~Retail Transmission Rate - Line and Transformation Connection Service Rate","GENERAL SERVICE 3,000 TO 4,999 KW - INTERMEDIATE USE SERVICE CLASSIFICATION~Retail Transmission Rate - Network Service Rate","GENERAL SERVICE 3,000 TO 4,999 KW - INTERMEDIATE USE SERVICE CLASSIFICATION~Retail Transmission Rate - Line and Transformation Connection Service Rate","LARGE USE - REGULAR SERVICE CLASSIFICATION~Retail Transmission Rate - Network Service Rate","LARGE USE - REGULAR SERVICE CLASSIFICATION~Retail Transmission Rate - Line Connection Service Rate","LARGE USE - REGULAR SERVICE CLASSIFICATION~Retail Transmission Rate - Transformation Connection Service Rate","LARGE USE - 3TS SERVICE CLASSIFICATION~Retail Transmission Rate - Network Service Rate","LARGE USE - 3TS SERVICE CLASSIFICATION~Retail Transmission Rate - Line Connection Service Rate","LARGE USE - FORD ANNEX SERVICE CLASSIFICATION~Retail Transmission Rate - Network Service Rate","LARGE USE - FORD ANNEX SERVICE CLASSIFICATION~Retail Transmission Rate - Line Connection Service Rate ","UNMETERED SCATTERED LOAD SERVICE CLASSIFICATION~Retail Transmission Rate - Network Service Rate","UNMETERED SCATTERED LOAD SERVICE CLASSIFICATION~Retail Transmission Rate - Line and Transformation Connection Service Rate","SENTINEL LIGHTING SERVICE CLASSIFICATION~Retail Transmission Rate - Network Service Rate","SENTINEL LIGHTING SERVICE CLASSIFICATION~Retail Transmission Rate - Line and Transformation Connection Service Rate","STREET LIGHTING SERVICE CLASSIFICATION~Retail Transmission Rate - Network Service Rate","STREET LIGHTING SERVICE CLASSIFICATION~Retail Transmission Rate - Line and Transformation Connection Service Rate"]
["Hearst Power Distribution Co. Ltd.","RESIDENTIAL SERVICE CLASSIFICATION~Retail Transmission Rate - Network Service Rate","RESIDENTIAL SERVICE CLASSIFICATION~Retail Transmission Rate - Line and Transformation Connection Service Rate","GENERAL SERVICE LESS THAN 50 KW SERVICE CLASSIFICATION~Retail Transmission Rate - Network Service Rate","GENERAL SERVICE LESS THAN 50 KW SERVICE CLASSIFICATION~Retail Transmission Rate - Line and Transformation Connection Service Rate","GENERAL SERVICE 50 TO 1,499 KW SERVICE CLASSIFICATION~Retail Transmission Rate - Network Service Rate","GENERAL SERVICE 50 TO 1,499 KW SERVICE CLASSIFICATION~Retail Transmission Rate - Line and Transformation Connection Service Rate ","INTERMEDIATE USER SERVICE CLASSIFICATION~Retail Transmission Rate - Network Service Rate","INTERMEDIATE USER SERVICE CLASSIFICATION~Retail Transmission Rate - Line and Transformation Connection Service Rate","SENTINEL LIGHTING SERVICE CLASSIFICATION~Retail Transmission Rate - Network Service Rate","SENTINEL LIGHTING SERVICE CLASSIFICATION~Retail Transmission Rate - Line and Transformation Connection Service Rate","STREET LIGHTING SERVICE CLASSIFICATION~Retail Transmission Rate - Network Service Rate","STREET LIGHTING SERVICE CLASSIFICATION~Retail Transmission Rate - Line and Transformation Connection Service Rate"]
["ERTH Power Corporation-ERTH Power Main Rate Zone","RESIDENTIAL SERVICE CLASSIFICATION~Retail Transmission Rate - Network Service Rate","RESIDENTIAL SERVICE CLASSIFICATION~Retail Transmission Rate - Line and Transformation Connection Service Rate","GENERAL SERVICE LESS THAN 50 KW SERVICE CLASSIFICATION~Retail Transmission Rate - Network Service Rate","GENERAL SERVICE LESS THAN 50 KW SERVICE CLASSIFICATION~Retail Transmission Rate - Line and Transformation Connection Service Rate","GENERAL SERVICE 50 TO 999 KW SERVICE CLASSIFICATION~Retail Transmission Rate - Network Service Rate","GENERAL SERVICE 50 TO 999 KW SERVICE CLASSIFICATION~Retail Transmission Rate - Line and Transformation Connection Service Rate","GENERAL SERVICE 1,000 TO 4,999 KW SERVICE CLASSIFICATION~Retail Transmission Rate - Network Service Rate","GENERAL SERVICE 1,000 TO 4,999 KW SERVICE CLASSIFICATION~Retail Transmission Rate - Line and Transformation Connection Service Rate","LARGE USE SERVICE CLASSIFICATION~Retail Transmission Rate - Network Service Rate","LARGE USE SERVICE CLASSIFICATION~Retail Transmission Rate - Line and Transformation Connection Service Rate","UNMETERED SCATTERED LOAD SERVICE CLASSIFICATION~Retail Transmission Rate - Network Service Rate","UNMETERED SCATTERED LOAD SERVICE CLASSIFICATION~Retail Transmission Rate - Line and Transformation Connection Service Rate","SENTINEL LIGHTING SERVICE CLASSIFICATION~Retail Transmission Rate - Network Service Rate","SENTINEL LIGHTING SERVICE CLASSIFICATION~Retail Transmission Rate - Line and Transformation Connection Service Rate","STREET LIGHTING SERVICE CLASSIFICATION~Retail Transmission Rate - Network Service Rate","STREET LIGHTING SERVICE CLASSIFICATION~Retail Transmission Rate - Line and Transformation Connection Service Rate","EMBEDDED DISTRIBUTOR SERVICE CLASSIFICATION~Retail Transmission Rate - Network Service Rate","EMBEDDED DISTRIBUTOR SERVICE CLASSIFICATION~Retail Transmission Rate - Line and Transformation Connection Service Rate"]
["Welland Hydro-Electric System Corp.","RESIDENTIAL SERVICE CLASSIFICATION~Retail Transmission Rate - Network Service Rate","RESIDENTIAL SERVICE CLASSIFICATION~Retail Transmission Rate - Line and Transformation Connection Service Rate","GENERAL SERVICE LESS THAN 50 KW SERVICE CLASSIFICATION~Retail Transmission Rate - Network Service Rate","GENERAL SERVICE LESS THAN 50 KW SERVICE CLASSIFICATION~Retail Transmission Rate - Line and Transformation Connection Service Rate","GENERAL SERVICE 50 to 4,999 kW SERVICE CLASSIFICATION~Retail Transmission Rate - Network Service Rate","GENERAL SERVICE 50 to 4,999 kW SERVICE CLASSIFICATION~Retail Transmission Rate - Line and Transformation Connection Service Rate ","UNMETERED SCATTERED LOAD SERVICE CLASSIFICATION~Retail Transmission Rate - Network Service Rate","UNMETERED SCATTERED LOAD SERVICE CLASSIFICATION~Retail Transmission Rate - Line and Transformation Connection Service Rate","SENTINEL LIGHTING SERVICE CLASSIFICATION~Retail Transmission Rate - Network Service Rate","SENTINEL LIGHTING SERVICE CLASSIFICATION~Retail Transmission Rate - Line and Transformation Connection Service Rate","STREET LIGHTING SERVICE CLASSIFICATION~Retail Transmission Rate - Network Service Rate","STREET LIGHTING SERVICE CLASSIFICATION~Retail Transmission Rate - Line and Transformation Connection Service Rate"]
["Wellington North Power Inc.","RESIDENTIAL SERVICE CLASSIFICATION~Retail Transmission Rate - Network Service Rate","RESIDENTIAL SERVICE CLASSIFICATION~Retail Transmission Rate - Line and Transformation Connection Service Rate","GENERAL SERVICE LESS THAN 50 KW SERVICE CLASSIFICATION~Retail Transmission Rate - Network Service Rate","GENERAL SERVICE LESS THAN 50 KW SERVICE CLASSIFICATION~Retail Transmission Rate - Line and Transformation Connection Service Rate","GENERAL SERVICE 50 TO 999 KW SERVICE CLASSIFICATION~Retail Transmission Rate - Network Service Rate","GENERAL SERVICE 50 TO 999 KW SERVICE CLASSIFICATION~Retail Transmission Rate - Line and Transformation Connection Service Rate","GENERAL SERVICE 1,000 TO 4,999 KW SERVICE CLASSIFICATION~Retail Transmission Rate - Network Service Rate","GENERAL SERVICE 1,000 TO 4,999 KW SERVICE CLASSIFICATION~Retail Transmission Rate - Line and Transformation Connection Service Rate","UNMETERED SCATTERED LOAD SERVICE CLASSIFICATION~Retail Transmission Rate - Network Service Rate","UNMETERED SCATTERED LOAD SERVICE CLASSIFICATION~Retail Transmission Rate - Line and Transformation Connection Service Rate","SENTINEL LIGHTING SERVICE CLASSIFICATION~Retail Transmission Rate - Network Service Rate","SENTINEL LIGHTING SERVICE CLASSIFICATION~Retail Transmission Rate - Line and Transformation Connection Service Rate","STREET LIGHTING SERVICE CLASSIFICATION~Retail Transmission Rate - Network Service Rate","STREET LIGHTING SERVICE CLASSIFICATION~Retail Transmission Rate - Line and Transformation Connection Service Rate"]
["Tillsonburg Hydro Inc.","RESIDENTIAL SERVICE CLASSIFICATION~Retail Transmission Rate - Network Service Rate","RESIDENTIAL SERVICE CLASSIFICATION~Retail Transmission Rate - Line and Transformation Connection Service Rate","GENERAL SERVICE LESS THAN 50 KW SERVICE CLASSIFICATION~Retail Transmission Rate - Network Service Rate","GENERAL SERVICE LESS THAN 50 KW SERVICE CLASSIFICATION~Retail Transmission Rate - Line and Transformation Connection Service Rate","GENERAL SERVICE 50 TO 499 KW SERVICE CLASSIFICATION~Retail Transmission Rate - Network Service Rate","GENERAL SERVICE 50 TO 499 KW SERVICE CLASSIFICATION~Retail Transmission Rate - Line and Transformation Connection Service Rate","GENERAL SERVICE 500 TO 1,499 KW SERVICE CLASSIFICATION~Retail Transmission Rate - Network Service Rate - Interval Metered","GENERAL SERVICE 500 TO 1,499 KW SERVICE CLASSIFICATION~Retail Transmission Rate - Line and Transformation Connection Service Rate - Interval Metered","GENERAL SERVICE EQUAL TO OR GREATER THAN 1,500 KW SERVICE CLASSIFICATION~Retail Transmission Rate - Network Service Rate - Interval Metered","GENERAL SERVICE EQUAL TO OR GREATER THAN 1,500 KW SERVICE CLASSIFICATION~Retail Transmission Rate - Line and Transformation Connection Service Rate - Interval Metered","UNMETERED SCATTERED LOAD SERVICE CLASSIFICATION~Retail Transmission Rate - Network Service Rate","UNMETERED SCATTERED LOAD SERVICE CLASSIFICATION~Retail Transmission Rate - Line and Transformation Connection Service Rate","SENTINEL LIGHTING SERVICE CLASSIFICATION~Retail Transmission Rate - Network Service Rate","SENTINEL LIGHTING SERVICE CLASSIFICATION~Retail Transmission Rate - Line and Transformation Connection Service Rate","STREET LIGHTING SERVICE CLASSIFICATION~Retail Transmission Rate - Network Service Rate","STREET LIGHTING SERVICE CLASSIFICATION~Retail Transmission Rate - Line and Transformation Connection Service Rate"]
["Elexicon Energy Inc.-Veridian Rate Zone","RESIDENTIAL SERVICE CLASSIFICATION~Retail Transmission Rate - Network Service Rate","RESIDENTIAL SERVICE CLASSIFICATION~Retail Transmission Rate - Line and Transformation Connection Service Rate","SEASONAL RESIDENTIAL SERVICE CLASSIFICATION~Retail Transmission Rate - Network Service Rate","SEASONAL RESIDENTIAL SERVICE CLASSIFICATION~Retail Transmission Rate - Line and Transformation Connection Service Rate","GENERAL SERVICE LESS THAN 50 KW SERVICE CLASSIFICATION~Retail Transmission Rate - Network Service Rate","GENERAL SERVICE LESS THAN 50 KW SERVICE CLASSIFICATION~Retail Transmission Rate - Line and Transformation Connection Service Rate","GENERAL SERVICE 50 TO 2,999 KW SERVICE CLASSIFICATION~Retail Transmission Rate - Network Service Rate","GENERAL SERVICE 50 TO 2,999 KW SERVICE CLASSIFICATION~Retail Transmission Rate - Line and Transformation Connection Service Rate","GENERAL SERVICE 3,000 TO 4,999 KW SERVICE CLASSIFICATION~Retail Transmission Rate - Network Service Rate","GENERAL SERVICE 3,000 TO 4,999 KW SERVICE CLASSIFICATION~Retail Transmission Rate - Line and Transformation Connection Service Rate ","LARGE USE SERVICE CLASSIFICATION~Retail Transmission Rate - Network Service Rate","LARGE USE SERVICE CLASSIFICATION~Retail Transmission Rate - Line and Transformation Connection Service Rate ","UNMETERED SCATTERED LOAD SERVICE CLASSIFICATION~Retail Transmission Rate - Network Service Rate","UNMETERED SCATTERED LOAD SERVICE CLASSIFICATION~Retail Transmission Rate - Line and Transformation Connection Service Rate","SENTINEL LIGHTING SERVICE CLASSIFICATION~Retail Transmission Rate - Network Service Rate","SENTINEL LIGHTING SERVICE CLASSIFICATION~Retail Transmission Rate - Line and Transformation Connection Service Rate","STREET LIGHTING SERVICE CLASSIFICATION~Retail Transmission Rate - Network Service Rate","STREET LIGHTING SERVICE CLASSIFICATION~Retail Transmission Rate - Line and Transformation Connection Service Rate"]
["Wasaga Distribution Inc.","RESIDENTIAL SERVICE CLASSIFICATION~Retail Transmission Rate - Network Service Rate","RESIDENTIAL SERVICE CLASSIFICATION~Retail Transmission Rate - Line and Transformation Connection Service Rate","GENERAL SERVICE LESS THAN 50 KW SERVICE CLASSIFICATION~Retail Transmission Rate - Network Service Rate","GENERAL SERVICE LESS THAN 50 KW SERVICE CLASSIFICATION~Retail Transmission Rate - Line and Transformation Connection Service Rate","GENERAL SERVICE 50 to 4,999 kW SERVICE CLASSIFICATION~Retail Transmission Rate - Network Service Rate","GENERAL SERVICE 50 to 4,999 kW SERVICE CLASSIFICATION~Retail Transmission Rate - Line and Transformation Connection Service Rate","UNMETERED SCATTERED LOAD SERVICE CLASSIFICATION~Retail Transmission Rate - Network Service Rate","UNMETERED SCATTERED LOAD SERVICE CLASSIFICATION~Retail Transmission Rate - Line and Transformation Connection Service Rate","STREET LIGHTING SERVICE CLASSIFICATION~Retail Transmission Rate - Network Service Rate","STREET LIGHTING SERVICE CLASSIFICATION~Retail Transmission Rate - Line and Transformation Connection Service Rate"]
["ERTH Power Corporation – Goderich Rate Zone","RESIDENTIAL SERVICE CLASSIFICATION~Retail Transmission Rate - Network Service Rate","RESIDENTIAL SERVICE CLASSIFICATION~Retail Transmission Rate - Line and Transformation Connection Service Rate","GENERAL SERVICE LESS THAN 50 KW SERVICE CLASSIFICATION~Retail Transmission Rate - Network Service Rate","GENERAL SERVICE LESS THAN 50 KW SERVICE CLASSIFICATION~Retail Transmission Rate - Line and Transformation Connection Service Rate","GENERAL SERVICE 50 TO 499 KW SERVICE CLASSIFICATION~Retail Transmission Rate - Network Service Rate","GENERAL SERVICE 50 TO 499 KW SERVICE CLASSIFICATION~Retail Transmission Rate - Line and Transformation Connection Service Rate","GENERAL SERVICE 500 TO 4,999 KW SERVICE CLASSIFICATION~Retail Transmission Rate - Network Service Rate","GENERAL SERVICE 500 TO 4,999 KW SERVICE CLASSIFICATION~Retail Transmission Rate - Line and Transformation Connection Service Rate","LARGE USE SERVICE CLASSIFICATION~Retail Transmission Rate - Network Service Rate","LARGE USE SERVICE CLASSIFICATION~Retail Transmission Rate - Line and Transformation Connection Service Rate","UNMETERED SCATTERED LOAD SERVICE CLASSIFICATION~Retail Transmission Rate - Network Service Rate","UNMETERED SCATTERED LOAD SERVICE CLASSIFICATION~Retail Transmission Rate - Line and Transformation Connection Service Rate","SENTINEL LIGHTING SERVICE CLASSIFICATION~Retail Transmission Rate - Network Service Rate","SENTINEL LIGHTING SERVICE CLASSIFICATION~Retail Transmission Rate - Line and Transformation Connection Service Rate","STREET LIGHTING SERVICE CLASSIFICATION~Retail Transmission Rate - Network Service Rate","STREET LIGHTING SERVICE CLASSIFICATION~Retail Transmission Rate - Line and Transformation Connection Service Rate"]
["Oshawa PUC Networks Inc.","RESIDENTIAL SERVICE CLASSIFICATION~Retail Transmission Rate - Network Service Rate","RESIDENTIAL SERVICE CLASSIFICATION~Retail Transmission Rate - Line and Transformation Connection Service Rate","GENERAL SERVICE LESS THAN 50 KW SERVICE CLASSIFICATION~Retail Transmission Rate - Network Service Rate","GENERAL SERVICE LESS THAN 50 KW SERVICE CLASSIFICATION~Retail Transmission Rate - Line and Transformation Connection Service Rate","GENERAL SERVICE 50 TO 999 KW SERVICE CLASSIFICATION~Retail Transmission Rate - Network Service Rate","GENERAL SERVICE 50 TO 999 KW SERVICE CLASSIFICATION~Retail Transmission Rate - Line and Transformation Connection Service Rate","GENERAL SERVICE 50 TO 999 KW SERVICE CLASSIFICATION~Retail Transmission Rate - Network Service Rate - Interval Metered","GENERAL SERVICE 50 TO 999 KW SERVICE CLASSIFICATION~Retail Transmission Rate - Line and Transformation Connection Service Rate - Interval Metered","GENERAL SERVICE 1,000 TO 4,999 KW SERVICE CLASSIFICATION~Retail Transmission Rate - Network Service Rate - Interval Metered","GENERAL SERVICE 1,000 TO 4,999 KW SERVICE CLASSIFICATION~Retail Transmission Rate - Line and Transformation Connection Service Rate - Interval Metered","LARGE USE SERVICE CLASSIFICATION~Retail Transmission Rate - Network Service Rate - Interval Metered","LARGE USE SERVICE CLASSIFICATION~Retail Transmission Rate - Line and Transformation Connection Service Rate - Interval Metered","UNMETERED SCATTERED LOAD SERVICE CLASSIFICATION~Retail Transmission Rate - Network Service Rate","UNMETERED SCATTERED LOAD SERVICE CLASSIFICATION~Retail Transmission Rate - Line and Transformation Connection Service Rate","SENTINEL LIGHTING SERVICE CLASSIFICATION~Retail Transmission Rate - Network Service Rate","SENTINEL LIGHTING SERVICE CLASSIFICATION~Retail Transmission Rate - Line and Transformation Connection Service Rate","STREET LIGHTING SERVICE CLASSIFICATION~Retail Transmission Rate - Network Service Rate","STREET LIGHTING SERVICE CLASSIFICATION~Retail Transmission Rate - Line and Transformation Connection Service Rate"]
["Brantford Power Inc.","RESIDENTIAL SERVICE CLASSIFICATION~Retail Transmission Rate - Network Service Rate","RESIDENTIAL SERVICE CLASSIFICATION~Retail Transmission Rate - Line and Transformation Connection Service Rate","GENERAL SERVICE LESS THAN 50 KW SERVICE CLASSIFICATION~Retail Transmission Rate - Network Service Rate","GENERAL SERVICE LESS THAN 50 KW SERVICE CLASSIFICATION~Retail Transmission Rate - Line and Transformation Connection Service Rate","GENERAL SERVICE 50 to 4,999 kW SERVICE CLASSIFICATION~Retail Transmission Rate - Network Service Rate","GENERAL SERVICE 50 to 4,999 kW SERVICE CLASSIFICATION~Retail Transmission Rate - Line and Transformation Connection Service Rate","EMBEDDED DISTRIBUTOR SERVICE CLASSIFICATION~Retail Transmission Rate - Network Service Rate","EMBEDDED DISTRIBUTOR SERVICE CLASSIFICATION~Retail Transmission Rate - Line and Transformation Connection Service Rate","SENTINEL LIGHTING SERVICE CLASSIFICATION~Retail Transmission Rate - Network Service Rate","SENTINEL LIGHTING SERVICE CLASSIFICATION~Retail Transmission Rate - Line and Transformation Connection Service Rate","STREET LIGHTING SERVICE CLASSIFICATION~Retail Transmission Rate - Network Service Rate","STREET LIGHTING SERVICE CLASSIFICATION~Retail Transmission Rate - Line and Transformation Connection Service Rate","UNMETERED SCATTERED LOAD SERVICE CLASSIFICATION~Retail Transmission Rate - Network Service Rate","UNMETERED SCATTERED LOAD SERVICE CLASSIFICATION~Retail Transmission Rate - Line and Transformation Connection Service Rate"]
["Oakville Hydro Electricity Distribution Inc.","RESIDENTIAL SERVICE CLASSIFICATION~Retail Transmission Rate - Network Service Rate","RESIDENTIAL SERVICE CLASSIFICATION~Retail Transmission Rate - Line and Transformation Connection Service Rate","GENERAL SERVICE LESS THAN 50 KW SERVICE CLASSIFICATION~Retail Transmission Rate - Network Service Rate","GENERAL SERVICE LESS THAN 50 KW SERVICE CLASSIFICATION~Retail Transmission Rate - Line and Transformation Connection Service Rate","GENERAL SERVICE 50 TO 999 KW SERVICE CLASSIFICATION~Retail Transmission Rate - Network Service Rate","GENERAL SERVICE 50 TO 999 KW SERVICE CLASSIFICATION~Retail Transmission Rate - Network Service Rate - Interval Metered","GENERAL SERVICE 50 TO 999 KW SERVICE CLASSIFICATION~Retail Transmission Rate - Line and Transformation Connection Service Rate","GENERAL SERVICE 50 TO 999 KW SERVICE CLASSIFICATION~Retail Transmission Rate - Line and Transformation Connection Service Rate - Interval Metered","GENERAL SERVICE 1,000 KW AND GREATER SERVICE CLASSIFICATION~Retail Transmission Rate - Network Service Rate - Interval Metered","GENERAL SERVICE 1,000 KW AND GREATER SERVICE CLASSIFICATION~Retail Transmission Rate - Line and Transformation Connection Service Rate - Interval Metered","UNMETERED SCATTERED LOAD SERVICE CLASSIFICATION~Retail Transmission Rate - Network Service Rate","UNMETERED SCATTERED LOAD SERVICE CLASSIFICATION~Retail Transmission Rate - Line and Transformation Connection Service Rate","SENTINEL LIGHTING SERVICE CLASSIFICATION~Retail Transmission Rate - Network Service Rate","SENTINEL LIGHTING SERVICE CLASSIFICATION~Retail Transmission Rate - Line and Transformation Connection Service Rate","STREET LIGHTING SERVICE CLASSIFICATION~Retail Transmission Rate - Network Service Rate","STREET LIGHTING SERVICE CLASSIFICATION~Retail Transmission Rate - Line and Transformation Connection Service Rate","EMBEDDED DISTRIBUTOR SERVICE CLASSIFICATION~Retail Transmission Rate - Network Service Rate","EMBEDDED DISTRIBUTOR SERVICE CLASSIFICATION~Retail Transmission Rate - Line and Transformation Connection Service Rate"]
["Chapleau Public Utilities Corporation","RESIDENTIAL SERVICE CLASSIFICATION~Retail Transmission Rate - Network Service Rate","RESIDENTIAL SERVICE CLASSIFICATION~Retail Transmission Rate - Line and Transformation Connection Service Rate","GENERAL SERVICE LESS THAN 50 kW SERVICE CLASSIFICATION~Retail Transmission Rate - Network Service Rate","GENERAL SERVICE LESS THAN 50 kW SERVICE CLASSIFICATION~Retail Transmission Rate - Line and Transformation Connection Service Rate","GENERAL SERVICE 50 TO 4,999 KW SERVICE CLASSIFICATION~Retail Transmission Rate - Network Service Rate","GENERAL SERVICE 50 TO 4,999 KW SERVICE CLASSIFICATION~Retail Transmission Rate - Line and Transformation Connection Service Rate","UNMETERED SCATTERED LOAD SERVICE CLASSIFICATION~Retail Transmission Rate - Network Service Rate","UNMETERED SCATTERED LOAD SERVICE CLASSIFICATION~Retail Transmission Rate - Line and Transformation Connection Service Rate","SENTINEL LIGHTING SERVICE CLASSIFICATION~Retail Transmission Rate - Network Service Rate","SENTINEL LIGHTING SERVICE CLASSIFICATION~Retail Transmission Rate - Line and Transformation Connection Service Rate","STREET LIGHTING SERVICE CLASSIFICATION~Retail Transmission Rate - Network Service Rate","STREET LIGHTING SERVICE CLASSIFICATION~Retail Transmission Rate - Line and Transformation Connection Service Rate"]
["Espanola Regional Hydro Distribution Corporation","RESIDENTIAL SERVICE CLASSIFICATION~Retail Transmission Rate - Network Service Rate","RESIDENTIAL SERVICE CLASSIFICATION~Retail Transmission Rate - Line and Transformation Connection Service Rate","GENERAL SERVICE LESS THAN 50 kW SERVICE CLASSIFICATION~Retail Transmission Rate - Network Service Rate","GENERAL SERVICE LESS THAN 50 kW SERVICE CLASSIFICATION~Retail Transmission Rate - Line and Transformation Connection Service Rate","GENERAL SERVICE 50 TO 4,999 KW SERVICE CLASSIFICATION~Retail Transmission Rate - Network Service Rate","GENERAL SERVICE 50 TO 4,999 KW SERVICE CLASSIFICATION~Retail Transmission Rate - Line and Transformation Connection Service Rate","GENERAL SERVICE 50 TO 4,999 KW SERVICE CLASSIFICATION~Retail Transmission Rate - Network Service Rate - Interval Metered","GENERAL SERVICE 50 TO 4,999 KW SERVICE CLASSIFICATION~Retail Transmission Rate - Line and Transformation Connection Service Rate - Interval Metered","UNMETERED SCATTERED LOAD SERVICE CLASSIFICATION~Retail Transmission Rate - Network Service Rate","UNMETERED SCATTERED LOAD SERVICE CLASSIFICATION~Retail Transmission Rate - Line and Transformation Connection Service Rate","SENTINEL LIGHTING SERVICE CLASSIFICATION~Retail Transmission Rate - Network Service Rate","SENTINEL LIGHTING SERVICE CLASSIFICATION~Retail Transmission Rate - Line and Transformation Connection Service Rate","STREET LIGHTING SERVICE CLASSIFICATION~Retail Transmission Rate - Network Service Rate","STREET LIGHTING SERVICE CLASSIFICATION~Retail Transmission Rate - Line and Transformation Connection Service Rate"]
["Energy+ Inc.-For Former Brant County Power Service Area","RESIDENTIAL SERVICE CLASSIFICATION~Retail Transmission Rate - Network Service Rate","RESIDENTIAL SERVICE CLASSIFICATION~Retail Transmission Rate - Line and Transformation Connection Service Rate","GENERAL SERVICE LESS THAN 50 KW SERVICE CLASSIFICATION~Retail Transmission Rate - Network Service Rate","GENERAL SERVICE LESS THAN 50 KW SERVICE CLASSIFICATION~Retail Transmission Rate - Line and Transformation Connection Service Rate","GENERAL SERVICE 50 to 4,999 kW SERVICE CLASSIFICATION~Retail Transmission Rate - Network Service Rate","GENERAL SERVICE 50 to 4,999 kW SERVICE CLASSIFICATION~Retail Transmission Rate - Line and Transformation Connection Service Rate","GENERAL SERVICE 50 to 4,999 kW SERVICE CLASSIFICATION~Retail Transmission Rate - Network Service Rate - Interval Metered < 1,000 kW","GENERAL SERVICE 50 to 4,999 kW SERVICE CLASSIFICATION~Retail Transmission Rate - Line and Transformation Connection Service Rate - Interval Metered < 1,000 kW","GENERAL SERVICE 50 to 4,999 kW SERVICE CLASSIFICATION~Retail Transmission Rate - Network Service Rate - Interval Metered > 1,000 kW","GENERAL SERVICE 50 to 4,999 kW SERVICE CLASSIFICATION~Retail Transmission Rate - Line and Transformation Connection Service Rate - Interval Metered > 1,000 kW","UNMETERED SCATTERED LOAD SERVICE CLASSIFICATION~Retail Transmission Rate - Network Service Rate","UNMETERED SCATTERED LOAD SERVICE CLASSIFICATION~Retail Transmission Rate - Line and Transformation Connection Service Rate","SENTINEL LIGHTING SERVICE CLASSIFICATION~Retail Transmission Rate - Network Service Rate","SENTINEL LIGHTING SERVICE CLASSIFICATION~Retail Transmission Rate - Line and Transformation Connection Service Rate","STREET LIGHTING SERVICE CLASSIFICATION~Retail Transmission Rate - Network Service Rate","STREET LIGHTING SERVICE CLASSIFICATION~Retail Transmission Rate - Line and Transformation Connection Service Rate"]
["Energy+ Inc.-For Former Cambridge and North Dumfries Hydro Service Area","RESIDENTIAL SERVICE CLASSIFICATION~Retail Transmission Rate - Network Service Rate","RESIDENTIAL SERVICE CLASSIFICATION~Retail Transmission Rate - Line and Transformation Connection Service Rate","GENERAL SERVICE LESS THAN 50 KW SERVICE CLASSIFICATION~Retail Transmission Rate - Network Service Rate","GENERAL SERVICE LESS THAN 50 KW SERVICE CLASSIFICATION~Retail Transmission Rate - Line and Transformation Connection Service Rate","GENERAL SERVICE 50 TO 999 KW SERVICE CLASSIFICATION~Retail Transmission Rate - Network Service Rate","GENERAL SERVICE 50 TO 999 KW SERVICE CLASSIFICATION~Retail Transmission Rate - Line and Transformation Connection Service Rate","GENERAL SERVICE 1,000 TO 4,999 KW SERVICE CLASSIFICATION~Retail Transmission Rate - Network Service Rate","GENERAL SERVICE 1,000 TO 4,999 KW SERVICE CLASSIFICATION~Retail Transmission Rate - Line and Transformation Connection Service Rate","LARGE USE SERVICE CLASSIFICATION~Retail Transmission Rate - Network Service Rate","LARGE USE SERVICE CLASSIFICATION~Retail Transmission Rate - Line and Transformation Connection Service Rate","UNMETERED SCATTERED LOAD SERVICE CLASSIFICATION~Retail Transmission Rate - Network Service Rate","UNMETERED SCATTERED LOAD SERVICE CLASSIFICATION~Retail Transmission Rate - Line and Transformation Connection Service Rate","STREET LIGHTING SERVICE CLASSIFICATION~Retail Transmission Rate - Network Service Rate","STREET LIGHTING SERVICE CLASSIFICATION~Retail Transmission Rate - Line and Transformation Connection Service Rate","EMBEDDED DISTRIBUTOR SERVICE CLASSIFICATION~Retail Transmission Rate - Network Service Rate","EMBEDDED DISTRIBUTOR SERVICE CLASSIFICATION~Retail Transmission Rate - Line and Transformation Connection Service Rate"]
["Hydro 2000 Inc.","RESIDENTIAL SERVICE CLASSIFICATION~Retail Transmission Rate - Network Service Rate","RESIDENTIAL SERVICE CLASSIFICATION~Retail Transmission Rate - Line and Transformation Connection Service Rate","GENERAL SERVICE LESS THAN 50 kW SERVICE CLASSIFICATION~Retail Transmission Rate - Network Service Rate","GENERAL SERVICE LESS THAN 50 kW SERVICE CLASSIFICATION~Retail Transmission Rate - Line and Transformation Connection Service Rate","GENERAL SERVICE 50 TO 4,999 KW SERVICE CLASSIFICATION~Retail Transmission Rate - Network Service Rate","GENERAL SERVICE 50 TO 4,999 KW SERVICE CLASSIFICATION~Retail Transmission Rate - Line and Transformation Connection Service Rate","STREET LIGHTING SERVICE CLASSIFICATION~Retail Transmission Rate - Network Service Rate","STREET LIGHTING SERVICE CLASSIFICATION~Retail Transmission Rate - Line and Transformation Connection Service Rate","UNMETERED SCATTERED LOAD SERVICE CLASSIFICATION~Retail Transmission Rate - Network Service Rate","UNMETERED SCATTERED LOAD SERVICE CLASSIFICATION~Retail Transmission Rate - Line and Transformation Connection Service Rate"]
["Niagara-on-the-Lake Hydro Inc.","RESIDENTIAL SERVICE CLASSIFICATION~Retail Transmission Rate - Network Service Rate","RESIDENTIAL SERVICE CLASSIFICATION~Retail Transmission Rate - Line and Transformation Connection Service Rate","GENERAL SERVICE LESS THAN 50 KW SERVICE CLASSIFICATION~Retail Transmission Rate - Network Service Rate","GENERAL SERVICE LESS THAN 50 KW SERVICE CLASSIFICATION~Retail Transmission Rate - Line and Transformation Connection Service Rate","GENERAL SERVICE 50 to 4,999 kW SERVICE CLASSIFICATION~Retail Transmission Rate - Network Service Rate","GENERAL SERVICE 50 to 4,999 kW SERVICE CLASSIFICATION~Retail Transmission Rate - Line and Transformation Connection Service Rate","GENERAL SERVICE 50 to 4,999 kW SERVICE CLASSIFICATION~Retail Transmission Rate - Network Service Rate - Interval Metered","GENERAL SERVICE 50 to 4,999 kW SERVICE CLASSIFICATION~Retail Transmission Rate - Line and Transformation Connection Service Rate - Interval Metered","UNMETERED SCATTERED LOAD SERVICE CLASSIFICATION~Retail Transmission Rate - Network Service Rate","UNMETERED SCATTERED LOAD SERVICE CLASSIFICATION~Retail Transmission Rate - Line and Transformation Connection Service Rate","STREET LIGHTING SERVICE CLASSIFICATION~Retail Transmission Rate - Network Service Rate","STREET LIGHTING SERVICE CLASSIFICATION~Retail Transmission Rate - Line and Transformation Connection Service Rate"]
["PUC Distribution Inc.","RESIDENTIAL SERVICE CLASSIFICATION~Retail Transmission Rate - Network Service Rate","GENERAL SERVICE LESS THAN 50 KW SERVICE CLASSIFICATION~Retail Transmission Rate - Network Service Rate","GENERAL SERVICE 50 to 4,999 kW SERVICE CLASSIFICATION~Retail Transmission Rate - Network Service Rate","GENERAL SERVICE 50 to 4,999 kW SERVICE CLASSIFICATION~Retail Transmission Rate - Network Service Rate - Interval Metered","UNMETERED SCATTERED LOAD SERVICE CLASSIFICATION~Retail Transmission Rate - Network Service Rate","SENTINEL LIGHTING SERVICE CLASSIFICATION~Retail Transmission Rate - Network Service Rate","STREET LIGHTING SERVICE CLASSIFICATION~Retail Transmission Rate - Network Service Rate"]
["Hydro One Networks Inc.","YEAR-ROUND URBAN DENSITY - UR SERVICE CLASSIFICATION~Retail Transmission Rate - Network Service Rate","YEAR-ROUND URBAN DENSITY - UR SERVICE CLASSIFICATION~Retail Transmission Rate - Line and Transformation Connection Service Rate","YEAR-ROUND MEDIUM DENSITY - R1 SERVICE CLASSIFICATION~Retail Transmission Rate - Network Service Rate","YEAR-ROUND MEDIUM DENSITY - R1 SERVICE CLASSIFICATION~Retail Transmission Rate - Line and Transformation Connection Service Rate","YEAR-ROUND LOW DENSITY - R2 SERVICE CLASSIFICATION~Retail Transmission Rate - Network Service Rate","YEAR-ROUND LOW DENSITY - R2 SERVICE CLASSIFICATION~Retail Transmission Rate - Line and Transformation Connection Service Rate","SEASONAL SERVICE CLASSIFICATION~Retail Transmission Rate - Network Service Rate","SEASONAL SERVICE CLASSIFICATION~Retail Transmission Rate - Line and Transformation Connection Service Rate","URBAN GENERAL SERVICE ENERGY BILLED - UGe SERVICE CLASSIFICATION~Retail Transmission Rate - Network Service Rate","URBAN GENERAL SERVICE ENERGY BILLED - UGe SERVICE CLASSIFICATION~Retail Transmission Rate - Line and Transformation Connection Service Rate","GENERAL SERVICE ENERGY BILLED - GSe SERVICE CLASSIFICATION~Retail Transmission Rate - Network Service Rate","GENERAL SERVICE ENERGY BILLED - GSe SERVICE CLASSIFICATION~Retail Transmission Rate - Line and Transformation Connection Service Rate","URBAN GENERAL SERVICE DEMAND BILLED - UGd SERVICE CLASSIFICATION~Retail Transmission Rate - Network Service Rate","URBAN GENERAL SERVICE DEMAND BILLED - UGd SERVICE CLASSIFICATION~Retail Transmission Rate - Line and Transformation Connection Service Rate","GENERAL SERVICE DEMAND BILLED - GSd SERVICE CLASSIFICATION~Retail Transmission Rate - Network Service Rate","GENERAL SERVICE DEMAND BILLED - GSd SERVICE CLASSIFICATION~Retail Transmission Rate - Line and Transformation Connection Service Rate","DISTRIBUTED GENERATION - DGen SERVICE CLASSIFICATION~Retail Transmission Rate - Network Service Rate","DISTRIBUTED GENERATION - DGen SERVICE CLASSIFICATION~Retail Transmission Rate - Line and Transformation Connection Service Rate","SUB TRANSMISSION - ST SERVICE CLASSIFICATION~Retail Transmission Rate - Network Service Rate","SUB TRANSMISSION - ST SERVICE CLASSIFICATION~Retail Transmission Rate - Line Connection Service Rate","SUB TRANSMISSION - ST SERVICE CLASSIFICATION~Retail Transmission Rate - Transformation Connection Service Rate","UNMETERED SCATTERED LOAD SERVICE CLASSIFICATION~Retail Transmission Rate - Network Service Rate","UNMETERED SCATTERED LOAD SERVICE CLASSIFICATION~Retail Transmission Rate - Line and Transformation Connection Service Rate","SENTINEL LIGHTING SERVICE CLASSIFICATION~Retail Transmission Rate - Network Service Rate","SENTINEL LIGHTING SERVICE CLASSIFICATION~Retail Transmission Rate - Line and Transformation Connection Service Rate","STREET LIGHTING SERVICE CLASSIFICATION~Retail Transmission Rate - Network Service Rate","STREET LIGHTING SERVICE CLASSIFICATION~Retail Transmission Rate - Line and Transformation Connection Service Rate"]

{"sheet":"DELETE 3. Rate Classes","index":11,"n_rows":100,"n_cols":23,"rows_kept":100,"cut":false,"hidden":true,"merged":[[12,2,12,8]]}
[]
[]
[]
[]
[]
[]
[]
[]
[]
[]
[]
[]
[null,null,"1.  Select the appropriate rate classes that appear on your most recent OEB-Approved Tariff of Rates and Charges.\n2.  Enter the RTSR Network and Connection Rate as it appears on the Tariff of Rates and Charges"]
[]
[null,null,"Rate Class",null,"Unit",null,"RTSR-Network",null,"RTSR-Connection"]
[]
[null,null,null,null,null,null,null,null,null,null,null,{"$f":"IF(OR(ISBLANK(C17), ISERROR(FIND(\"Choose\", C17))=FALSE), 0, 1)","v":0},{"$f":"\"C\" & ROW(C17)","v":"C17"},{"$f":"IF(OR(C17=\"General Service Intermediate Rate Class 1,000 To 4,999 kW (formerly General Service > 50 kW Customers)\", C17=\"General Service Intermediate Rate Class 1,000 To 4,999 kW (formerly Large Use Customers)\"), \"x\", \"\")","v":""},null,null,null,null,null,null,null,null,"Choose Rate Class"]
[null,null,null,null,null,null,null,null,null,null,null,0,"C18",{"$f":"IF(OR(C18=\"General Service Intermediate Rate Class 1,000 To 4,999 kW (formerly General Service > 50 kW Customers)\", C18=\"General Service Intermediate Rate Class 1,000 To 4,999 kW (formerly Large Use Customers)\"), \"x\", \"\")","v":""},null,null,null,null,null,null,null,null,"Residential"]
[null,null,null,null,null,null,null,null,null,null,null,0,"C19","",null,null,null,null,null,null,null,null,"Residential Regular"]
[null,null,null,null,null,null,null,null,null,null,null,0,"C20","",null,null,null,null,null,null,null,null,"Residential Urban"]
[null,null,null,null,null,null,null,null,null,null,null,0,"C21","",null,null,null,null,null,null,null,null,"Residential Urban Year-Round"]
[null,null,null,null,null,null,null,null,null,null,null,{"$f":"IF(OR(ISBLANK(C22), ISERROR(FIND(\"Choose\", C22))=FALSE), 0, 1)","v":0},"C22","",null,null,null,null,null,null,null,null,"Residential Suburban"]
[null,null,null,null,null,null,null,null,null,null,null,0,"C23","",null,null,null,null,null,null,null,null,"Residential Suburban Seasonal"]
[null,null,null,null,null,null,null,null,null,null,null,0,"C24","",null,null,null,null,null,null,null,null,"Residential Suburban Year Round"]
[null,null,null,null,null,null,null,null,null,null,null,0,"C25","",null,null,null,null,null,null,null,null,"Residential - Time of Use"]
[null,null,null,null,null,null,null,null,null,null,null,0,"C26","",null,null,null,null,null,null,null,null,"Residential - Hensall"]
[null,null,null,null,null,null,null,null,null,null,null,0,"C27","",null,null,null,null,null,null,null,null,"Residential – High Density [R1]"]
[null,null,null,null,null,null,null,null,null,null,null,0,"C28","",null,null,null,null,null,null,null,null,"Residential – Normal Density [R2]"]
[null,null,null,null,null,null,null,null,null,null,null,0,"C29","",null,null,null,null,null,null,null,null,"Seasonal Residential – High Density [R3]"]
[null,null,null,null,null,null,null,null,null,null,null,0,"C30","",null,null,null,null,null,null,null,null,"Seasonal Residential – Normal Density [R4]"]
[null,null,null,null,null,null,null,null,null,null,null,0,"C31","",null,null,null,null,null,null,null,null,"Residential – Urban [UR]"]
[null,null,null,null,null,null,null,null,null,null,null,0,"C32","",null,null,null,null,null,null,null,null,"General Service Less Than 50 kW"]
[null,null,null,null,null,null,null,null,null,null,null,0,"C33","",null,null,null,null,null,null,null,null,"General Service Less Than 50 kW – Single Phase energy-billed [G1]"]
[null,null,null,null,null,null,null,null,null,null,null,0,"C34","",null,null,null,null,null,null,null,null,"General Service Less Than 50 kW – Three Phase energy-billed [G3]"]
[null,null,null,null,null,null,null,null,null,null,null,0,"C35","",null,null,null,null,null,null,null,null,"General Service Less Than 50 kW – Transmission Class energy-billed [T]"]
[null,null,null,null,null,null,null,null,null,null,null,0,"C36","",null,null,null,null,null,null,null,null,"General Service Less Than 50 kW – Urban energy-billed [UG]"]
[null,null,null,null,null,null,null,null,null,null,null,0,"C37","",null,null,null,null,null,null,null,null,"Westport Sewage Treatment Plant"]
[null,null,null,null,null,null,null,null,null,null,null,0,"C38","",null,null,null,null,null,null,null,null,"Small Commercial and USL - per meter"]
[null,null,null,null,null,null,null,null,null,null,null,null,null,{"$f":"COUNTIF(N17:N38, \"x\")","v":0},null,null,null,null,null,null,null,null,"Small Commercial and USL - per connection"]
[null,null,null,null,null,null,null,null,null,null,null,null,null,null,null,null,null,null,null,null,null,null,"Farms – Single Phase energy-billed [F1]"]
[null,null,null,null,null,null,null,null,null,null,null,null,null,null,null,null,null,null,null,null,null,null,"General Service 50 to 499 kW"]
[null,null,null,null,null,null,null,null,null,null,null,null,null,null,null,null,null,null,null,null,null,null,"General Service 50 to 699 kW"]
[null,null,null,null,null,null,null,null,null,null,null,null,null,null,null,null,null,null,null,null,null,null,"General Service 50 to 999 kW"]
[null,null,null,null,null,null,null,null,null,null,null,null,null,null,null,null,null,null,null,null,null,null,"General Service 50 to 999 kW - Interval Metered"]
[null,null,null,null,null,null,null,null,null,null,null,null,null,null,null,null,null,null,null,null,null,null,"General Service 50 to 1,000 kW"]
[null,null,null,null,null,null,null,null,null,null,null,null,null,null,null,null,null,null,null,null,null,null,"General Service 50 to 1,000 kW - Interval Meters"]
[null,null,null,null,null,null,null,null,null,null,null,null,null,null,null,null,null,null,null,null,null,null,"General Service 50 to 1,000 kW - Non Interval Meters"]
[null,null,null,null,null,null,null,null,null,null,null,null,null,null,null,null,null,null,null,null,null,null,"General Service 50 to 1,499 kW"]
[null,null,null,null,null,null,null,null,null,null,null,null,null,null,null,null,null,null,null,null,null,null,"General Service 50 to 1,499 kW - Interval Metered"]
[null,null,null,null,null,null,null,null,null,null,null,null,null,null,null,null,null,null,null,null,null,null,"General Service  50 to 2,499 kW"]
[null,null,null,null,null,null,null,null,null,null,null,null,null,null,null,null,null,null,null,null,null,null,"General Service 50 to 2,999 kW"]
[null,null,null,null,null,null,null,null,null,null,null,null,null,null,null,null,null,null,null,null,null,null,"General Service 50 to 2,999 kW - Time of Use"]
[null,null,null,null,null,null,null,null,null,null,null,null,null,null,null,null,null,null,null,null,null,null,"General Service 50 to 4,999 kW"]
[null,null,null,null,null,null,null,null,null,null,null,null,null,null,null,null,null,null,null,null,null,null,"General Service 50 to 4,999 kW – Interval Metered"]
[null,null,null,null,null,null,null,null,null,null,null,null,null,null,null,null,null,null,null,null,null,null,"General Service 50 to 4,999 kW - Time of Use"]
[null,null,null,null,null,null,null,null,null,null,null,null,null,null,null,null,null,null,null,null,null,null,"General Service 50 to 4,999 kW (CoGeneration)"]
[null,null,null,null,null,null,null,null,null,null,null,null,null,null,null,null,null,null,null,null,null,null,"General Service 50 to 4,999 kW (formerly Time of Use)"]
[null,null,null,null,null,null,null,null,null,null,null,null,null,null,null,null,null,null,null,null,null,null,"General Service 500 to 4,999 kW"]
[null,null,null,null,null,null,null,null,null,null,null,null,null,null,null,null,null,null,null,null,null,null,"General Service 700 to 4,999 kW"]
[null,null,null,null,null,null,null,null,null,null,null,null,null,null,null,null,null,null,null,null,null,null,"General Service 1,000 to 2,999 kW"]
[null,null,null,null,null,null,null,null,null,null,null,null,null,null,null,null,null,null,null,null,null,null,"General Service 1,000 to 4,999 kW"]
[null,null,null,null,null,null,null,null,null,null,null,null,null,null,null,null,null,null,null,null,null,null,"General Service 1,000 to 4,999 kW - Interval Meters"]
[null,null,null,null,null,null,null,null,null,null,null,null,null,null,null,null,null,null,null,null,null,null,"General Service 1,000 To 4,999 kW (co-generation)"]
[null,null,null,null,null,null,null,null,null,null,null,null,null,null,null,null,null,null,null,null,null,null,"General Service Greater Than 1,000 kW"]
[null,null,null,null,null,null,null,null,null,null,null,null,null,null,null,null,null,null,null,null,null,null,"General Service Intermediate Rate Class 1,000 To 4,999 kW (formerly Large Use Customers)"]
[null,null,null,null,null,null,null,null,null,null,null,null,null,null,null,null,null,null,null,null,null,null,"General Service Intermediate Rate Class 1,000 To 4,999 kW (formerly General Service > 50 kW Customers)"]
[null,null,null,null,null,null,null,null,null,null,null,null,null,null,null,null,null,null,null,null,null,null,"General Service 1,500 to 4,999 kW"]
[null,null,null,null,null,null,null,null,null,null,null,null,null,null,null,null,null,null,null,null,null,null,"General Service Equal To Or Greater Than 1,500 kW"]
[null,null,null,null,null,null,null,null,null,null,null,null,null,null,null,null,null,null,null,null,null,null,"General Service Equal To Or Greater Than 1,500 kW - Interval Metered"]
[null,null,null,null,null,null,null,null,null,null,null,null,null,null,null,null,null,null,null,null,null,null,"General Service Intermediate 1,000 To 4,999 kW"]
[null,null,null,null,null,null,null,null,null,null,null,null,null,null,null,null,null,null,null,null,null,null,"General Service 2,500 to 4,999 kW"]
[null,null,null,null,null,null,null,null,null,null,null,null,null,null,null,null,null,null,null,null,null,null,"General Service 3,000 to 4,999 kW"]
[null,null,null,null,null,null,null,null,null,null,null,null,null,null,null,null,null,null,null,null,null,null,"General Service 3,000 to 4,999 kW - Interval Metered"]
[null,null,null,null,null,null,null,null,null,null,null,null,null,null,null,null,null,null,null,null,null,null,"General Service 3,000 to 4,999 kW - Intermediate Use"]
[null,null,null,null,null,null,null,null,null,null,null,null,null,null,null,null,null,null,null,null,null,null,"General Service 3,000 to 4,999 kW - Time of Use"]
[null,null,null,null,null,null,null,null,null,null,null,null,null,null,null,null,null,null,null,null,null,null,"Intermediate With Self Generation"]
[null,null,null,null,null,null,null,null,null,null,null,null,null,null,null,null,null,null,null,null,null,null,"General Service - Commercial"]
[null,null,null,null,null,null,null,null,null,null,null,null,null,null,null,null,null,null,null,null,null,null,"General Service - Institutional"]
[null,null,null,null,null,null,null,null,null,null,null,null,null,null,null,null,null,null,null,null,null,null,"Farms – Three Phase energy-billed [F3]"]
[null,null,null,null,null,null,null,null,null,null,null,null,null,null,null,null,null,null,null,null,null,null,"Large Use"]
[null,null,null,null,null,null,null,null,null,null,null,null,null,null,null,null,null,null,null,null,null,null,"Large Use - Regular"]
[null,null,null,null,null,null,null,null,null,null,null,null,null,null,null,null,null,null,null,null,null,null,"Large Use > 5000 kW"]
[null,null,null,null,null,null,null,null,null,null,null,null,null,null,null,null,null,null,null,null,null,null,"Large Use - 3TS"]
[null,null,null,null,null,null,null,null,null,null,null,null,null,null,null,null,null,null,null,null,null,null,"Large Use - Ford Annex"]
[null,null,null,null,null,null,null,null,null,null,null,null,null,null,null,null,null,null,null,null,null,null,"Unmetered Scattered Load"]
[null,null,null,null,null,null,null,null,null,null,null,null,null,null,null,null,null,null,null,null,null,null,"Sentinel Lighting"]
[null,null,null,null,null,null,null,null,null,null,null,null,null,null,null,null,null,null,null,null,null,null,"Street Lighting"]
[null,null,null,null,null,null,null,null,null,null,null,null,null,null,null,null,null,null,null,null,null,null,"Embedded Distributor"]
[null,null,null,null,null,null,null,null,null,null,null,null,null,null,null,null,null,null,null,null,null,null,"Low Voltage Wheeling Charge Rate"]
[null,null,null,null,null,null,null,null,null,null,null,null,null,null,null,null,null,null,null,null,null,null,"Stand-By"]
[null,null,null,null,null,null,null,null,null,null,null,null,null,null,null,null,null,null,null,null,null,null,"Standby Power"]
[null,null,null,null,null,null,null,null,null,null,null,null,null,null,null,null,null,null,null,null,null,null,"Standby Power – INTERIM APPROVAL"]
[null,null,null,null,null,null,null,null,null,null,null,null,null,null,null,null,null,null,null,null,null,null,"Standby Power - APPROVED ON AN INTERIM BASIS"]
[null,null,null,null,null,null,null,null,null,null,null,null,null,null,null,null,null,null,null,null,null,null,"Standby - General Service 50 - 1,000 kW"]
[null,null,null,null,null,null,null,null,null,null,null,null,null,null,null,null,null,null,null,null,null,null,"Standby Power General Service 50 to 1,499 kW"]
[null,null,null,null,null,null,null,null,null,null,null,null,null,null,null,null,null,null,null,null,null,null,"Standby - General Service 1,000 - 5,000 kW"]
[null,null,null,null,null,null,null,null,null,null,null,null,null,null,null,null,null,null,null,null,null,null,"Standby Power General Service 1,500 to 4,999 kW"]
[null,null,null,null,null,null,null,null,null,null,null,null,null,null,null,null,null,null,null,null,null,null,"Standby - Large Use"]
[null,null,null,null,null,null,null,null,null,null,null,null,null,null,null,null,null,null,null,null,null,null,"Standby Power General Service Large Use"]
[null,null,null,null,null,null,null,null,null,null,null,null,null,null,null,null,null,null,null,null,null,null,"Standby Distribution Service"]

{"sheet":"2 1 5 TotalConsumptionData_Dist","index":12,"n_rows":570,"n_cols":20,"rows_kept":570,"cut":false,"hidden":true,"merged":[]}
["2.1.5 TotalConsumptionData_Dist_Ret_Total_Combined_2019"]
["Time run: 6/26/2019 11:05:37 AM"]
[""]
["Filing_Year","Company_Name","Rate_Class","Rate_Class_Detail","Company+DetailClass","New Column (Replaces all dashes with underscores in Col E)","Ret_Metered_consumption_in_kWhs","Ret_Metered_consumption_in_kWs","Dist_RPPMeterCustkWh","Dist_RPPMeterCustkW","Dist_NonRPPMeterCustkWh","Dist_NonRPPMeterCustkW","IESOMeterCustkWh","IESOMeterCustKW","Class_A_Consumption_kWhs","Class_A_Consumption_kWs","TotConsmptionforDistCustkWh","TotConsmptionforDistCustkW","Calculated_TOTAL_KWH","Calculated_TOTAL_KW"]
["2019","ALECTRA UTILITIES CORPORATION","EMBEDDED DISTRIBUTOR(S)","HYDRO ONE BRAMPTON_EMBEDDED DISTRIBUTOR","ALECTRA UTILITIES CORPORATION_BRAMPTON RATE ZONE_EMBEDDED DISTRIBUTOR SERVICE CLASSIFICATION","ALECTRA UTILITIES CORPORATION_BRAMPTON RATE ZONE_EMBEDDED DISTRIBUTOR SERVICE CLASSIFICATION",0,0,0,0,3402773,0,0,0,0,0,3402773,0,3402773,0]
["2019","ALECTRA UTILITIES CORPORATION","GENERAL SERVICE EQUAL TO OR GREATER THAN 50 KW","ENERSOURCE_GENERAL SERVICE 50 TO 499 KW","ALECTRA UTILITIES CORPORATION_ENERSOURCE RATE ZONE_GENERAL SERVICE 50 TO 499 KW SERVICE CLASSIFICATION","ALECTRA UTILITIES CORPORATION_ENERSOURCE RATE ZONE_GENERAL SERVICE 50 TO 499 KW SERVICE CLASSIFICATION",306711404,913898,312801507,818487,1430572850,3973663,1343047,4363,0,0,1744717404,4796513,2051428808,5710411]
["2019","ALECTRA UTILITIES CORPORATION","GENERAL SERVICE EQUAL TO OR GREATER THAN 50 KW","ENERSOURCE_GENERAL SERVICE 500 TO 4,999 KW","ALECTRA UTILITIES CORPORATION_ENERSOURCE RATE ZONE_GENERAL SERVICE 500 TO 4,999 KW SERVICE CLASSIFICATION","ALECTRA UTILITIES CORPORATION_ENERSOURCE RATE ZONE_GENERAL SERVICE 500 TO 4,999 KW SERVICE CLASSIFICATION",389288926,916874,148988424,314127,1485483954,3326827,13999209,27950,0,0,1648471587,3668904,2037760513,4585778]
["2019","ALECTRA UTILITIES CORPORATION","GENERAL SERVICE EQUAL TO OR GREATER THAN 50 KW","HORIZON_GENERAL SERVICE 50 TO 4,999 KW","ALECTRA UTILITIES CORPORATION_HORIZON UTILITIES RATE ZONE_GENERAL SERVICE 50 TO 4,999 KW SERVICE CLASSIFICATION","ALECTRA UTILITIES CORPORATION_HORIZON UTILITIES RATE ZONE_GENERAL SERVICE 50 TO 4,999 KW SERVICE CLASSIFICATION",236880257,658415,188338786,780057,1401197541,3290328,9937969,17495,0,0,1599474296,4087880,1836354553,4746295]
["2019","ALECTRA UTILITIES CORPORATION","GENERAL SERVICE EQUAL TO OR GREATER THAN 50 KW","HYDRO ONE BRAMPTON_ENERGY FROM WASTE","ALECTRA UTILITIES CORPORATION_BRAMPTON RATE ZONE_ENERGY FROM WASTE SERVICE CLASSIFICATION","ALECTRA UTILITIES CORPORATION_BRAMPTON RATE ZONE_ENERGY FROM WASTE SERVICE CLASSIFICATION",0,0,0,0,0,0,0,0,0,0,0,0,0,0]
["2019","ALECTRA UTILITIES CORPORATION","GENERAL SERVICE EQUAL TO OR GREATER THAN 50 KW","HYDRO ONE BRAMPTON_GENERAL SERVICE 50 TO 699 KW","ALECTRA UTILITIES CORPORATION_BRAMPTON RATE ZONE_GENERAL SERVICE 50 TO 699 KW SERVICE CLASSIFICATION","ALECTRA UTILITIES CORPORATION_BRAMPTON RATE ZONE_GENERAL SERVICE 50 TO 699 KW SERVICE CLASSIFICATION",192773803,538975,160863095,450633,774513072,2169676,3538226,20319,0,0,938914393,2640628,1131688196,3179603]
["2019","ALECTRA UTILITIES CORPORATION","GENERAL SERVICE EQUAL TO OR GREATER THAN 50 KW","HYDRO ONE BRAMPTON_GENERAL SERVICE 700 TO 4,999 KW","ALECTRA UTILITIES CORPORATION_BRAMPTON RATE ZONE_GENERAL SERVICE 700 TO 4,999 KW SERVICE CLASSIFICATION","ALECTRA UTILITIES CORPORATION_BRAMPTON RATE ZONE_GENERAL SERVICE 700 TO 4,999 KW SERVICE CLASSIFICATION",174497599,417675,1655366,3930,634875892,1493473,64062176,105486,0,0,700593432,1602889,875091031,2020564]
["2019","ALECTRA UTILITIES CORPORATION","GENERAL SERVICE EQUAL TO OR GREATER THAN 50 KW","POWERSTREAM_GENERAL SERVICE 50 TO 4,999 KW","ALECTRA UTILITIES CORPORATION_POWERSTREAM RATE ZONE_GENERAL SERVICE 50 TO 4,999 KW SERVICE CLASSIFICATION","ALECTRA UTILITIES CORPORATION_POWERSTREAM RATE ZONE_GENERAL SERVICE 50 TO 4,999 KW SERVICE CLASSIFICATION",588552983,1586719,376569967,970323,3684442577,9554737,30400416,81097,0,0,4091412961,10606157,4679965944,12192876]
["2019","ALECTRA UTILITIES CORPORATION","GENERAL SERVICE LESS THAN 50 KW","ENERSOURCE_GENERAL SERVICE LESS THAN 50 KW","ALECTRA UTILITIES CORPORATION_ENERSOURCE RATE ZONE_GENERAL SERVICE LESS THAN 50 KW SERVICE CLASSIFICATION","ALECTRA UTILITIES CORPORATION_ENERSOURCE RATE ZONE_GENERAL SERVICE LESS THAN 50 KW SERVICE CLASSIFICATION",91858679,0,593758005,0,0,0,0,0,0,0,593758005,0,685616684,0]
["2019","ALECTRA UTILITIES CORPORATION","GENERAL SERVICE LESS THAN 50 KW","HORIZON_GENERAL SERVICE LESS THAN 50 KW","ALECTRA UTILITIES CORPORATION_HORIZON UTILITIES RATE ZONE_GENERAL SERVICE LESS THAN 50 KW SERVICE CLASSIFICATION","ALECTRA UTILITIES CORPORATION_HORIZON UTILITIES RATE ZONE_GENERAL SERVICE LESS THAN 50 KW SERVICE CLASSIFICATION",94016209,0,485047020,0,1279820,0,0,0,0,0,486326840,0,580343049,0]
["2019","ALECTRA UTILITIES CORPORATION","GENERAL SERVICE LESS THAN 50 KW","HYDRO ONE BRAMPTON_DISTRIBUTED GENERATION - DGEN","ALECTRA UTILITIES CORPORATION_BRAMPTON RATE ZONE_DISTRIBUTED GENERATION [DGEN] SERVICE CLASSIFICATION","ALECTRA UTILITIES CORPORATION_BRAMPTON RATE ZONE_DISTRIBUTED GENERATION [DGEN] SERVICE CLASSIFICATION",0,0,0,0,277418,0,0,0,0,0,277418,0,277418,0]
["2019","ALECTRA UTILITIES CORPORATION","GENERAL SERVICE LESS THAN 50 KW","HYDRO ONE BRAMPTON_GENERAL SERVICE LESS THAN 50 KW","ALECTRA UTILITIES CORPORATION_BRAMPTON RATE ZONE_GENERAL SERVICE LESS THAN 50 KW SERVICE CLASSIFICATION","ALECTRA UTILITIES CORPORATION_BRAMPTON RATE ZONE_GENERAL SERVICE LESS THAN 50 KW SERVICE CLASSIFICATION",59144132,0,285641775,0,0,0,0,0,0,0,285641775,0,344785907,0]
["2019","ALECTRA UTILITIES CORPORATION","GENERAL SERVICE LESS THAN 50 KW","POWERSTREAM_GENERAL SERVICE LESS THAN 50 KW","ALECTRA UTILITIES CORPORATION_POWERSTREAM RATE ZONE_GENERAL SERVICE LESS THAN 50 KW SERVICE CLASSIFICATION","ALECTRA UTILITIES CORPORATION_POWERSTREAM RATE ZONE_GENERAL SERVICE LESS THAN 50 KW SERVICE CLASSIFICATION",179014510,0,861013452,0,9587702,0,0,0,0,0,870601154,0,1049615664,0]
["2019","ALECTRA UTILITIES CORPORATION","LARGE USER","ENERSOURCE_LARGE USE","ALECTRA UTILITIES CORPORATION_ENERSOURCE RATE ZONE_LARGE USE SERVICE CLASSIFICATION","ALECTRA UTILITIES CORPORATION_ENERSOURCE RATE ZONE_LARGE USE SERVICE CLASSIFICATION",28684761,132055,0,0,948364601,1621108,0,0,0,0,948364601,1621108,977049362,1753163]
["2019","ALECTRA UTILITIES CORPORATION","LARGE USER","HORIZON_LARGE USE","ALECTRA UTILITIES CORPORATION_HORIZON UTILITIES RATE ZONE_LARGE USE SERVICE CLASSIFICATION","ALECTRA UTILITIES CORPORATION_HORIZON UTILITIES RATE ZONE_LARGE USE SERVICE CLASSIFICATION",30664671,74975,0,0,156746130,264735,6811835,20550,0,0,163557965,285285,194222636,360260]
["2019","ALECTRA UTILITIES CORPORATION","LARGE USER","HORIZON_LARGE USE WITH DEDICATED ASSETS","ALECTRA UTILITIES CORPORATION_HORIZON UTILITIES RATE ZONE_LARGE USE WITH DEDICATED ASSETS SERVICE CLASSIFICATION","ALECTRA UTILITIES CORPORATION_HORIZON UTILITIES RATE ZONE_LARGE USE WITH DEDICATED ASSETS SERVICE CLASSIFICATION",0,0,0,0,338136687,775690,772569984,1226740,0,0,1110706646,2002430,1110706646,2002430]
["2019","ALECTRA UTILITIES CORPORATION","LARGE USER","HYDRO ONE BRAMPTON_LARGE USE","ALECTRA UTILITIES CORPORATION_BRAMPTON RATE ZONE_LARGE USE SERVICE CLASSIFICATION","ALECTRA UTILITIES CORPORATION_BRAMPTON RATE ZONE_LARGE USE SERVICE CLASSIFICATION",36181265,64480,0,0,314198440,593377,0,0,0,0,314198440,593377,350379705,657857]
["2019","ALECTRA UTILITIES CORPORATION","LARGE USER","POWERSTREAM_LARGE USE","ALECTRA UTILITIES CORPORATION_POWERSTREAM RATE ZONE_LARGE USE SERVICE CLASSIFICATION","ALECTRA UTILITIES CORPORATION_POWERSTREAM RATE ZONE_LARGE USE SERVICE CLASSIFICATION",0,0,0,0,53218181,102871,0,0,0,0,53218181,102871,53218181,102871]
["2019","ALECTRA UTILITIES CORPORATION","NO RATE CLASS","NO RATE CLASS","ALECTRA UTILITIES CORPORATION_NO RATE CLASS SERVICE CLASSIFICATION","ALECTRA UTILITIES CORPORATION_NO RATE CLASS SERVICE CLASSIFICATION",0,0,0,0,0,0,0,0,5208559616,10695302,0,0,0,0]
["2019","ALECTRA UTILITIES CORPORATION","RESIDENTIAL","ENERSOURCE_RESIDENTIAL","ALECTRA UTILITIES CORPORATION_ENERSOURCE RATE ZONE_RESIDENTIAL SERVICE CLASSIFICATION","ALECTRA UTILITIES CORPORATION_ENERSOURCE RATE ZONE_RESIDENTIAL SERVICE CLASSIFICATION",47757736,0,1442774932,0,0,0,0,0,0,0,1442774932,0,1490532668,0]
["2019","ALECTRA UTILITIES CORPORATION","RESIDENTIAL","HORIZON_RESIDENTIAL","ALECTRA UTILITIES CORPORATION_HORIZON UTILITIES RATE ZONE_RESIDENTIAL SERVICE CLASSIFICATION","ALECTRA UTILITIES CORPORATION_HORIZON UTILITIES RATE ZONE_RESIDENTIAL SERVICE CLASSIFICATION",56706021,0,1602310791,0,0,0,0,0,0,0,1602310791,0,1659016812,0]
["2019","ALECTRA UTILITIES CORPORATION","RESIDENTIAL","HYDRO ONE BRAMPTON_RESIDENTIAL","ALECTRA UTILITIES CORPORATION_BRAMPTON RATE ZONE_RESIDENTIAL SERVICE CLASSIFICATION","ALECTRA UTILITIES CORPORATION_BRAMPTON RATE ZONE_RESIDENTIAL SERVICE CLASSIFICATION",56192652,0,1328933161,0,0,0,0,0,0,0,1328933161,0,1385125813,0]
["2019","ALECTRA UTILITIES CORPORATION","RESIDENTIAL","POWERSTREAM_RESIDENTIAL","ALECTRA UTILITIES CORPORATION_POWERSTREAM RATE ZONE_RESIDENTIAL SERVICE CLASSIFICATION","ALECTRA UTILITIES CORPORATION_POWERSTREAM RATE ZONE_RESIDENTIAL SERVICE CLASSIFICATION",71000892,0,2712707803,0,0,0,0,0,0,0,2712707803,0,2783708695,0]
["2019","ALECTRA UTILITIES CORPORATION","SENTINEL LIGHTING CONNECTIONS","HORIZON_SENTINEL LIGHTING","ALECTRA UTILITIES CORPORATION_HORIZON UTILITIES RATE ZONE_SENTINEL LIGHTING SERVICE CLASSIFICATION","ALECTRA UTILITIES CORPORATION_HORIZON UTILITIES RATE ZONE_SENTINEL LIGHTING SERVICE CLASSIFICATION",4291,20,478026,1301,0,0,0,0,0,0,478026,1301,482317,1321]
["2019","ALECTRA UTILITIES CORPORATION","SENTINEL LIGHTING CONNECTIONS","POWERSTREAM_SENTINEL LIGHTING","ALECTRA UTILITIES CORPORATION_POWERSTREAM RATE ZONE_SENTINEL LIGHTING SERVICE CLASSIFICATION","ALECTRA UTILITIES CORPORATION_POWERSTREAM RATE ZONE_SENTINEL LIGHTING SERVICE CLASSIFICATION",10167,21,274120,769,2097,6,0,0,0,0,276217,775,286384,796]
["2019","ALECTRA UTILITIES CORPORATION","STREET LIGHTING CONNECTIONS","ENERSOURCE_STREET LIGHTING","ALECTRA UTILITIES CORPORATION_ENERSOURCE RATE ZONE_STREET LIGHTING SERVICE CLASSIFICATION","ALECTRA UTILITIES CORPORATION_ENERSOURCE RATE ZONE_STREET LIGHTING SERVICE CLASSIFICATION",0,0,0,0,13289944,40572,0,0,0,0,13289944,40572,13289944,40572]
["2019","ALECTRA UTILITIES CORPORATION","STREET LIGHTING CONNECTIONS","HORIZON_STREET LIGHTING","ALECTRA UTILITIES CORPORATION_HORIZON UTILITIES RATE ZONE_STREET LIGHTING SERVICE CLASSIFICATION","ALECTRA UTILITIES CORPORATION_HORIZON UTILITIES RATE ZONE_STREET LIGHTING SERVICE CLASSIFICATION",0,0,228968,635,18577033,58133,0,0,0,0,18806001,58768,18806001,58768]
["2019","ALECTRA UTILITIES CORPORATION","STREET LIGHTING CONNECTIONS","HYDRO ONE BRAMPTON_STREET LIGHTING","ALECTRA UTILITIES CORPORATION_BRAMPTON RATE ZONE_STREET LIGHTING SERVICE CLASSIFICATION","ALECTRA UTILITIES CORPORATION_BRAMPTON RATE ZONE_STREET LIGHTING SERVICE CLASSIFICATION",0,0,0,0,34968321,98842,0,0,0,0,34968321,98842,34968321,98842]
["2019","ALECTRA UTILITIES CORPORATION","STREET LIGHTING CONNECTIONS","POWERSTREAM_STREET LIGHTING","ALECTRA UTILITIES CORPORATION_POWERSTREAM RATE ZONE_STREET LIGHTING SERVICE CLASSIFICATION","ALECTRA UTILITIES CORPORATION_POWERSTREAM RATE ZONE_STREET LIGHTING SERVICE CLASSIFICATION",722865,1949,671388,1845,47489700,130357,0,0,0,0,48161088,132202,48883953,134151]
["2019","ALECTRA UTILITIES CORPORATION","UNMETERED SCATTERED LOAD CONNECTIONS","ENERSOURCE_UNMETERED SCATTERED LOAD","ALECTRA UTILITIES CORPORATION_ENERSOURCE RATE ZONE_UNMETERED SCATTERED LOAD SERVICE CLASSIFICATION","ALECTRA UTILITIES CORPORATION_ENERSOURCE RATE ZONE_UNMETERED SCATTERED LOAD SERVICE CLASSIFICATION",444303,0,10993339,0,0,0,0,0,0,0,10993339,0,11437642,0]
["2019","ALECTRA UTILITIES CORPORATION","UNMETERED SCATTERED LOAD CONNECTIONS","HORIZON_UNMETERED SCATTERED LOAD","ALECTRA UTILITIES CORPORATION_HORIZON UTILITIES RATE ZONE_UNMETERED SCATTERED LOAD SERVICE CLASSIFICATION","ALECTRA UTILITIES CORPORATION_HORIZON UTILITIES RATE ZONE_UNMETERED SCATTERED LOAD SERVICE CLASSIFICATION",803996,0,10563222,0,5283,0,0,0,0,0,10568505,0,11372501,0]
["2019","ALECTRA UTILITIES CORPORATION","UNMETERED SCATTERED LOAD CONNECTIONS","HYDRO ONE BRAMPTON_UNMETERED SCATTERED LOAD","ALECTRA UTILITIES CORPORATION_BRAMPTON RATE ZONE_UNMETERED SCATTERED LOAD SERVICE CLASSIFICATION","ALECTRA UTILITIES CORPORATION_BRAMPTON RATE ZONE_UNMETERED SCATTERED LOAD SERVICE CLASSIFICATION",1417365,0,48791,0,4448499,0,0,0,0,0,4497290,0,5914655,0]
["2019","ALECTRA UTILITIES CORPORATION","UNMETERED SCATTERED LOAD CONNECTIONS","POWERSTREAM_UNMETERED SCATTERED LOAD","ALECTRA UTILITIES CORPORATION_POWERSTREAM RATE ZONE_UNMETERED SCATTERED LOAD SERVICE CLASSIFICATION","ALECTRA UTILITIES CORPORATION_POWERSTREAM RATE ZONE_UNMETERED SCATTERED LOAD SERVICE CLASSIFICATION",214076,0,13616712,0,0,0,0,0,0,0,13616712,0,13830788,0]
["2019","ALGOMA POWER INC.","GENERAL SERVICE EQUAL TO OR GREATER THAN 50 KW","RESIDENTIAL - R2","ALGOMA POWER INC._RESIDENTIAL R2 SERVICE CLASSIFICATION","ALGOMA POWER INC._RESIDENTIAL R2 SERVICE CLASSIFICATION",3883820.0146560399,9879,3264387.3774846601,9707.85,102237367.033068,215211.14,0,0,0,0,105501754.41055299,224918.99,109385574.425209,234798.3]
["2019","ALGOMA POWER INC.","NO RATE CLASS","NO RATE CLASS","ALGOMA POWER INC._NO RATE CLASS SERVICE CLASSIFICATION","ALGOMA POWER INC._NO RATE CLASS SERVICE CLASSIFICATION",0,0,0,0,0,0,0,0,73319688,123205.7890625,0,0,0,0]
["2019","ALGOMA POWER INC.","RESIDENTIAL","RESIDENTIAL - R1","ALGOMA POWER INC._RESIDENTIAL R1 SERVICE CLASSIFICATION","ALGOMA POWER INC._RESIDENTIAL R1 SERVICE CLASSIFICATION",4067502.28,0,104489332.08,0,0,0,0,0,0,0,104489332.08,0,108556834.36,0]
["2019","ALGOMA POWER INC.","RESIDENTIAL","RESIDENTIAL - SEASONAL","ALGOMA POWER INC._SEASONAL CUSTOMERS SERVICE CLASSIFICATION","ALGOMA POWER INC._SEASONAL CUSTOMERS SERVICE CLASSIFICATION",28074.79,0,6018194.4999999497,0,0,0,0,0,0,0,6018194.4999999497,0,6046269.2899999497,0]
["2019","ALGOMA POWER INC.","STREET LIGHTING CONNECTIONS","STREET LIGHTING","ALGOMA POWER INC._STREET LIGHTING SERVICE CLASSIFICATION","ALGOMA POWER INC._STREET LIGHTING SERVICE CLASSIFICATION",125331.9,0,0,0,451765.1,0,0,0,0,0,451765.1,0,577097,0]
["2019","ATIKOKAN HYDRO INC.","GENERAL SERVICE EQUAL TO OR GREATER THAN 50 KW","GENERAL SERVICE 50 TO 4,999 KW","ATIKOKAN HYDRO INC._GENERAL SERVICE 50 TO 4,999 KW SERVICE CLASSIFICATION","ATIKOKAN HYDRO INC._GENERAL SERVICE 50 TO 4,999 KW SERVICE CLASSIFICATION",1013760,2303,0,0,14840826,53481.95,0,0,0,0,14840826,53481.95,15854586,55785.65]
["2019","ATIKOKAN HYDRO INC.","GENERAL SERVICE LESS THAN 50 KW","GENERAL SERVICE LESS THAN 50 KW","ATIKOKAN HYDRO INC._GENERAL SERVICE LESS THAN 50 KW SERVICE CLASSIFICATION","ATIKOKAN HYDRO INC._GENERAL SERVICE LESS THAN 50 KW SERVICE CLASSIFICATION",45906.1,0,4682965.57,0,0,0,0,0,0,0,4682965.57,0,4728871.67,0]
["2019","ATIKOKAN HYDRO INC.","NO RATE CLASS","NO RATE CLASS","ATIKOKAN HYDRO INC._NO RATE CLASS SERVICE CLASSIFICATION","ATIKOKAN HYDRO INC._NO RATE CLASS SERVICE CLASSIFICATION",0,0,0,0,0,0,0,0,494323.59375,3072.47998046875,0,0,0,0]
["2019","ATIKOKAN HYDRO INC.","RESIDENTIAL","RESIDENTIAL","ATIKOKAN HYDRO INC._RESIDENTIAL SERVICE CLASSIFICATION","ATIKOKAN HYDRO INC._RESIDENTIAL SERVICE CLASSIFICATION",62968.6,0,9079646.8499999996,0,0,0,0,0,0,0,9079646.8499999996,0,9142615.4499999993,0]
["2019","ATIKOKAN HYDRO INC.","STREET LIGHTING CONNECTIONS","STREET LIGHTING","ATIKOKAN HYDRO INC._STREET LIGHTING SERVICE CLASSIFICATION","ATIKOKAN HYDRO INC._STREET LIGHTING SERVICE CLASSIFICATION",0,0,0,0,419430.6,1300.56,0,0,0,0,419430.6,1300.56,419430.6,1300.56]
["2019","BLUEWATER POWER DISTRIBUTION CORPORATION","GENERAL SERVICE EQUAL TO OR GREATER THAN 50 KW","GENERAL SERVICE 1,000 TO 4,999 KW","BLUEWATER POWER DISTRIBUTION CORPORATION_GENERAL SERVICE 1,000 TO 4,999 KW SERVICE CLASSIFICATION","BLUEWATER POWER DISTRIBUTION CORPORATION_GENERAL SERVICE 1,000 TO 4,999 KW SERVICE CLASSIFICATION",0,0,0,0,136386985,279319,0,0,0,0,136386985,279319,136386985,279319]
["2019","BLUEWATER POWER DISTRIBUTION CORPORATION","GENERAL SERVICE EQUAL TO OR GREATER THAN 50 KW","GENERAL SERVICE 50 TO 999 KW","BLUEWATER POWER DISTRIBUTION CORPORATION_GENERAL SERVICE 50 TO 999 KW SERVICE CLASSIFICATION","BLUEWATER POWER DISTRIBUTION CORPORATION_GENERAL SERVICE 50 TO 999 KW SERVICE CLASSIFICATION",32473459,104800,43874551,282451,119444230,148428,4258881,8284,0,0,167577662,439163,200051121,543963]
["2019","BLUEWATER POWER DISTRIBUTION CORPORATION","GENERAL SERVICE LESS THAN 50 KW","GENERAL SERVICE LESS THAN 50 KW","BLUEWATER POWER DISTRIBUTION CORPORATION_GENERAL SERVICE LESS THAN 50 KW SERVICE CLASSIFICATION","BLUEWATER POWER DISTRIBUTION CORPORATION_GENERAL SERVICE LESS THAN 50 KW SERVICE CLASSIFICATION",16708479,0,85676435,0,0,0,0,0,0,0,85676435,0,102384914,0]
["2019","BLUEWATER POWER DISTRIBUTION CORPORATION","LARGE USER","LARGE USE","BLUEWATER POWER DISTRIBUTION CORPORATION_LARGE USE SERVICE CLASSIFICATION","BLUEWATER POWER DISTRIBUTION CORPORATION_LARGE USE SERVICE CLASSIFICATION",0,0,0,0,175694404,300440,111693024,186019,0,0,287387432,486459,287387432,486459]
["2019","BLUEWATER POWER DISTRIBUTION CORPORATION","NO RATE CLASS","NO RATE CLASS","BLUEWATER POWER DISTRIBUTION CORPORATION_NO RATE CLASS SERVICE CLASSIFICATION","BLUEWATER POWER DISTRIBUTION CORPORATION_NO RATE CLASS SERVICE CLASSIFICATION",0,0,0,0,0,0,0,0,308027904,562016,0,0,0,0]
["2019","BLUEWATER POWER DISTRIBUTION CORPORATION","RESIDENTIAL","RESIDENTIAL","BLUEWATER POWER DISTRIBUTION CORPORATION_RESIDENTIAL SERVICE CLASSIFICATION","BLUEWATER POWER DISTRIBUTION CORPORATION_RESIDENTIAL SERVICE CLASSIFICATION",8337898,0,250709361,0,0,0,0,0,0,0,250709361,0,259047259,0]
["2019","BLUEWATER POWER DISTRIBUTION CORPORATION","SENTINEL LIGHTING CONNECTIONS","SENTINEL LIGHTING","BLUEWATER POWER DISTRIBUTION CORPORATION_SENTINEL LIGHTING SERVICE CLASSIFICATION","BLUEWATER POWER DISTRIBUTION CORPORATION_SENTINEL LIGHTING SERVICE CLASSIFICATION",34289,90,420523,1213,0,0,0,0,0,0,420523,1213,454812,1303]
["2019","BLUEWATER POWER DISTRIBUTION CORPORATION","STREET LIGHTING CONNECTIONS","STREET LIGHTING","BLUEWATER POWER DISTRIBUTION CORPORATION_STREET LIGHTING SERVICE CLASSIFICATION","BLUEWATER POWER DISTRIBUTION CORPORATION_STREET LIGHTING SERVICE CLASSIFICATION",0,0,0,0,3664818,10173,0,0,0,0,3664818,10173,3664818,10173]
["2019","BLUEWATER POWER DISTRIBUTION CORPORATION","UNMETERED SCATTERED LOAD CONNECTIONS","UNMETERED SCATTERED LOAD","BLUEWATER POWER DISTRIBUTION CORPORATION_UNMETERED SCATTERED LOAD SERVICE CLASSIFICATION","BLUEWATER POWER DISTRIBUTION CORPORATION_UNMETERED SCATTERED LOAD SERVICE CLASSIFICATION",212632,0,1845708,0,0,0,0,0,0,0,1845708,0,2058340,0]
["2019","BRANTFORD POWER INC.","EMBEDDED DISTRIBUTOR(S)","EMBEDDED DISTRIBUTOR","BRANTFORD POWER INC._EMBEDDED DISTRIBUTOR SERVICE CLASSIFICATION","BRANTFORD POWER INC._EMBEDDED DISTRIBUTOR SERVICE CLASSIFICATION",0,0,0,0,0,0,41227724,95218.59375,0,0,41227723,95218.59,41227723,95218.59]
["2019","BRANTFORD POWER INC.","GENERAL SERVICE EQUAL TO OR GREATER THAN 50 KW","GENERAL SERVICE 50 TO 4,999 KW","BRANTFORD POWER INC._GENERAL SERVICE 50 TO 4,999 KW SERVICE CLASSIFICATION","BRANTFORD POWER INC._GENERAL SERVICE 50 TO 4,999 KW SERVICE CLASSIFICATION",136415423.02000001,333728,36929489.57,106844.53,356247686.86000001,994672.08,6330357,12258.4296875,0,0,399507533.43000001,1113775.04,535922956.44999999,1447503.11]
["2019","BRANTFORD POWER INC.","GENERAL SERVICE LESS THAN 50 KW","GENERAL SERVICE LESS THAN 50 KW","BRANTFORD POWER INC._GENERAL SERVICE LESS THAN 50 KW SERVICE CLASSIFICATION","BRANTFORD POWER INC._GENERAL SERVICE LESS THAN 50 KW SERVICE CLASSIFICATION",12017127.98,0,82456911.890000001,0,254548.22,0,0,0,0,0,82711460.109999999,0,94728588.090000004,0]
["2019","BRANTFORD POWER INC.","NO RATE CLASS","NO RATE CLASS","BRANTFORD POWER INC._NO RATE CLASS SERVICE CLASSIFICATION","BRANTFORD POWER INC._NO RATE CLASS SERVICE CLASSIFICATION",0,0,0,0,0,0,0,0,187005648,405217.46875,0,0,0,0]
["2019","BRANTFORD POWER INC.","RESIDENTIAL","RESIDENTIAL","BRANTFORD POWER INC._RESIDENTIAL SERVICE CLASSIFICATION","BRANTFORD POWER INC._RESIDENTIAL SERVICE CLASSIFICATION",11330956.93,0,289979565.70999998,0,0,0,0,0,0,0,289979565.70999998,0,301310522.63999999,0]
["2019","BRANTFORD POWER INC.","SENTINEL LIGHTING CONNECTIONS","SENTINEL LIGHTING","BRANTFORD POWER INC._SENTINEL LIGHTING SERVICE CLASSIFICATION","BRANTFORD POWER INC._SENTINEL LIGHTING SERVICE CLASSIFICATION",0,0,190022.91,520.29999999999995,0,0,0,0,0,0,190022.91,520.29999999999995,190022.91,520.29999999999995]
["2019","BRANTFORD POWER INC.","STREET LIGHTING CONNECTIONS","STREET LIGHTING","BRANTFORD POWER INC._STREET LIGHTING SERVICE CLASSIFICATION","BRANTFORD POWER INC._STREET LIGHTING SERVICE CLASSIFICATION",0,0,0,0,7191579.9800000004,22227,0,0,0,0,7191579.9800000004,22227,7191579.9800000004,22227]
["2019","BRANTFORD POWER INC.","UNMETERED SCATTERED LOAD CONNECTIONS","UNMETERED SCATTERED LOAD","BRANTFORD POWER INC._UNMETERED SCATTERED LOAD SERVICE CLASSIFICATION","BRANTFORD POWER INC._UNMETERED SCATTERED LOAD SERVICE CLASSIFICATION",0,0,1497429.01,0,0,0,0,0,0,0,1497429.01,0,1497429.01,0]
["2019","BURLINGTON HYDRO INC.","GENERAL SERVICE EQUAL TO OR GREATER THAN 50 KW","GENERAL SERVICE 50 TO 4,999 KW","BURLINGTON HYDRO INC._GENERAL SERVICE 50 TO 4,999 KW SERVICE CLASSIFICATION","BURLINGTON HYDRO INC._GENERAL SERVICE 50 TO 4,999 KW SERVICE CLASSIFICATION",132082156,346060,133881209,385241,612711824,1647107,0,0,0,0,746593033,2032348,878675189,2378408]
["2019","BURLINGTON HYDRO INC.","GENERAL SERVICE LESS THAN 50 KW","GENERAL SERVICE LESS THAN 50 KW","BURLINGTON HYDRO INC._GENERAL SERVICE LESS THAN 50 KW SERVICE CLASSIFICATION","BURLINGTON HYDRO INC._GENERAL SERVICE LESS THAN 50 KW SERVICE CLASSIFICATION",21219320,0,145092205,0,6839750,0,0,0,0,0,151931955,0,173151275,0]
["2019","BURLINGTON HYDRO INC.","NO RATE CLASS","NO RATE CLASS","BURLINGTON HYDRO INC._NO RATE CLASS SERVICE CLASSIFICATION","BURLINGTON HYDRO INC._NO RATE CLASS SERVICE CLASSIFICATION",0,0,0,0,0,0,0,0,211575456,514564,0,0,0,0]
["2019","BURLINGTON HYDRO INC.","RESIDENTIAL","RESIDENTIAL","BURLINGTON HYDRO INC._RESIDENTIAL SERVICE CLASSIFICATION","BURLINGTON HYDRO INC._RESIDENTIAL SERVICE CLASSIFICATION",8487586,0,526783090,0,0,0,0,0,0,0,526783090,0,535270676,0]
["2019","BURLINGTON HYDRO INC.","STREET LIGHTING CONNECTIONS","STREET LIGHTING","BURLINGTON HYDRO INC._STREET LIGHTING SERVICE CLASSIFICATION","BURLINGTON HYDRO INC._STREET LIGHTING SERVICE CLASSIFICATION",0,0,46982,131,7353934,20440,0,0,0,0,7400916,20571,7400916,20571]
["2019","BURLINGTON HYDRO INC.","UNMETERED SCATTERED LOAD CONNECTIONS","UNMETERED SCATTERED LOAD","BURLINGTON HYDRO INC._UNMETERED SCATTERED LOAD SERVICE CLASSIFICATION","BURLINGTON HYDRO INC._UNMETERED SCATTERED LOAD SERVICE CLASSIFICATION",0,0,3138760,0,0,0,0,0,0,0,3138760,0,3138760,0]
["2019","CANADIAN NIAGARA POWER INC.","EMBEDDED DISTRIBUTOR(S)","EMBEDDED DISTRIBUTOR","CANADIAN NIAGARA POWER INC._EMBEDDED DISTRIBUTOR SERVICE CLASSIFICATION","CANADIAN NIAGARA POWER INC._EMBEDDED DISTRIBUTOR SERVICE CLASSIFICATION",0,0,0,0,5218945.2166489204,13532.36,0,0,0,0,5218945.2166489204,13532.36,5218945.2166489204,13532.36]
["2019","CANADIAN NIAGARA POWER INC.","GENERAL SERVICE EQUAL TO OR GREATER THAN 50 KW","GENERAL SERVICE 50 TO 4,999 KW","CANADIAN NIAGARA POWER INC._GENERAL SERVICE 50 TO 4,999 KW SERVICE CLASSIFICATION","CANADIAN NIAGARA POWER INC._GENERAL SERVICE 50 TO 4,999 KW SERVICE CLASSIFICATION",10539204.4159544,32317,14408140.693257401,44237.06,161370508.43957099,503696.66,0,0,0,0,175778649.132828,547933.72,186317853.548783,580250.93999999994]
["2019","CANADIAN NIAGARA POWER INC.","GENERAL SERVICE LESS THAN 50 KW","GENERAL SERVICE LESS THAN 50 KW","CANADIAN NIAGARA POWER INC._GENERAL SERVICE LESS THAN 50 KW SERVICE CLASSIFICATION","CANADIAN NIAGARA POWER INC._GENERAL SERVICE LESS THAN 50 KW SERVICE CLASSIFICATION",10554960.880332399,0,57664104.7384049,0,0,0,0,0,0,0,57664104.7384049,0,68219065.618737295,0]
["2019","CANADIAN NIAGARA POWER INC.","NO RATE CLASS","NO RATE CLASS","CANADIAN NIAGARA POWER INC._NO RATE CLASS SERVICE CLASSIFICATION","CANADIAN NIAGARA POWER INC._NO RATE CLASS SERVICE CLASSIFICATION",0,0,0,0,0,0,0,0,76022384,234135.953125,0,0,0,0]
["2019","CANADIAN NIAGARA POWER INC.","RESIDENTIAL","RESIDENTIAL","CANADIAN NIAGARA POWER INC._RESIDENTIAL SERVICE CLASSIFICATION","CANADIAN NIAGARA POWER INC._RESIDENTIAL SERVICE CLASSIFICATION",6686555.9996106299,0,206698235.97720599,0,0,0,0,0,0,0,206698235.97720599,0,213384791.97681701,0]
["2019","CANADIAN NIAGARA POWER INC.","SENTINEL LIGHTING CONNECTIONS","SENTINEL LIGHTING","CANADIAN NIAGARA POWER INC._SENTINEL LIGHTING SERVICE CLASSIFICATION","CANADIAN NIAGARA POWER INC._SENTINEL LIGHTING SERVICE CLASSIFICATION",394.35897435897402,1,605647.75878442498,1949.99,0,0,0,0,0,0,605647.75878442498,1949.99,606042.11775878398,1951.29]
["2019","CANADIAN NIAGARA POWER INC.","STREET LIGHTING CONNECTIONS","STREET LIGHTING","CANADIAN NIAGARA POWER INC._STREET LIGHTING SERVICE CLASSIFICATION","CANADIAN NIAGARA POWER INC._STREET LIGHTING SERVICE CLASSIFICATION",0,0,81555.669515669506,268.97000000000003,1308491.3,3982.8,0,0,0,0,1390046.9695156701,4251.7700000000004,1390046.9695156701,4251.7700000000004]
["2019","CANADIAN NIAGARA POWER INC.","UNMETERED SCATTERED LOAD CONNECTIONS","UNMETERED SCATTERED LOAD","CANADIAN NIAGARA POWER INC._UNMETERED SCATTERED LOAD SERVICE CLASSIFICATION","CANADIAN NIAGARA POWER INC._UNMETERED SCATTERED LOAD SERVICE CLASSIFICATION",369104.1,0,1271327.06,0,0,0,0,0,0,0,1271327.06,0,1640431.16,0]
["2019","CENTRE WELLINGTON HYDRO LTD.","GENERAL SERVICE EQUAL TO OR GREATER THAN 50 KW","GENERAL SERVICE 3,000 TO 4,999 KW","CENTRE WELLINGTON HYDRO LTD._GENERAL SERVICE 3,000 TO 4,999 KW SERVICE CLASSIFICATION","CENTRE WELLINGTON HYDRO LTD._GENERAL SERVICE 3,000 TO 4,999 KW SERVICE CLASSIFICATION",0,0,0,0,18999941,43889.26,0,0,0,0,18999941,43889.26,18999941,43889.26]
["2019","CENTRE WELLINGTON HYDRO LTD.","GENERAL SERVICE EQUAL TO OR GREATER THAN 50 KW","GENERAL SERVICE 50 TO 2,999 KW","CENTRE WELLINGTON HYDRO LTD._GENERAL SERVICE 50 TO 2,999 KW SERVICE CLASSIFICATION","CENTRE WELLINGTON HYDRO LTD._GENERAL SERVICE 50 TO 2,999 KW SERVICE CLASSIFICATION",8977678,22877,1709345,5381.29,39768168,109763.66,2866640.25,5504.56982421875,0,0,44344153.259999998,120649.52,53321831.259999998,143526.88]
["2019","CENTRE WELLINGTON HYDRO LTD.","GENERAL SERVICE LESS THAN 50 KW","GENERAL SERVICE LESS THAN 50 KW","CENTRE WELLINGTON HYDRO LTD._GENERAL SERVICE LESS THAN 50 KW SERVICE CLASSIFICATION","CENTRE WELLINGTON HYDRO LTD._GENERAL SERVICE LESS THAN 50 KW SERVICE CLASSIFICATION",4768092,0,18536988,0,15875,0,0,0,0,0,18552863,0,23320955,0]
["2019","CENTRE WELLINGTON HYDRO LTD.","NO RATE CLASS","NO RATE CLASS","CENTRE WELLINGTON HYDRO LTD._NO RATE CLASS SERVICE CLASSIFICATION","CENTRE WELLINGTON HYDRO LTD._NO RATE CLASS SERVICE CLASSIFICATION",0,0,0,0,0,0,0,0,10816567,26242.16015625,0,0,0,0]
["2019","CENTRE WELLINGTON HYDRO LTD.","RESIDENTIAL","RESIDENTIAL","CENTRE WELLINGTON HYDRO LTD._RESIDENTIAL SERVICE CLASSIFICATION","CENTRE WELLINGTON HYDRO LTD._RESIDENTIAL SERVICE CLASSIFICATION",1409845,0,45142244,0,0,0,0,0,0,0,45142244,0,46552089,0]
["2019","CENTRE WELLINGTON HYDRO LTD.","SENTINEL LIGHTING CONNECTIONS","SENTINEL LIGHTING","CENTRE WELLINGTON HYDRO LTD._SENTINEL LIGHTING SERVICE CLASSIFICATION","CENTRE WELLINGTON HYDRO LTD._SENTINEL LIGHTING SERVICE CLASSIFICATION",12921,35,23483,65.23,0,0,0,0,0,0,23483,65.23,36404,101.12]
["2019","CENTRE WELLINGTON HYDRO LTD.","STREET LIGHTING CONNECTIONS","STREET LIGHTING","CENTRE WELLINGTON HYDRO LTD._STREET LIGHTING SERVICE CLASSIFICATION","CENTRE WELLINGTON HYDRO LTD._STREET LIGHTING SERVICE CLASSIFICATION",0,0,0,0,520134,1436.34,0,0,0,0,520134,1436.34,520134,1436.34]
["2019","CENTRE WELLINGTON HYDRO LTD.","UNMETERED SCATTERED LOAD CONNECTIONS","UNMETERED SCATTERED LOAD","CENTRE WELLINGTON HYDRO LTD._UNMETERED SCATTERED LOAD SERVICE CLASSIFICATION","CENTRE WELLINGTON HYDRO LTD._UNMETERED SCATTERED LOAD SERVICE CLASSIFICATION",62016,0,509732,0,0,0,0,0,0,0,509732,0,571748,0]
["2019","CHAPLEAU PUBLIC UTILITIES CORPORATION","GENERAL SERVICE EQUAL TO OR GREATER THAN 50 KW","GENERAL SERVICE 50 TO 4,999 KW","CHAPLEAU PUBLIC UTILITIES CORPORATION_GENERAL SERVICE 50 TO 4,999 KW SERVICE CLASSIFICATION","CHAPLEAU PUBLIC UTILITIES CORPORATION_GENERAL SERVICE 50 TO 4,999 KW SERVICE CLASSIFICATION",228240,750,0,0,5557973,15581.98,0,0,0,0,5557973,15581.98,5786213,16332.58]
["2019","CHAPLEAU PUBLIC UTILITIES CORPORATION","GENERAL SERVICE LESS THAN 50 KW","GENERAL SERVICE LESS THAN 50 KW","CHAPLEAU PUBLIC UTILITIES CORPORATION_GENERAL SERVICE LESS THAN 50 KW SERVICE CLASSIFICATION","CHAPLEAU PUBLIC UTILITIES CORPORATION_GENERAL SERVICE LESS THAN 50 KW SERVICE CLASSIFICATION",179929,0,4693491,0,0,0,0,0,0,0,4693491,0,4873420,0]
["2019","CHAPLEAU PUBLIC UTILITIES CORPORATION","NO RATE CLASS","NO RATE CLASS","CHAPLEAU PUBLIC UTILITIES CORPORATION_NO RATE CLASS SERVICE CLASSIFICATION","CHAPLEAU PUBLIC UTILITIES CORPORATION_NO RATE CLASS SERVICE CLASSIFICATION",0,0,0,0,0,0,0,0,0,0,0,0,0,0]
["2019","CHAPLEAU PUBLIC UTILITIES CORPORATION","RESIDENTIAL","RESIDENTIAL","CHAPLEAU PUBLIC UTILITIES CORPORATION_RESIDENTIAL SERVICE CLASSIFICATION","CHAPLEAU PUBLIC UTILITIES CORPORATION_RESIDENTIAL SERVICE CLASSIFICATION",10928,0,13557632,0,0,0,0,0,0,0,13557632,0,13568560,0]
["2019","CHAPLEAU PUBLIC UTILITIES CORPORATION","SENTINEL LIGHTING CONNECTIONS","SENTINEL LIGHTING","CHAPLEAU PUBLIC UTILITIES CORPORATION_SENTINEL LIGHTING SERVICE CLASSIFICATION","CHAPLEAU PUBLIC UTILITIES CORPORATION_SENTINEL LIGHTING SERVICE CLASSIFICATION",0,0,20172,55.47,0,0,0,0,0,0,20172,55.47,20172,55.47]
["2019","CHAPLEAU PUBLIC UTILITIES CORPORATION","STREET LIGHTING CONNECTIONS","STREET LIGHTING","CHAPLEAU PUBLIC UTILITIES CORPORATION_STREET LIGHTING SERVICE CLASSIFICATION","CHAPLEAU PUBLIC UTILITIES CORPORATION_STREET LIGHTING SERVICE CLASSIFICATION",0,0,274259,768,0,0,0,0,0,0,274259,768,274259,768]
["2019","CHAPLEAU PUBLIC UTILITIES CORPORATION","UNMETERED SCATTERED LOAD CONNECTIONS","UNMETERED SCATTERED LOAD","CHAPLEAU PUBLIC UTILITIES CORPORATION_UNMETERED SCATTERED LOAD SERVICE CLASSIFICATION","CHAPLEAU PUBLIC UTILITIES CORPORATION_UNMETERED SCATTERED LOAD SERVICE CLASSIFICATION",0,0,2892,0,0,0,0,0,0,0,2892,0,2892,0]
["2019","COOPERATIVE HYDRO EMBRUN INC.","GENERAL SERVICE EQUAL TO OR GREATER THAN 50 KW","GENERAL SERVICE 50 TO 4,999 KW","COOPERATIVE HYDRO EMBRUN INC._GENERAL SERVICE 50 TO 4,999 KW SERVICE CLASSIFICATION","COOPERATIVE HYDRO EMBRUN INC._GENERAL SERVICE 50 TO 4,999 KW SERVICE CLASSIFICATION",243922,24,0,0,3652637,10911,0,0,0,0,3652637,10911,3896559,10935]
["2019","COOPERATIVE HYDRO EMBRUN INC.","GENERAL SERVICE LESS THAN 50 KW","GENERAL SERVICE LESS THAN 50 KW","COOPERATIVE HYDRO EMBRUN INC._GENERAL SERVICE LESS THAN 50 KW SERVICE CLASSIFICATION","COOPERATIVE HYDRO EMBRUN INC._GENERAL SERVICE LESS THAN 50 KW SERVICE CLASSIFICATION",358465,0,4191328,0,0,0,0,0,0,0,4191328,0,4549793,0]
["2019","COOPERATIVE HYDRO EMBRUN INC.","NO RATE CLASS","NO RATE CLASS","COOPERATIVE HYDRO EMBRUN INC._NO RATE CLASS SERVICE CLASSIFICATION","COOPERATIVE HYDRO EMBRUN INC._NO RATE CLASS SERVICE CLASSIFICATION",0,0,0,0,0,0,0,0,0,0,0,0,0,0]
["2019","COOPERATIVE HYDRO EMBRUN INC.","RESIDENTIAL","RESIDENTIAL","COOPERATIVE HYDRO EMBRUN INC._RESIDENTIAL SERVICE CLASSIFICATION","COOPERATIVE HYDRO EMBRUN INC._RESIDENTIAL SERVICE CLASSIFICATION",289159,0,20307978,0,0,0,0,0,0,0,20307978,0,20597137,0]
["2019","COOPERATIVE HYDRO EMBRUN INC.","STREET LIGHTING CONNECTIONS","STREET LIGHTING","COOPERATIVE HYDRO EMBRUN INC._STREET LIGHTING SERVICE CLASSIFICATION","COOPERATIVE HYDRO EMBRUN INC._STREET LIGHTING SERVICE CLASSIFICATION",0,0,0,0,208895,583,0,0,0,0,208895,583,208895,583]
["2019","COOPERATIVE HYDRO EMBRUN INC.","UNMETERED SCATTERED LOAD CONNECTIONS","UNMETERED SCATTERED LOAD","COOPERATIVE HYDRO EMBRUN INC._UNMETERED SCATTERED LOAD SERVICE CLASSIFICATION","COOPERATIVE HYDRO EMBRUN INC._UNMETERED SCATTERED LOAD SERVICE CLASSIFICATION",0,0,93084,0,0,0,0,0,0,0,93084,0,93084,0]
["2019","E.L.K. ENERGY INC.","EMBEDDED DISTRIBUTOR(S)","EMBEDDED DISTRIBUTOR","E.L.K. ENERGY INC._EMBEDDED DISTRIBUTOR SERVICE CLASSIFICATION","E.L.K. ENERGY INC._EMBEDDED DISTRIBUTOR SERVICE CLASSIFICATION",0,0,0,0,61680653,145229,0,0,0,0,61680653,145229,61680653,145229]
["2019","E.L.K. ENERGY INC.","GENERAL SERVICE EQUAL TO OR GREATER THAN 50 KW","GENERAL SERVICE 50 TO 4,999 KW","E.L.K. ENERGY INC._GENERAL SERVICE 50 TO 4,999 KW SERVICE CLASSIFICATION","E.L.K. ENERGY INC._GENERAL SERVICE 50 TO 4,999 KW SERVICE CLASSIFICATION",0,0,1695771,6951,40698505,166833,0,0,0,0,42394276,173784,42394276,173784]
["2019","E.L.K. ENERGY INC.","GENERAL SERVICE LESS THAN 50 KW","GENERAL SERVICE LESS THAN 50 KW","E.L.K. ENERGY INC._GENERAL SERVICE LESS THAN 50 KW SERVICE CLASSIFICATION","E.L.K. ENERGY INC._GENERAL SERVICE LESS THAN 50 KW SERVICE CLASSIFICATION",0,0,24962688,0,3730057,0,0,0,0,0,28692745,0,28692745,0]
["2019","E.L.K. ENERGY INC.","NO RATE CLASS","NO RATE CLASS","E.L.K. ENERGY INC._NO RATE CLASS SERVICE CLASSIFICATION","E.L.K. ENERGY INC._NO RATE CLASS SERVICE CLASSIFICATION",0,0,0,0,0,0,0,0,17393686,56726,0,0,0,0]
["2019","E.L.K. ENERGY INC.","RESIDENTIAL","RESIDENTIAL","E.L.K. ENERGY INC._RESIDENTIAL SERVICE CLASSIFICATION","E.L.K. ENERGY INC._RESIDENTIAL SERVICE CLASSIFICATION",1,1,91681675,0,2835516,0,0,0,0,0,94517191,0,94517192,1]
["2019","E.L.K. ENERGY INC.","SENTINEL LIGHTING CONNECTIONS","SENTINEL LIGHTING","E.L.K. ENERGY INC._SENTINEL LIGHTING SERVICE CLASSIFICATION","E.L.K. ENERGY INC._SENTINEL LIGHTING SERVICE CLASSIFICATION",0,0,0,0,149558,388,0,0,0,0,149558,388,149558,388]
["2019","E.L.K. ENERGY INC.","STREET LIGHTING CONNECTIONS","STREET LIGHTING","E.L.K. ENERGY INC._STREET LIGHTING SERVICE CLASSIFICATION","E.L.K. ENERGY INC._STREET LIGHTING SERVICE CLASSIFICATION",0,0,0,0,1349349,3920,0,0,0,0,1349349,3920,1349349,3920]
["2019","E.L.K. ENERGY INC.","UNMETERED SCATTERED LOAD CONNECTIONS","UNMETERED SCATTERED LOAD","E.L.K. ENERGY INC._UNMETERED SCATTERED LOAD SERVICE CLASSIFICATION","E.L.K. ENERGY INC._UNMETERED SCATTERED LOAD SERVICE CLASSIFICATION",0,0,0,0,249143,0,0,0,0,0,249143,0,249143,0]
["2019","ENERGY+ INC.","EMBEDDED DISTRIBUTOR(S)","CAMBRIDGE AND NORTH DUMFRIES_EMBEDDED DISTRIBUTOR","ENERGY+ INC._FOR FORMER CAMBRIDGE AND NORTH DUMFRIES HYDRO SERVICE AREA_EMBEDDED DISTRIBUTOR SERVICE CLASSIFICATION","ENERGY+ INC._FOR FORMER CAMBRIDGE AND NORTH DUMFRIES HYDRO SERVICE AREA_EMBEDDED DISTRIBUTOR SERVICE CLASSIFICATION",0,0,0,0,13409780,143916,0,0,0,0,13409780,143916,13409780,143916]
["2019","ENERGY+ INC.","GENERAL SERVICE EQUAL TO OR GREATER THAN 50 KW","BRANT COUNTY_GENERAL SERVICE 50 TO 4,999 KW","ENERGY+ INC._FOR FORMER BRANT COUNTY POWER SERVICE AREA_GENERAL SERVICE 50 TO 4,999 KW SERVICE CLASSIFICATION","ENERGY+ INC._FOR FORMER BRANT COUNTY POWER SERVICE AREA_GENERAL SERVICE 50 TO 4,999 KW SERVICE CLASSIFICATION",19460394,73491,4640840,0,144748602,636869,0,0,0,0,149389442,636869,168849836,710360]
["2019","ENERGY+ INC.","GENERAL SERVICE EQUAL TO OR GREATER THAN 50 KW","CAMBRIDGE AND NORTH DUMFRIES_GENERAL SERVICE 1,000 TO 4,999 KW","ENERGY+ INC._FOR FORMER CAMBRIDGE AND NORTH DUMFRIES HYDRO SERVICE AREA_GENERAL SERVICE 1,000 TO 4,999 KW SERVICE CLASSIFICATION","ENERGY+ INC._FOR FORMER CAMBRIDGE AND NORTH DUMFRIES HYDRO SERVICE AREA_GENERAL SERVICE 1,000 TO 4,999 KW SERVICE CLASSIFICATION",72473518,149549,0,0,126172483,321146,26990256,44811,0,0,153162739,365957,225636257,515506]
["2019","ENERGY+ INC.","GENERAL SERVICE EQUAL TO OR GREATER THAN 50 KW","CAMBRIDGE AND NORTH DUMFRIES_GENERAL SERVICE 50 TO 999 KW","ENERGY+ INC._FOR FORMER CAMBRIDGE AND NORTH DUMFRIES HYDRO SERVICE AREA_GENERAL SERVICE 50 TO 999 KW SERVICE CLASSIFICATION","ENERGY+ INC._FOR FORMER CAMBRIDGE AND NORTH DUMFRIES HYDRO SERVICE AREA_GENERAL SERVICE 50 TO 999 KW SERVICE CLASSIFICATION",81049182,255922,46496040,110572,303924707,960207,9356307,18403,0,0,359777054,1089182,440826236,1345104]
["2019","ENERGY+ INC.","GENERAL SERVICE LESS THAN 50 KW","BRANT COUNTY_GENERAL SERVICE LESS THAN 50 KW","ENERGY+ INC._FOR FORMER BRANT COUNTY POWER SERVICE AREA_GENERAL SERVICE LESS THAN 50 KW SERVICE CLASSIFICATION","ENERGY+ INC._FOR FORMER BRANT COUNTY POWER SERVICE AREA_GENERAL SERVICE LESS THAN 50 KW SERVICE CLASSIFICATION",6608260,0,33309906,0,14584,0,0,0,0,0,33324490,0,39932750,0]
["2019","ENERGY+ INC.","GENERAL SERVICE LESS THAN 50 KW","CAMBRIDGE AND NORTH DUMFRIES_GENERAL SERVICE LESS THAN 50 KW","ENERGY+ INC._FOR FORMER CAMBRIDGE AND NORTH DUMFRIES HYDRO SERVICE AREA_GENERAL SERVICE LESS THAN 50 KW SERVICE CLASSIFICATION","ENERGY+ INC._FOR FORMER CAMBRIDGE AND NORTH DUMFRIES HYDRO SERVICE AREA_GENERAL SERVICE LESS THAN 50 KW SERVICE CLASSIFICATION",21647887,0,141328222,0,92937,0,0,0,0,0,141421159,0,163069046,0]
["2019","ENERGY+ INC.","LARGE USER","CAMBRIDGE AND NORTH DUMFRIES_LARGE USE","ENERGY+ INC._FOR FORMER CAMBRIDGE AND NORTH DUMFRIES HYDRO SERVICE AREA_LARGE USE SERVICE CLASSIFICATION","ENERGY+ INC._FOR FORMER CAMBRIDGE AND NORTH DUMFRIES HYDRO SERVICE AREA_LARGE USE SERVICE CLASSIFICATION",0,0,0,0,143975015,358147,0,0,0,0,143975015,358147,143975015,358147]
["2019","ENERGY+ INC.","NO RATE CLASS","NO RATE CLASS","ENERGY+ INC._NO RATE CLASS SERVICE CLASSIFICATION","ENERGY+ INC._NO RATE CLASS SERVICE CLASSIFICATION",0,0,0,0,0,0,0,0,316960384,720245.125,0,0,0,0]
["2019","ENERGY+ INC.","RESIDENTIAL","BRANT COUNTY_RESIDENTIAL","ENERGY+ INC._FOR FORMER BRANT COUNTY POWER SERVICE AREA_RESIDENTIAL SERVICE CLASSIFICATION","ENERGY+ INC._FOR FORMER BRANT COUNTY POWER SERVICE AREA_RESIDENTIAL SERVICE CLASSIFICATION",2011034,0,84608723,0,0,0,0,0,0,0,84608723,0,86619757,0]
["2019","ENERGY+ INC.","RESIDENTIAL","CAMBRIDGE AND NORTH DUMFRIES_RESIDENTIAL","ENERGY+ INC._FOR FORMER CAMBRIDGE AND NORTH DUMFRIES HYDRO SERVICE AREA_RESIDENTIAL SERVICE CLASSIFICATION","ENERGY+ INC._FOR FORMER CAMBRIDGE AND NORTH DUMFRIES HYDRO SERVICE AREA_RESIDENTIAL SERVICE CLASSIFICATION",9476387,0,401273259,0,0,0,0,0,0,0,401273259,0,410749646,0]
["2019","ENERGY+ INC.","SENTINEL LIGHTING CONNECTIONS","BRANT COUNTY_SENTINEL LIGHTING","ENERGY+ INC._FOR FORMER BRANT COUNTY POWER SERVICE AREA_SENTINEL LIGHTING SERVICE CLASSIFICATION","ENERGY+ INC._FOR FORMER BRANT COUNTY POWER SERVICE AREA_SENTINEL LIGHTING SERVICE CLASSIFICATION",118,0,13913,0,0,0,0,0,0,0,13913,0,14031,0]
["2019","ENERGY+ INC.","STREET LIGHTING CONNECTIONS","BRANT COUNTY_STREET LIGHTING","ENERGY+ INC._FOR FORMER BRANT COUNTY POWER SERVICE AREA_STREET LIGHTING SERVICE CLASSIFICATION","ENERGY+ INC._FOR FORMER BRANT COUNTY POWER SERVICE AREA_STREET LIGHTING SERVICE CLASSIFICATION",681813,1913,96436,0,0,229,0,0,0,0,96436,229,778249,2142]
["2019","ENERGY+ INC.","STREET LIGHTING CONNECTIONS","CAMBRIDGE AND NORTH DUMFRIES_STREET LIGHTING","ENERGY+ INC._FOR FORMER CAMBRIDGE AND NORTH DUMFRIES HYDRO SERVICE AREA_STREET LIGHTING SERVICE CLASSIFICATION","ENERGY+ INC._FOR FORMER CAMBRIDGE AND NORTH DUMFRIES HYDRO SERVICE AREA_STREET LIGHTING SERVICE CLASSIFICATION",0,0,218754,0,4963988,14350,0,0,0,0,5182742,14350,5182742,14350]
["2019","ENERGY+ INC.","UNMETERED SCATTERED LOAD CONNECTIONS","BRANT COUNTY_UNMETERED SCATTERED LOAD","ENERGY+ INC._FOR FORMER BRANT COUNTY POWER SERVICE AREA_UNMETERED SCATTERED LOAD SERVICE CLASSIFICATION","ENERGY+ INC._FOR FORMER BRANT COUNTY POWER SERVICE AREA_UNMETERED SCATTERED LOAD SERVICE CLASSIFICATION",205380,0,207761,0,0,0,0,0,0,0,207761,0,413141,0]
["2019","ENERGY+ INC.","UNMETERED SCATTERED LOAD CONNECTIONS","CAMBRIDGE AND NORTH DUMFRIES_UNMETERED SCATTERED LOAD","ENERGY+ INC._FOR FORMER CAMBRIDGE AND NORTH DUMFRIES HYDRO SERVICE AREA_UNMETERED SCATTERED LOAD SERVICE CLASSIFICATION","ENERGY+ INC._FOR FORMER CAMBRIDGE AND NORTH DUMFRIES HYDRO SERVICE AREA_UNMETERED SCATTERED LOAD SERVICE CLASSIFICATION",4020,0,1831514,0,0,0,0,0,0,0,1831514,0,1835534,0]
["2019","ENTEGRUS POWERLINES INC.","EMBEDDED DISTRIBUTOR(S)","EMBEDDED DISTRIBUTOR - ENTEGRUS POWERLINES","ENTEGRUS POWERLINES INC._FOR ENTEGRUS-MAIN RATE ZONE_EMBEDDED DISTRIBUTOR SERVICE CLASSIFICATION","ENTEGRUS POWERLINES INC._FOR ENTEGRUS_MAIN RATE ZONE_EMBEDDED DISTRIBUTOR SERVICE CLASSIFICATION",0,0,0,0,9858716,38905,0,0,0,0,9858716,38905,9858716,38905]
["2019","ENTEGRUS POWERLINES INC.","GENERAL SERVICE EQUAL TO OR GREATER THAN 50 KW","GENERAL SERVICE 50 TO 4,999 KW - ENTEGRUS POWERLINES","ENTEGRUS POWERLINES INC._FOR ENTEGRUS-MAIN RATE ZONE_GENERAL SERVICE 50 TO 4,999 KW SERVICE CLASSIFICATION","ENTEGRUS POWERLINES INC._FOR ENTEGRUS_MAIN RATE ZONE_GENERAL SERVICE 50 TO 4,999 KW SERVICE CLASSIFICATION",101055746,264099,27302835,93843,316929593,839611,3574014,8963,0,0,347806442,942417,448862188,1206516]
["2019","ENTEGRUS POWERLINES INC.","GENERAL SERVICE EQUAL TO OR GREATER THAN 50 KW","GENERAL SERVICE 50 TO 4,999 KW - ST. THOMAS ENERGY","ENTEGRUS POWERLINES INC._FOR FORMER ST. THOMAS ENERGY RATE ZONE_GENERAL SERVICE 50 TO 4,999 KW SERVICE CLASSIFICATION","ENTEGRUS POWERLINES INC._FOR FORMER ST. THOMAS ENERGY RATE ZONE_GENERAL SERVICE 50 TO 4,999 KW SERVICE CLASSIFICATION",33367331,77553,8473570,16674,78648513,208252,3711652,7386,0,0,90833735,232312,124201066,309865]
["2019","ENTEGRUS POWERLINES INC.","GENERAL SERVICE LESS THAN 50 KW","GENERAL SERVICE LESS THAN 50 KW - ENTEGRUS POWERLINES","ENTEGRUS POWERLINES INC._FOR ENTEGRUS-MAIN RATE ZONE_GENERAL SERVICE LESS THAN 50 KW SERVICE CLASSIFICATION","ENTEGRUS POWERLINES INC._FOR ENTEGRUS_MAIN RATE ZONE_GENERAL SERVICE LESS THAN 50 KW SERVICE CLASSIFICATION",22218177,0,93766772,0,0,0,0,0,0,0,93766772,0,115984949,0]
["2019","ENTEGRUS POWERLINES INC.","GENERAL SERVICE LESS THAN 50 KW","GENERAL SERVICE LESS THAN 50 KW - ST. THOMAS ENERGY","ENTEGRUS POWERLINES INC._FOR FORMER ST. THOMAS ENERGY RATE ZONE_GENERAL SERVICE LESS THAN 50 KW SERVICE CLASSIFICATION","ENTEGRUS POWERLINES INC._FOR FORMER ST. THOMAS ENERGY RATE ZONE_GENERAL SERVICE LESS THAN 50 KW SERVICE CLASSIFICATION",7619450,0,34519157,0,0,0,0,0,0,0,34519157,0,42138607,0]
["2019","ENTEGRUS POWERLINES INC.","LARGE USER","LARGE USE - ENTEGRUS POWERLINES","ENTEGRUS POWERLINES INC._FOR ENTEGRUS-MAIN RATE ZONE_LARGE USE SERVICE CLASSIFICATION","ENTEGRUS POWERLINES INC._FOR ENTEGRUS_MAIN RATE ZONE_LARGE USE SERVICE CLASSIFICATION",0,0,0,0,33555521,184428,0,0,0,0,33555521,184428,33555521,184428]
["2019","ENTEGRUS POWERLINES INC.","NO RATE CLASS","NO RATE CLASS","ENTEGRUS POWERLINES INC._FOR ENTEGRUS-MAIN RATE ZONE_NO RATE CLASS SERVICE CLASSIFICATION","ENTEGRUS POWERLINES INC._FOR ENTEGRUS_MAIN RATE ZONE_NO RATE CLASS SERVICE CLASSIFICATION",0,0,0,0,0,0,0,0,265498752,591066,0,0,0,0]
["2019","ENTEGRUS POWERLINES INC.","RESIDENTIAL","RESIDENTIAL - ENTEGRUS POWERLINES","ENTEGRUS POWERLINES INC._FOR ENTEGRUS-MAIN RATE ZONE_RESIDENTIAL SERVICE CLASSIFICATION","ENTEGRUS POWERLINES INC._FOR ENTEGRUS_MAIN RATE ZONE_RESIDENTIAL SERVICE CLASSIFICATION",12271720,0,287657989,0,0,0,0,0,0,0,287657989,0,299929709,0]
["2019","ENTEGRUS POWERLINES INC.","RESIDENTIAL","RESIDENTIAL - ST. THOMAS ENERGY","ENTEGRUS POWERLINES INC._FOR FORMER ST. THOMAS ENERGY RATE ZONE_RESIDENTIAL SERVICE CLASSIFICATION","ENTEGRUS POWERLINES INC._FOR FORMER ST. THOMAS ENERGY RATE ZONE_RESIDENTIAL SERVICE CLASSIFICATION",7870765,0,117494371,0,0,0,0,0,0,0,117494371,0,125365136,0]
["2019","ENTEGRUS POWERLINES INC.","SENTINEL LIGHTING CONNECTIONS","SENTINEL LIGHTING - ENTEGRUS POWERLINES","ENTEGRUS POWERLINES INC._FOR ENTEGRUS-MAIN RATE ZONE_SENTINEL LIGHTING SERVICE CLASSIFICATION","ENTEGRUS POWERLINES INC._FOR ENTEGRUS_MAIN RATE ZONE_SENTINEL LIGHTING SERVICE CLASSIFICATION",68586,191,223542,0,78116,841,0,0,0,0,301658,841,370244,1032]
["2019","ENTEGRUS POWERLINES INC.","SENTINEL LIGHTING CONNECTIONS","SENTINEL LIGHTING - ST. THOMAS ENERGY","ENTEGRUS POWERLINES INC._FOR FORMER ST. THOMAS ENERGY RATE ZONE_SENTINEL LIGHTING SERVICE CLASSIFICATION","ENTEGRUS POWERLINES INC._FOR FORMER ST. THOMAS ENERGY RATE ZONE_SENTINEL LIGHTING SERVICE CLASSIFICATION",2492,7,44359,0,0,0,0,0,0,0,44359,0,46851,7]
["2019","ENTEGRUS POWERLINES INC.","STREET LIGHTING CONNECTIONS","STREET LIGHTING - ENTEGRUS POWERLINES","ENTEGRUS POWERLINES INC._FOR ENTEGRUS-MAIN RATE ZONE_STREET LIGHTING SERVICE CLASSIFICATION","ENTEGRUS POWERLINES INC._FOR ENTEGRUS_MAIN RATE ZONE_STREET LIGHTING SERVICE CLASSIFICATION",0,0,0,0,3701020,10553,0,0,0,0,3701020,10553,3701020,10553]
["2019","ENTEGRUS POWERLINES INC.","STREET LIGHTING CONNECTIONS","STREET LIGHTING - ST. THOMAS ENERGY","ENTEGRUS POWERLINES INC._FOR FORMER ST. THOMAS ENERGY RATE ZONE_STREET LIGHTING SERVICE CLASSIFICATION","ENTEGRUS POWERLINES INC._FOR FORMER ST. THOMAS ENERGY RATE ZONE_STREET LIGHTING SERVICE CLASSIFICATION",0,0,763,0,1990426,5008,0,0,0,0,1991189,5008,1991189,5008]
["2019","ENTEGRUS POWERLINES INC.","UNMETERED SCATTERED LOAD CONNECTIONS","UNMETERED SCATTERED LOAD - ENTEGRUS POWERLINES","ENTEGRUS POWERLINES INC._FOR ENTEGRUS-MAIN RATE ZONE_UNMETERED SCATTERED LOAD SERVICE CLASSIFICATION","ENTEGRUS POWERLINES INC._FOR ENTEGRUS_MAIN RATE ZONE_UNMETERED SCATTERED LOAD SERVICE CLASSIFICATION",422779,0,856211,0,0,0,0,0,0,0,856211,0,1278990,0]
["2019","ENWIN UTILITIES LTD.","GENERAL SERVICE EQUAL TO OR GREATER THAN 50 KW","GENERAL SERVICE 3,000 TO 4,999 KW - INTERMEDIATE USE","ENWIN UTILITIES LTD._GENERAL SERVICE 3,000 TO 4,999 KW - INTERMEDIATE USE SERVICE CLASSIFICATION","ENWIN UTILITIES LTD._GENERAL SERVICE 3,000 TO 4,999 KW _ INTERMEDIATE USE SERVICE CLASSIFICATION",0,0,0,0,41120567.100000001,128455.8,0,0,0,0,41120567.100000001,128455.8,41120567.100000001,128455.8]
["2019","ENWIN UTILITIES LTD.","GENERAL SERVICE EQUAL TO OR GREATER THAN 50 KW","GENERAL SERVICE 50 TO 4,999 KW","ENWIN UTILITIES LTD._GENERAL SERVICE 50 TO 4,999 KW SERVICE CLASSIFICATION","ENWIN UTILITIES LTD._GENERAL SERVICE 50 TO 4,999 KW SERVICE CLASSIFICATION",138098876,381139,180771673.30000001,481901.5,606976837,1501323.6,10855692,20961.5,0,0,798604202.5,2004186.6,936703078.5,2385326.2999999998]
["2019","ENWIN UTILITIES LTD.","GENERAL SERVICE LESS THAN 50 KW","GENERAL SERVICE LESS THAN 50 KW","ENWIN UTILITIES LTD._GENERAL SERVICE LESS THAN 50 KW SERVICE CLASSIFICATION","ENWIN UTILITIES LTD._GENERAL SERVICE LESS THAN 50 KW SERVICE CLASSIFICATION",28255259.300000001,0,174819949.09999999,0,0,0,0,0,0,0,174819949.09999999,0,203075208.40000001,0]
["2019","ENWIN UTILITIES LTD.","LARGE USER","LARGE USE - 3TS","ENWIN UTILITIES LTD._LARGE USE - 3TS SERVICE CLASSIFICATION","ENWIN UTILITIES LTD._LARGE USE _ 3TS SERVICE CLASSIFICATION",0,0,0,0,172633300.30000001,319065.40000000002,82002368,175487.40625,0,0,254635666.90000001,494552.8,254635666.90000001,494552.8]
["2019","ENWIN UTILITIES LTD.","LARGE USER","LARGE USE - FORD ANNEX","ENWIN UTILITIES LTD._LARGE USE - FORD ANNEX SERVICE CLASSIFICATION","ENWIN UTILITIES LTD._LARGE USE _ FORD ANNEX SERVICE CLASSIFICATION",0,0,0,0,0,0,45402740,73849.1015625,0,0,45402739.399999999,73849.100000000006,45402739.399999999,73849.100000000006]
["2019","ENWIN UTILITIES LTD.","LARGE USER","LARGE USE - REGULAR","ENWIN UTILITIES LTD._LARGE USE - REGULAR SERVICE CLASSIFICATION","ENWIN UTILITIES LTD._LARGE USE _ REGULAR SERVICE CLASSIFICATION",0,0,0,0,201820265.19999999,379814.5,109465576,188278.40625,0,0,311285838,568092.9,311285838,568092.9]
["2019","ENWIN UTILITIES LTD.","NO RATE CLASS","NO RATE CLASS","ENWIN UTILITIES LTD._NO RATE CLASS SERVICE CLASSIFICATION","ENWIN UTILITIES LTD._NO RATE CLASS SERVICE CLASSIFICATION",0,0,0,0,0,0,0,0,614300224,1249448.875,0,0,0,0]
["2019","ENWIN UTILITIES LTD.","RESIDENTIAL","RESIDENTIAL","ENWIN UTILITIES LTD._RESIDENTIAL SERVICE CLASSIFICATION","ENWIN UTILITIES LTD._RESIDENTIAL SERVICE CLASSIFICATION",17881940,0,618917690.70000005,0,0,0,0,0,0,0,618917690.70000005,0,636799630.70000005,0]
["2019","ENWIN UTILITIES LTD.","SENTINEL LIGHTING CONNECTIONS","SENTINEL LIGHTING","ENWIN UTILITIES LTD._SENTINEL LIGHTING SERVICE CLASSIFICATION","ENWIN UTILITIES LTD._SENTINEL LIGHTING SERVICE CLASSIFICATION",66011.8,182,702220,1959.1,0,0,0,0,0,0,702220,1959.1,768231.8,2141.6999999999998]
["2019","ENWIN UTILITIES LTD.","STREET LIGHTING CONNECTIONS","STREET LIGHTING","ENWIN UTILITIES LTD._STREET LIGHTING SERVICE CLASSIFICATION","ENWIN UTILITIES LTD._STREET LIGHTING SERVICE CLASSIFICATION",0,0,18325.900000000001,53,6449455.0999999996,18654.3,0,0,0,0,6467781,18707.3,6467781,18707.3]
["2019","ENWIN UTILITIES LTD.","UNMETERED SCATTERED LOAD CONNECTIONS","UNMETERED SCATTERED LOAD","ENWIN UTILITIES LTD._UNMETERED SCATTERED LOAD SERVICE CLASSIFICATION","ENWIN UTILITIES LTD._UNMETERED SCATTERED LOAD SERVICE CLASSIFICATION",0,0,90529.600000000006,0,2175834.7000000002,0,0,0,0,0,2266364.2999999998,0,2266364.2999999998,0]
["2019","EPCOR ELECTRICITY DISTRIBUTION ONTARIO INC.","GENERAL SERVICE EQUAL TO OR GREATER THAN 50 KW","GENERAL SERVICE 50 TO 4,999 KW","EPCOR ELECTRICITY DISTRIBUTION ONTARIO INC._GENERAL SERVICE 50 TO 4,999 KW SERVICE CLASSIFICATION","EPCOR ELECTRICITY DISTRIBUTION ONTARIO INC._GENERAL SERVICE 50 TO 4,999 KW SERVICE CLASSIFICATION",21805313.489999998,54486,0,0,109090407.63,257555.24,2605162.25,4968.27978515625,0,0,111695569.92,262523.52000000002,133500883.41,317009.96000000002]
["2019","EPCOR ELECTRICITY DISTRIBUTION ONTARIO INC.","GENERAL SERVICE LESS THAN 50 KW","GENERAL SERVICE LESS THAN 50 KW","EPCOR ELECTRICITY DISTRIBUTION ONTARIO INC._GENERAL SERVICE LESS THAN 50 KW SERVICE CLASSIFICATION","EPCOR ELECTRICITY DISTRIBUTION ONTARIO INC._GENERAL SERVICE LESS THAN 50 KW SERVICE CLASSIFICATION",7865985.5499999998,0,38895085.329999998,553.02,391654.04,1950.38,0,0,0,0,39286739.369999997,2503.4,47152724.920000002,2503.4]
["2019","EPCOR ELECTRICITY DISTRIBUTION ONTARIO INC.","NO RATE CLASS","NO RATE CLASS","EPCOR ELECTRICITY DISTRIBUTION ONTARIO INC._NO RATE CLASS SERVICE CLASSIFICATION","EPCOR ELECTRICITY DISTRIBUTION ONTARIO INC._NO RATE CLASS SERVICE CLASSIFICATION",0,0,0,0,0,0,0,0,57347356,117162.921875,0,0,0,0]
["2019","EPCOR ELECTRICITY DISTRIBUTION ONTARIO INC.","RESIDENTIAL","RESIDENTIAL","EPCOR ELECTRICITY DISTRIBUTION ONTARIO INC._RESIDENTIAL SERVICE CLASSIFICATION","EPCOR ELECTRICITY DISTRIBUTION ONTARIO INC._RESIDENTIAL SERVICE CLASSIFICATION",4245877.32,0,122736285.41,0,0,0,0,0,0,0,122736285.41,0,126982162.73,0]
["2019","EPCOR ELECTRICITY DISTRIBUTION ONTARIO INC.","STREET LIGHTING CONNECTIONS","STREET LIGHTING","EPCOR ELECTRICITY DISTRIBUTION ONTARIO INC._STREET LIGHTING SERVICE CLASSIFICATION","EPCOR ELECTRICITY DISTRIBUTION ONTARIO INC._STREET LIGHTING SERVICE CLASSIFICATION",17255.41,41,0,0,1187112.46,3345.03,0,0,0,0,1187112.46,3345.03,1204367.8700000001,3386.61]
["2019","EPCOR ELECTRICITY DISTRIBUTION ONTARIO INC.","UNMETERED SCATTERED LOAD CONNECTIONS","UNMETERED SCATTERED LOAD","EPCOR ELECTRICITY DISTRIBUTION ONTARIO INC._UNMETERED SCATTERED LOAD SERVICE CLASSIFICATION","EPCOR ELECTRICITY DISTRIBUTION ONTARIO INC._UNMETERED SCATTERED LOAD SERVICE CLASSIFICATION",12036.99,0,385013.49,0,0,0,0,0,0,0,385013.49,0,397050.48,0]
["2019","ERTH POWER CORPORATION","EMBEDDED DISTRIBUTOR(S)","EMBEDDED DISTRIBUTOR","ERTH POWER CORPORATION_ERTH POWER MAIN RATE ZONE_EMBEDDED DISTRIBUTOR SERVICE CLASSIFICATION","ERTH POWER CORPORATION_ERTH POWER MAIN RATE ZONE_EMBEDDED DISTRIBUTOR SERVICE CLASSIFICATION",0,0,0,0,16912248,38108,0,0,0,0,16912248,38108,16912248,38108]
["2019","ERTH POWER CORPORATION","GENERAL SERVICE EQUAL TO OR GREATER THAN 50 KW","GENERAL SERVICE 1,000 TO 4,999 KW","ERTH POWER CORPORATION_ERTH POWER MAIN RATE ZONE_GENERAL SERVICE 1,000 TO 4,999 KW SERVICE CLASSIFICATION","ERTH POWER CORPORATION_ERTH POWER MAIN RATE ZONE_GENERAL SERVICE 1,000 TO 4,999 KW SERVICE CLASSIFICATION",9982676,18861,0,0,102340942,196658,0,0,0,0,102340942,196658,112323618,215519]
["2019","ERTH POWER CORPORATION","GENERAL SERVICE EQUAL TO OR GREATER THAN 50 KW","GENERAL SERVICE 50 TO 999 KW","ERTH POWER CORPORATION_ERTH POWER MAIN RATE ZONE_GENERAL SERVICE 50 TO 999 KW SERVICE CLASSIFICATION","ERTH POWER CORPORATION_ERTH POWER MAIN RATE ZONE_GENERAL SERVICE 50 TO 999 KW SERVICE CLASSIFICATION",29399552,78911,7176629,28302,101970055,283085,0,0,0,0,109146684,311387,138546236,390298]
["2019","ERTH POWER CORPORATION","GENERAL SERVICE LESS THAN 50 KW","GENERAL SERVICE LESS THAN 50 KW","ERTH POWER CORPORATION_ERTH POWER MAIN RATE ZONE_GENERAL SERVICE LESS THAN 50 KW SERVICE CLASSIFICATION","ERTH POWER CORPORATION_ERTH POWER MAIN RATE ZONE_GENERAL SERVICE LESS THAN 50 KW SERVICE CLASSIFICATION",9298143,0,40942950,0,9318235,0,0,0,0,0,50261185,0,59559328,0]
["2019","ERTH POWER CORPORATION","LARGE USER","LARGE USE","ERTH POWER CORPORATION_ERTH POWER MAIN RATE ZONE_LARGE USE SERVICE CLASSIFICATION","ERTH POWER CORPORATION_ERTH POWER MAIN RATE ZONE_LARGE USE SERVICE CLASSIFICATION",0,0,0,0,83837533,149774,0,0,0,0,83837533,149774,83837533,149774]
["2019","ERTH POWER CORPORATION","NO RATE CLASS","NO RATE CLASS","ERTH POWER CORPORATION_ERTH POWER MAIN RATE ZONE_NO RATE CLASS SERVICE CLASSIFICATION","ERTH POWER CORPORATION_ERTH POWER MAIN RATE ZONE_NO RATE CLASS SERVICE CLASSIFICATION",0,0,0,0,0,0,0,0,192178816,362309.96875,0,0,0,0]
["2019","ERTH POWER CORPORATION","RESIDENTIAL","RESIDENTIAL","ERTH POWER CORPORATION_ERTH POWER MAIN RATE ZONE_RESIDENTIAL SERVICE CLASSIFICATION","ERTH POWER CORPORATION_ERTH POWER MAIN RATE ZONE_RESIDENTIAL SERVICE CLASSIFICATION",7123892,0,137186731,0,7123892,0,0,0,0,0,144310623,0,151434515,0]
["2019","ERTH POWER CORPORATION","SENTINEL LIGHTING CONNECTIONS","SENTINEL LIGHTING","ERTH POWER CORPORATION_ERTH POWER MAIN RATE ZONE_SENTINEL LIGHTING SERVICE CLASSIFICATION","ERTH POWER CORPORATION_ERTH POWER MAIN RATE ZONE_SENTINEL LIGHTING SERVICE CLASSIFICATION",39939,616,176447,0,39939,0,0,0,0,0,216386,0,256325,616]
["2019","ERTH POWER CORPORATION","STREET LIGHTING CONNECTIONS","STREET LIGHTING","ERTH POWER CORPORATION_ERTH POWER MAIN RATE ZONE_STREET LIGHTING SERVICE CLASSIFICATION","ERTH POWER CORPORATION_ERTH POWER MAIN RATE ZONE_STREET LIGHTING SERVICE CLASSIFICATION",224756,0,646544,1755,1208384,3286,0,0,0,0,1854928,5041,2079684,5041]
["2019","ERTH POWER CORPORATION","UNMETERED SCATTERED LOAD CONNECTIONS","UNMETERED SCATTERED LOAD","ERTH POWER CORPORATION_ERTH POWER MAIN RATE ZONE_UNMETERED SCATTERED LOAD SERVICE CLASSIFICATION","ERTH POWER CORPORATION_ERTH POWER MAIN RATE ZONE_UNMETERED SCATTERED LOAD SERVICE CLASSIFICATION",51704,0,427851,0,51704,0,0,0,0,0,479555,0,531259,0]
["2019","ERTH POWER CORPORATION - WEST COAST HURON RATE ZONE","GENERAL SERVICE EQUAL TO OR GREATER THAN 50 KW","GENERAL SERVICE 50 TO 499 KW","ERTH POWER CORPORATION – GODERICH RATE ZONE_GENERAL SERVICE 50 TO 499 KW SERVICE CLASSIFICATION","ERTH POWER CORPORATION _ GODERICH RATE ZONE_GENERAL SERVICE 50 TO 499 KW SERVICE CLASSIFICATION",5476617,12923,3505960,10021.23,10059876,28491.03,0,0,0,0,13565836,38512.26,19042453,51435.94]
["2019","ERTH POWER CORPORATION - WEST COAST HURON RATE ZONE","GENERAL SERVICE EQUAL TO OR GREATER THAN 50 KW","GENERAL SERVICE 500 TO 4,999 KW","ERTH POWER CORPORATION – GODERICH RATE ZONE_GENERAL SERVICE 500 TO 4,999 KW SERVICE CLASSIFICATION","ERTH POWER CORPORATION _ GODERICH RATE ZONE_GENERAL SERVICE 500 TO 4,999 KW SERVICE CLASSIFICATION",7755126,14421,0,0,12028780,33085.85,0,0,0,0,12028780,33085.85,19783906,47507.5]
["2019","ERTH POWER CORPORATION - WEST COAST HURON RATE ZONE","GENERAL SERVICE LESS THAN 50 KW","GENERAL SERVICE LESS THAN 50 KW","ERTH POWER CORPORATION – GODERICH RATE ZONE_GENERAL SERVICE LESS THAN 50 KW SERVICE CLASSIFICATION","ERTH POWER CORPORATION _ GODERICH RATE ZONE_GENERAL SERVICE LESS THAN 50 KW SERVICE CLASSIFICATION",2455957,0,12108561,0,2899,0,0,0,0,0,12111460,0,14567417,0]
["2019","ERTH POWER CORPORATION - WEST COAST HURON RATE ZONE","LARGE USER","LARGE USE","ERTH POWER CORPORATION – GODERICH RATE ZONE_LARGE USE SERVICE CLASSIFICATION","ERTH POWER CORPORATION _ GODERICH RATE ZONE_LARGE USE SERVICE CLASSIFICATION",0,0,0,0,0,0,58174768,148823.296875,0,0,58174766,148823.29999999999,58174766,148823.29999999999]
["2019","ERTH POWER CORPORATION - WEST COAST HURON RATE ZONE","NO RATE CLASS","NO RATE CLASS","ERTH POWER CORPORATION – GODERICH RATE ZONE_NO RATE CLASS SERVICE CLASSIFICATION","ERTH POWER CORPORATION _ GODERICH RATE ZONE_NO RATE CLASS SERVICE CLASSIFICATION",0,0,0,0,0,0,0,0,19202848,31139.009765625,0,0,0,0]
["2019","ERTH POWER CORPORATION - WEST COAST HURON RATE ZONE","RESIDENTIAL","RESIDENTIAL","ERTH POWER CORPORATION – GODERICH RATE ZONE_RESIDENTIAL SERVICE CLASSIFICATION","ERTH POWER CORPORATION _ GODERICH RATE ZONE_RESIDENTIAL SERVICE CLASSIFICATION",761329,0,24869893,0,0,0,0,0,0,0,24869893,0,25631222,0]
["2019","ERTH POWER CORPORATION - WEST COAST HURON RATE ZONE","SENTINEL LIGHTING CONNECTIONS","SENTINEL LIGHTING","ERTH POWER CORPORATION – GODERICH RATE ZONE_SENTINEL LIGHTING SERVICE CLASSIFICATION","ERTH POWER CORPORATION _ GODERICH RATE ZONE_SENTINEL LIGHTING SERVICE CLASSIFICATION",0,0,1928,5.35,0,0,0,0,0,0,1928,5.35,1928,5.35]
["2019","ERTH POWER CORPORATION - WEST COAST HURON RATE ZONE","STREET LIGHTING CONNECTIONS","STREET LIGHTING","ERTH POWER CORPORATION – GODERICH RATE ZONE_STREET LIGHTING SERVICE CLASSIFICATION","ERTH POWER CORPORATION _ GODERICH RATE ZONE_STREET LIGHTING SERVICE CLASSIFICATION",306085,844,84609,235,0,0,0,0,0,0,84609,235,390694,1079.47]
["2019","ERTH POWER CORPORATION - WEST COAST HURON RATE ZONE","UNMETERED SCATTERED LOAD CONNECTIONS","UNMETERED SCATTERED LOAD","ERTH POWER CORPORATION – GODERICH RATE ZONE_UNMETERED SCATTERED LOAD SERVICE CLASSIFICATION","ERTH POWER CORPORATION _ GODERICH RATE ZONE_UNMETERED SCATTERED LOAD SERVICE CLASSIFICATION",0,0,83100,0,0,0,0,0,0,0,83100,0,83100,0]
["2019","ESPANOLA REGIONAL HYDRO DISTRIBUTION CORPORATION","GENERAL SERVICE EQUAL TO OR GREATER THAN 50 KW","GENERAL SERVICE 50 TO 4,999 KW","ESPANOLA REGIONAL HYDRO DISTRIBUTION CORPORATION_GENERAL SERVICE 50 TO 4,999 KW SERVICE CLASSIFICATION","ESPANOLA REGIONAL HYDRO DISTRIBUTION CORPORATION_GENERAL SERVICE 50 TO 4,999 KW SERVICE CLASSIFICATION",5588910.2999999998,13940,1248220.6000000001,3271.1,8468263.9000000004,21104.799999999999,0,0,0,0,9716484.5,24375.9,15305394.800000001,38316.800000000003]
["2019","ESPANOLA REGIONAL HYDRO DISTRIBUTION CORPORATION","GENERAL SERVICE LESS THAN 50 KW","GENERAL SERVICE LESS THAN 50 KW","ESPANOLA REGIONAL HYDRO DISTRIBUTION CORPORATION_GENERAL SERVICE LESS THAN 50 KW SERVICE CLASSIFICATION","ESPANOLA REGIONAL HYDRO DISTRIBUTION CORPORATION_GENERAL SERVICE LESS THAN 50 KW SERVICE CLASSIFICATION",1516308.6,0,8672007.6500000004,0,0,0,0,0,0,0,8672007.6500000004,0,10188316.25,0]
["2019","ESPANOLA REGIONAL HYDRO DISTRIBUTION CORPORATION","NO RATE CLASS","NO RATE CLASS","ESPANOLA REGIONAL HYDRO DISTRIBUTION CORPORATION_NO RATE CLASS SERVICE CLASSIFICATION","ESPANOLA REGIONAL HYDRO DISTRIBUTION CORPORATION_NO RATE CLASS SERVICE CLASSIFICATION",0,0,0,0,0,0,0,0,0,0,0,0,0,0]
["2019","ESPANOLA REGIONAL HYDRO DISTRIBUTION CORPORATION","RESIDENTIAL","RESIDENTIAL","ESPANOLA REGIONAL HYDRO DISTRIBUTION CORPORATION_RESIDENTIAL SERVICE CLASSIFICATION","ESPANOLA REGIONAL HYDRO DISTRIBUTION CORPORATION_RESIDENTIAL SERVICE CLASSIFICATION",703983.9,0,30238410.300000001,0,0,0,0,0,0,0,30238410.300000001,0,30942394.199999999,0]
["2019","ESPANOLA REGIONAL HYDRO DISTRIBUTION CORPORATION","SENTINEL LIGHTING CONNECTIONS","SENTINEL LIGHTING","ESPANOLA REGIONAL HYDRO DISTRIBUTION CORPORATION_SENTINEL LIGHTING SERVICE CLASSIFICATION","ESPANOLA REGIONAL HYDRO DISTRIBUTION CORPORATION_SENTINEL LIGHTING SERVICE CLASSIFICATION",0,0,24286,0,0,0,0,0,0,0,24286,0,24286,0]
["2019","ESPANOLA REGIONAL HYDRO DISTRIBUTION CORPORATION","STREET LIGHTING CONNECTIONS","STREET LIGHTING","ESPANOLA REGIONAL HYDRO DISTRIBUTION CORPORATION_STREET LIGHTING SERVICE CLASSIFICATION","ESPANOLA REGIONAL HYDRO DISTRIBUTION CORPORATION_STREET LIGHTING SERVICE CLASSIFICATION",170857.5,0,0,0,169222.5,0,0,0,0,0,169222.5,0,340080,0]
["2019","ESPANOLA REGIONAL HYDRO DISTRIBUTION CORPORATION","UNMETERED SCATTERED LOAD CONNECTIONS","UNMETERED SCATTERED LOAD","ESPANOLA REGIONAL HYDRO DISTRIBUTION CORPORATION_UNMETERED SCATTERED LOAD SERVICE CLASSIFICATION","ESPANOLA REGIONAL HYDRO DISTRIBUTION CORPORATION_UNMETERED SCATTERED LOAD SERVICE CLASSIFICATION",10735.1,0,112568.54,0,0,0,0,0,0,0,112568.54,0,123303.64,0]
["2019","ESSEX POWERLINES CORPORATION","EMBEDDED DISTRIBUTOR(S)","EMBEDDED DISTRIBUTOR","ESSEX POWERLINES CORPORATION_EMBEDDED DISTRIBUTOR SERVICE CLASSIFICATION","ESSEX POWERLINES CORPORATION_EMBEDDED DISTRIBUTOR SERVICE CLASSIFICATION",0,0,0,0,8426168.3699999992,0,0,0,0,0,8426168.3699999992,0,8426168.3699999992,0]
["2019","ESSEX POWERLINES CORPORATION","GENERAL SERVICE EQUAL TO OR GREATER THAN 50 KW","GENERAL SERVICE 3,000 TO 4,999 KW","ESSEX POWERLINES CORPORATION_GENERAL SERVICE 3,000 TO 4,999 KW SERVICE CLASSIFICATION","ESSEX POWERLINES CORPORATION_GENERAL SERVICE 3,000 TO 4,999 KW SERVICE CLASSIFICATION",0,0,0,0,15250857.98,0,0,0,0,0,15250857.98,0,15250857.98,0]
["2019","ESSEX POWERLINES CORPORATION","GENERAL SERVICE EQUAL TO OR GREATER THAN 50 KW","GENERAL SERVICE 50 TO 2,999 KW","ESSEX POWERLINES CORPORATION_GENERAL SERVICE 50 TO 2,999 KW SERVICE CLASSIFICATION","ESSEX POWERLINES CORPORATION_GENERAL SERVICE 50 TO 2,999 KW SERVICE CLASSIFICATION",48017477.659999996,133878,14889847.67,47892.32,89835456.890000001,288950.49,10169680,19510.529296875,0,0,114894984.94,356353.34,162912462.59999999,490231.34]
["2019","ESSEX POWERLINES CORPORATION","GENERAL SERVICE EQUAL TO OR GREATER THAN 50 KW","GENERAL SERVICE 50 TO 4,999 KW","ESSEX POWERLINES CORPORATION_GENERAL SERVICE 50 TO 4,999 KW SERVICE CLASSIFICATION","ESSEX POWERLINES CORPORATION_GENERAL SERVICE 50 TO 4,999 KW SERVICE CLASSIFICATION",48017477.659999996,133878,14889847.67,47892.32,105086314.87,288950.49,10169680,19510.529296875,{"$f":"SUM(O181:O182)","v":0},0,130145842.92,356353.34,178163320.57999998,490231.34]
["2019","ESSEX POWERLINES CORPORATION","GENERAL SERVICE LESS THAN 50 KW","GENERAL SERVICE LESS THAN 50 KW","ESSEX POWERLINES CORPORATION_GENERAL SERVICE LESS THAN 50 KW SERVICE CLASSIFICATION","ESSEX POWERLINES CORPORATION_GENERAL SERVICE LESS THAN 50 KW SERVICE CLASSIFICATION",14096164,49568,51384000.25,0,1538093.24,0,0,0,0,0,52922093.490000002,0,67018257.490000002,49568]
["2019","ESSEX POWERLINES CORPORATION","NO RATE CLASS","NO RATE CLASS","ESSEX POWERLINES CORPORATION_NO RATE CLASS SERVICE CLASSIFICATION","ESSEX POWERLINES CORPORATION_NO RATE CLASS SERVICE CLASSIFICATION",0,0,0,0,0,0,0,0,26951834,63884.69921875,0,0,0,0]
["2019","ESSEX POWERLINES CORPORATION","RESIDENTIAL","RESIDENTIAL","ESSEX POWERLINES CORPORATION_RESIDENTIAL SERVICE CLASSIFICATION","ESSEX POWERLINES CORPORATION_RESIDENTIAL SERVICE CLASSIFICATION",7712103.8099999996,0,252829948.46000001,0,0,0,0,0,0,0,252829948.46000001,0,260542052.27000001,0]
["2019","ESSEX POWERLINES CORPORATION","SENTINEL LIGHTING CONNECTIONS","SENTINEL LIGHTING","ESSEX POWERLINES CORPORATION_SENTINEL LIGHTING SERVICE CLASSIFICATION","ESSEX POWERLINES CORPORATION_SENTINEL LIGHTING SERVICE CLASSIFICATION",22974.87,0,247061.93,774.53,0,0,0,0,0,0,247061.93,774.53,270036.8,774.53]
["2019","ESSEX POWERLINES CORPORATION","STREET LIGHTING CONNECTIONS","STREET LIGHTING","ESSEX POWERLINES CORPORATION_STREET LIGHTING SERVICE CLASSIFICATION","ESSEX POWERLINES CORPORATION_STREET LIGHTING SERVICE CLASSIFICATION",2075662.15,6280,0,0,822319.11,2014.69,0,0,0,0,822319.11,2014.69,2897981.26,8294.69]
["2019","ESSEX POWERLINES CORPORATION","UNMETERED SCATTERED LOAD CONNECTIONS","UNMETERED SCATTERED LOAD","ESSEX POWERLINES CORPORATION_UNMETERED SCATTERED LOAD SERVICE CLASSIFICATION","ESSEX POWERLINES CORPORATION_UNMETERED SCATTERED LOAD SERVICE CLASSIFICATION",604891.68999999994,0,1002811.11,0,0,0,0,0,0,0,1002811.11,0,1607702.8,0]
["2019","FESTIVAL HYDRO INC.","GENERAL SERVICE EQUAL TO OR GREATER THAN 50 KW","GENERAL SERVICE 50 TO 4,999 KW","FESTIVAL HYDRO INC._GENERAL SERVICE 50 TO 4,999 KW SERVICE CLASSIFICATION","FESTIVAL HYDRO INC._GENERAL SERVICE 50 TO 4,999 KW SERVICE CLASSIFICATION",69265041,252660,17433064,50360,281889642,609762,3092427,5985,0,0,302415133,666107,371680174,918767]
["2019","FESTIVAL HYDRO INC.","GENERAL SERVICE LESS THAN 50 KW","GENERAL SERVICE LESS THAN 50 KW","FESTIVAL HYDRO INC._GENERAL SERVICE LESS THAN 50 KW SERVICE CLASSIFICATION","FESTIVAL HYDRO INC._GENERAL SERVICE LESS THAN 50 KW SERVICE CLASSIFICATION",15118241,0,49266059,0,0,0,0,0,0,0,49266059,0,64384300,0]
["2019","FESTIVAL HYDRO INC.","LARGE USER","LARGE USE","FESTIVAL HYDRO INC._LARGE USE SERVICE CLASSIFICATION","FESTIVAL HYDRO INC._LARGE USE SERVICE CLASSIFICATION",11026250,18595,0,0,15867888,24951,839389,35934,0,0,16707277,60885,27733527,79480]
["2019","FESTIVAL HYDRO INC.","NO RATE CLASS","NO RATE CLASS","FESTIVAL HYDRO INC._NO RATE CLASS SERVICE CLASSIFICATION","FESTIVAL HYDRO INC._NO RATE CLASS SERVICE CLASSIFICATION",0,0,0,0,0,0,0,0,298260800,591678,0,0,0,0]
["2019","FESTIVAL HYDRO INC.","RESIDENTIAL","RESIDENTIAL","FESTIVAL HYDRO INC._RESIDENTIAL SERVICE CLASSIFICATION","FESTIVAL HYDRO INC._RESIDENTIAL SERVICE CLASSIFICATION",6689942,0,139469048,0,0,0,0,0,0,0,139469048,0,146158990,0]
["2019","FESTIVAL HYDRO INC.","SENTINEL LIGHTING CONNECTIONS","SENTINEL LIGHTING","FESTIVAL HYDRO INC._SENTINEL LIGHTING SERVICE CLASSIFICATION","FESTIVAL HYDRO INC._SENTINEL LIGHTING SERVICE CLASSIFICATION",900,0,109317,306,0,0,0,0,0,0,109317,306,110217,306]
["2019","FESTIVAL HYDRO INC.","STREET LIGHTING CONNECTIONS","STREET LIGHTING","FESTIVAL HYDRO INC._STREET LIGHTING SERVICE CLASSIFICATION","FESTIVAL HYDRO INC._STREET LIGHTING SERVICE CLASSIFICATION",2172720,6007,309096,97,0,0,0,0,0,0,309096,97,2481816,6104]
["2019","FESTIVAL HYDRO INC.","UNMETERED SCATTERED LOAD CONNECTIONS","UNMETERED SCATTERED LOAD","FESTIVAL HYDRO INC._UNMETERED SCATTERED LOAD SERVICE CLASSIFICATION","FESTIVAL HYDRO INC._UNMETERED SCATTERED LOAD SERVICE CLASSIFICATION",60804,0,246744,0,336040,0,0,0,0,0,582784,0,643588,0]
["2019","FORT FRANCES POWER CORPORATION","GENERAL SERVICE EQUAL TO OR GREATER THAN 50 KW","GENERAL SERVICE 50 TO 4,999 KW","FORT FRANCES POWER CORPORATION_GENERAL SERVICE 50 TO 4,999 KW SERVICE CLASSIFICATION","FORT FRANCES POWER CORPORATION_GENERAL SERVICE 50 TO 4,999 KW SERVICE CLASSIFICATION",0,0,4466200,0,17251541,47888,0,0,0,0,21717741,47888,21717741,47888]
["2019","FORT FRANCES POWER CORPORATION","GENERAL SERVICE LESS THAN 50 KW","GENERAL SERVICE LESS THAN 50 KW","FORT FRANCES POWER CORPORATION_GENERAL SERVICE LESS THAN 50 KW SERVICE CLASSIFICATION","FORT FRANCES POWER CORPORATION_GENERAL SERVICE LESS THAN 50 KW SERVICE CLASSIFICATION",378711.99,0,14624437,0,0,0,0,0,0,0,14624437,0,15003148.99,0]
["2019","FORT FRANCES POWER CORPORATION","NO RATE CLASS","NO RATE CLASS","FORT FRANCES POWER CORPORATION_NO RATE CLASS SERVICE CLASSIFICATION","FORT FRANCES POWER CORPORATION_NO RATE CLASS SERVICE CLASSIFICATION",0,0,0,0,0,0,0,0,0,0,0,0,0,0]
["2019","FORT FRANCES POWER CORPORATION","RESIDENTIAL","RESIDENTIAL","FORT FRANCES POWER CORPORATION_RESIDENTIAL SERVICE CLASSIFICATION","FORT FRANCES POWER CORPORATION_RESIDENTIAL SERVICE CLASSIFICATION",101486.17,0,36489780,0,0,0,0,0,0,0,36489780,0,36591266.170000002,0]
["2019","FORT FRANCES POWER CORPORATION","STREET LIGHTING CONNECTIONS","STREET LIGHTING","FORT FRANCES POWER CORPORATION_STREET LIGHTING SERVICE CLASSIFICATION","FORT FRANCES POWER CORPORATION_STREET LIGHTING SERVICE CLASSIFICATION",0,0,0,0,432172,1159,0,0,0,0,432172,1159,432172,1159]
["2019","FORT FRANCES POWER CORPORATION","UNMETERED SCATTERED LOAD CONNECTIONS","UNMETERED SCATTERED LOAD","FORT FRANCES POWER CORPORATION_UNMETERED SCATTERED LOAD SERVICE CLASSIFICATION","FORT FRANCES POWER CORPORATION_UNMETERED SCATTERED LOAD SERVICE CLASSIFICATION",0,0,62628,0,0,0,0,0,0,0,62628,0,62628,0]
["2019","GREATER SUDBURY HYDRO INC.","GENERAL SERVICE EQUAL TO OR GREATER THAN 50 KW","GENERAL SERVICE 50 TO 4,999 KW","GREATER SUDBURY HYDRO INC._GENERAL SERVICE 50 TO 4,999 KW SERVICE CLASSIFICATION","GREATER SUDBURY HYDRO INC._GENERAL SERVICE 50 TO 4,999 KW SERVICE CLASSIFICATION",55121359.119999997,137054,63274424.009999998,170703.08,238170228.72,566150.81999999995,3477473.25,6618.5400390625,0,0,304922125.97000003,743472.44,360043485.08999997,880526.89]
["2019","GREATER SUDBURY HYDRO INC.","GENERAL SERVICE LESS THAN 50 KW","GENERAL SERVICE LESS THAN 50 KW","GREATER SUDBURY HYDRO INC._GENERAL SERVICE LESS THAN 50 KW SERVICE CLASSIFICATION","GREATER SUDBURY HYDRO INC._GENERAL SERVICE LESS THAN 50 KW SERVICE CLASSIFICATION",21825336.57,0,115864529.29000001,0,181543.1,0,0,0,0,0,116046072.39,0,137871408.96000001,0]
["2019","GREATER SUDBURY HYDRO INC.","NO RATE CLASS","NO RATE CLASS","GREATER SUDBURY HYDRO INC._NO RATE CLASS SERVICE CLASSIFICATION","GREATER SUDBURY HYDRO INC._NO RATE CLASS SERVICE CLASSIFICATION",0,0,0,0,0,0,0,0,72343264,144546.375,0,0,0,0]
["2019","GREATER SUDBURY HYDRO INC.","RESIDENTIAL","RESIDENTIAL","GREATER SUDBURY HYDRO INC._RESIDENTIAL SERVICE CLASSIFICATION","GREATER SUDBURY HYDRO INC._RESIDENTIAL SERVICE CLASSIFICATION",9599008.2799999993,0,366124895.88999999,0,0,0,0,0,0,0,366124895.88999999,0,375723904.17000002,0]
["2019","GREATER SUDBURY HYDRO INC.","SENTINEL LIGHTING CONNECTIONS","SENTINEL LIGHTING","GREATER SUDBURY HYDRO INC._SENTINEL LIGHTING SERVICE CLASSIFICATION","GREATER SUDBURY HYDRO INC._SENTINEL LIGHTING SERVICE CLASSIFICATION",33935.46,93,369734.32,1017.9,0,0,0,0,0,0,369734.32,1017.9,403669.78,1111.06]
["2019","GREATER SUDBURY HYDRO INC.","STREET LIGHTING CONNECTIONS","STREET LIGHTING","GREATER SUDBURY HYDRO INC._STREET LIGHTING SERVICE CLASSIFICATION","GREATER SUDBURY HYDRO INC._STREET LIGHTING SERVICE CLASSIFICATION",0,0,0,0,7471084.9699999997,20877.91,0,0,0,0,7471084.9699999997,20877.91,7471084.9699999997,20877.91]
["2019","GREATER SUDBURY HYDRO INC.","UNMETERED SCATTERED LOAD CONNECTIONS","UNMETERED SCATTERED LOAD","GREATER SUDBURY HYDRO INC._UNMETERED SCATTERED LOAD SERVICE CLASSIFICATION","GREATER SUDBURY HYDRO INC._UNMETERED SCATTERED LOAD SERVICE CLASSIFICATION",10074,0,1124548.2,0,0,0,0,0,0,0,1124548.2,0,1134622.2,0]
["2019","GRIMSBY POWER INCORPORATED","EMBEDDED DISTRIBUTOR(S)","EMBEDDED DISTRIBUTOR","GRIMSBY POWER INCORPORATED_EMBEDDED DISTRIBUTOR SERVICE CLASSIFICATION","GRIMSBY POWER INCORPORATED_EMBEDDED DISTRIBUTOR SERVICE CLASSIFICATION",0,0,0,0,43385968.659999996,144421.29999999999,0,0,0,0,43385968.659999996,144421.29999999999,43385968.659999996,144421.29999999999]
["2019","GRIMSBY POWER INCORPORATED","GENERAL SERVICE EQUAL TO OR GREATER THAN 50 KW","GENERAL SERVICE 50 TO 4,999 KW","GRIMSBY POWER INCORPORATED_GENERAL SERVICE 50 TO 4,999 KW SERVICE CLASSIFICATION","GRIMSBY POWER INCORPORATED_GENERAL SERVICE 50 TO 4,999 KW SERVICE CLASSIFICATION",11230292.84,31798,3282978.9,12323.7,48783822.670000002,135624.37,3378436,6492.72998046875,0,0,55445237.469999999,154440.79999999999,66675530.310000002,186239.37]
["2019","GRIMSBY POWER INCORPORATED","GENERAL SERVICE LESS THAN 50 KW","GENERAL SERVICE LESS THAN 50 KW","GRIMSBY POWER INCORPORATED_GENERAL SERVICE LESS THAN 50 KW SERVICE CLASSIFICATION","GRIMSBY POWER INCORPORATED_GENERAL SERVICE LESS THAN 50 KW SERVICE CLASSIFICATION",3402666.01,0,15859137.75,0,0,0,0,0,0,0,15859137.75,0,19261803.760000002,0]
["2019","GRIMSBY POWER INCORPORATED","NO RATE CLASS","NO RATE CLASS","GRIMSBY POWER INCORPORATED_NO RATE CLASS SERVICE CLASSIFICATION","GRIMSBY POWER INCORPORATED_NO RATE CLASS SERVICE CLASSIFICATION",0,0,0,0,0,0,0,0,3221178.25,8379.7099609375,0,0,0,0]
["2019","GRIMSBY POWER INCORPORATED","RESIDENTIAL","RESIDENTIAL","GRIMSBY POWER INCORPORATED_RESIDENTIAL SERVICE CLASSIFICATION","GRIMSBY POWER INCORPORATED_RESIDENTIAL SERVICE CLASSIFICATION",2373164.87,0,94545953.629999995,0,0,0,0,0,0,0,94545953.629999995,0,96919118.5,0]
["2019","GRIMSBY POWER INCORPORATED","STREET LIGHTING CONNECTIONS","STREET LIGHTING","GRIMSBY POWER INCORPORATED_STREET LIGHTING SERVICE CLASSIFICATION","GRIMSBY POWER INCORPORATED_STREET LIGHTING SERVICE CLASSIFICATION",736125.29,1862,0,0,5249.5,185.5,0,0,0,0,5249.5,185.5,741374.79,2048.3000000000002]
["2019","GRIMSBY POWER INCORPORATED","UNMETERED SCATTERED LOAD CONNECTIONS","UNMETERED SCATTERED LOAD","GRIMSBY POWER INCORPORATED_UNMETERED SCATTERED LOAD SERVICE CLASSIFICATION","GRIMSBY POWER INCORPORATED_UNMETERED SCATTERED LOAD SERVICE CLASSIFICATION",1156.3399999999999,0,336907.53,0,0,0,0,0,0,0,336907.53,0,338063.87,0]
["2019","ALECTRA UTILITIES CORPORATION","GENERAL SERVICE EQUAL TO OR GREATER THAN 50 KW","GENERAL SERVICE 1,000 TO 4,999 KW","ALECTRA UTILITIES CORPORATION_GUELPH RATE ZONE_GENERAL SERVICE 1,000 TO 4,999 KW SERVICE CLASSIFICATION","ALECTRA UTILITIES CORPORATION_GUELPH RATE ZONE_GENERAL SERVICE 1,000 TO 4,999 KW SERVICE CLASSIFICATION",29798039.030000001,55007,0,0,510111041.88,1072775.75,508796.8125,7641.75,0,0,510619838.68000001,1080417.5,540417877.71000004,1135424.51]
["2019","ALECTRA UTILITIES CORPORATION","GENERAL SERVICE EQUAL TO OR GREATER THAN 50 KW","GENERAL SERVICE 50 TO 999 KW","ALECTRA UTILITIES CORPORATION_GUELPH RATE ZONE_GENERAL SERVICE 50 TO 999 KW SERVICE CLASSIFICATION","ALECTRA UTILITIES CORPORATION_GUELPH RATE ZONE_GENERAL SERVICE 50 TO 999 KW SERVICE CLASSIFICATION",73441418.829999998,209572,40984861.479999997,117243.73,281873708.76999998,757771.83,6050229,12910.8798828125,0,0,328908799.44999999,887926.44,402350218.27999997,1097498.74]
["2019","ALECTRA UTILITIES CORPORATION","GENERAL SERVICE LESS THAN 50 KW","GENERAL SERVICE LESS THAN 50 KW","ALECTRA UTILITIES CORPORATION_GUELPH RATE ZONE_GENERAL SERVICE LESS THAN 50 KW SERVICE CLASSIFICATION","ALECTRA UTILITIES CORPORATION_GUELPH RATE ZONE_GENERAL SERVICE LESS THAN 50 KW SERVICE CLASSIFICATION",24681040.859999999,0,117527987.5,0,48,0,0,0,0,0,117528035.5,0,142209076.36000001,0]
["2019","ALECTRA UTILITIES CORPORATION","LARGE USER","LARGE USE","ALECTRA UTILITIES CORPORATION_GUELPH RATE ZONE_LARGE USE SERVICE CLASSIFICATION","ALECTRA UTILITIES CORPORATION_GUELPH RATE ZONE_LARGE USE SERVICE CLASSIFICATION",0,0,0,0,197428961.93000001,423180.01,0,0,0,0,197428961.93000001,423180.01,197428961.93000001,423180.01]
["2019","ALECTRA UTILITIES CORPORATION","NO RATE CLASS","NO RATE CLASS","ALECTRA UTILITIES CORPORATION_GUELPH RATE ZONE_NO RATE CLASS SERVICE CLASSIFICATION","ALECTRA UTILITIES CORPORATION_GUELPH RATE ZONE_NO RATE CLASS SERVICE CLASSIFICATION",0,0,0,0,0,0,0,0,779216960,1648782.375,0,0,0,0]
["2019","ALECTRA UTILITIES CORPORATION","RESIDENTIAL","RESIDENTIAL","ALECTRA UTILITIES CORPORATION_GUELPH RATE ZONE_RESIDENTIAL SERVICE CLASSIFICATION","ALECTRA UTILITIES CORPORATION_GUELPH RATE ZONE_RESIDENTIAL SERVICE CLASSIFICATION",11061065.16,0,372980680.19,0,0,0,0,0,0,0,372980680.19,0,384041745.35000002,0]
["2019","ALECTRA UTILITIES CORPORATION","SENTINEL LIGHTING CONNECTIONS","SENTINEL LIGHTING","ALECTRA UTILITIES CORPORATION_GUELPH RATE ZONE_SENTINEL LIGHTING SERVICE CLASSIFICATION","ALECTRA UTILITIES CORPORATION_GUELPH RATE ZONE_SENTINEL LIGHTING SERVICE CLASSIFICATION",0,0,18188.97,50.76,0,0,0,0,0,0,18188.97,50.76,18188.97,50.76]
["2019","ALECTRA UTILITIES CORPORATION","STREET LIGHTING CONNECTIONS","STREET LIGHTING","ALECTRA UTILITIES CORPORATION_GUELPH RATE ZONE_STREET LIGHTING SERVICE CLASSIFICATION","ALECTRA UTILITIES CORPORATION_GUELPH RATE ZONE_STREET LIGHTING SERVICE CLASSIFICATION",154603.93,431,0,0,10028145.720000001,27992.94,0,0,0,0,10028145.720000001,27992.94,10182749.65,28424.58]
["2019","ALECTRA UTILITIES CORPORATION","UNMETERED SCATTERED LOAD CONNECTIONS","UNMETERED SCATTERED LOAD","ALECTRA UTILITIES CORPORATION_GUELPH RATE ZONE_UNMETERED SCATTERED LOAD SERVICE CLASSIFICATION","ALECTRA UTILITIES CORPORATION_GUELPH RATE ZONE_UNMETERED SCATTERED LOAD SERVICE CLASSIFICATION",376374.39,0,1434303.48,0,0,0,0,0,0,0,1434303.48,0,1810677.87,0]
["2019","HALTON HILLS HYDRO INC.","GENERAL SERVICE EQUAL TO OR GREATER THAN 50 KW","GENERAL SERVICE 1,000 TO 4,999 KW","HALTON HILLS HYDRO INC._GENERAL SERVICE 1,000 TO 4,999 KW SERVICE CLASSIFICATION","HALTON HILLS HYDRO INC._GENERAL SERVICE 1,000 TO 4,999 KW SERVICE CLASSIFICATION",26850755,54578,0,0,64978614,193875,0,0,0,0,64978614,193875,91829369,248453]
["2019","HALTON HILLS HYDRO INC.","GENERAL SERVICE EQUAL TO OR GREATER THAN 50 KW","GENERAL SERVICE 50 TO 999 KW","HALTON HILLS HYDRO INC._GENERAL SERVICE 50 TO 999 KW SERVICE CLASSIFICATION","HALTON HILLS HYDRO INC._GENERAL SERVICE 50 TO 999 KW SERVICE CLASSIFICATION",22320135,64851,14426653,47785,104296286,290879,3870953,7360,0,0,122593892,346024,144914027,410875]
["2019","HALTON HILLS HYDRO INC.","GENERAL SERVICE LESS THAN 50 KW","GENERAL SERVICE LESS THAN 50 KW","HALTON HILLS HYDRO INC._GENERAL SERVICE LESS THAN 50 KW SERVICE CLASSIFICATION","HALTON HILLS HYDRO INC._GENERAL SERVICE LESS THAN 50 KW SERVICE CLASSIFICATION",7999201,0,43979920,0,0,0,0,0,0,0,43979920,0,51979121,0]
["2019","HALTON HILLS HYDRO INC.","NO RATE CLASS","NO RATE CLASS","HALTON HILLS HYDRO INC._NO RATE CLASS SERVICE CLASSIFICATION","HALTON HILLS HYDRO INC._NO RATE CLASS SERVICE CLASSIFICATION",0,0,0,0,0,0,0,0,78045312,232310,0,0,0,0]
["2019","HALTON HILLS HYDRO INC.","RESIDENTIAL","RESIDENTIAL","HALTON HILLS HYDRO INC._RESIDENTIAL SERVICE CLASSIFICATION","HALTON HILLS HYDRO INC._RESIDENTIAL SERVICE CLASSIFICATION",4306072,0,204105304,0,0,0,0,0,0,0,204105304,0,208411376,0]
["2019","HALTON HILLS HYDRO INC.","SENTINEL LIGHTING CONNECTIONS","SENTINEL LIGHTING","HALTON HILLS HYDRO INC._SENTINEL LIGHTING SERVICE CLASSIFICATION","HALTON HILLS HYDRO INC._SENTINEL LIGHTING SERVICE CLASSIFICATION",22407,62,239507,633,0,0,0,0,0,0,239507,633,261914,695]
["2019","HALTON HILLS HYDRO INC.","STREET LIGHTING CONNECTIONS","STREET LIGHTING","HALTON HILLS HYDRO INC._STREET LIGHTING SERVICE CLASSIFICATION","HALTON HILLS HYDRO INC._STREET LIGHTING SERVICE CLASSIFICATION",0,0,0,0,1093732,3043,0,0,0,0,1093732,3043,1093732,3043]
["2019","HALTON HILLS HYDRO INC.","UNMETERED SCATTERED LOAD CONNECTIONS","UNMETERED SCATTERED LOAD","HALTON HILLS HYDRO INC._UNMETERED SCATTERED LOAD SERVICE CLASSIFICATION","HALTON HILLS HYDRO INC._UNMETERED SCATTERED LOAD SERVICE CLASSIFICATION",0,0,953473,0,0,0,0,0,0,0,953473,0,953473,0]
["2019","HEARST POWER DISTRIBUTION COMPANY LTD.","GENERAL SERVICE EQUAL TO OR GREATER THAN 50 KW","GENERAL SERVICE 1,500 TO 4,999 KW","HEARST POWER DISTRIBUTION CO. LTD._GENERAL SERVICE 1,500 TO 4,999 KW SERVICE CLASSIFICATION","HEARST POWER DISTRIBUTION CO. LTD._GENERAL SERVICE 1,500 TO 4,999 KW SERVICE CLASSIFICATION",0,0,0,0,19994465.039999999,56090.76,0,0,0,0,19994465.039999999,56090.76,19994465.039999999,56090.76]
["2019","HEARST POWER DISTRIBUTION COMPANY LTD.","GENERAL SERVICE EQUAL TO OR GREATER THAN 50 KW","GENERAL SERVICE 50 TO 1,499 KW","HEARST POWER DISTRIBUTION CO. LTD._GENERAL SERVICE 50 TO 1,499 KW SERVICE CLASSIFICATION","HEARST POWER DISTRIBUTION CO. LTD._GENERAL SERVICE 50 TO 1,499 KW SERVICE CLASSIFICATION",634310,1653,10025170,52106.17,13729143.050000001,12445.92,0,0,0,0,23754313.050000001,64552.09,24388623.050000001,66205.72]
["2019","HEARST POWER DISTRIBUTION COMPANY LTD.","GENERAL SERVICE LESS THAN 50 KW","GENERAL SERVICE LESS THAN 50 KW","HEARST POWER DISTRIBUTION CO. LTD._GENERAL SERVICE LESS THAN 50 KW SERVICE CLASSIFICATION","HEARST POWER DISTRIBUTION CO. LTD._GENERAL SERVICE LESS THAN 50 KW SERVICE CLASSIFICATION",640664.87,0,10361856.380000001,0,1604,0,0,0,0,0,10363460.380000001,0,11004125.25,0]
["2019","HEARST POWER DISTRIBUTION COMPANY LTD.","NO RATE CLASS","NO RATE CLASS","HEARST POWER DISTRIBUTION CO. LTD._NO RATE CLASS SERVICE CLASSIFICATION","HEARST POWER DISTRIBUTION CO. LTD._NO RATE CLASS SERVICE CLASSIFICATION",0,0,0,0,0,0,0,0,24419620,63606.9296875,0,0,0,0]
["2019","HEARST POWER DISTRIBUTION COMPANY LTD.","RESIDENTIAL","RESIDENTIAL","HEARST POWER DISTRIBUTION CO. LTD._RESIDENTIAL SERVICE CLASSIFICATION","HEARST POWER DISTRIBUTION CO. LTD._RESIDENTIAL SERVICE CLASSIFICATION",163569.98000000001,0,22271065.289999999,0,0,0,0,0,0,0,22271065.289999999,0,22434635.27,0]
["2019","HEARST POWER DISTRIBUTION COMPANY LTD.","SENTINEL LIGHTING CONNECTIONS","SENTINEL LIGHTING","HEARST POWER DISTRIBUTION CO. LTD._SENTINEL LIGHTING SERVICE CLASSIFICATION","HEARST POWER DISTRIBUTION CO. LTD._SENTINEL LIGHTING SERVICE CLASSIFICATION",180,0,0,0,9272.16,0,0,0,0,0,9272.16,0,9452.16,0]
["2019","HEARST POWER DISTRIBUTION COMPANY LTD.","STREET LIGHTING CONNECTIONS","STREET LIGHTING","HEARST POWER DISTRIBUTION CO. LTD._STREET LIGHTING SERVICE CLASSIFICATION","HEARST POWER DISTRIBUTION CO. LTD._STREET LIGHTING SERVICE CLASSIFICATION",436643.6,1341,0,0,12176.5,16.7,0,0,0,0,12176.5,16.7,448820.1,1358.63]
["2019","HYDRO 2000 INC.","GENERAL SERVICE EQUAL TO OR GREATER THAN 50 KW","GENERAL SERVICE 50 TO 4,999 KW","HYDRO 2000 INC._GENERAL SERVICE 50 TO 4,999 KW SERVICE CLASSIFICATION","HYDRO 2000 INC._GENERAL SERVICE 50 TO 4,999 KW SERVICE CLASSIFICATION",0,648,0,0,4274766,10588.7,0,0,0,0,4274766,10588.7,4274766,11237.5]
["2019","HYDRO 2000 INC.","GENERAL SERVICE LESS THAN 50 KW","GENERAL SERVICE LESS THAN 50 KW","HYDRO 2000 INC._GENERAL SERVICE LESS THAN 50 KW SERVICE CLASSIFICATION","HYDRO 2000 INC._GENERAL SERVICE LESS THAN 50 KW SERVICE CLASSIFICATION",437411,0,4093257,0,0,0,0,0,0,0,4093257,0,4530668,0]
["2019","HYDRO 2000 INC.","NO RATE CLASS","NO RATE CLASS","HYDRO 2000 INC._NO RATE CLASS SERVICE CLASSIFICATION","HYDRO 2000 INC._NO RATE CLASS SERVICE CLASSIFICATION",0,0,0,0,0,0,0,0,null,null,0,0,0,0]
["2019","HYDRO 2000 INC.","RESIDENTIAL","RESIDENTIAL","HYDRO 2000 INC._RESIDENTIAL SERVICE CLASSIFICATION","HYDRO 2000 INC._RESIDENTIAL SERVICE CLASSIFICATION",166407,0,12791618,0,0,0,0,0,0,0,12791618,0,12958025,0]
["2019","HYDRO 2000 INC.","STREET LIGHTING CONNECTIONS","STREET LIGHTING","HYDRO 2000 INC._STREET LIGHTING SERVICE CLASSIFICATION","HYDRO 2000 INC._STREET LIGHTING SERVICE CLASSIFICATION",0,0,0,0,153342,424.8,0,0,0,0,153342,424.8,153342,424.8]
["2019","HYDRO 2000 INC.","UNMETERED SCATTERED LOAD CONNECTIONS","UNMETERED SCATTERED LOAD","HYDRO 2000 INC._UNMETERED SCATTERED LOAD SERVICE CLASSIFICATION","HYDRO 2000 INC._UNMETERED SCATTERED LOAD SERVICE CLASSIFICATION",0,0,153342,0,4360,0,0,0,0,0,157702,0,157702,0]
["2019","HYDRO HAWKESBURY INC.","GENERAL SERVICE EQUAL TO OR GREATER THAN 50 KW","GENERAL SERVICE 50 TO 4,999 KW","HYDRO HAWKESBURY INC._GENERAL SERVICE 50 TO 4,999 KW SERVICE CLASSIFICATION","HYDRO HAWKESBURY INC._GENERAL SERVICE 50 TO 4,999 KW SERVICE CLASSIFICATION",9046500,24359,0,0,65649483,167129,0,0,0,0,65649483,167129,74695983,191488.2]
["2019","HYDRO HAWKESBURY INC.","GENERAL SERVICE LESS THAN 50 KW","GENERAL SERVICE LESS THAN 50 KW","HYDRO HAWKESBURY INC._GENERAL SERVICE LESS THAN 50 KW SERVICE CLASSIFICATION","HYDRO HAWKESBURY INC._GENERAL SERVICE LESS THAN 50 KW SERVICE CLASSIFICATION",3509746.4,0,15227645,0,0,0,0,0,0,0,15227645,0,18737391.399999999,0]
["2019","HYDRO HAWKESBURY INC.","NO RATE CLASS","NO RATE CLASS","HYDRO HAWKESBURY INC._NO RATE CLASS SERVICE CLASSIFICATION","HYDRO HAWKESBURY INC._NO RATE CLASS SERVICE CLASSIFICATION",0,0,0,0,0,0,0,0,15041117,35472.94921875,0,0,0,0]
["2019","HYDRO HAWKESBURY INC.","RESIDENTIAL","RESIDENTIAL","HYDRO HAWKESBURY INC._RESIDENTIAL SERVICE CLASSIFICATION","HYDRO HAWKESBURY INC._RESIDENTIAL SERVICE CLASSIFICATION",868558.7,0,48964400,0,0,0,0,0,0,0,48964400,0,49832958.700000003,0]
["2019","HYDRO HAWKESBURY INC.","SENTINEL LIGHTING CONNECTIONS","SENTINEL LIGHTING","HYDRO HAWKESBURY INC._SENTINEL LIGHTING SERVICE CLASSIFICATION","HYDRO HAWKESBURY INC._SENTINEL LIGHTING SERVICE CLASSIFICATION",5028.5,0,61353,194,0,0,0,0,0,0,61353,194,66381.5,194]
["2019","HYDRO HAWKESBURY INC.","STREET LIGHTING CONNECTIONS","STREET LIGHTING","HYDRO HAWKESBURY INC._STREET LIGHTING SERVICE CLASSIFICATION","HYDRO HAWKESBURY INC._STREET LIGHTING SERVICE CLASSIFICATION",0,0,0,0,497725,1381,0,0,0,0,497725,1381,497725,1381]
["2019","HYDRO HAWKESBURY INC.","UNMETERED SCATTERED LOAD CONNECTIONS","UNMETERED SCATTERED LOAD","HYDRO HAWKESBURY INC._UNMETERED SCATTERED LOAD SERVICE CLASSIFICATION","HYDRO HAWKESBURY INC._UNMETERED SCATTERED LOAD SERVICE CLASSIFICATION",116564,0,192132,0,0,0,0,0,0,0,192132,0,308696,0]
["2019","HYDRO ONE NETWORKS INC.","EMBEDDED DISTRIBUTOR(S)","EMBEDDED DISTRIBUTOR (HALDIMAND COUNTY) - HYDRO ONE","HYDRO ONE NETWORKS INC._FORMER HALDIMAND COUNTY HYDRO INC. SERVICE AREA_EMBEDDED DISTRIBUTOR SERVICE CLASSIFICATION FOR HYDRO ONE NETWORKS INC.","HYDRO ONE NETWORKS INC._FORMER HALDIMAND COUNTY HYDRO INC. SERVICE AREA_EMBEDDED DISTRIBUTOR SERVICE CLASSIFICATION FOR HYDRO ONE NETWORKS INC.",0,0,0,0,0,0,0,0,0,0,0,0,0,0]
["2019","HYDRO ONE NETWORKS INC.","EMBEDDED DISTRIBUTOR(S)","EMBEDDED DISTRIBUTOR – NORFOLK POWER","HYDRO ONE NETWORKS INC._FORMER NORFOLK POWER DISTRIBUTION INC. SERVICE AREA_EMBEDDED DISTRIBUTOR SERVICE CLASSIFICATION","HYDRO ONE NETWORKS INC._FORMER NORFOLK POWER DISTRIBUTION INC. SERVICE AREA_EMBEDDED DISTRIBUTOR SERVICE CLASSIFICATION",0,0,0,0,0,0,0,0,0,0,0,0,0,0]
["2019","HYDRO ONE NETWORKS INC.","EMBEDDED DISTRIBUTOR(S)","SUB TRANSMISSION – EMBEDDED DISTRIBUTOR - HYDRO ONE NETWORKS","HYDRO ONE NETWORKS INC._SUB TRANSMISSION – EMBEDDED DISTRIBUTOR SERVICE CLASSIFICATION","HYDRO ONE NETWORKS INC._SUB TRANSMISSION _ EMBEDDED DISTRIBUTOR SERVICE CLASSIFICATION",0,0,0,0,1497675752.74,8045290.7199999997,9672152064,21122222,0,0,11169827369.35,29167512.140000001,11169827369.35,29167512.140000001]
["2019","HYDRO ONE NETWORKS INC.","SUB TRANSMISSION CUSTOMERS","SUB TRANSMISSION – END USE CUSTOMER - HYDRO ONE NETWORKS","HYDRO ONE NETWORKS INC._SUB TRANSMISSION – END USE CUSTOMER SERVICE CLASSIFICATION","HYDRO ONE NETWORKS INC._SUB TRANSMISSION _ END USE CUSTOMER SERVICE CLASSIFICATION",520412624.37,1204006,0,0,3405126513.2800002,8641878.8599999994,819337536,2455656.5,0,0,4224464076.75,11097535.439999999,4744876701.1199999,12301541.439999999]
["2019","HYDRO ONE NETWORKS INC.","SUB TRANSMISSION CUSTOMERS","SUB TRANSMISSION – HYDRO ONE NETWORKS","HYDRO ONE NETWORKS INC._SUB TRANSMISSION - ST SERVICE CLASSIFICATION","HYDRO ONE NETWORKS INC._SUB TRANSMISSION _ ST SERVICE CLASSIFICATION",520412624.37,1204006,0,0,4902802266.0200005,16687169.579999998,10491489600,23577878.5,{"$f":"SUM(O257:O258)","v":0},0,15394291446.1,40265047.579999998,15914704070.470001,41469053.579999998]
["2019","HYDRO ONE NETWORKS INC.","GENERAL SERVICE EQUAL TO OR GREATER THAN 50 KW","DISTRIBUTED GENERATION - DGEN - HYDRO ONE NETWORKS","HYDRO ONE NETWORKS INC._DISTRIBUTED GENERATION - DGEN SERVICE CLASSIFICATION","HYDRO ONE NETWORKS INC._DISTRIBUTED GENERATION _ DGEN SERVICE CLASSIFICATION",101514.1,1096,0,0,28647804.18,191032.57,2109635.75,11984.580078125,0,0,30757440.039999999,203017.15,30858954.140000001,204113.55]
["2019","HYDRO ONE NETWORKS INC.","GENERAL SERVICE EQUAL TO OR GREATER THAN 50 KW","GENERAL SERVICE 50 TO 4,999 KW - HALDIMAND COUNTY","HYDRO ONE NETWORKS INC._FORMER HALDIMAND COUNTY HYDRO INC. SERVICE AREA_GENERAL SERVICE 50 TO 4,999 KW SERVICE CLASSIFICATION","HYDRO ONE NETWORKS INC._FORMER HALDIMAND COUNTY HYDRO INC. SERVICE AREA_GENERAL SERVICE 50 TO 4,999 KW SERVICE CLASSIFICATION",45020183.560000002,106219,9163671.9100000001,31193.98,66415588.700000003,180671.58,2757324.25,5299.22998046875,0,0,78336584.75,217164.79,123356768.31,323384.12]
["2019","HYDRO ONE NETWORKS INC.","GENERAL SERVICE EQUAL TO OR GREATER THAN 50 KW","GENERAL SERVICE 50 TO 4,999 KW - NORFOLK POWER","HYDRO ONE NETWORKS INC._FORMER NORFOLK POWER DISTRIBUTION INC. SERVICE AREA_GENERAL SERVICE 50 TO 4,999 KW SERVICE CLASSIFICATION","HYDRO ONE NETWORKS INC._FORMER NORFOLK POWER DISTRIBUTION INC. SERVICE AREA_GENERAL SERVICE 50 TO 4,999 KW SERVICE CLASSIFICATION",44186431.609999999,115588,4071147.87,22987.79,75003274.849999994,212373.69,3622116.25,6612.0400390625,0,0,82696538.849999994,241973.52,126882970.45999999,357562.1]
["2019","HYDRO ONE NETWORKS INC.","GENERAL SERVICE EQUAL TO OR GREATER THAN 50 KW","GENERAL SERVICE 50 TO 999 KW - WOODSTOCK HYDRO","HYDRO ONE NETWORKS INC._FORMER WOODSTOCK HYDRO SERVICES INC. SERVICE AREA_GENERAL SERVICE 50 TO 999 KW SERVICE CLASSIFICATION","HYDRO ONE NETWORKS INC._FORMER WOODSTOCK HYDRO SERVICES INC. SERVICE AREA_GENERAL SERVICE 50 TO 999 KW SERVICE CLASSIFICATION",56419199.079999998,138809,13878998.41,36464.85,153954262.69999999,387278.16,3025742,5620.39990234375,0,0,170859002.99000001,429363.41,227278202.06999999,568172.85]
["2019","HYDRO ONE NETWORKS INC.","GENERAL SERVICE EQUAL TO OR GREATER THAN 50 KW","GENERAL SERVICE DEMAND BILLED (50 KW AND ABOVE) - GSD - HYDRO ONE NETWORKS","HYDRO ONE NETWORKS INC._GENERAL SERVICE DEMAND BILLED - GSD SERVICE CLASSIFICATION","HYDRO ONE NETWORKS INC._GENERAL SERVICE DEMAND BILLED _ GSD SERVICE CLASSIFICATION",652444516.00999999,2218503,282983048.25999999,1242940.94,1602021199.6900001,4906311.91,8452759,15328.25,0,0,1893457007.1600001,6164581.0999999996,2545901523.1700001,8383084.1399999997]
["2019","HYDRO ONE NETWORKS INC.","GENERAL SERVICE EQUAL TO OR GREATER THAN 50 KW","GENERAL SERVICE EQUAL TO OR GREATER THAN 1,000 KW - WOODSTOCK HYDRO","HYDRO ONE NETWORKS INC._FORMER WOODSTOCK HYDRO SERVICES INC. SERVICE AREA_GENERAL SERVICE GREATER THAN 1,000 KW SERVICE CLASSIFICATION","HYDRO ONE NETWORKS INC._FORMER WOODSTOCK HYDRO SERVICES INC. SERVICE AREA_GENERAL SERVICE GREATER THAN 1,000 KW SERVICE CLASSIFICATION",0,0,0,0,0,0,0,0,0,0,0,0,0,0]
["2019","HYDRO ONE NETWORKS INC.","GENERAL SERVICE EQUAL TO OR GREATER THAN 50 KW","URBAN GENERAL SERVICE DEMAND BILLED (50 KW AND ABOVE) - UGD - HYDRO ONE NETWORKS","HYDRO ONE NETWORKS INC._URBAN GENERAL SERVICE DEMAND BILLED - UGD SERVICE CLASSIFICATION","HYDRO ONE NETWORKS INC._URBAN GENERAL SERVICE DEMAND BILLED _ UGD SERVICE CLASSIFICATION",227055517.84999999,658070,120423555.55,372684.98,711242429.91999996,1886591.38,2560108.25,4733.7900390625,0,0,834226093.75999999,2264010.15,1061281611.61,2922080.28]
["2019","HYDRO ONE NETWORKS INC.","GENERAL SERVICE LESS THAN 50 KW","GENERAL SERVICE ENERGY BILLED (LESS THAN 50 KW) - GSE METERED - HYDRO ONE NETWORKS","HYDRO ONE NETWORKS INC._GENERAL SERVICE ENERGY BILLED - GSE SERVICE CLASSIFICATION","HYDRO ONE NETWORKS INC._GENERAL SERVICE ENERGY BILLED _ GSE SERVICE CLASSIFICATION",452102421.63,0,1816241141.8399999,0,52174285.509999998,0,0,0,0,0,1868415427.3499999,0,2320517848.98,0]
["2019","HYDRO ONE NETWORKS INC.","GENERAL SERVICE LESS THAN 50 KW","GENERAL SERVICE LESS THAN 50 KW - HALDIMAND COUNTY","HYDRO ONE NETWORKS INC._FORMER HALDIMAND COUNTY HYDRO INC. SERVICE AREA_GENERAL SERVICE LESS THAN 50 KW SERVICE CLASSIFICATION","HYDRO ONE NETWORKS INC._FORMER HALDIMAND COUNTY HYDRO INC. SERVICE AREA_GENERAL SERVICE LESS THAN 50 KW SERVICE CLASSIFICATION",13606089.77,0,42843086.450000003,0,383204.3,0,0,0,0,0,43226290.75,0,56832380.520000003,0]
["2019","HYDRO ONE NETWORKS INC.","GENERAL SERVICE LESS THAN 50 KW","GENERAL SERVICE LESS THAN 50 KW - NORFOLK POWER","HYDRO ONE NETWORKS INC._FORMER NORFOLK POWER DISTRIBUTION INC. SERVICE AREA_GENERAL SERVICE LESS THAN 50 KW SERVICE CLASSIFICATION","HYDRO ONE NETWORKS INC._FORMER NORFOLK POWER DISTRIBUTION INC. SERVICE AREA_GENERAL SERVICE LESS THAN 50 KW SERVICE CLASSIFICATION",16743164.84,0,41633569.310000002,0,1263844.3500000001,0,0,0,0,0,42897413.659999996,0,59640578.5,0]
["2019","HYDRO ONE NETWORKS INC.","GENERAL SERVICE LESS THAN 50 KW","GENERAL SERVICE LESS THAN 50 KW - WOODSTOCK HYDRO","HYDRO ONE NETWORKS INC._FORMER WOODSTOCK HYDRO SERVICES INC. SERVICE AREA_GENERAL SERVICE LESS THAN 50 KW SERVICE CLASSIFICATION","HYDRO ONE NETWORKS INC._FORMER WOODSTOCK HYDRO SERVICES INC. SERVICE AREA_GENERAL SERVICE LESS THAN 50 KW SERVICE CLASSIFICATION",7877683.4500000002,0,37876137.670000002,0,2256065.2799999998,0,0,0,0,0,40132202.950000003,0,48009886.399999999,0]
["2019","HYDRO ONE NETWORKS INC.","GENERAL SERVICE LESS THAN 50 KW","URBAN GENERAL SERVICE ENERGY BILLED (LESS THAN 50 KW) - UGE - HYDRO ONE NETWORKS","HYDRO ONE NETWORKS INC._URBAN GENERAL SERVICE ENERGY BILLED - UGE SERVICE CLASSIFICATION","HYDRO ONE NETWORKS INC._URBAN GENERAL SERVICE ENERGY BILLED _ UGE SERVICE CLASSIFICATION",130162272.17,0,471281782.48000002,0,15017137.800000001,0,0,0,0,0,486298920.27999997,0,616461192.45000005,0]
["2019","HYDRO ONE NETWORKS INC.","NO RATE CLASS","NO RATE CLASS","HYDRO ONE NETWORKS INC._NO RATE CLASS SERVICE CLASSIFICATION","HYDRO ONE NETWORKS INC._NO RATE CLASS SERVICE CLASSIFICATION",0,0,0,0,0,0,0,0,3469922816,7536556,0,0,0,0]
["2019","HYDRO ONE NETWORKS INC.","RESIDENTIAL","RESIDENTIAL - HALDIMAND COUNTY","HYDRO ONE NETWORKS INC._FORMER HALDIMAND COUNTY HYDRO INC. SERVICE AREA_RESIDENTIAL SERVICE CLASSIFICATION","HYDRO ONE NETWORKS INC._FORMER HALDIMAND COUNTY HYDRO INC. SERVICE AREA_RESIDENTIAL SERVICE CLASSIFICATION",9490045.5099999998,0,173266962.31,0,26099.32,0,0,0,0,0,173293061.63,0,182783107.13999999,0]
["2019","HYDRO ONE NETWORKS INC.","RESIDENTIAL","RESIDENTIAL - LOW DENSITY (R2) - HYDRO ONE NETWORKS","HYDRO ONE NETWORKS INC._YEAR-ROUND LOW DENSITY - R2 SERVICE CLASSIFICATION","HYDRO ONE NETWORKS INC._YEAR_ROUND LOW DENSITY _ R2 SERVICE CLASSIFICATION",275080263.29000002,0,4501989176.7299995,0,7760301.0599999996,0,0,0,0,0,4509749477.79,0,4784829741.0799999,0]
["2019","HYDRO ONE NETWORKS INC.","RESIDENTIAL","RESIDENTIAL - MEDIUM DENSITY (R1) - HYDRO ONE NETWORKS","HYDRO ONE NETWORKS INC._YEAR-ROUND MEDIUM DENSITY - R1 SERVICE CLASSIFICATION","HYDRO ONE NETWORKS INC._YEAR_ROUND MEDIUM DENSITY _ R1 SERVICE CLASSIFICATION",171489076.22,0,4754666933.4200001,0,2411002.9300000002,0,0,0,0,0,4757077936.3500004,0,4928567012.5699997,0]
["2019","HYDRO ONE NETWORKS INC.","RESIDENTIAL","RESIDENTIAL - NORFOLK POWER","HYDRO ONE NETWORKS INC._FORMER NORFOLK POWER DISTRIBUTION INC. SERVICE AREA_RESIDENTIAL SERVICE CLASSIFICATION","HYDRO ONE NETWORKS INC._FORMER NORFOLK POWER DISTRIBUTION INC. SERVICE AREA_RESIDENTIAL SERVICE CLASSIFICATION",6577448.7400000002,0,145582533.61000001,0,248559.84,0,0,0,0,0,145831093.44999999,0,152408542.19,0]
["2019","HYDRO ONE NETWORKS INC.","RESIDENTIAL","RESIDENTIAL - SEASONAL - HYDRO ONE NETWORKS","HYDRO ONE NETWORKS INC._SEASONAL SERVICE CLASSIFICATION","HYDRO ONE NETWORKS INC._SEASONAL SERVICE CLASSIFICATION",6050740.7000000002,0,701956609.75,0,255520.01,0,0,0,0,0,702212129.75999999,0,708262870.46000004,0]
["2019","HYDRO ONE NETWORKS INC.","RESIDENTIAL","RESIDENTIAL - URBAN (UR) - HYDRO ONE NETWORKS","HYDRO ONE NETWORKS INC._YEAR-ROUND URBAN DENSITY - UR SERVICE CLASSIFICATION","HYDRO ONE NETWORKS INC._YEAR_ROUND URBAN DENSITY _ UR SERVICE CLASSIFICATION",88030999.049999997,0,1905633675.47,0,710846.86,0,0,0,0,0,1906344522.3299999,0,1994375521.3800001,0]
["2019","HYDRO ONE NETWORKS INC.","RESIDENTIAL","RESIDENTIAL - WOODSTOCK HYDRO","HYDRO ONE NETWORKS INC._FORMER WOODSTOCK HYDRO SERVICES INC. SERVICE AREA_RESIDENTIAL SERVICE CLASSIFICATION","HYDRO ONE NETWORKS INC._FORMER WOODSTOCK HYDRO SERVICES INC. SERVICE AREA_RESIDENTIAL SERVICE CLASSIFICATION",5233739.46,0,114060454.15000001,0,36436.04,0,0,0,0,0,114096890.19,0,119330629.65000001,0]
["2019","HYDRO ONE NETWORKS INC.","SENTINEL LIGHTING CONNECTIONS","SENTINEL LIGHTING - HALDIMAND COUNTY","HYDRO ONE NETWORKS INC._FORMER HALDIMAND COUNTY HYDRO INC. SERVICE AREA_SENTINEL LIGHTING SERVICE CLASSIFICATION","HYDRO ONE NETWORKS INC._FORMER HALDIMAND COUNTY HYDRO INC. SERVICE AREA_SENTINEL LIGHTING SERVICE CLASSIFICATION",41064.21,117,183015.01,598.45000000000005,0,0,0,0,0,0,183015.01,598.45000000000005,224079.22,716.27]
["2019","HYDRO ONE NETWORKS INC.","SENTINEL LIGHTING CONNECTIONS","SENTINEL LIGHTING - HYDRO ONE NETWORKS","HYDRO ONE NETWORKS INC._SENTINEL LIGHTING SERVICE CLASSIFICATION","HYDRO ONE NETWORKS INC._SENTINEL LIGHTING SERVICE CLASSIFICATION",809455.08,3,12439422.75,0,282547.17,0,0,0,0,0,12721969.92,0,13531425,3.48]
["2019","HYDRO ONE NETWORKS INC.","SENTINEL LIGHTING CONNECTIONS","SENTINEL LIGHTING - NORFOLK POWER","HYDRO ONE NETWORKS INC._FORMER NORFOLK POWER DISTRIBUTION INC. SERVICE AREA_SENTINEL LIGHTING SERVICE CLASSIFICATION","HYDRO ONE NETWORKS INC._FORMER NORFOLK POWER DISTRIBUTION INC. SERVICE AREA_SENTINEL LIGHTING SERVICE CLASSIFICATION",6837.54,17,150894.29,453.28,0,0,0,0,0,0,150894.29,453.28,157731.82999999999,471.23]
["2019","HYDRO ONE NETWORKS INC.","STREET LIGHTING CONNECTIONS","STREET LIGHTING - HALDIMAND COUNTY","HYDRO ONE NETWORKS INC._FORMER HALDIMAND COUNTY HYDRO INC. SERVICE AREA_STREET LIGHTING SERVICE CLASSIFICATION","HYDRO ONE NETWORKS INC._FORMER HALDIMAND COUNTY HYDRO INC. SERVICE AREA_STREET LIGHTING SERVICE CLASSIFICATION",1607215.33,4528,8208.44,39.01,0,0,0,0,0,0,8208.44,39.01,1615423.77,4567.05]
["2019","HYDRO ONE NETWORKS INC.","STREET LIGHTING CONNECTIONS","STREET LIGHTING - HYDRO ONE NETWORKS","HYDRO ONE NETWORKS INC._STREET LIGHTING SERVICE CLASSIFICATION","HYDRO ONE NETWORKS INC._STREET LIGHTING SERVICE CLASSIFICATION",29269338.129999999,0,45346183.090000004,0,13910896.57,0,0,0,0,0,59257079.659999996,0,88526417.790000007,0]
["2019","HYDRO ONE NETWORKS INC.","STREET LIGHTING CONNECTIONS","STREET LIGHTING - NORFOLK POWER","HYDRO ONE NETWORKS INC._FORMER NORFOLK POWER DISTRIBUTION INC. SERVICE AREA_STREET LIGHTING SERVICE CLASSIFICATION","HYDRO ONE NETWORKS INC._FORMER NORFOLK POWER DISTRIBUTION INC. SERVICE AREA_STREET LIGHTING SERVICE CLASSIFICATION",0,0,34500.65,106.82,1642693.79,4262.68,0,0,0,0,1677194.44,4369.5,1677194.44,4369.5]
["2019","HYDRO ONE NETWORKS INC.","STREET LIGHTING CONNECTIONS","STREET LIGHTING - WOODSTOCK HYDRO","HYDRO ONE NETWORKS INC._FORMER WOODSTOCK HYDRO SERVICES INC. SERVICE AREA_STREET LIGHTING SERVICE CLASSIFICATION","HYDRO ONE NETWORKS INC._FORMER WOODSTOCK HYDRO SERVICES INC. SERVICE AREA_STREET LIGHTING SERVICE CLASSIFICATION",9810.0400000000009,26,46134.559999999998,95.31,2557241.59,7298.26,0,0,0,0,2603376.15,7393.57,2613186.19,7420.11]
["2019","HYDRO ONE NETWORKS INC.","UNMETERED SCATTERED LOAD CONNECTIONS","GENERAL SERVICE ENERGY BILLED (LESS THAN 50 KW) - GSE UNMETERED - HYDRO ONE NETWORKS","HYDRO ONE NETWORKS INC._UNMETERED SCATTERED LOAD SERVICE CLASSIFICATION","HYDRO ONE NETWORKS INC._UNMETERED SCATTERED LOAD SERVICE CLASSIFICATION",2296728.25,0,26319823.68,0,10624.21,0,0,0,0,0,26330447.890000001,0,28627176.140000001,0]
["2019","HYDRO ONE NETWORKS INC.","UNMETERED SCATTERED LOAD CONNECTIONS","UNMETERED SCATTERED LOAD - HALDIMAND COUNTY","HYDRO ONE NETWORKS INC._FORMER HALDIMAND COUNTY HYDRO INC. SERVICE AREA_UNMETERED SCATTERED LOAD SERVICE CLASSIFICATION","HYDRO ONE NETWORKS INC._FORMER HALDIMAND COUNTY HYDRO INC. SERVICE AREA_UNMETERED SCATTERED LOAD SERVICE CLASSIFICATION",57165.78,0,245695.33,0,0,0,0,0,0,0,245695.33,0,302861.11,0]
["2019","HYDRO ONE NETWORKS INC.","UNMETERED SCATTERED LOAD CONNECTIONS","UNMETERED SCATTERED LOAD - NORFOLK POWER","HYDRO ONE NETWORKS INC._FORMER NORFOLK POWER DISTRIBUTION INC. SERVICE AREA_UNMETERED SCATTERED LOAD SERVICE CLASSIFICATION","HYDRO ONE NETWORKS INC._FORMER NORFOLK POWER DISTRIBUTION INC. SERVICE AREA_UNMETERED SCATTERED LOAD SERVICE CLASSIFICATION",135137.60999999999,0,344026.36,0,0,0,0,0,0,0,344026.36,0,479163.97,0]
["2019","HYDRO ONE NETWORKS INC.","UNMETERED SCATTERED LOAD CONNECTIONS","UNMETERED SCATTERED LOAD - WOODSTOCK HYDRO","HYDRO ONE NETWORKS INC._FORMER WOODSTOCK HYDRO SERVICES INC. SERVICE AREA_UNMETERED SCATTERED LOAD SERVICE CLASSIFICATION","HYDRO ONE NETWORKS INC._FORMER WOODSTOCK HYDRO SERVICES INC. SERVICE AREA_UNMETERED SCATTERED LOAD SERVICE CLASSIFICATION",1449,0,566538.9,0,0,0,0,0,0,0,566538.9,0,567987.9,0]
["2019","HYDRO ONE REMOTE COMMUNITIES INC.","GENERAL SERVICE EQUAL TO OR GREATER THAN 50 KW","NON STANDARD A GENERAL SERVICE THREE PHASE - G3","HYDRO ONE REMOTE COMMUNITIES INC._NON STANDARD A GENERAL SERVICE THREE PHASE - G3 SERVICE CLASSIFICATION","HYDRO ONE REMOTE COMMUNITIES INC._NON STANDARD A GENERAL SERVICE THREE PHASE _ G3 SERVICE CLASSIFICATION",0,0,0,0,0,0,0,0,0,0,0,0,0,0]
["2019","HYDRO ONE REMOTE COMMUNITIES INC.","GENERAL SERVICE LESS THAN 50 KW","NON STANDARD A GENERAL SERVICE SINGLE PHASE - G1","HYDRO ONE REMOTE COMMUNITIES INC._NON STANDARD A GENERAL SERVICE SINGLE PHASE - G1 SERVICE CLASSIFICATION","HYDRO ONE REMOTE COMMUNITIES INC._NON STANDARD A GENERAL SERVICE SINGLE PHASE _ G1 SERVICE CLASSIFICATION",0,0,0,0,0,0,0,0,0,0,0,0,0,0]
["2019","HYDRO ONE REMOTE COMMUNITIES INC.","GENERAL SERVICE LESS THAN 50 KW","STANDARD A GENERAL SERVICE AIR ACCESS","HYDRO ONE REMOTE COMMUNITIES INC._STANDARD A GENERAL SERVICE AIR ACCESS SERVICE CLASSIFICATION","HYDRO ONE REMOTE COMMUNITIES INC._STANDARD A GENERAL SERVICE AIR ACCESS SERVICE CLASSIFICATION",0,0,0,0,0,0,0,0,0,0,0,0,0,0]
["2019","HYDRO ONE REMOTE COMMUNITIES INC.","GENERAL SERVICE LESS THAN 50 KW","STANDARD A GENERAL SERVICE ROAD/RAIL ACCESS","HYDRO ONE REMOTE COMMUNITIES INC._STANDARD A GENERAL SERVICE ROAD/RAIL ACCESS SERVICE CLASSIFICATION","HYDRO ONE REMOTE COMMUNITIES INC._STANDARD A GENERAL SERVICE ROAD/RAIL ACCESS SERVICE CLASSIFICATION",0,0,0,0,0,0,0,0,0,0,0,0,0,0]
["2019","HYDRO ONE REMOTE COMMUNITIES INC.","GENERAL SERVICE LESS THAN 50 KW","STANDARD A GRID CONNECTED","HYDRO ONE REMOTE COMMUNITIES INC._STANDARD A GRID CONNECTED SERVICE CLASSIFICATION","HYDRO ONE REMOTE COMMUNITIES INC._STANDARD A GRID CONNECTED SERVICE CLASSIFICATION",0,0,0,0,0,0,0,0,0,0,0,0,0,0]
["2019","HYDRO ONE REMOTE COMMUNITIES INC.","NO RATE CLASS","NO RATE CLASS","HYDRO ONE REMOTE COMMUNITIES INC._NO RATE CLASS SERVICE CLASSIFICATION","HYDRO ONE REMOTE COMMUNITIES INC._NO RATE CLASS SERVICE CLASSIFICATION",0,0,0,0,0,0,0,0,0,0,0,0,0,0]
["2019","HYDRO ONE REMOTE COMMUNITIES INC.","RESIDENTIAL","NON STANDARD A SEASONAL RESIDENTIAL - R4","HYDRO ONE REMOTE COMMUNITIES INC._NON STANDARD A SEASONAL RESIDENTIAL - R4 SERVICE CLASSIFICATION","HYDRO ONE REMOTE COMMUNITIES INC._NON STANDARD A SEASONAL RESIDENTIAL _ R4 SERVICE CLASSIFICATION",0,0,0,0,0,0,0,0,0,0,0,0,0,0]
["2019","HYDRO ONE REMOTE COMMUNITIES INC.","RESIDENTIAL","NON STANDARD A YEAR ROUND RESIDENTIAL - R2","HYDRO ONE REMOTE COMMUNITIES INC._NON STANDARD A YEAR ROUND RESIDENTIAL - R2 SERVICE CLASSIFICATION","HYDRO ONE REMOTE COMMUNITIES INC._NON STANDARD A YEAR ROUND RESIDENTIAL _ R2 SERVICE CLASSIFICATION",0,0,0,0,0,0,0,0,0,0,0,0,0,0]
["2019","HYDRO ONE REMOTE COMMUNITIES INC.","RESIDENTIAL","STANDARD A RESIDENTIAL AIR ACCESS","HYDRO ONE REMOTE COMMUNITIES INC._STANDARD A RESIDENTIAL AIR ACCESS SERVICE CLASSIFICATION","HYDRO ONE REMOTE COMMUNITIES INC._STANDARD A RESIDENTIAL AIR ACCESS SERVICE CLASSIFICATION",0,0,0,0,0,0,0,0,0,0,0,0,0,0]
["2019","HYDRO ONE REMOTE COMMUNITIES INC.","RESIDENTIAL","STANDARD A RESIDENTIAL ROAD/RAIL ACCESS","HYDRO ONE REMOTE COMMUNITIES INC._STANDARD A RESIDENTIAL ROAD/RAIL ACCESS SERVICE CLASSIFICATION","HYDRO ONE REMOTE COMMUNITIES INC._STANDARD A RESIDENTIAL ROAD/RAIL ACCESS SERVICE CLASSIFICATION",0,0,0,0,0,0,0,0,0,0,0,0,0,0]
["2019","HYDRO ONE REMOTE COMMUNITIES INC.","STREET LIGHTING CONNECTIONS","STREET LIGHTING","HYDRO ONE REMOTE COMMUNITIES INC._STREET LIGHTING SERVICE CLASSIFICATION","HYDRO ONE REMOTE COMMUNITIES INC._STREET LIGHTING SERVICE CLASSIFICATION",0,0,0,0,0,0,0,0,0,0,0,0,0,0]
["2019","HYDRO OTTAWA LIMITED","GENERAL SERVICE EQUAL TO OR GREATER THAN 50 KW","GENERAL SERVICE 1,500 TO 4,999 KW","HYDRO OTTAWA LIMITED_GENERAL SERVICE 1,500 TO 4,999 KW SERVICE CLASSIFICATION","HYDRO OTTAWA LIMITED_GENERAL SERVICE 1,500 TO 4,999 KW SERVICE CLASSIFICATION",45561208,99988,0,0,678288014,1480864,0,0,0,0,678288014,1480864,723849222,1580852]
["2019","HYDRO OTTAWA LIMITED","GENERAL SERVICE EQUAL TO OR GREATER THAN 50 KW","GENERAL SERVICE 50 TO 1,499 KW","HYDRO OTTAWA LIMITED_GENERAL SERVICE 50 TO 1,499 KW SERVICE CLASSIFICATION","HYDRO OTTAWA LIMITED_GENERAL SERVICE 50 TO 1,499 KW SERVICE CLASSIFICATION",272987914,690224,354534037,854805,2311155107,5564889,32606892,61844,0,0,2698296035,6481538,2971283949,7171762]
["2019","HYDRO OTTAWA LIMITED","GENERAL SERVICE LESS THAN 50 KW","GENERAL SERVICE LESS THAN 50 KW","HYDRO OTTAWA LIMITED_GENERAL SERVICE LESS THAN 50 KW SERVICE CLASSIFICATION","HYDRO OTTAWA LIMITED_GENERAL SERVICE LESS THAN 50 KW SERVICE CLASSIFICATION",104398586,0,623592277,0,0,0,0,0,0,0,623592277,0,727990863,0]
["2019","HYDRO OTTAWA LIMITED","LARGE USER","LARGE USE","HYDRO OTTAWA LIMITED_LARGE USE SERVICE CLASSIFICATION","HYDRO OTTAWA LIMITED_LARGE USE SERVICE CLASSIFICATION",52690123,91129,0,0,555887876,1015654,1015654,0,0,0,556903530,1015654,609593653,1106783]
["2019","HYDRO OTTAWA LIMITED","NO RATE CLASS","NO RATE CLASS","HYDRO OTTAWA LIMITED_NO RATE CLASS SERVICE CLASSIFICATION","HYDRO OTTAWA LIMITED_NO RATE CLASS SERVICE CLASSIFICATION",0,0,0,0,0,0,0,0,1292613248,2539078,0,0,0,0]
["2019","HYDRO OTTAWA LIMITED","RESIDENTIAL","RESIDENTIAL","HYDRO OTTAWA LIMITED_RESIDENTIAL SERVICE CLASSIFICATION","HYDRO OTTAWA LIMITED_RESIDENTIAL SERVICE CLASSIFICATION",53523252,0,2264634060,0,0,0,0,0,0,0,2264634060,0,2318157312,0]
["2019","HYDRO OTTAWA LIMITED","SENTINEL LIGHTING CONNECTIONS","SENTINEL LIGHTING","HYDRO OTTAWA LIMITED_SENTINEL LIGHTING SERVICE CLASSIFICATION","HYDRO OTTAWA LIMITED_SENTINEL LIGHTING SERVICE CLASSIFICATION",0,0,48433,135,0,0,0,0,0,0,48433,135,48433,135]
["2019","HYDRO OTTAWA LIMITED","STREET LIGHTING CONNECTIONS","STREET LIGHTING","HYDRO OTTAWA LIMITED_STREET LIGHTING SERVICE CLASSIFICATION","HYDRO OTTAWA LIMITED_STREET LIGHTING SERVICE CLASSIFICATION",39342,113,0,0,31684027,81655,0,0,0,0,31684027,81655,31723369,81768]
["2019","HYDRO OTTAWA LIMITED","UNMETERED SCATTERED LOAD CONNECTIONS","UNMETERED SCATTERED LOAD","HYDRO OTTAWA LIMITED_UNMETERED SCATTERED LOAD SERVICE CLASSIFICATION","HYDRO OTTAWA LIMITED_UNMETERED SCATTERED LOAD SERVICE CLASSIFICATION",0,0,14860742,0,0,0,0,0,0,0,14860742,0,14860742,0]
["2019","INNPOWER CORPORATION","GENERAL SERVICE EQUAL TO OR GREATER THAN 50 KW","GENERAL SERVICE 50 TO 4,999 KW","INNPOWER CORPORATION_GENERAL SERVICE 50 TO 4,999 KW SERVICE CLASSIFICATION","INNPOWER CORPORATION_GENERAL SERVICE 50 TO 4,999 KW SERVICE CLASSIFICATION",8692795.4499999993,28208,2391215,10905.93,54320818.530000001,129503.96,0,0,0,0,56712033.530000001,140409.89000000001,65404828.979999997,168618.78]
["2019","INNPOWER CORPORATION","GENERAL SERVICE LESS THAN 50 KW","GENERAL SERVICE LESS THAN 50 KW","INNPOWER CORPORATION_GENERAL SERVICE LESS THAN 50 KW SERVICE CLASSIFICATION","INNPOWER CORPORATION_GENERAL SERVICE LESS THAN 50 KW SERVICE CLASSIFICATION",5265193.99,0,30772188.25,0,0,0,0,0,0,0,30772188.25,0,36037382.240000002,0]
["2019","INNPOWER CORPORATION","NO RATE CLASS","NO RATE CLASS","INNPOWER CORPORATION_NO RATE CLASS SERVICE CLASSIFICATION","INNPOWER CORPORATION_NO RATE CLASS SERVICE CLASSIFICATION",0,0,0,0,0,0,0,0,null,null,0,0,0,0]
["2019","INNPOWER CORPORATION","RESIDENTIAL","RESIDENTIAL","INNPOWER CORPORATION_RESIDENTIAL SERVICE CLASSIFICATION","INNPOWER CORPORATION_RESIDENTIAL SERVICE CLASSIFICATION",5795210.9500000002,0,155058544.46000001,0,0,0,0,0,0,0,155058544.46000001,0,160853755.41,0]
["2019","INNPOWER CORPORATION","SENTINEL LIGHTING CONNECTIONS","SENTINEL LIGHTING","INNPOWER CORPORATION_SENTINEL LIGHTING SERVICE CLASSIFICATION","INNPOWER CORPORATION_SENTINEL LIGHTING SERVICE CLASSIFICATION",10414.98,28,95044.56,264,0,0,0,0,0,0,95044.56,264,105459.54,292.93]
["2019","INNPOWER CORPORATION","STREET LIGHTING CONNECTIONS","STREET LIGHTING","INNPOWER CORPORATION_STREET LIGHTING SERVICE CLASSIFICATION","INNPOWER CORPORATION_STREET LIGHTING SERVICE CLASSIFICATION",5945.25,18,0,0,609100.46,1849.26,0,0,0,0,609100.46,1849.26,615045.71,1867.26]
["2019","INNPOWER CORPORATION","UNMETERED SCATTERED LOAD CONNECTIONS","UNMETERED SCATTERED LOAD","INNPOWER CORPORATION_UNMETERED SCATTERED LOAD SERVICE CLASSIFICATION","INNPOWER CORPORATION_UNMETERED SCATTERED LOAD SERVICE CLASSIFICATION",29808,0,453106,0,0,0,0,0,0,0,453106,0,482914,0]
["2019","KINGSTON HYDRO CORPORATION","GENERAL SERVICE EQUAL TO OR GREATER THAN 50 KW","GENERAL SERVICE 50 TO 4,999 KW","KINGSTON HYDRO CORPORATION_GENERAL SERVICE 50 TO 4,999 KW SERVICE CLASSIFICATION","KINGSTON HYDRO CORPORATION_GENERAL SERVICE 50 TO 4,999 KW SERVICE CLASSIFICATION",47835682.270000003,103545,40123151.899999999,93635.97,172154054.84999999,444279.56,3616283.5,6712.68994140625,0,0,215893490.16999999,544628.22,263729172.44,648173.52]
["2019","KINGSTON HYDRO CORPORATION","GENERAL SERVICE LESS THAN 50 KW","GENERAL SERVICE LESS THAN 50 KW","KINGSTON HYDRO CORPORATION_GENERAL SERVICE LESS THAN 50 KW SERVICE CLASSIFICATION","KINGSTON HYDRO CORPORATION_GENERAL SERVICE LESS THAN 50 KW SERVICE CLASSIFICATION",13066783.890000001,0,76344063.989999995,0,366637.28,0,0,0,0,0,76710701.269999996,0,89777485.159999996,0]
["2019","KINGSTON HYDRO CORPORATION","LARGE USER","LARGE USE","KINGSTON HYDRO CORPORATION_LARGE USE SERVICE CLASSIFICATION","KINGSTON HYDRO CORPORATION_LARGE USE SERVICE CLASSIFICATION",51530035.310000002,95059,0,0,109145508.47,210411.56,0,0,0,0,109145508.47,210411.56,160675543.78,305471.38]
["2019","KINGSTON HYDRO CORPORATION","NO RATE CLASS","NO RATE CLASS","KINGSTON HYDRO CORPORATION_NO RATE CLASS SERVICE CLASSIFICATION","KINGSTON HYDRO CORPORATION_NO RATE CLASS SERVICE CLASSIFICATION",0,0,0,0,0,0,0,0,178413920,370251.46875,0,0,0,0]
["2019","KINGSTON HYDRO CORPORATION","RESIDENTIAL","RESIDENTIAL","KINGSTON HYDRO CORPORATION_RESIDENTIAL SERVICE CLASSIFICATION","KINGSTON HYDRO CORPORATION_RESIDENTIAL SERVICE CLASSIFICATION",3479130.86,0,184546613.91999999,0,0,0,0,0,0,0,184546613.91999999,0,188025744.78,0]
["2019","KINGSTON HYDRO CORPORATION","STREET LIGHTING CONNECTIONS","STREET LIGHTING","KINGSTON HYDRO CORPORATION_STREET LIGHTING SERVICE CLASSIFICATION","KINGSTON HYDRO CORPORATION_STREET LIGHTING SERVICE CLASSIFICATION",0,0,0,0,1968388.2,5508,0,0,0,0,1968388.2,5508,1968388.2,5508]
["2019","KINGSTON HYDRO CORPORATION","UNMETERED SCATTERED LOAD CONNECTIONS","UNMETERED SCATTERED LOAD","KINGSTON HYDRO CORPORATION_UNMETERED SCATTERED LOAD SERVICE CLASSIFICATION","KINGSTON HYDRO CORPORATION_UNMETERED SCATTERED LOAD SERVICE CLASSIFICATION",15241.42,0,0,0,1187926.8899999999,0,0,0,0,0,1187926.8899999999,0,1203168.31,0]
["2019","KITCHENER-WILMOT HYDRO INC.","EMBEDDED DISTRIBUTOR(S)","EMBEDDED DISTRIBUTOR","KITCHENER-WILMOT HYDRO INC._EMBEDDED DISTRIBUTOR SERVICE CLASSIFICATION","KITCHENER_WILMOT HYDRO INC._EMBEDDED DISTRIBUTOR SERVICE CLASSIFICATION",0,0,0,0,0,0,12731869,33065.30078125,0,0,12731868.73,33065.300000000003,12731868.73,33065.300000000003]
["2019","KITCHENER-WILMOT HYDRO INC.","GENERAL SERVICE EQUAL TO OR GREATER THAN 50 KW","GENERAL SERVICE 50 TO 4,999 KW","KITCHENER-WILMOT HYDRO INC._GENERAL SERVICE 50 TO 4,999 KW SERVICE CLASSIFICATION","KITCHENER_WILMOT HYDRO INC._GENERAL SERVICE 50 TO 4,999 KW SERVICE CLASSIFICATION",171200050.4813,473536,120767549.53740001,0,532906173.4817,1695146.62,14788959,34080.0703125,0,0,668462682.37909997,1729226.69,839662732.86039996,2202763.0499999998]
["2019","KITCHENER-WILMOT HYDRO INC.","GENERAL SERVICE LESS THAN 50 KW","GENERAL SERVICE LESS THAN 50 KW","KITCHENER-WILMOT HYDRO INC._GENERAL SERVICE LESS THAN 50 KW SERVICE CLASSIFICATION","KITCHENER_WILMOT HYDRO INC._GENERAL SERVICE LESS THAN 50 KW SERVICE CLASSIFICATION",36716840.575300001,0,203886156.53729999,0,0,0,0,0,0,0,203886156.53729999,0,240602997.1126,0]
["2019","KITCHENER-WILMOT HYDRO INC.","LARGE USER","LARGE USE","KITCHENER-WILMOT HYDRO INC._LARGE USE SERVICE CLASSIFICATION","KITCHENER_WILMOT HYDRO INC._LARGE USE SERVICE CLASSIFICATION",0,0,0,0,33369028.32,69070.48,0,0,0,0,33369028.32,69070.48,33369028.32,69070.48]
["2019","KITCHENER-WILMOT HYDRO INC.","NO RATE CLASS","NO RATE CLASS","KITCHENER-WILMOT HYDRO INC._NO RATE CLASS SERVICE CLASSIFICATION","KITCHENER_WILMOT HYDRO INC._NO RATE CLASS SERVICE CLASSIFICATION",0,0,0,0,0,0,0,0,208734448,504203.4375,0,0,0,0]
["2019","KITCHENER-WILMOT HYDRO INC.","RESIDENTIAL","RESIDENTIAL","KITCHENER-WILMOT HYDRO INC._RESIDENTIAL SERVICE CLASSIFICATION","KITCHENER_WILMOT HYDRO INC._RESIDENTIAL SERVICE CLASSIFICATION",12984654.029999999,0,667861448.80019999,0,0,0,0,0,0,0,667861448.80019999,0,680846102.83019996,0]
["2019","KITCHENER-WILMOT HYDRO INC.","STREET LIGHTING CONNECTIONS","STREET LIGHTING","KITCHENER-WILMOT HYDRO INC._STREET LIGHTING SERVICE CLASSIFICATION","KITCHENER_WILMOT HYDRO INC._STREET LIGHTING SERVICE CLASSIFICATION",15466.533299999999,33,94869.634699999995,0,7356243.1546999998,20775.46,0,0,0,0,7451112.7894000001,20775.46,7466579.3227000004,20808.939999999999]
["2019","KITCHENER-WILMOT HYDRO INC.","UNMETERED SCATTERED LOAD CONNECTIONS","UNMETERED SCATTERED LOAD","KITCHENER-WILMOT HYDRO INC._UNMETERED SCATTERED LOAD SERVICE CLASSIFICATION","KITCHENER_WILMOT HYDRO INC._UNMETERED SCATTERED LOAD SERVICE CLASSIFICATION",0,0,4009942,0,0,0,0,0,0,0,4009942,0,4009942,0]
["2019","LAKEFRONT UTILITIES INC.","GENERAL SERVICE EQUAL TO OR GREATER THAN 50 KW","GENERAL SERVICE 3,000 TO 4,999 KW","LAKEFRONT UTILITIES INC._GENERAL SERVICE 3,000 TO 4,999 KW SERVICE CLASSIFICATION","LAKEFRONT UTILITIES INC._GENERAL SERVICE 3,000 TO 4,999 KW SERVICE CLASSIFICATION",0,0,0,0,19725659.73,42405.1,0,0,0,0,19725659.73,42405.1,19725659.73,42405.1]
["2019","LAKEFRONT UTILITIES INC.","GENERAL SERVICE EQUAL TO OR GREATER THAN 50 KW","GENERAL SERVICE 50 TO 2,999 KW","LAKEFRONT UTILITIES INC._GENERAL SERVICE 50 TO 2,999 KW SERVICE CLASSIFICATION","LAKEFRONT UTILITIES INC._GENERAL SERVICE 50 TO 2,999 KW SERVICE CLASSIFICATION",41298520.210000001,106115,10652930.25,31869.25,65812235.600000001,181682.14,0,0,0,0,76465165.849999994,213551.39,117763686.06,319666.53999999998]
["2019","LAKEFRONT UTILITIES INC.","GENERAL SERVICE LESS THAN 50 KW","GENERAL SERVICE LESS THAN 50 KW","LAKEFRONT UTILITIES INC._GENERAL SERVICE LESS THAN 50 KW SERVICE CLASSIFICATION","LAKEFRONT UTILITIES INC._GENERAL SERVICE LESS THAN 50 KW SERVICE CLASSIFICATION",5896780.6699999999,0,28798757.190000001,0,0,0,0,0,0,0,28798757.190000001,0,34695537.859999999,0]
["2019","LAKEFRONT UTILITIES INC.","NO RATE CLASS","NO RATE CLASS","LAKEFRONT UTILITIES INC._NO RATE CLASS SERVICE CLASSIFICATION","LAKEFRONT UTILITIES INC._NO RATE CLASS SERVICE CLASSIFICATION",0,0,0,0,0,0,0,0,75373728,142771.09375,0,0,0,0]
["2019","LAKEFRONT UTILITIES INC.","RESIDENTIAL","RESIDENTIAL","LAKEFRONT UTILITIES INC._RESIDENTIAL SERVICE CLASSIFICATION","LAKEFRONT UTILITIES INC._RESIDENTIAL SERVICE CLASSIFICATION",2611524.98,0,72900307.920000002,0,0,0,0,0,0,0,72900307.920000002,0,75511832.900000006,0]
["2019","LAKEFRONT UTILITIES INC.","SENTINEL LIGHTING CONNECTIONS","SENTINEL LIGHTING","LAKEFRONT UTILITIES INC._SENTINEL LIGHTING SERVICE CLASSIFICATION","LAKEFRONT UTILITIES INC._SENTINEL LIGHTING SERVICE CLASSIFICATION",6066.24,16,38741.160000000003,107.6,0,0,0,0,0,0,38741.160000000003,107.6,44807.4,124.45]
["2019","LAKEFRONT UTILITIES INC.","STREET LIGHTING CONNECTIONS","STREET LIGHTING","LAKEFRONT UTILITIES INC._STREET LIGHTING SERVICE CLASSIFICATION","LAKEFRONT UTILITIES INC._STREET LIGHTING SERVICE CLASSIFICATION",116016.03,314,0,0,961248.3,2607.9,0,0,0,0,961248.3,2607.9,1077264.33,2922.66]
["2019","LAKEFRONT UTILITIES INC.","UNMETERED SCATTERED LOAD CONNECTIONS","UNMETERED SCATTERED LOAD","LAKEFRONT UTILITIES INC._UNMETERED SCATTERED LOAD SERVICE CLASSIFICATION","LAKEFRONT UTILITIES INC._UNMETERED SCATTERED LOAD SERVICE CLASSIFICATION",38852.07,0,567791.35,0,9778,0,0,0,0,0,577569.35,0,616421.42000000004,0]
["2019","LAKELAND POWER DISTRIBUTION LTD.","GENERAL SERVICE EQUAL TO OR GREATER THAN 50 KW","GENERAL SERVICE 50 TO 4,999 KW","LAKELAND POWER DISTRIBUTION LTD._GENERAL SERVICE 50 TO 4,999 KW SERVICE CLASSIFICATION","LAKELAND POWER DISTRIBUTION LTD._GENERAL SERVICE 50 TO 4,999 KW SERVICE CLASSIFICATION",11525749.369999999,30985,1370347.98,3664.59,75848481.709999993,181724.88,0,0,0,0,77218829.689999998,185389.47,88744579.060000002,216374.47]
["2019","LAKELAND POWER DISTRIBUTION LTD.","GENERAL SERVICE EQUAL TO OR GREATER THAN 50 KW","PARRY SOUND_GENERAL SERVICE 50 TO 4,999 KW","LAKELAND POWER DISTRIBUTION LTD._PARRY SOUND SERVICE AREA_GENERAL SERVICE 50 TO 4,999 KW SERVICE CLASSIFICATION","LAKELAND POWER DISTRIBUTION LTD._PARRY SOUND SERVICE AREA_GENERAL SERVICE 50 TO 4,999 KW SERVICE CLASSIFICATION",9827143.5899999999,20817,3456027.31,8451.32,16195539.869999999,40427.279999999999,0,0,0,0,19651567.18,48878.6,29478710.77,69696.52]
["2019","LAKELAND POWER DISTRIBUTION LTD.","GENERAL SERVICE LESS THAN 50 KW","GENERAL SERVICE LESS THAN 50 KW","LAKELAND POWER DISTRIBUTION LTD._GENERAL SERVICE LESS THAN 50 KW SERVICE CLASSIFICATION","LAKELAND POWER DISTRIBUTION LTD._GENERAL SERVICE LESS THAN 50 KW SERVICE CLASSIFICATION",6829775.1299999999,0,35249226.789999999,0,0,0,0,0,0,0,35249226.789999999,0,42079001.920000002,0]
["2019","LAKELAND POWER DISTRIBUTION LTD.","GENERAL SERVICE LESS THAN 50 KW","PARRY SOUND_GENERAL SERVICE LESS THAN 50 KW","LAKELAND POWER DISTRIBUTION LTD._PARRY SOUND SERVICE AREA_GENERAL SERVICE LESS THAN 50 KW SERVICE CLASSIFICATION","LAKELAND POWER DISTRIBUTION LTD._PARRY SOUND SERVICE AREA_GENERAL SERVICE LESS THAN 50 KW SERVICE CLASSIFICATION",2556412.79,0,15141090.220000001,0,0,0,0,0,0,0,15141090.220000001,0,17697503.010000002,0]
["2019","LAKELAND POWER DISTRIBUTION LTD.","NO RATE CLASS","NO RATE CLASS","LAKELAND POWER DISTRIBUTION LTD._NO RATE CLASS SERVICE CLASSIFICATION","LAKELAND POWER DISTRIBUTION LTD._NO RATE CLASS SERVICE CLASSIFICATION",0,0,0,0,0,0,0,0,42961260,92945.4375,0,0,0,0]
["2019","LAKELAND POWER DISTRIBUTION LTD.","RESIDENTIAL","PARRY SOUND_RESIDENTIAL","LAKELAND POWER DISTRIBUTION LTD._PARRY SOUND SERVICE AREA_RESIDENTIAL SERVICE CLASSIFICATION","LAKELAND POWER DISTRIBUTION LTD._PARRY SOUND SERVICE AREA_RESIDENTIAL SERVICE CLASSIFICATION",647124.41,0,29353530.100000001,0,0,0,0,0,0,0,29353530.100000001,0,30000654.510000002,0]
["2019","LAKELAND POWER DISTRIBUTION LTD.","RESIDENTIAL","RESIDENTIAL","LAKELAND POWER DISTRIBUTION LTD._RESIDENTIAL SERVICE CLASSIFICATION","LAKELAND POWER DISTRIBUTION LTD._RESIDENTIAL SERVICE CLASSIFICATION",2185365.42,0,77229480.390000001,0,0,0,0,0,0,0,77229480.390000001,0,79414845.810000002,0]
["2019","LAKELAND POWER DISTRIBUTION LTD.","SENTINEL LIGHTING CONNECTIONS","PARRY SOUND_SENTINEL LIGHTING","LAKELAND POWER DISTRIBUTION LTD._PARRY SOUND SERVICE AREA_SENTINEL LIGHTING SERVICE CLASSIFICATION","LAKELAND POWER DISTRIBUTION LTD._PARRY SOUND SERVICE AREA_SENTINEL LIGHTING SERVICE CLASSIFICATION",0,0,5205.6000000000004,14.46,0,0,0,0,0,0,5205.6000000000004,14.46,5205.6000000000004,14.46]
["2019","LAKELAND POWER DISTRIBUTION LTD.","SENTINEL LIGHTING CONNECTIONS","SENTINEL LIGHTING","LAKELAND POWER DISTRIBUTION LTD._SENTINEL LIGHTING SERVICE CLASSIFICATION","LAKELAND POWER DISTRIBUTION LTD._SENTINEL LIGHTING SERVICE CLASSIFICATION",0,0,35657.379999999997,99.14,0,0,0,0,0,0,35657.379999999997,99.14,35657.379999999997,99.14]
["2019","LAKELAND POWER DISTRIBUTION LTD.","STREET LIGHTING CONNECTIONS","PARRY SOUND_STREET LIGHTING","LAKELAND POWER DISTRIBUTION LTD._PARRY SOUND SERVICE AREA_STREET LIGHTING SERVICE CLASSIFICATION","LAKELAND POWER DISTRIBUTION LTD._PARRY SOUND SERVICE AREA_STREET LIGHTING SERVICE CLASSIFICATION",0,0,0,0,344233.52,995.42,0,0,0,0,344233.52,995.42,344233.52,995.42]
["2019","LAKELAND POWER DISTRIBUTION LTD.","STREET LIGHTING CONNECTIONS","STREET LIGHTING","LAKELAND POWER DISTRIBUTION LTD._STREET LIGHTING SERVICE CLASSIFICATION","LAKELAND POWER DISTRIBUTION LTD._STREET LIGHTING SERVICE CLASSIFICATION",137516.23000000001,373,632280.82999999996,1719.92,0,0,0,0,0,0,632280.82999999996,1719.92,769797.06,2093.12]
["2019","LAKELAND POWER DISTRIBUTION LTD.","UNMETERED SCATTERED LOAD CONNECTIONS","PARRY SOUND_UNMETERED SCATTERED LOAD","LAKELAND POWER DISTRIBUTION LTD._PARRY SOUND SERVICE AREA_UNMETERED SCATTERED LOAD SERVICE CLASSIFICATION","LAKELAND POWER DISTRIBUTION LTD._PARRY SOUND SERVICE AREA_UNMETERED SCATTERED LOAD SERVICE CLASSIFICATION",0,0,56154.48,0,0,0,0,0,0,0,56154.48,0,56154.48,0]
["2019","LAKELAND POWER DISTRIBUTION LTD.","UNMETERED SCATTERED LOAD CONNECTIONS","UNMETERED SCATTERED LOAD","LAKELAND POWER DISTRIBUTION LTD._UNMETERED SCATTERED LOAD SERVICE CLASSIFICATION","LAKELAND POWER DISTRIBUTION LTD._UNMETERED SCATTERED LOAD SERVICE CLASSIFICATION",600.05999999999995,0,109932.13,0,0,0,0,0,0,0,109932.13,0,110532.19,0]
["2019","LONDON HYDRO INC.","GENERAL SERVICE EQUAL TO OR GREATER THAN 50 KW","GENERAL SERVICE 50 TO 4,999 KW","LONDON HYDRO INC._GENERAL SERVICE 50 TO 4,999 KW SERVICE CLASSIFICATION","LONDON HYDRO INC._GENERAL SERVICE 50 TO 4,999 KW SERVICE CLASSIFICATION",195773148.09999999,512910,147081049,367837.98,1139219853,2849098.05,0,28511.5,0,0,1286300902,3245447.53,1482074050.0999999,3758358.43]
["2019","LONDON HYDRO INC.","GENERAL SERVICE EQUAL TO OR GREATER THAN 50 KW","GENERAL SERVICE 1,000 TO 4,999 KW (CO-GENERATION)","LONDON HYDRO INC._GENERAL SERVICE 1,000 TO 4,999 KW (CO-GENERATION) SERVICE CLASSIFICATION","LONDON HYDRO INC._GENERAL SERVICE 1,000 TO 4,999 KW (CO_GENERATION) SERVICE CLASSIFICATION",0,0,0,0,48833253,265044.87,0,0,0,0,48833253,265044.87,48833253,265044.87]
["2019","LONDON HYDRO INC.","GENERAL SERVICE LESS THAN 50 KW","GENERAL SERVICE LESS THAN 50 KW","LONDON HYDRO INC._GENERAL SERVICE LESS THAN 50 KW SERVICE CLASSIFICATION","LONDON HYDRO INC._GENERAL SERVICE LESS THAN 50 KW SERVICE CLASSIFICATION",54723349.700000003,0,339018679,0,3194079,0,0,0,0,0,342212758,0,396936107.69999999,0]
["2019","LONDON HYDRO INC.","LARGE USER","LARGE USE","LONDON HYDRO INC._LARGE USE SERVICE CLASSIFICATION","LONDON HYDRO INC._LARGE USE SERVICE CLASSIFICATION",0,0,0,0,116791074,221495.1,0,0,0,0,116791074,221495.1,116791074,221495.1]
["2019","LONDON HYDRO INC.","NO RATE CLASS","NO RATE CLASS","LONDON HYDRO INC._NO RATE CLASS SERVICE CLASSIFICATION","LONDON HYDRO INC._NO RATE CLASS SERVICE CLASSIFICATION",0,0,0,0,0,0,0,0,560302656,1321732.25,0,0,0,0]
["2019","LONDON HYDRO INC.","RESIDENTIAL","RESIDENTIAL","LONDON HYDRO INC._RESIDENTIAL SERVICE CLASSIFICATION","LONDON HYDRO INC._RESIDENTIAL SERVICE CLASSIFICATION",32973197.699999999,0,1101197037,0,103192,0,0,0,0,0,1101300229,0,1134273426.7,0]
["2019","LONDON HYDRO INC.","SENTINEL LIGHTING CONNECTIONS","SENTINEL LIGHTING","LONDON HYDRO INC._SENTINEL LIGHTING SERVICE CLASSIFICATION","LONDON HYDRO INC._SENTINEL LIGHTING SERVICE CLASSIFICATION",6160.4,16,546450,1485.91,-2014,-5.48,0,0,0,0,544436,1480.43,550596.4,1497.23]
["2019","LONDON HYDRO INC.","STREET LIGHTING CONNECTIONS","STREET LIGHTING","LONDON HYDRO INC._STREET LIGHTING SERVICE CLASSIFICATION","LONDON HYDRO INC._STREET LIGHTING SERVICE CLASSIFICATION",0,0,0,0,15903208,44445.9,0,0,0,0,15903208,44445.9,15903208,44445.9]
["2019","LONDON HYDRO INC.","UNMETERED SCATTERED LOAD CONNECTIONS","UNMETERED SCATTERED LOAD","LONDON HYDRO INC._UNMETERED SCATTERED LOAD SERVICE CLASSIFICATION","LONDON HYDRO INC._UNMETERED SCATTERED LOAD SERVICE CLASSIFICATION",0,0,5496547,0,0,0,0,0,0,0,5496547,0,5496547,0]
["2019","MILTON HYDRO DISTRIBUTION INC.","GENERAL SERVICE EQUAL TO OR GREATER THAN 50 KW","GENERAL SERVICE 1,000 TO 4,999 KW","MILTON HYDRO DISTRIBUTION INC._GENERAL SERVICE 1,000 TO 4,999 KW SERVICE CLASSIFICATION","MILTON HYDRO DISTRIBUTION INC._GENERAL SERVICE 1,000 TO 4,999 KW SERVICE CLASSIFICATION",12288588,26126,26956334,15057,109486103,248622,0,0,0,0,136442437,263679,148731025,289805]
["2019","MILTON HYDRO DISTRIBUTION INC.","GENERAL SERVICE EQUAL TO OR GREATER THAN 50 KW","GENERAL SERVICE 50 TO 999 KW","MILTON HYDRO DISTRIBUTION INC._GENERAL SERVICE 50 TO 999 KW SERVICE CLASSIFICATION","MILTON HYDRO DISTRIBUTION INC._GENERAL SERVICE 50 TO 999 KW SERVICE CLASSIFICATION",21937387,63544,7991161,88644,173094585,436745,4331691,9327,0,0,185417437,534716,207354824,598260]
["2019","MILTON HYDRO DISTRIBUTION INC.","GENERAL SERVICE LESS THAN 50 KW","GENERAL SERVICE LESS THAN 50 KW","MILTON HYDRO DISTRIBUTION INC._GENERAL SERVICE LESS THAN 50 KW SERVICE CLASSIFICATION","MILTON HYDRO DISTRIBUTION INC._GENERAL SERVICE LESS THAN 50 KW SERVICE CLASSIFICATION",13319730,0,71964588,0,679164,0,0,0,0,0,72643752,0,85963482,0]
["2019","MILTON HYDRO DISTRIBUTION INC.","LARGE USER","LARGE USE","MILTON HYDRO DISTRIBUTION INC._LARGE USE SERVICE CLASSIFICATION","MILTON HYDRO DISTRIBUTION INC._LARGE USE SERVICE CLASSIFICATION",0,0,0,0,137135098,268937,0,0,0,0,137135098,268937,137135098,268937]
["2019","MILTON HYDRO DISTRIBUTION INC.","NO RATE CLASS","NO RATE CLASS","MILTON HYDRO DISTRIBUTION INC._NO RATE CLASS SERVICE CLASSIFICATION","MILTON HYDRO DISTRIBUTION INC._NO RATE CLASS SERVICE CLASSIFICATION",0,0,0,0,0,0,0,0,243610960,481341,0,0,0,0]
["2019","MILTON HYDRO DISTRIBUTION INC.","RESIDENTIAL","RESIDENTIAL","MILTON HYDRO DISTRIBUTION INC._RESIDENTIAL SERVICE CLASSIFICATION","MILTON HYDRO DISTRIBUTION INC._RESIDENTIAL SERVICE CLASSIFICATION",8195575,0,315501367,0,18382,0,0,0,0,0,315519749,0,323715324,0]
["2019","MILTON HYDRO DISTRIBUTION INC.","SENTINEL LIGHTING CONNECTIONS","SENTINEL LIGHTING","MILTON HYDRO DISTRIBUTION INC._SENTINEL LIGHTING SERVICE CLASSIFICATION","MILTON HYDRO DISTRIBUTION INC._SENTINEL LIGHTING SERVICE CLASSIFICATION",0,0,145023,403,0,0,0,0,0,0,145023,403,145023,403]
["2019","MILTON HYDRO DISTRIBUTION INC.","STREET LIGHTING CONNECTIONS","STREET LIGHTING","MILTON HYDRO DISTRIBUTION INC._STREET LIGHTING SERVICE CLASSIFICATION","MILTON HYDRO DISTRIBUTION INC._STREET LIGHTING SERVICE CLASSIFICATION",0,0,0,0,7837155,21867,0,0,0,0,7837155,21867,7837155,21867]
["2019","MILTON HYDRO DISTRIBUTION INC.","UNMETERED SCATTERED LOAD CONNECTIONS","UNMETERED SCATTERED LOAD","MILTON HYDRO DISTRIBUTION INC._UNMETERED SCATTERED LOAD SERVICE CLASSIFICATION","MILTON HYDRO DISTRIBUTION INC._UNMETERED SCATTERED LOAD SERVICE CLASSIFICATION",90405,0,1003218,0,0,0,0,0,0,0,1003218,0,1093623,0]
["2019","NEWMARKET - TAY POWER DISTRIBUTION LTD.","GENERAL SERVICE EQUAL TO OR GREATER THAN 50 KW","GENERAL SERVICE 50 TO 4,999 KW - INTERVAL METER - NEWMARKET-TAY POWER","NEWMARKET-TAY POWER DISTRIBUTION LTD._FOR NEWMARKET-TAY POWER MAIN RATE ZONE_GENERAL SERVICE 50 TO 4,999 KW - INTERVAL METER SERVICE CLASSIFICATION","NEWMARKET_TAY POWER DISTRIBUTION LTD._FOR NEWMARKET_TAY POWER MAIN RATE ZONE_GENERAL SERVICE 50 TO 4,999 KW _ INTERVAL METER SERVICE CLASSIFICATION",31889883,62705,3619868,0,140131723,332044,0,8611,0,0,143751591,340655,175641474,403360]
["2019","NEWMARKET - TAY POWER DISTRIBUTION LTD.","GENERAL SERVICE EQUAL TO OR GREATER THAN 50 KW","GENERAL SERVICE 50 TO 4,999 KW - MIDLAND POWER","NEWMARKET-TAY POWER DISTRIBUTION LTD._FOR FORMER MIDLAND POWER UTILITY RATE ZONE_GENERAL SERVICE 50 TO 4,999 KW SERVICE CLASSIFICATION","NEWMARKET_TAY POWER DISTRIBUTION LTD._FOR FORMER MIDLAND POWER UTILITY RATE ZONE_GENERAL SERVICE 50 TO 4,999 KW SERVICE CLASSIFICATION",23717294,63485,10673474,27977,75501364,183979,3726295,7087,0,0,89901133,219043,113618427,282528]
["2019","NEWMARKET - TAY POWER DISTRIBUTION LTD.","GENERAL SERVICE EQUAL TO OR GREATER THAN 50 KW","GENERAL SERVICE 50 TO 4,999 KW - THERMAL METER - NEWMARKET-TAY POWER","NEWMARKET-TAY POWER DISTRIBUTION LTD._FOR NEWMARKET-TAY POWER MAIN RATE ZONE_GENERAL SERVICE 50 TO 4,999 KW - THERMAL METER SERVICE CLASSIFICATION","NEWMARKET_TAY POWER DISTRIBUTION LTD._FOR NEWMARKET_TAY POWER MAIN RATE ZONE_GENERAL SERVICE 50 TO 4,999 KW _ THERMAL METER SERVICE CLASSIFICATION",20625428,40556,21410580,0,61147771,177890,0,0,0,0,82558351,177890,103183779,218446]
["2019","NEWMARKET - TAY POWER DISTRIBUTION LTD.","GENERAL SERVICE EQUAL TO OR GREATER THAN 50 KW","GENERAL SERVICE 50 TO 4,999 KW - NEWMARKET-TAY POWER","NEWMARKET-TAY POWER DISTRIBUTION LTD._FOR NEWMARKET-TAY POWER MAIN RATE ZONE_GENERAL SERVICE 50 TO 4,999 KW SERVICE CLASSIFICATION","NEWMARKET_TAY POWER DISTRIBUTION LTD._FOR NEWMARKET_TAY POWER MAIN RATE ZONE_GENERAL SERVICE 50 TO 4,999 KW SERVICE CLASSIFICATION",52515311,103261,25030448,0,201279494,509934,0,8611,0,0,226309942,518545,278825253,621806]
["2019","NEWMARKET - TAY POWER DISTRIBUTION LTD.","GENERAL SERVICE LESS THAN 50 KW","GENERAL SERVICE LESS THAN 50 KW - MIDLAND POWER","NEWMARKET-TAY POWER DISTRIBUTION LTD._FOR FORMER MIDLAND POWER UTILITY RATE ZONE_GENERAL SERVICE LESS THAN 50 KW SERVICE CLASSIFICATION","NEWMARKET_TAY POWER DISTRIBUTION LTD._FOR FORMER MIDLAND POWER UTILITY RATE ZONE_GENERAL SERVICE LESS THAN 50 KW SERVICE CLASSIFICATION",4698262,0,19675019,0,965,0,0,0,0,0,19675984,0,24374246,0]
["2019","NEWMARKET - TAY POWER DISTRIBUTION LTD.","GENERAL SERVICE LESS THAN 50 KW","GENERAL SERVICE LESS THAN 50 KW - NEWMARKET-TAY POWER","NEWMARKET-TAY POWER DISTRIBUTION LTD._FOR NEWMARKET-TAY POWER MAIN RATE ZONE_GENERAL SERVICE LESS THAN 50 KW SERVICE CLASSIFICATION","NEWMARKET_TAY POWER DISTRIBUTION LTD._FOR NEWMARKET_TAY POWER MAIN RATE ZONE_GENERAL SERVICE LESS THAN 50 KW SERVICE CLASSIFICATION",15121826,0,76060964,0,366192,0,0,0,0,0,76427156,0,91548982,0]
["2019","NEWMARKET - TAY POWER DISTRIBUTION LTD.","NO RATE CLASS","NO RATE CLASS","NEWMARKET-TAY POWER DISTRIBUTION LTD._FOR FORMER MIDLAND POWER UTILITY RATE ZONE_NO RATE CLASS SERVICE CLASSIFICATION","NEWMARKET_TAY POWER DISTRIBUTION LTD._FOR FORMER MIDLAND POWER UTILITY RATE ZONE_NO RATE CLASS SERVICE CLASSIFICATION",0,0,0,0,0,0,0,0,115174312,235949,0,0,0,0]
["2019","NEWMARKET - TAY POWER DISTRIBUTION LTD.","RESIDENTIAL","RESIDENTIAL - MIDLAND POWER","NEWMARKET-TAY POWER DISTRIBUTION LTD._FOR FORMER MIDLAND POWER UTILITY RATE ZONE_RESIDENTIAL SERVICE CLASSIFICATION","NEWMARKET_TAY POWER DISTRIBUTION LTD._FOR FORMER MIDLAND POWER UTILITY RATE ZONE_RESIDENTIAL SERVICE CLASSIFICATION",2802908,0,47881650,0,0,0,0,0,0,0,47881650,0,50684558,0]
["2019","NEWMARKET - TAY POWER DISTRIBUTION LTD.","RESIDENTIAL","RESIDENTIAL - NEWMARKET-TAY POWER","NEWMARKET-TAY POWER DISTRIBUTION LTD._FOR NEWMARKET-TAY POWER MAIN RATE ZONE_RESIDENTIAL SERVICE CLASSIFICATION","NEWMARKET_TAY POWER DISTRIBUTION LTD._FOR NEWMARKET_TAY POWER MAIN RATE ZONE_RESIDENTIAL SERVICE CLASSIFICATION",8998926,0,273131781,0,9056,0,0,0,0,0,273140837,0,282139763,0]
["2019","NEWMARKET - TAY POWER DISTRIBUTION LTD.","SENTINEL LIGHTING CONNECTIONS","SENTINEL LIGHTING - NEWMARKET-TAY POWER","NEWMARKET-TAY POWER DISTRIBUTION LTD._FOR NEWMARKET-TAY POWER MAIN RATE ZONE_SENTINEL LIGHTING SERVICE CLASSIFICATION","NEWMARKET_TAY POWER DISTRIBUTION LTD._FOR NEWMARKET_TAY POWER MAIN RATE ZONE_SENTINEL LIGHTING SERVICE CLASSIFICATION",0,0,275116,764,0,0,0,0,0,0,275116,764,275116,764]
["2019","NEWMARKET - TAY POWER DISTRIBUTION LTD.","STREET LIGHTING CONNECTIONS","STREET LIGHTING - MIDLAND POWER","NEWMARKET-TAY POWER DISTRIBUTION LTD._FOR FORMER MIDLAND POWER UTILITY RATE ZONE_STREET LIGHTING SERVICE CLASSIFICATION","NEWMARKET_TAY POWER DISTRIBUTION LTD._FOR FORMER MIDLAND POWER UTILITY RATE ZONE_STREET LIGHTING SERVICE CLASSIFICATION",485645,1318,12133,31,22102,62,0,0,0,0,34235,93,519880,1411]
["2019","NEWMARKET - TAY POWER DISTRIBUTION LTD.","STREET LIGHTING CONNECTIONS","STREET LIGHTING - NEWMARKET-TAY POWER","NEWMARKET-TAY POWER DISTRIBUTION LTD._FOR NEWMARKET-TAY POWER MAIN RATE ZONE_STREET LIGHTING SERVICE CLASSIFICATION","NEWMARKET_TAY POWER DISTRIBUTION LTD._FOR NEWMARKET_TAY POWER MAIN RATE ZONE_STREET LIGHTING SERVICE CLASSIFICATION",0,0,83968,0,2481206,0,0,0,0,0,2565174,0,2565174,0]
["2019","NEWMARKET - TAY POWER DISTRIBUTION LTD.","UNMETERED SCATTERED LOAD CONNECTIONS","UNMETERED SCATTERED LOAD - NEWMARKET-TAY POWER","NEWMARKET-TAY POWER DISTRIBUTION LTD._FOR NEWMARKET-TAY POWER MAIN RATE ZONE_UNMETERED SCATTERED LOAD SERVICE CLASSIFICATION","NEWMARKET_TAY POWER DISTRIBUTION LTD._FOR NEWMARKET_TAY POWER MAIN RATE ZONE_UNMETERED SCATTERED LOAD SERVICE CLASSIFICATION",0,0,552037,0,0,0,0,0,0,0,552037,0,552037,0]
["2019","NEWMARKET - TAY POWER DISTRIBUTION LTD.","UNMETERED SCATTERED LOAD CONNECTIONS","UNMETERED SCATTERED LOAD - MIDLAND POWER","NEWMARKET-TAY POWER DISTRIBUTION LTD._FOR FORMER MIDLAND POWER UTILITY RATE ZONE_UNMETERED SCATTERED LOAD SERVICE CLASSIFICATION","NEWMARKET_TAY POWER DISTRIBUTION LTD._FOR FORMER MIDLAND POWER UTILITY RATE ZONE_UNMETERED SCATTERED LOAD SERVICE CLASSIFICATION",94320,0,300689,0,0,0,0,0,0,0,300689,0,395009,0]
["2019","NIAGARA PENINSULA ENERGY INC.","GENERAL SERVICE EQUAL TO OR GREATER THAN 50 KW","GENERAL SERVICE 50 TO 4,999 KW","NIAGARA PENINSULA ENERGY INC._GENERAL SERVICE 50 TO 4,999 KW SERVICE CLASSIFICATION","NIAGARA PENINSULA ENERGY INC._GENERAL SERVICE 50 TO 4,999 KW SERVICE CLASSIFICATION",62994721,160249,26842526,68283,543989698,1383824,3166943,6075,0,0,573999167,1458182,636993888,1618431]
["2019","NIAGARA PENINSULA ENERGY INC.","GENERAL SERVICE LESS THAN 50 KW","GENERAL SERVICE LESS THAN 50 KW","NIAGARA PENINSULA ENERGY INC._GENERAL SERVICE LESS THAN 50 KW SERVICE CLASSIFICATION","NIAGARA PENINSULA ENERGY INC._GENERAL SERVICE LESS THAN 50 KW SERVICE CLASSIFICATION",18866395,0,107287502,0,4386271,0,0,0,0,0,111673773,0,130540168,0]
["2019","NIAGARA PENINSULA ENERGY INC.","NO RATE CLASS","NO RATE CLASS","NIAGARA PENINSULA ENERGY INC._NO RATE CLASS SERVICE CLASSIFICATION","NIAGARA PENINSULA ENERGY INC._NO RATE CLASS SERVICE CLASSIFICATION",0,0,0,0,0,0,0,0,154666016,346570,0,0,0,0]
["2019","NIAGARA PENINSULA ENERGY INC.","RESIDENTIAL","RESIDENTIAL","NIAGARA PENINSULA ENERGY INC._RESIDENTIAL SERVICE CLASSIFICATION","NIAGARA PENINSULA ENERGY INC._RESIDENTIAL SERVICE CLASSIFICATION",16229967,0,433712793,0,0,0,0,0,0,0,433712793,0,449942760,0]
["2019","NIAGARA PENINSULA ENERGY INC.","SENTINEL LIGHTING CONNECTIONS","SENTINEL LIGHTING","NIAGARA PENINSULA ENERGY INC._SENTINEL LIGHTING SERVICE CLASSIFICATION","NIAGARA PENINSULA ENERGY INC._SENTINEL LIGHTING SERVICE CLASSIFICATION",0,0,220524,650,0,0,0,0,0,0,220524,650,220524,650]
["2019","NIAGARA PENINSULA ENERGY INC.","STREET LIGHTING CONNECTIONS","STREET LIGHTING","NIAGARA PENINSULA ENERGY INC._STREET LIGHTING SERVICE CLASSIFICATION","NIAGARA PENINSULA ENERGY INC._STREET LIGHTING SERVICE CLASSIFICATION",0,0,0,0,4494762,12519,0,0,0,0,4494762,12519,4494762,12519]
["2019","NIAGARA PENINSULA ENERGY INC.","UNMETERED SCATTERED LOAD CONNECTIONS","UNMETERED SCATTERED LOAD","NIAGARA PENINSULA ENERGY INC._UNMETERED SCATTERED LOAD SERVICE CLASSIFICATION","NIAGARA PENINSULA ENERGY INC._UNMETERED SCATTERED LOAD SERVICE CLASSIFICATION",0,0,1530550,0,0,0,0,0,0,0,1530550,0,1530550,0]
["2019","NIAGARA-ON-THE-LAKE HYDRO INC.","GENERAL SERVICE EQUAL TO OR GREATER THAN 50 KW","GENERAL SERVICE 50 TO 4,999 KW","NIAGARA-ON-THE-LAKE HYDRO INC._GENERAL SERVICE 50 TO 4,999 KW SERVICE CLASSIFICATION","NIAGARA_ON_THE_LAKE HYDRO INC._GENERAL SERVICE 50 TO 4,999 KW SERVICE CLASSIFICATION",11661806.52,36126,6526849,18246,78603165.560000002,189338.67,0,0,0,0,85130014.560000002,207584.67,96791821.079999998,243710.8]
["2019","NIAGARA-ON-THE-LAKE HYDRO INC.","GENERAL SERVICE LESS THAN 50 KW","GENERAL SERVICE LESS THAN 50 KW","NIAGARA-ON-THE-LAKE HYDRO INC._GENERAL SERVICE LESS THAN 50 KW SERVICE CLASSIFICATION","NIAGARA_ON_THE_LAKE HYDRO INC._GENERAL SERVICE LESS THAN 50 KW SERVICE CLASSIFICATION",5355270.1900000004,0,37264682.259999998,0,0,0,0,0,0,0,37264682.259999998,0,42619952.450000003,0]
["2019","NIAGARA-ON-THE-LAKE HYDRO INC.","NO RATE CLASS","NO RATE CLASS","NIAGARA-ON-THE-LAKE HYDRO INC._NO RATE CLASS SERVICE CLASSIFICATION","NIAGARA_ON_THE_LAKE HYDRO INC._NO RATE CLASS SERVICE CLASSIFICATION",0,0,0,0,0,0,0,0,18134724,47569.0390625,0,0,0,0]
["2019","NIAGARA-ON-THE-LAKE HYDRO INC.","RESIDENTIAL","RESIDENTIAL","NIAGARA-ON-THE-LAKE HYDRO INC._RESIDENTIAL SERVICE CLASSIFICATION","NIAGARA_ON_THE_LAKE HYDRO INC._RESIDENTIAL SERVICE CLASSIFICATION",1614200.61,0,75383969.590000004,0,0,0,0,0,0,0,75383969.590000004,0,76998170.200000003,0]
["2019","NIAGARA-ON-THE-LAKE HYDRO INC.","STREET LIGHTING CONNECTIONS","STREET LIGHTING","NIAGARA-ON-THE-LAKE HYDRO INC._STREET LIGHTING SERVICE CLASSIFICATION","NIAGARA_ON_THE_LAKE HYDRO INC._STREET LIGHTING SERVICE CLASSIFICATION",0,0,100263.48,279.8,756661.89,2109,0,0,0,0,856925.37,2388.8000000000002,856925.37,2388.8000000000002]
["2019","NIAGARA-ON-THE-LAKE HYDRO INC.","UNMETERED SCATTERED LOAD CONNECTIONS","UNMETERED SCATTERED LOAD","NIAGARA-ON-THE-LAKE HYDRO INC._UNMETERED SCATTERED LOAD SERVICE CLASSIFICATION","NIAGARA_ON_THE_LAKE HYDRO INC._UNMETERED SCATTERED LOAD SERVICE CLASSIFICATION",61128.18,0,203864.41,0,0,0,0,0,0,0,203864.41,0,264992.59000000003,0]
["2019","NORTH BAY HYDRO DISTRIBUTION LIMITED","GENERAL SERVICE EQUAL TO OR GREATER THAN 50 KW","GENERAL SERVICE 3,000 TO 4,999 KW","NORTH BAY HYDRO DISTRIBUTION LIMITED_GENERAL SERVICE 3,000 TO 4,999 KW SERVICE CLASSIFICATION","NORTH BAY HYDRO DISTRIBUTION LIMITED_GENERAL SERVICE 3,000 TO 4,999 KW SERVICE CLASSIFICATION",0,0,0,0,16185719.91,27679.19,0,0,0,0,16185719.91,27679.19,16185719.91,27679.19]
["2019","NORTH BAY HYDRO DISTRIBUTION LIMITED","GENERAL SERVICE EQUAL TO OR GREATER THAN 50 KW","GENERAL SERVICE 50 TO 2,999 KW","NORTH BAY HYDRO DISTRIBUTION LIMITED_GENERAL SERVICE 50 TO 2,999 KW SERVICE CLASSIFICATION","NORTH BAY HYDRO DISTRIBUTION LIMITED_GENERAL SERVICE 50 TO 2,999 KW SERVICE CLASSIFICATION",30912114.510000002,90241,14049550.74,39278.22,155037002.87,390134.78,0,0,0,0,169086553.61000001,429413,199998668.12,519654.58]
["2019","NORTH BAY HYDRO DISTRIBUTION LIMITED","GENERAL SERVICE LESS THAN 50 KW","GENERAL SERVICE LESS THAN 50 KW","NORTH BAY HYDRO DISTRIBUTION LIMITED_GENERAL SERVICE LESS THAN 50 KW SERVICE CLASSIFICATION","NORTH BAY HYDRO DISTRIBUTION LIMITED_GENERAL SERVICE LESS THAN 50 KW SERVICE CLASSIFICATION",13215780.550000001,0,68273475.579999998,0,324825.87,0,0,0,0,0,68598301.450000003,0,81814082,0]
["2019","NORTH BAY HYDRO DISTRIBUTION LIMITED","NO RATE CLASS","NO RATE CLASS","NORTH BAY HYDRO DISTRIBUTION LIMITED_NO RATE CLASS SERVICE CLASSIFICATION","NORTH BAY HYDRO DISTRIBUTION LIMITED_NO RATE CLASS SERVICE CLASSIFICATION",0,0,0,0,0,0,0,0,42947476,97139.0625,0,0,0,0]
["2019","NORTH BAY HYDRO DISTRIBUTION LIMITED","RESIDENTIAL","RESIDENTIAL","NORTH BAY HYDRO DISTRIBUTION LIMITED_RESIDENTIAL SERVICE CLASSIFICATION","NORTH BAY HYDRO DISTRIBUTION LIMITED_RESIDENTIAL SERVICE CLASSIFICATION",6110964.0700000003,0,190673165.88,0,0,0,0,0,0,0,190673165.88,0,196784129.94999999,0]
["2019","NORTH BAY HYDRO DISTRIBUTION LIMITED","SENTINEL LIGHTING CONNECTIONS","SENTINEL LIGHTING","NORTH BAY HYDRO DISTRIBUTION LIMITED_SENTINEL LIGHTING SERVICE CLASSIFICATION","NORTH BAY HYDRO DISTRIBUTION LIMITED_SENTINEL LIGHTING SERVICE CLASSIFICATION",11161.78,29,113541.55,287.02,0,0,0,0,0,0,113541.55,287.02,124703.33,316.63]
["2019","NORTH BAY HYDRO DISTRIBUTION LIMITED","STREET LIGHTING CONNECTIONS","STREET LIGHTING","NORTH BAY HYDRO DISTRIBUTION LIMITED_STREET LIGHTING SERVICE CLASSIFICATION","NORTH BAY HYDRO DISTRIBUTION LIMITED_STREET LIGHTING SERVICE CLASSIFICATION",0,0,0,0,2031595.18,5690.28,0,0,0,0,2031595.18,5690.28,2031595.18,5690.28]
["2019","NORTH BAY HYDRO DISTRIBUTION LIMITED","UNMETERED SCATTERED LOAD CONNECTIONS","UNMETERED SCATTERED LOAD","NORTH BAY HYDRO DISTRIBUTION LIMITED_UNMETERED SCATTERED LOAD SERVICE CLASSIFICATION","NORTH BAY HYDRO DISTRIBUTION LIMITED_UNMETERED SCATTERED LOAD SERVICE CLASSIFICATION",0,0,42072.62,0,0,0,0,0,0,0,42072.62,0,42072.62,0]
["2019","NORTHERN ONTARIO WIRES INC.","GENERAL SERVICE EQUAL TO OR GREATER THAN 50 KW","GENERAL SERVICE 50 TO 4,999 KW","NORTHERN ONTARIO WIRES INC._GENERAL SERVICE 50 TO 4,999 KW SERVICE CLASSIFICATION","NORTHERN ONTARIO WIRES INC._GENERAL SERVICE 50 TO 4,999 KW SERVICE CLASSIFICATION",12216823,33682,0,0,47310018,151059,0,0,0,0,47310018,151059,59526841,184741]
["2019","NORTHERN ONTARIO WIRES INC.","GENERAL SERVICE LESS THAN 50 KW","GENERAL SERVICE LESS THAN 50 KW","NORTHERN ONTARIO WIRES INC._GENERAL SERVICE LESS THAN 50 KW SERVICE CLASSIFICATION","NORTHERN ONTARIO WIRES INC._GENERAL SERVICE LESS THAN 50 KW SERVICE CLASSIFICATION",2805957,0,15134868,0,0,0,0,0,0,0,15134868,0,17940825,0]
["2019","NORTHERN ONTARIO WIRES INC.","NO RATE CLASS","NO RATE CLASS","NORTHERN ONTARIO WIRES INC._NO RATE CLASS SERVICE CLASSIFICATION","NORTHERN ONTARIO WIRES INC._NO RATE CLASS SERVICE CLASSIFICATION",0,0,0,0,0,0,0,0,16061836,70915,0,0,0,0]
["2019","NORTHERN ONTARIO WIRES INC.","RESIDENTIAL","RESIDENTIAL","NORTHERN ONTARIO WIRES INC._RESIDENTIAL SERVICE CLASSIFICATION","NORTHERN ONTARIO WIRES INC._RESIDENTIAL SERVICE CLASSIFICATION",840514,0,38038217,0,0,0,0,0,0,0,38038217,0,38878731,0]
["2019","NORTHERN ONTARIO WIRES INC.","STREET LIGHTING CONNECTIONS","STREET LIGHTING","NORTHERN ONTARIO WIRES INC._STREET LIGHTING SERVICE CLASSIFICATION","NORTHERN ONTARIO WIRES INC._STREET LIGHTING SERVICE CLASSIFICATION",517432,1421,0,0,0,0,0,0,0,0,0,0,517432,1421]
["2019","NORTHERN ONTARIO WIRES INC.","UNMETERED SCATTERED LOAD CONNECTIONS","UNMETERED SCATTERED LOAD","NORTHERN ONTARIO WIRES INC._UNMETERED SCATTERED LOAD SERVICE CLASSIFICATION","NORTHERN ONTARIO WIRES INC._UNMETERED SCATTERED LOAD SERVICE CLASSIFICATION",19637,0,144541,0,0,0,0,0,0,0,144541,0,164178,0]
["2019","OAKVILLE HYDRO ELECTRICITY DISTRIBUTION INC.","EMBEDDED DISTRIBUTOR(S)","EMBEDDED DISTRIBUTOR","OAKVILLE HYDRO ELECTRICITY DISTRIBUTION INC._EMBEDDED DISTRIBUTOR SERVICE CLASSIFICATION","OAKVILLE HYDRO ELECTRICITY DISTRIBUTION INC._EMBEDDED DISTRIBUTOR SERVICE CLASSIFICATION",0,0,0,0,49737762.789999999,109070.55,0,0,0,0,49737762.789999999,109070.55,49737762.789999999,109070.55]
["2019","OAKVILLE HYDRO ELECTRICITY DISTRIBUTION INC.","GENERAL SERVICE EQUAL TO OR GREATER THAN 50 KW","GENERAL SERVICE 1,000 KW AND GREATER","OAKVILLE HYDRO ELECTRICITY DISTRIBUTION INC._GENERAL SERVICE 1,000 KW AND GREATER SERVICE CLASSIFICATION","OAKVILLE HYDRO ELECTRICITY DISTRIBUTION INC._GENERAL SERVICE 1,000 KW AND GREATER SERVICE CLASSIFICATION",51003610.210000001,111604,0,0,165010351.13,365340.45,0,0,0,0,165010351.13,365340.45,216013961.34,476944.88]
["2019","OAKVILLE HYDRO ELECTRICITY DISTRIBUTION INC.","GENERAL SERVICE EQUAL TO OR GREATER THAN 50 KW","GENERAL SERVICE 50 TO 999 KW","OAKVILLE HYDRO ELECTRICITY DISTRIBUTION INC._GENERAL SERVICE 50 TO 999 KW SERVICE CLASSIFICATION","OAKVILLE HYDRO ELECTRICITY DISTRIBUTION INC._GENERAL SERVICE 50 TO 999 KW SERVICE CLASSIFICATION",107026012,276886,78984752.849999994,206042.26,386193670.52999997,1067750.82,4255917.5,8394.58984375,0,0,469434341.08999997,1282187.67,576460353.09000003,1559074.32]
["2019","OAKVILLE HYDRO ELECTRICITY DISTRIBUTION INC.","GENERAL SERVICE LESS THAN 50 KW","GENERAL SERVICE LESS THAN 50 KW","OAKVILLE HYDRO ELECTRICITY DISTRIBUTION INC._GENERAL SERVICE LESS THAN 50 KW SERVICE CLASSIFICATION","OAKVILLE HYDRO ELECTRICITY DISTRIBUTION INC._GENERAL SERVICE LESS THAN 50 KW SERVICE CLASSIFICATION",24965365,0,148904659.37,0,0,0,0,0,0,0,148904659.37,0,173870024.37,0]
["2019","OAKVILLE HYDRO ELECTRICITY DISTRIBUTION INC.","NO RATE CLASS","NO RATE CLASS","OAKVILLE HYDRO ELECTRICITY DISTRIBUTION INC._NO RATE CLASS SERVICE CLASSIFICATION","OAKVILLE HYDRO ELECTRICITY DISTRIBUTION INC._NO RATE CLASS SERVICE CLASSIFICATION",0,0,0,0,0,0,0,0,177344128,376812,0,0,0,0]
["2019","OAKVILLE HYDRO ELECTRICITY DISTRIBUTION INC.","RESIDENTIAL","RESIDENTIAL","OAKVILLE HYDRO ELECTRICITY DISTRIBUTION INC._RESIDENTIAL SERVICE CLASSIFICATION","OAKVILLE HYDRO ELECTRICITY DISTRIBUTION INC._RESIDENTIAL SERVICE CLASSIFICATION",8990733.7100000009,0,582707940.51999998,0,0,0,0,0,0,0,582707940.51999998,0,591698674.23000002,0]
["2019","OAKVILLE HYDRO ELECTRICITY DISTRIBUTION INC.","SENTINEL LIGHTING CONNECTIONS","SENTINEL LIGHTING","OAKVILLE HYDRO ELECTRICITY DISTRIBUTION INC._SENTINEL LIGHTING SERVICE CLASSIFICATION","OAKVILLE HYDRO ELECTRICITY DISTRIBUTION INC._SENTINEL LIGHTING SERVICE CLASSIFICATION",0,0,97107.72,269.74,0,0,0,0,0,0,97107.72,269.74,97107.72,269.74]
["2019","OAKVILLE HYDRO ELECTRICITY DISTRIBUTION INC.","STREET LIGHTING CONNECTIONS","STREET LIGHTING","OAKVILLE HYDRO ELECTRICITY DISTRIBUTION INC._STREET LIGHTING SERVICE CLASSIFICATION","OAKVILLE HYDRO ELECTRICITY DISTRIBUTION INC._STREET LIGHTING SERVICE CLASSIFICATION",3960021.43,11038,0,0,1601812.81,6236,0,0,0,0,1601812.81,6236,5561834.2400000002,17274.28]
["2019","OAKVILLE HYDRO ELECTRICITY DISTRIBUTION INC.","UNMETERED SCATTERED LOAD CONNECTIONS","UNMETERED SCATTERED LOAD","OAKVILLE HYDRO ELECTRICITY DISTRIBUTION INC._UNMETERED SCATTERED LOAD SERVICE CLASSIFICATION","OAKVILLE HYDRO ELECTRICITY DISTRIBUTION INC._UNMETERED SCATTERED LOAD SERVICE CLASSIFICATION",0,0,4343401,0,0,0,0,0,0,0,4343401,0,4343401,0]
["2019","ORANGEVILLE HYDRO LIMITED","GENERAL SERVICE EQUAL TO OR GREATER THAN 50 KW","GENERAL SERVICE 50 TO 4,999 KW","ORANGEVILLE HYDRO LIMITED_GENERAL SERVICE 50 TO 4,999 KW SERVICE CLASSIFICATION","ORANGEVILLE HYDRO LIMITED_GENERAL SERVICE 50 TO 4,999 KW SERVICE CLASSIFICATION",26841295,67115,9811121.7200000007,23846.7,86324871.040000007,207008.22,3013333.25,5683.77001953125,0,0,99149325.959999993,236538.69,125990620.95999999,303653.69]
["2019","ORANGEVILLE HYDRO LIMITED","GENERAL SERVICE LESS THAN 50 KW","GENERAL SERVICE LESS THAN 50 KW","ORANGEVILLE HYDRO LIMITED_GENERAL SERVICE LESS THAN 50 KW SERVICE CLASSIFICATION","ORANGEVILLE HYDRO LIMITED_GENERAL SERVICE LESS THAN 50 KW SERVICE CLASSIFICATION",5376454,0,30343574.719999999,0,0,0,0,0,0,0,30343574.719999999,0,35720028.719999999,0]
["2019","ORANGEVILLE HYDRO LIMITED","NO RATE CLASS","NO RATE CLASS","ORANGEVILLE HYDRO LIMITED_NO RATE CLASS SERVICE CLASSIFICATION","ORANGEVILLE HYDRO LIMITED_NO RATE CLASS SERVICE CLASSIFICATION",0,0,0,0,0,0,0,0,39164592,91113,0,0,0,0]
["2019","ORANGEVILLE HYDRO LIMITED","RESIDENTIAL","RESIDENTIAL","ORANGEVILLE HYDRO LIMITED_RESIDENTIAL SERVICE CLASSIFICATION","ORANGEVILLE HYDRO LIMITED_RESIDENTIAL SERVICE CLASSIFICATION",2827268,0,88871070.840000004,0,0,0,0,0,0,0,88871070.840000004,0,91698338.840000004,0]
["2019","ORANGEVILLE HYDRO LIMITED","SENTINEL LIGHTING CONNECTIONS","SENTINEL LIGHTING","ORANGEVILLE HYDRO LIMITED_SENTINEL LIGHTING SERVICE CLASSIFICATION","ORANGEVILLE HYDRO LIMITED_SENTINEL LIGHTING SERVICE CLASSIFICATION",0,0,102422.26,283.10000000000002,0,0,0,0,0,0,102422.26,283.10000000000002,102422.26,283.10000000000002]
["2019","ORANGEVILLE HYDRO LIMITED","STREET LIGHTING CONNECTIONS","STREET LIGHTING","ORANGEVILLE HYDRO LIMITED_STREET LIGHTING SERVICE CLASSIFICATION","ORANGEVILLE HYDRO LIMITED_STREET LIGHTING SERVICE CLASSIFICATION",0,0,133765.43,368.28,737141.96,2058.83,0,0,0,0,870907.39,2427.11,870907.39,2427.11]
["2019","ORANGEVILLE HYDRO LIMITED","UNMETERED SCATTERED LOAD CONNECTIONS","UNMETERED SCATTERED LOAD","ORANGEVILLE HYDRO LIMITED_UNMETERED SCATTERED LOAD SERVICE CLASSIFICATION","ORANGEVILLE HYDRO LIMITED_UNMETERED SCATTERED LOAD SERVICE CLASSIFICATION",0,0,375336.58,0,0,0,0,0,0,0,375336.58,0,375336.58,0]
["2019","ORILLIA POWER DISTRIBUTION CORPORATION","GENERAL SERVICE EQUAL TO OR GREATER THAN 50 KW","GENERAL SERVICE 50 TO 4,999 KW","ORILLIA POWER DISTRIBUTION CORPORATION_GENERAL SERVICE 50 TO 4,999 KW SERVICE CLASSIFICATION","ORILLIA POWER DISTRIBUTION CORPORATION_GENERAL SERVICE 50 TO 4,999 KW SERVICE CLASSIFICATION",24472940,59297,19963105,58454,117092755,295223,2872560,5624,0,0,139928420,359301,164401360,418598]
["2019","ORILLIA POWER DISTRIBUTION CORPORATION","GENERAL SERVICE LESS THAN 50 KW","GENERAL SERVICE LESS THAN 50 KW","ORILLIA POWER DISTRIBUTION CORPORATION_GENERAL SERVICE LESS THAN 50 KW SERVICE CLASSIFICATION","ORILLIA POWER DISTRIBUTION CORPORATION_GENERAL SERVICE LESS THAN 50 KW SERVICE CLASSIFICATION",8737260,0,35953975,0,0,0,0,0,0,0,35953975,0,44691235,0]
["2019","ORILLIA POWER DISTRIBUTION CORPORATION","NO RATE CLASS","NO RATE CLASS","ORILLIA POWER DISTRIBUTION CORPORATION_NO RATE CLASS SERVICE CLASSIFICATION","ORILLIA POWER DISTRIBUTION CORPORATION_NO RATE CLASS SERVICE CLASSIFICATION",0,0,0,0,0,0,0,0,48922408,125187,0,0,0,0]
["2019","ORILLIA POWER DISTRIBUTION CORPORATION","RESIDENTIAL","RESIDENTIAL","ORILLIA POWER DISTRIBUTION CORPORATION_RESIDENTIAL SERVICE CLASSIFICATION","ORILLIA POWER DISTRIBUTION CORPORATION_RESIDENTIAL SERVICE CLASSIFICATION",3419745,0,106936259,0,0,0,0,0,0,0,106936259,0,110356004,0]
["2019","ORILLIA POWER DISTRIBUTION CORPORATION","SENTINEL LIGHTING CONNECTIONS","SENTINEL LIGHTING","ORILLIA POWER DISTRIBUTION CORPORATION_SENTINEL LIGHTING SERVICE CLASSIFICATION","ORILLIA POWER DISTRIBUTION CORPORATION_SENTINEL LIGHTING SERVICE CLASSIFICATION",23843,66,204031,567,0,0,0,0,0,0,204031,567,227874,633]
["2019","ORILLIA POWER DISTRIBUTION CORPORATION","STREET LIGHTING CONNECTIONS","STREET LIGHTING","ORILLIA POWER DISTRIBUTION CORPORATION_STREET LIGHTING SERVICE CLASSIFICATION","ORILLIA POWER DISTRIBUTION CORPORATION_STREET LIGHTING SERVICE CLASSIFICATION",2654195,7416,0,0,0,0,0,0,0,0,0,0,2654195,7416]
["2019","ORILLIA POWER DISTRIBUTION CORPORATION","UNMETERED SCATTERED LOAD CONNECTIONS","UNMETERED SCATTERED LOAD","ORILLIA POWER DISTRIBUTION CORPORATION_UNMETERED SCATTERED LOAD SERVICE CLASSIFICATION","ORILLIA POWER DISTRIBUTION CORPORATION_UNMETERED SCATTERED LOAD SERVICE CLASSIFICATION",96864,0,663093,0,0,0,0,0,0,0,663093,0,759957,0]
["2019","OSHAWA PUC NETWORKS INC.","GENERAL SERVICE EQUAL TO OR GREATER THAN 50 KW","GENERAL SERVICE 1,000 TO 4,999 KW","OSHAWA PUC NETWORKS INC._GENERAL SERVICE 1,000 TO 4,999 KW SERVICE CLASSIFICATION","OSHAWA PUC NETWORKS INC._GENERAL SERVICE 1,000 TO 4,999 KW SERVICE CLASSIFICATION",0,0,0,0,77975782,188636,0,0,0,0,77975782,188636,77975782,188636]
["2019","OSHAWA PUC NETWORKS INC.","GENERAL SERVICE EQUAL TO OR GREATER THAN 50 KW","GENERAL SERVICE 50 TO 999 KW","OSHAWA PUC NETWORKS INC._GENERAL SERVICE 50 TO 999 KW SERVICE CLASSIFICATION","OSHAWA PUC NETWORKS INC._GENERAL SERVICE 50 TO 999 KW SERVICE CLASSIFICATION",45771969,134286,106566502,317881,180643112,495864,6881329,13219,0,0,294090943,826964,339862912,961250]
["2019","OSHAWA PUC NETWORKS INC.","GENERAL SERVICE LESS THAN 50 KW","GENERAL SERVICE LESS THAN 50 KW","OSHAWA PUC NETWORKS INC._GENERAL SERVICE LESS THAN 50 KW SERVICE CLASSIFICATION","OSHAWA PUC NETWORKS INC._GENERAL SERVICE LESS THAN 50 KW SERVICE CLASSIFICATION",21512552,0,112695041,0,0,0,0,0,0,0,112695041,0,134207593,0]
["2019","OSHAWA PUC NETWORKS INC.","LARGE USER","LARGE USE","OSHAWA PUC NETWORKS INC._LARGE USE SERVICE CLASSIFICATION","OSHAWA PUC NETWORKS INC._LARGE USE SERVICE CLASSIFICATION",41521361,100563,0,0,3352059,6580,0,0,0,0,3352059,6580,44873420,107143]
["2019","OSHAWA PUC NETWORKS INC.","NO RATE CLASS","NO RATE CLASS","OSHAWA PUC NETWORKS INC._NO RATE CLASS SERVICE CLASSIFICATION","OSHAWA PUC NETWORKS INC._NO RATE CLASS SERVICE CLASSIFICATION",0,0,0,0,0,0,0,0,92817184,197198,0,0,0,0]
["2019","OSHAWA PUC NETWORKS INC.","RESIDENTIAL","RESIDENTIAL","OSHAWA PUC NETWORKS INC._RESIDENTIAL SERVICE CLASSIFICATION","OSHAWA PUC NETWORKS INC._RESIDENTIAL SERVICE CLASSIFICATION",18561506,0,477239561,0,0,0,0,0,0,0,477239561,0,495801067,0]
["2019","OSHAWA PUC NETWORKS INC.","SENTINEL LIGHTING CONNECTIONS","SENTINEL LIGHTING","OSHAWA PUC NETWORKS INC._SENTINEL LIGHTING SERVICE CLASSIFICATION","OSHAWA PUC NETWORKS INC._SENTINEL LIGHTING SERVICE CLASSIFICATION",0,0,30312,0,0,0,0,0,0,0,30312,0,30312,0]
["2019","OSHAWA PUC NETWORKS INC.","STREET LIGHTING CONNECTIONS","STREET LIGHTING","OSHAWA PUC NETWORKS INC._STREET LIGHTING SERVICE CLASSIFICATION","OSHAWA PUC NETWORKS INC._STREET LIGHTING SERVICE CLASSIFICATION",0,0,0,0,4221567,12086,0,0,0,0,4221567,12086,4221567,12086]
["2019","OSHAWA PUC NETWORKS INC.","UNMETERED SCATTERED LOAD CONNECTIONS","UNMETERED SCATTERED LOAD","OSHAWA PUC NETWORKS INC._UNMETERED SCATTERED LOAD SERVICE CLASSIFICATION","OSHAWA PUC NETWORKS INC._UNMETERED SCATTERED LOAD SERVICE CLASSIFICATION",0,0,828497,0,0,0,0,0,0,0,828497,0,828497,0]
["2019","OTTAWA RIVER POWER CORPORATION","GENERAL SERVICE EQUAL TO OR GREATER THAN 50 KW","GENERAL SERVICE 50 TO 4,999 KW","OTTAWA RIVER POWER CORPORATION_GENERAL SERVICE 50 TO 4,999 KW SERVICE CLASSIFICATION","OTTAWA RIVER POWER CORPORATION_GENERAL SERVICE 50 TO 4,999 KW SERVICE CLASSIFICATION",12669620,35391,14552838,40067,44279881,153656,0,0,0,0,58832719,193723,71502339,229114]
["2019","OTTAWA RIVER POWER CORPORATION","GENERAL SERVICE LESS THAN 50 KW","GENERAL SERVICE LESS THAN 50 KW","OTTAWA RIVER POWER CORPORATION_GENERAL SERVICE LESS THAN 50 KW SERVICE CLASSIFICATION","OTTAWA RIVER POWER CORPORATION_GENERAL SERVICE LESS THAN 50 KW SERVICE CLASSIFICATION",4954174,0,25105888,0,0,0,0,0,0,0,25105888,0,30060062,0]
["2019","OTTAWA RIVER POWER CORPORATION","NO RATE CLASS","NO RATE CLASS","OTTAWA RIVER POWER CORPORATION_NO RATE CLASS SERVICE CLASSIFICATION","OTTAWA RIVER POWER CORPORATION_NO RATE CLASS SERVICE CLASSIFICATION",0,0,0,0,0,0,0,0,0,0,0,0,0,0]
["2019","OTTAWA RIVER POWER CORPORATION","RESIDENTIAL","RESIDENTIAL","OTTAWA RIVER POWER CORPORATION_RESIDENTIAL SERVICE CLASSIFICATION","OTTAWA RIVER POWER CORPORATION_RESIDENTIAL SERVICE CLASSIFICATION",1782730,0,79933769,0,0,0,0,0,0,0,79933769,0,81716499,0]
["2019","OTTAWA RIVER POWER CORPORATION","SENTINEL LIGHTING CONNECTIONS","SENTINEL LIGHTING","OTTAWA RIVER POWER CORPORATION_SENTINEL LIGHTING SERVICE CLASSIFICATION","OTTAWA RIVER POWER CORPORATION_SENTINEL LIGHTING SERVICE CLASSIFICATION",0,0,203849,529,0,0,0,0,0,0,203849,529,203849,529]
["2019","OTTAWA RIVER POWER CORPORATION","STREET LIGHTING CONNECTIONS","STREET LIGHTING","OTTAWA RIVER POWER CORPORATION_STREET LIGHTING SERVICE CLASSIFICATION","OTTAWA RIVER POWER CORPORATION_STREET LIGHTING SERVICE CLASSIFICATION",268960,721,120218,332,721480,2099,0,0,0,0,841698,2431,1110658,3152]
["2019","OTTAWA RIVER POWER CORPORATION","UNMETERED SCATTERED LOAD CONNECTIONS","UNMETERED SCATTERED LOAD","OTTAWA RIVER POWER CORPORATION_UNMETERED SCATTERED LOAD SERVICE CLASSIFICATION","OTTAWA RIVER POWER CORPORATION_UNMETERED SCATTERED LOAD SERVICE CLASSIFICATION",182077,0,423221,0,0,0,0,0,0,0,423221,0,605298,0]
["2019","PETERBOROUGH DISTRIBUTION INCORPORATED","GENERAL SERVICE EQUAL TO OR GREATER THAN 50 KW","GENERAL SERVICE 50 TO 4,999 KW","PETERBOROUGH DISTRIBUTION INCORPORATED_GENERAL SERVICE 50 TO 4,999 KW SERVICE CLASSIFICATION","PETERBOROUGH DISTRIBUTION INCORPORATED_GENERAL SERVICE 50 TO 4,999 KW SERVICE CLASSIFICATION",62974225,153979,75454844,118272,187670973,525120,0,5438,0,0,263125817,648830,326100042,802809]
["2019","PETERBOROUGH DISTRIBUTION INCORPORATED","GENERAL SERVICE LESS THAN 50 KW","GENERAL SERVICE LESS THAN 50 KW","PETERBOROUGH DISTRIBUTION INCORPORATED_GENERAL SERVICE LESS THAN 50 KW SERVICE CLASSIFICATION","PETERBOROUGH DISTRIBUTION INCORPORATED_GENERAL SERVICE LESS THAN 50 KW SERVICE CLASSIFICATION",16077817,0,100855015,0,1159336,0,0,0,0,0,102014351,0,118092168,0]
["2019","PETERBOROUGH DISTRIBUTION INCORPORATED","LARGE USER","LARGE USE","PETERBOROUGH DISTRIBUTION INCORPORATED_LARGE USE SERVICE CLASSIFICATION","PETERBOROUGH DISTRIBUTION INCORPORATED_LARGE USE SERVICE CLASSIFICATION",29631607,58631,0,0,19404389,50827,0,0,0,0,19404389,50827,49035996,109458]
["2019","PETERBOROUGH DISTRIBUTION INCORPORATED","NO RATE CLASS","NO RATE CLASS","PETERBOROUGH DISTRIBUTION INCORPORATED_NO RATE CLASS SERVICE CLASSIFICATION","PETERBOROUGH DISTRIBUTION INCORPORATED_NO RATE CLASS SERVICE CLASSIFICATION",0,0,0,0,0,0,0,0,137979424,302762,0,0,0,0]
["2019","PETERBOROUGH DISTRIBUTION INCORPORATED","RESIDENTIAL","RESIDENTIAL","PETERBOROUGH DISTRIBUTION INCORPORATED_RESIDENTIAL SERVICE CLASSIFICATION","PETERBOROUGH DISTRIBUTION INCORPORATED_RESIDENTIAL SERVICE CLASSIFICATION",6208450,0,286611919,0,0,0,0,0,0,0,286611919,0,292820369,0]
["2019","PETERBOROUGH DISTRIBUTION INCORPORATED","SENTINEL LIGHTING CONNECTIONS","SENTINEL LIGHTING","PETERBOROUGH DISTRIBUTION INCORPORATED_SENTINEL LIGHTING SERVICE CLASSIFICATION","PETERBOROUGH DISTRIBUTION INCORPORATED_SENTINEL LIGHTING SERVICE CLASSIFICATION",198455,584,414550,1217,0,0,0,0,0,0,414550,1217,613005,1801]
["2019","PETERBOROUGH DISTRIBUTION INCORPORATED","STREET LIGHTING CONNECTIONS","STREET LIGHTING","PETERBOROUGH DISTRIBUTION INCORPORATED_STREET LIGHTING SERVICE CLASSIFICATION","PETERBOROUGH DISTRIBUTION INCORPORATED_STREET LIGHTING SERVICE CLASSIFICATION",5632065,17175,0,0,265671,440,0,0,0,0,265671,440,5897736,17615]
["2019","PETERBOROUGH DISTRIBUTION INCORPORATED","UNMETERED SCATTERED LOAD CONNECTIONS","UNMETERED SCATTERED LOAD","PETERBOROUGH DISTRIBUTION INCORPORATED_UNMETERED SCATTERED LOAD SERVICE CLASSIFICATION","PETERBOROUGH DISTRIBUTION INCORPORATED_UNMETERED SCATTERED LOAD SERVICE CLASSIFICATION",1999921,0,110437,0,0,0,0,0,0,0,110437,0,2110358,0]
["2019","PUC DISTRIBUTION INC.","GENERAL SERVICE EQUAL TO OR GREATER THAN 50 KW","GENERAL SERVICE 50 TO 4,999 KW","PUC DISTRIBUTION INC._GENERAL SERVICE 50 TO 4,999 KW SERVICE CLASSIFICATION","PUC DISTRIBUTION INC._GENERAL SERVICE 50 TO 4,999 KW SERVICE CLASSIFICATION",45883144.240000002,100674,40253530.25,121321.43,155681054.02000001,382553.16,0,0,0,0,195934584.27000001,503874.59,241817728.50999999,604548.71]
["2019","PUC DISTRIBUTION INC.","GENERAL SERVICE LESS THAN 50 KW","GENERAL SERVICE LESS THAN 50 KW","PUC DISTRIBUTION INC._GENERAL SERVICE LESS THAN 50 KW SERVICE CLASSIFICATION","PUC DISTRIBUTION INC._GENERAL SERVICE LESS THAN 50 KW SERVICE CLASSIFICATION",14216398.140000001,0,78537434.620000005,0,6166.49,0,0,0,0,0,78543601.109999999,0,92759999.25,0]
["2019","PUC DISTRIBUTION INC.","NO RATE CLASS","NO RATE CLASS","PUC DISTRIBUTION INC._NO RATE CLASS SERVICE CLASSIFICATION","PUC DISTRIBUTION INC._NO RATE CLASS SERVICE CLASSIFICATION",0,0,0,0,0,0,0,0,32510300,83491,0,0,0,0]
["2019","PUC DISTRIBUTION INC.","RESIDENTIAL","RESIDENTIAL","PUC DISTRIBUTION INC._RESIDENTIAL SERVICE CLASSIFICATION","PUC DISTRIBUTION INC._RESIDENTIAL SERVICE CLASSIFICATION",8583453.9000000004,0,287023767.54000002,0,10429.06,0,0,0,0,0,287034196.60000002,0,295617650.5,0]
["2019","PUC DISTRIBUTION INC.","SENTINEL LIGHTING CONNECTIONS","SENTINEL LIGHTING","PUC DISTRIBUTION INC._SENTINEL LIGHTING SERVICE CLASSIFICATION","PUC DISTRIBUTION INC._SENTINEL LIGHTING SERVICE CLASSIFICATION",0,0,209110.61,611.82000000000005,0,0,0,0,0,0,209110.61,611.82000000000005,209110.61,611.82000000000005]
["2019","PUC DISTRIBUTION INC.","STREET LIGHTING CONNECTIONS","STREET LIGHTING","PUC DISTRIBUTION INC._STREET LIGHTING SERVICE CLASSIFICATION","PUC DISTRIBUTION INC._STREET LIGHTING SERVICE CLASSIFICATION",0,0,127064.04,372.07,2271156.92,6658.07,0,0,0,0,2398220.96,7030.14,2398220.96,7030.14]
["2019","PUC DISTRIBUTION INC.","UNMETERED SCATTERED LOAD CONNECTIONS","UNMETERED SCATTERED LOAD","PUC DISTRIBUTION INC._UNMETERED SCATTERED LOAD SERVICE CLASSIFICATION","PUC DISTRIBUTION INC._UNMETERED SCATTERED LOAD SERVICE CLASSIFICATION",0,0,895216.96,0,0,0,0,0,0,0,895216.96,0,895216.96,0]
["2019","RENFREW HYDRO INC.","GENERAL SERVICE EQUAL TO OR GREATER THAN 50 KW","GENERAL SERVICE 50 TO 4,999 KW","RENFREW HYDRO INC._GENERAL SERVICE 50 TO 4,999 KW SERVICE CLASSIFICATION","RENFREW HYDRO INC._GENERAL SERVICE 50 TO 4,999 KW SERVICE CLASSIFICATION",4404319,10370,3967592,0,36164492,97023,0,0,0,0,40132084,97023,44536403,107393.2]
["2019","RENFREW HYDRO INC.","GENERAL SERVICE LESS THAN 50 KW","GENERAL SERVICE LESS THAN 50 KW","RENFREW HYDRO INC._GENERAL SERVICE LESS THAN 50 KW SERVICE CLASSIFICATION","RENFREW HYDRO INC._GENERAL SERVICE LESS THAN 50 KW SERVICE CLASSIFICATION",2053522,0,9070942,0,0,0,0,0,0,0,9070942,0,11124464,0]
["2019","RENFREW HYDRO INC.","NO RATE CLASS","NO RATE CLASS","RENFREW HYDRO INC._NO RATE CLASS SERVICE CLASSIFICATION","RENFREW HYDRO INC._NO RATE CLASS SERVICE CLASSIFICATION",0,0,0,0,0,0,0,0,12237109,23498.189453125,0,0,0,0]
["2019","RENFREW HYDRO INC.","RESIDENTIAL","RESIDENTIAL","RENFREW HYDRO INC._RESIDENTIAL SERVICE CLASSIFICATION","RENFREW HYDRO INC._RESIDENTIAL SERVICE CLASSIFICATION",594281,0,29263485,0,3723,0,0,0,0,0,29267208,0,29861489,0]
["2019","RENFREW HYDRO INC.","STREET LIGHTING CONNECTIONS","STREET LIGHTING","RENFREW HYDRO INC._STREET LIGHTING SERVICE CLASSIFICATION","RENFREW HYDRO INC._STREET LIGHTING SERVICE CLASSIFICATION",0,0,0,0,1095474,3039,0,0,0,0,1095474,3039,1095474,3039]
["2019","RENFREW HYDRO INC.","UNMETERED SCATTERED LOAD CONNECTIONS","UNMETERED SCATTERED LOAD","RENFREW HYDRO INC._UNMETERED SCATTERED LOAD SERVICE CLASSIFICATION","RENFREW HYDRO INC._UNMETERED SCATTERED LOAD SERVICE CLASSIFICATION",0,0,0,0,174874,0,0,0,0,0,174874,0,174874,0]
["2019","RIDEAU ST. LAWRENCE DISTRIBUTION INC.","GENERAL SERVICE EQUAL TO OR GREATER THAN 50 KW","GENERAL SERVICE 50 TO 4,999 KW","RIDEAU ST. LAWRENCE DISTRIBUTION INC._GENERAL SERVICE 50 TO 4,999 KW SERVICE CLASSIFICATION","RIDEAU ST. LAWRENCE DISTRIBUTION INC._GENERAL SERVICE 50 TO 4,999 KW SERVICE CLASSIFICATION",4150997,12850,2232575,6093.66,31320294,93549.759999999995,0,0,0,0,33552869,99643.42,37703866,112493.42]
["2019","RIDEAU ST. LAWRENCE DISTRIBUTION INC.","GENERAL SERVICE LESS THAN 50 KW","GENERAL SERVICE LESS THAN 50 KW","RIDEAU ST. LAWRENCE DISTRIBUTION INC._GENERAL SERVICE LESS THAN 50 KW SERVICE CLASSIFICATION","RIDEAU ST. LAWRENCE DISTRIBUTION INC._GENERAL SERVICE LESS THAN 50 KW SERVICE CLASSIFICATION",2765991,0,17486458,0,0,0,0,0,0,0,17486458,0,20252449,0]
["2019","RIDEAU ST. LAWRENCE DISTRIBUTION INC.","NO RATE CLASS","NO RATE CLASS","RIDEAU ST. LAWRENCE DISTRIBUTION INC._NO RATE CLASS SERVICE CLASSIFICATION","RIDEAU ST. LAWRENCE DISTRIBUTION INC._NO RATE CLASS SERVICE CLASSIFICATION",0,0,0,0,0,0,0,0,5806605,17467,0,0,0,0]
["2019","RIDEAU ST. LAWRENCE DISTRIBUTION INC.","RESIDENTIAL","RESIDENTIAL","RIDEAU ST. LAWRENCE DISTRIBUTION INC._RESIDENTIAL SERVICE CLASSIFICATION","RIDEAU ST. LAWRENCE DISTRIBUTION INC._RESIDENTIAL SERVICE CLASSIFICATION",936378,0,41602411,0,0,0,0,0,0,0,41602411,0,42538789,0]
["2019","RIDEAU ST. LAWRENCE DISTRIBUTION INC.","SENTINEL LIGHTING CONNECTIONS","SENTINEL LIGHTING","RIDEAU ST. LAWRENCE DISTRIBUTION INC._SENTINEL LIGHTING SERVICE CLASSIFICATION","RIDEAU ST. LAWRENCE DISTRIBUTION INC._SENTINEL LIGHTING SERVICE CLASSIFICATION",71036,7,94758,284.95999999999998,0,0,0,0,0,0,94758,284.95999999999998,165794,292.3]
["2019","RIDEAU ST. LAWRENCE DISTRIBUTION INC.","STREET LIGHTING CONNECTIONS","STREET LIGHTING","RIDEAU ST. LAWRENCE DISTRIBUTION INC._STREET LIGHTING SERVICE CLASSIFICATION","RIDEAU ST. LAWRENCE DISTRIBUTION INC._STREET LIGHTING SERVICE CLASSIFICATION",2643,193,151619,411.28,491834,1334.5,0,0,0,0,643453,1745.78,646096,1938.78]
["2019","RIDEAU ST. LAWRENCE DISTRIBUTION INC.","UNMETERED SCATTERED LOAD CONNECTIONS","UNMETERED SCATTERED LOAD","RIDEAU ST. LAWRENCE DISTRIBUTION INC._UNMETERED SCATTERED LOAD SERVICE CLASSIFICATION","RIDEAU ST. LAWRENCE DISTRIBUTION INC._UNMETERED SCATTERED LOAD SERVICE CLASSIFICATION",51612,0,490025,0,0,0,0,0,0,0,490025,0,541637,0]
["2019","SIOUX LOOKOUT HYDRO INC.","GENERAL SERVICE EQUAL TO OR GREATER THAN 50 KW","GENERAL SERVICE 50 TO 4,999 KW","SIOUX LOOKOUT HYDRO INC._GENERAL SERVICE 50 TO 4,999 KW SERVICE CLASSIFICATION","SIOUX LOOKOUT HYDRO INC._GENERAL SERVICE 50 TO 4,999 KW SERVICE CLASSIFICATION",1719280,0,4260600.01,12465.92,21796935.43,51462.65,0,0,0,0,26057535.440000001,63928.57,27776815.440000001,63928.57]
["2019","SIOUX LOOKOUT HYDRO INC.","GENERAL SERVICE LESS THAN 50 KW","GENERAL SERVICE LESS THAN 50 KW","SIOUX LOOKOUT HYDRO INC._GENERAL SERVICE LESS THAN 50 KW SERVICE CLASSIFICATION","SIOUX LOOKOUT HYDRO INC._GENERAL SERVICE LESS THAN 50 KW SERVICE CLASSIFICATION",832880.69,0,12796397.939999999,0,0,0,0,0,0,0,12796397.939999999,0,13629278.630000001,0]
["2019","SIOUX LOOKOUT HYDRO INC.","NO RATE CLASS","NO RATE CLASS","SIOUX LOOKOUT HYDRO INC._NO RATE CLASS SERVICE CLASSIFICATION","SIOUX LOOKOUT HYDRO INC._NO RATE CLASS SERVICE CLASSIFICATION",0,0,0,0,0,0,0,0,null,null,0,0,0,0]
["2019","SIOUX LOOKOUT HYDRO INC.","RESIDENTIAL","RESIDENTIAL","SIOUX LOOKOUT HYDRO INC._RESIDENTIAL SERVICE CLASSIFICATION","SIOUX LOOKOUT HYDRO INC._RESIDENTIAL SERVICE CLASSIFICATION",292094.51,0,36719976.310000002,0,0,0,0,0,0,0,36719976.310000002,0,37012070.82,0]
["2019","SIOUX LOOKOUT HYDRO INC.","STREET LIGHTING CONNECTIONS","STREET LIGHTING","SIOUX LOOKOUT HYDRO INC._STREET LIGHTING SERVICE CLASSIFICATION","SIOUX LOOKOUT HYDRO INC._STREET LIGHTING SERVICE CLASSIFICATION",0,0,12327.71,34.68,139656.29,391.08,0,0,0,0,151984,425.76,151984,425.76]
["2019","SYNERGY NORTH CORPORATION – KENORA RATE DISTRICT","GENERAL SERVICE EQUAL TO OR GREATER THAN 50 KW","GENERAL SERVICE 50 TO 4,999 KW","SYNERGY NORTH CORPORATION_KENORA RATE ZONE_GENERAL SERVICE 50 TO 4,999 KW SERVICE CLASSIFICATION","SYNERGY NORTH CORPORATION_KENORA RATE ZONE_GENERAL SERVICE 50 TO 4,999 KW SERVICE CLASSIFICATION",12346811,35241,5321333,14059,20712772,41199,0,0,0,0,26034105,55258,38380916,90499]
["2019","SYNERGY NORTH CORPORATION – KENORA RATE DISTRICT","GENERAL SERVICE LESS THAN 50 KW","GENERAL SERVICE LESS THAN 50 KW","SYNERGY NORTH CORPORATION_KENORA RATE ZONE_GENERAL SERVICE LESS THAN 50 KW SERVICE CLASSIFICATION","SYNERGY NORTH CORPORATION_KENORA RATE ZONE_GENERAL SERVICE LESS THAN 50 KW SERVICE CLASSIFICATION",3439547,0,19593680,0,0,0,0,0,0,0,19593680,0,23033227,0]
["2019","SYNERGY NORTH CORPORATION – KENORA RATE DISTRICT","NO RATE CLASS","NO RATE CLASS","SYNERGY NORTH CORPORATION_KENORA RATE ZONE_NO RATE CLASS SERVICE CLASSIFICATION","SYNERGY NORTH CORPORATION_KENORA RATE ZONE_NO RATE CLASS SERVICE CLASSIFICATION",0,0,0,0,0,0,0,0,0,0,0,0,0,0]
["2019","SYNERGY NORTH CORPORATION – KENORA RATE DISTRICT","RESIDENTIAL","RESIDENTIAL","SYNERGY NORTH CORPORATION_KENORA RATE ZONE_RESIDENTIAL SERVICE CLASSIFICATION","SYNERGY NORTH CORPORATION_KENORA RATE ZONE_RESIDENTIAL SERVICE CLASSIFICATION",472503,0,35668066,0,0,0,0,0,0,0,35668066,0,36140569,0]
["2019","SYNERGY NORTH CORPORATION – KENORA RATE DISTRICT","STREET LIGHTING CONNECTIONS","STREET LIGHTING","SYNERGY NORTH CORPORATION_KENORA RATE ZONE_STREET LIGHTING SERVICE CLASSIFICATION","SYNERGY NORTH CORPORATION_KENORA RATE ZONE_STREET LIGHTING SERVICE CLASSIFICATION",653714,1075,0,0,0,0,0,0,0,0,0,0,653714,1075]
["2019","SYNERGY NORTH CORPORATION – KENORA RATE DISTRICT","UNMETERED SCATTERED LOAD CONNECTIONS","UNMETERED SCATTERED LOAD","SYNERGY NORTH CORPORATION_KENORA RATE ZONE_UNMETERED SCATTERED LOAD SERVICE CLASSIFICATION","SYNERGY NORTH CORPORATION_KENORA RATE ZONE_UNMETERED SCATTERED LOAD SERVICE CLASSIFICATION",27911,0,147167,0,0,0,0,0,0,0,147167,0,175078,0]
["2019","SYNERGY NORTH CORPORATION – THUNDER BAY RATE DISTRICT","GENERAL SERVICE EQUAL TO OR GREATER THAN 50 KW","GENERAL SERVICE 1,000 TO 4,999 KW","SYNERGY NORTH CORPORATION_THUNDER BAY RATE ZONE_GENERAL SERVICE 1,000 KW OR GREATER SERVICE CLASSIFICATION","SYNERGY NORTH CORPORATION_THUNDER BAY RATE ZONE_GENERAL SERVICE 1,000 KW OR GREATER SERVICE CLASSIFICATION",0,0,0,0,155152008,487344,0,0,0,0,155152008,487344,155152008,487344]
["2019","SYNERGY NORTH CORPORATION – THUNDER BAY RATE DISTRICT","GENERAL SERVICE EQUAL TO OR GREATER THAN 50 KW","GENERAL SERVICE 50 TO 999 KW","SYNERGY NORTH CORPORATION_THUNDER BAY RATE ZONE_GENERAL SERVICE 50 TO 999 KW SERVICE CLASSIFICATION","SYNERGY NORTH CORPORATION_THUNDER BAY RATE ZONE_GENERAL SERVICE 50 TO 999 KW SERVICE CLASSIFICATION",40165237,111236,70779911,205051,159145992,369359,0,0,0,0,229925903,574410,270091140,685646]
["2019","SYNERGY NORTH CORPORATION – THUNDER BAY RATE DISTRICT","GENERAL SERVICE LESS THAN 50 KW","GENERAL SERVICE LESS THAN 50 KW","SYNERGY NORTH CORPORATION_THUNDER BAY RATE ZONE_GENERAL SERVICE LESS THAN 50 KW SERVICE CLASSIFICATION","SYNERGY NORTH CORPORATION_THUNDER BAY RATE ZONE_GENERAL SERVICE LESS THAN 50 KW SERVICE CLASSIFICATION",13265042,0,121711266,0,1813470,0,0,0,0,0,123524736,0,136789778,0]
["2019","SYNERGY NORTH CORPORATION – THUNDER BAY RATE DISTRICT","NO RATE CLASS","NO RATE CLASS","SYNERGY NORTH CORPORATION_THUNDER BAY RATE ZONE_NO RATE CLASS SERVICE CLASSIFICATION","SYNERGY NORTH CORPORATION_THUNDER BAY RATE ZONE_NO RATE CLASS SERVICE CLASSIFICATION",0,0,0,0,0,0,0,0,126330848,351616.3125,0,0,0,0]
["2019","SYNERGY NORTH CORPORATION – THUNDER BAY RATE DISTRICT","RESIDENTIAL","RESIDENTIAL","SYNERGY NORTH CORPORATION_THUNDER BAY RATE ZONE_RESIDENTIAL SERVICE CLASSIFICATION","SYNERGY NORTH CORPORATION_THUNDER BAY RATE ZONE_RESIDENTIAL SERVICE CLASSIFICATION",2815248,0,322304997,0,0,0,0,0,0,0,322304997,0,325120245,0]
["2019","SYNERGY NORTH CORPORATION – THUNDER BAY RATE DISTRICT","SENTINEL LIGHTING CONNECTIONS","SENTINEL LIGHTING","SYNERGY NORTH CORPORATION_THUNDER BAY RATE ZONE_SENTINEL LIGHTING SERVICE CLASSIFICATION","SYNERGY NORTH CORPORATION_THUNDER BAY RATE ZONE_SENTINEL LIGHTING SERVICE CLASSIFICATION",0,0,0,0,112347,335,0,0,0,0,112347,335,112347,335]
["2019","SYNERGY NORTH CORPORATION – THUNDER BAY RATE DISTRICT","STREET LIGHTING CONNECTIONS","STREET LIGHTING","SYNERGY NORTH CORPORATION_THUNDER BAY RATE ZONE_STREET LIGHTING SERVICE CLASSIFICATION","SYNERGY NORTH CORPORATION_THUNDER BAY RATE ZONE_STREET LIGHTING SERVICE CLASSIFICATION",0,0,65958,174,7063589,19942,0,0,0,0,7129547,20116,7129547,20116]
["2019","SYNERGY NORTH CORPORATION – THUNDER BAY RATE DISTRICT","UNMETERED SCATTERED LOAD CONNECTIONS","UNMETERED SCATTERED LOAD","SYNERGY NORTH CORPORATION_THUNDER BAY RATE ZONE_UNMETERED SCATTERED LOAD SERVICE CLASSIFICATION","SYNERGY NORTH CORPORATION_THUNDER BAY RATE ZONE_UNMETERED SCATTERED LOAD SERVICE CLASSIFICATION",287210,0,1739869,0,0,0,0,0,0,0,1739869,0,2027079,0]
["2019","TILLSONBURG HYDRO INC.","GENERAL SERVICE EQUAL TO OR GREATER THAN 50 KW","GENERAL SERVICE 50 TO 499 KW","TILLSONBURG HYDRO INC._GENERAL SERVICE 50 TO 499 KW SERVICE CLASSIFICATION","TILLSONBURG HYDRO INC._GENERAL SERVICE 50 TO 499 KW SERVICE CLASSIFICATION",13038631.25,40944,5022685.66,14384.32,23707305.039999999,67354.97,0,0,0,0,28729990.699999999,81739.289999999994,41768621.950000003,122683.63]
["2019","TILLSONBURG HYDRO INC.","GENERAL SERVICE EQUAL TO OR GREATER THAN 50 KW","GENERAL SERVICE 500 TO 1,499 KW","TILLSONBURG HYDRO INC._GENERAL SERVICE 500 TO 1,499 KW SERVICE CLASSIFICATION","TILLSONBURG HYDRO INC._GENERAL SERVICE 500 TO 1,499 KW SERVICE CLASSIFICATION",16888878.829999998,4024,0,0,20308974.800000001,73052.45,0,0,0,0,20308974.800000001,73052.45,37197853.630000003,77077.23]
["2019","TILLSONBURG HYDRO INC.","GENERAL SERVICE EQUAL TO OR GREATER THAN 50 KW","GENERAL SERVICE EQUAL TO OR GREATER THAN 1,500 KW","TILLSONBURG HYDRO INC._GENERAL SERVICE EQUAL TO OR GREATER THAN 1,500 KW SERVICE CLASSIFICATION","TILLSONBURG HYDRO INC._GENERAL SERVICE EQUAL TO OR GREATER THAN 1,500 KW SERVICE CLASSIFICATION",9794012.4399999995,19505,0,0,19022532.890000001,45286.559999999998,0,0,0,0,19022532.890000001,45286.559999999998,28816545.329999998,64792.52]
["2019","TILLSONBURG HYDRO INC.","GENERAL SERVICE LESS THAN 50 KW","GENERAL SERVICE LESS THAN 50 KW","TILLSONBURG HYDRO INC._GENERAL SERVICE LESS THAN 50 KW SERVICE CLASSIFICATION","TILLSONBURG HYDRO INC._GENERAL SERVICE LESS THAN 50 KW SERVICE CLASSIFICATION",4766372.82,0,16123005.939999999,0,0,0,0,0,0,0,16123005.939999999,0,20889378.760000002,0]
["2019","TILLSONBURG HYDRO INC.","NO RATE CLASS","NO RATE CLASS","TILLSONBURG HYDRO INC._NO RATE CLASS SERVICE CLASSIFICATION","TILLSONBURG HYDRO INC._NO RATE CLASS SERVICE CLASSIFICATION",0,0,0,0,0,0,0,0,49026952,106418.703125,0,0,0,0]
["2019","TILLSONBURG HYDRO INC.","RESIDENTIAL","RESIDENTIAL","TILLSONBURG HYDRO INC._RESIDENTIAL SERVICE CLASSIFICATION","TILLSONBURG HYDRO INC._RESIDENTIAL SERVICE CLASSIFICATION",3511726.8,0,49561200.020000003,0,0,0,0,0,0,0,49561200.020000003,0,53072926.82,0]
["2019","TILLSONBURG HYDRO INC.","SENTINEL LIGHTING CONNECTIONS","SENTINEL LIGHTING","TILLSONBURG HYDRO INC._SENTINEL LIGHTING SERVICE CLASSIFICATION","TILLSONBURG HYDRO INC._SENTINEL LIGHTING SERVICE CLASSIFICATION",0,0,40375.980000000003,6.96,0,0,0,0,0,0,40375.980000000003,6.96,40375.980000000003,6.96]
["2019","TILLSONBURG HYDRO INC.","STREET LIGHTING CONNECTIONS","STREET LIGHTING","TILLSONBURG HYDRO INC._STREET LIGHTING SERVICE CLASSIFICATION","TILLSONBURG HYDRO INC._STREET LIGHTING SERVICE CLASSIFICATION",0,0,0,0,1189534.6599999999,3093.44,0,0,0,0,1189534.6599999999,3093.44,1189534.6599999999,3093.44]
["2019","TILLSONBURG HYDRO INC.","UNMETERED SCATTERED LOAD CONNECTIONS","UNMETERED SCATTERED LOAD","TILLSONBURG HYDRO INC._UNMETERED SCATTERED LOAD SERVICE CLASSIFICATION","TILLSONBURG HYDRO INC._UNMETERED SCATTERED LOAD SERVICE CLASSIFICATION",21638.41,0,314025.86,0,0,0,0,0,0,0,314025.86,0,335664.27,0]
["2019","TORONTO HYDRO-ELECTRIC SYSTEM LIMITED","GENERAL SERVICE EQUAL TO OR GREATER THAN 50 KW","GENERAL SERVICE 1,000 TO 4,999 KW","TORONTO HYDRO-ELECTRIC SYSTEM LIMITED_GENERAL SERVICE 1,000 TO 4,999 KW SERVICE CLASSIFICATION","TORONTO HYDRO_ELECTRIC SYSTEM LIMITED_GENERAL SERVICE 1,000 TO 4,999 KW SERVICE CLASSIFICATION",772134650,1600585,185118579.21000001,382707.93,3678240541.9000001,8345874.46,31929.26953125,66.839996337890597,0,0,3863391050.3800001,8728649.2300000004,4635525700.3800001,10329234.23]
["2019","TORONTO HYDRO-ELECTRIC SYSTEM LIMITED","GENERAL SERVICE EQUAL TO OR GREATER THAN 50 KW","GENERAL SERVICE 50 TO 999 KW","TORONTO HYDRO-ELECTRIC SYSTEM LIMITED_GENERAL SERVICE 50 TO 999 KW SERVICE CLASSIFICATION","TORONTO HYDRO_ELECTRIC SYSTEM LIMITED_GENERAL SERVICE 50 TO 999 KW SERVICE CLASSIFICATION",1076002651,2995753,3053881970.3899999,7254724.4000000004,5870889423.8400002,15339634.77,51161048,107338.4921875,0,0,8975932444.0900002,22701697.66,10051935095.09,25697450.66]
["2019","TORONTO HYDRO-ELECTRIC SYSTEM LIMITED","GENERAL SERVICE LESS THAN 50 KW","GENERAL SERVICE LESS THAN 50 KW","TORONTO HYDRO-ELECTRIC SYSTEM LIMITED_GENERAL SERVICE LESS THAN 50 KW SERVICE CLASSIFICATION","TORONTO HYDRO_ELECTRIC SYSTEM LIMITED_GENERAL SERVICE LESS THAN 50 KW SERVICE CLASSIFICATION",352286833,0,2050352870.3699999,0,4486536.72,0,0,0,0,0,2054839407.0899999,0,2407126240.0900002,0]
["2019","TORONTO HYDRO-ELECTRIC SYSTEM LIMITED","LARGE USER","LARGE USE","TORONTO HYDRO-ELECTRIC SYSTEM LIMITED_LARGE USE SERVICE CLASSIFICATION","TORONTO HYDRO_ELECTRIC SYSTEM LIMITED_LARGE USE SERVICE CLASSIFICATION",336281032,628056,0,0,1711835805.0799999,3753638.6,275445728,503078.40625,0,0,1987281527.8800001,4256717.0199999996,2323562559.8800001,4884773.0199999996]
["2019","TORONTO HYDRO-ELECTRIC SYSTEM LIMITED","NO RATE CLASS","NO RATE CLASS","TORONTO HYDRO-ELECTRIC SYSTEM LIMITED_NO RATE CLASS SERVICE CLASSIFICATION","TORONTO HYDRO_ELECTRIC SYSTEM LIMITED_NO RATE CLASS SERVICE CLASSIFICATION",0,0,0,0,0,0,0,0,5208596992,10983550,0,0,0,0]
["2019","TORONTO HYDRO-ELECTRIC SYSTEM LIMITED","RESIDENTIAL","RESIDENTIAL - COMPETITIVE SECTOR MULTI-UNIT","TORONTO HYDRO-ELECTRIC SYSTEM LIMITED_COMPETITIVE SECTOR MULTI_UNIT RESIDENTIAL SERVICE CLASSIFICATION","TORONTO HYDRO_ELECTRIC SYSTEM LIMITED_COMPETITIVE SECTOR MULTI_UNIT RESIDENTIAL SERVICE CLASSIFICATION",1141673,0,269513402.97000003,0,0,0,0,0,0,0,269513402.97000003,0,270655075.97000003,0]
["2019","TORONTO HYDRO-ELECTRIC SYSTEM LIMITED","RESIDENTIAL","RESIDENTIAL - REGULAR","TORONTO HYDRO-ELECTRIC SYSTEM LIMITED_RESIDENTIAL SERVICE CLASSIFICATION","TORONTO HYDRO_ELECTRIC SYSTEM LIMITED_RESIDENTIAL SERVICE CLASSIFICATION",132063722,0,4818876044.7799997,0,0,0,0,0,0,0,4818876044.7799997,0,4950939766.7799997,0]
["2019","TORONTO HYDRO-ELECTRIC SYSTEM LIMITED","STREET LIGHTING CONNECTIONS","STREET LIGHTING","TORONTO HYDRO-ELECTRIC SYSTEM LIMITED_STREET LIGHTING SERVICE CLASSIFICATION","TORONTO HYDRO_ELECTRIC SYSTEM LIMITED_STREET LIGHTING SERVICE CLASSIFICATION",0,0,0,0,114210063.29000001,329107.84999999998,0,0,0,0,114210063.29000001,329107.84999999998,114210063.29000001,329107.84999999998]
["2019","TORONTO HYDRO-ELECTRIC SYSTEM LIMITED","UNMETERED SCATTERED LOAD CONNECTIONS","UNMETERED SCATTERED LOAD","TORONTO HYDRO-ELECTRIC SYSTEM LIMITED_UNMETERED SCATTERED LOAD SERVICE CLASSIFICATION","TORONTO HYDRO_ELECTRIC SYSTEM LIMITED_UNMETERED SCATTERED LOAD SERVICE CLASSIFICATION",114271,0,39000321.469999999,0,0,0,0,0,0,0,39000321.469999999,0,39114592.469999999,0]
["2019","ELEXICON ENERGY INC.","GENERAL SERVICE EQUAL TO OR GREATER THAN 50 KW","GENERAL SERVICE 3,000 TO 4,999 KW","ELEXICON ENERGY INC._VERIDIAN RATE ZONE_GENERAL SERVICE 3,000 TO 4,999 KW SERVICE CLASSIFICATION","ELEXICON ENERGY INC._VERIDIAN RATE ZONE_GENERAL SERVICE 3,000 TO 4,999 KW SERVICE CLASSIFICATION",2883313,9263,0,0,101660900,220993,0,0,0,0,101660900,220993,104544213,230256]
["2019","ELEXICON ENERGY INC.","GENERAL SERVICE EQUAL TO OR GREATER THAN 50 KW","GENERAL SERVICE 50 TO 2,999 KW","ELEXICON ENERGY INC._VERIDIAN RATE ZONE_GENERAL SERVICE 50 TO 2,999 KW SERVICE CLASSIFICATION","ELEXICON ENERGY INC._VERIDIAN RATE ZONE_GENERAL SERVICE 50 TO 2,999 KW SERVICE CLASSIFICATION",137359862,347620,99790544,262091,738597058,1698198,37358788,64063,0,0,875746391,2024352,1013106253,2371972]
["2019","ELEXICON ENERGY INC.","GENERAL SERVICE LESS THAN 50 KW","GENERAL SERVICE LESS THAN 50 KW","ELEXICON ENERGY INC._VERIDIAN RATE ZONE_GENERAL SERVICE LESS THAN 50 KW SERVICE CLASSIFICATION","ELEXICON ENERGY INC._VERIDIAN RATE ZONE_GENERAL SERVICE LESS THAN 50 KW SERVICE CLASSIFICATION",50481466,0,241731371,0,284352,0,0,0,0,0,242015723,0,292497189,0]
["2019","ELEXICON ENERGY INC.","LARGE USER","LARGE USE","ELEXICON ENERGY INC._VERIDIAN RATE ZONE_LARGE USE SERVICE CLASSIFICATION","ELEXICON ENERGY INC._VERIDIAN RATE ZONE_LARGE USE SERVICE CLASSIFICATION",0,0,0,0,223509398,382630,0,0,0,0,223509398,382630,223509398,382630]
["2019","ELEXICON ENERGY INC.","NO RATE CLASS","NO RATE CLASS","ELEXICON ENERGY INC._VERIDIAN RATE ZONE_NO RATE CLASS SERVICE CLASSIFICATION","ELEXICON ENERGY INC._VERIDIAN RATE ZONE_NO RATE CLASS SERVICE CLASSIFICATION",0,0,0,0,0,0,0,0,566953024,1075068,0,0,0,0]
["2019","ELEXICON ENERGY INC.","RESIDENTIAL","RESIDENTIAL","ELEXICON ENERGY INC._VERIDIAN RATE ZONE_RESIDENTIAL SERVICE CLASSIFICATION","ELEXICON ENERGY INC._VERIDIAN RATE ZONE_RESIDENTIAL SERVICE CLASSIFICATION",40942245,0,936010869,0,106231,0,0,0,0,0,936117100,0,977059345,0]
["2019","ELEXICON ENERGY INC.","RESIDENTIAL","RESIDENTIAL SEASONAL","ELEXICON ENERGY INC._VERIDIAN RATE ZONE_SEASONAL RESIDENTIAL SERVICE CLASSIFICATION","ELEXICON ENERGY INC._VERIDIAN RATE ZONE_SEASONAL RESIDENTIAL SERVICE CLASSIFICATION",74042,0,10560566,0,0,0,0,0,0,0,10560566,0,10634608,0]
["2019","ELEXICON ENERGY INC.","SENTINEL LIGHTING CONNECTIONS","SENTINEL LIGHTING","ELEXICON ENERGY INC._VERIDIAN RATE ZONE_SENTINEL LIGHTING SERVICE CLASSIFICATION","ELEXICON ENERGY INC._VERIDIAN RATE ZONE_SENTINEL LIGHTING SERVICE CLASSIFICATION",82928,231,154137,428,21791,61,0,0,0,0,175928,489,258856,720]
["2019","ELEXICON ENERGY INC.","STREET LIGHTING CONNECTIONS","STREET LIGHTING","ELEXICON ENERGY INC._VERIDIAN RATE ZONE_STREET LIGHTING SERVICE CLASSIFICATION","ELEXICON ENERGY INC._VERIDIAN RATE ZONE_STREET LIGHTING SERVICE CLASSIFICATION",2531784,7061,0,0,12862760,35951,0,0,0,0,12862760,35951,15394544,43012]
["2019","ELEXICON ENERGY INC.","UNMETERED SCATTERED LOAD CONNECTIONS","UNMETERED SCATTERED LOAD","ELEXICON ENERGY INC._VERIDIAN RATE ZONE_UNMETERED SCATTERED LOAD SERVICE CLASSIFICATION","ELEXICON ENERGY INC._VERIDIAN RATE ZONE_UNMETERED SCATTERED LOAD SERVICE CLASSIFICATION",223044,0,4457942,0,0,0,0,0,0,0,4457942,0,4680986,0]
["2019","WASAGA DISTRIBUTION INC.","GENERAL SERVICE EQUAL TO OR GREATER THAN 50 KW","GENERAL SERVICE 50 TO 4,999 KW","WASAGA DISTRIBUTION INC._GENERAL SERVICE 50 TO 4,999 KW SERVICE CLASSIFICATION","WASAGA DISTRIBUTION INC._GENERAL SERVICE 50 TO 4,999 KW SERVICE CLASSIFICATION",2949355,9576,507555,0,13523054,36306,2678677,5394.509765625,0,0,16709286,41700.51,19658641,51277.21]
["2019","WASAGA DISTRIBUTION INC.","GENERAL SERVICE LESS THAN 50 KW","GENERAL SERVICE LESS THAN 50 KW","WASAGA DISTRIBUTION INC._GENERAL SERVICE LESS THAN 50 KW SERVICE CLASSIFICATION","WASAGA DISTRIBUTION INC._GENERAL SERVICE LESS THAN 50 KW SERVICE CLASSIFICATION",1298311,0,16372912,0,0,0,0,0,0,0,16372912,0,17671223,0]
["2019","WASAGA DISTRIBUTION INC.","NO RATE CLASS","NO RATE CLASS","WASAGA DISTRIBUTION INC._NO RATE CLASS SERVICE CLASSIFICATION","WASAGA DISTRIBUTION INC._NO RATE CLASS SERVICE CLASSIFICATION",0,0,0,0,0,0,0,0,0,0,0,0,0,0]
["2019","WASAGA DISTRIBUTION INC.","RESIDENTIAL","RESIDENTIAL","WASAGA DISTRIBUTION INC._RESIDENTIAL SERVICE CLASSIFICATION","WASAGA DISTRIBUTION INC._RESIDENTIAL SERVICE CLASSIFICATION",1316660,0,94580487,0,0,0,0,0,0,0,94580487,0,95897147,0]
["2019","WASAGA DISTRIBUTION INC.","STREET LIGHTING CONNECTIONS","STREET LIGHTING","WASAGA DISTRIBUTION INC._STREET LIGHTING SERVICE CLASSIFICATION","WASAGA DISTRIBUTION INC._STREET LIGHTING SERVICE CLASSIFICATION",0,0,0,0,761759,2251.9,0,0,0,0,761759,2251.9,761759,2251.9]
["2019","WASAGA DISTRIBUTION INC.","UNMETERED SCATTERED LOAD CONNECTIONS","UNMETERED SCATTERED LOAD","WASAGA DISTRIBUTION INC._UNMETERED SCATTERED LOAD SERVICE CLASSIFICATION","WASAGA DISTRIBUTION INC._UNMETERED SCATTERED LOAD SERVICE CLASSIFICATION",0,0,153906,0,0,0,0,0,0,0,153906,0,153906,0]
["2019","WATERLOO NORTH HYDRO INC.","EMBEDDED DISTRIBUTOR(S)","EMBEDDED DISTRIBUTOR","WATERLOO NORTH HYDRO INC._EMBEDDED DISTRIBUTOR SERVICE CLASSIFICATION","WATERLOO NORTH HYDRO INC._EMBEDDED DISTRIBUTOR SERVICE CLASSIFICATION",0,0,0,0,36001231,85275,0,0,0,0,36001231,85275,36001231,85275]
["2019","WATERLOO NORTH HYDRO INC.","GENERAL SERVICE EQUAL TO OR GREATER THAN 50 KW","GENERAL SERVICE 50 TO 4,999 KW","WATERLOO NORTH HYDRO INC._GENERAL SERVICE 50 TO 4,999 KW SERVICE CLASSIFICATION","WATERLOO NORTH HYDRO INC._GENERAL SERVICE 50 TO 4,999 KW SERVICE CLASSIFICATION",106116733,0,96993954,234573,494820185,1585803,8585533,0,0,0,600399672,1820376,706516405,1820376]
["2019","WATERLOO NORTH HYDRO INC.","GENERAL SERVICE LESS THAN 50 KW","GENERAL SERVICE LESS THAN 50 KW","WATERLOO NORTH HYDRO INC._GENERAL SERVICE LESS THAN 50 KW SERVICE CLASSIFICATION","WATERLOO NORTH HYDRO INC._GENERAL SERVICE LESS THAN 50 KW SERVICE CLASSIFICATION",33148204,0,164037328,0,793092,0,0,0,0,0,164830420,0,197978624,0]
["2019","WATERLOO NORTH HYDRO INC.","LARGE USER","LARGE USE","WATERLOO NORTH HYDRO INC._LARGE USE SERVICE CLASSIFICATION","WATERLOO NORTH HYDRO INC._LARGE USE SERVICE CLASSIFICATION",0,0,0,0,98366842,173376,0,0,0,0,98366842,173376,98366842,173376]
["2019","WATERLOO NORTH HYDRO INC.","NO RATE CLASS","NO RATE CLASS","WATERLOO NORTH HYDRO INC._NO RATE CLASS SERVICE CLASSIFICATION","WATERLOO NORTH HYDRO INC._NO RATE CLASS SERVICE CLASSIFICATION",0,0,0,0,0,0,0,0,295995456,null,0,0,0,0]
["2019","WATERLOO NORTH HYDRO INC.","RESIDENTIAL","RESIDENTIAL","WATERLOO NORTH HYDRO INC._RESIDENTIAL SERVICE CLASSIFICATION","WATERLOO NORTH HYDRO INC._RESIDENTIAL SERVICE CLASSIFICATION",9396122,0,404293169,0,0,0,0,0,0,0,404293169,0,413689291,0]
["2019","WATERLOO NORTH HYDRO INC.","STREET LIGHTING CONNECTIONS","STREET LIGHTING","WATERLOO NORTH HYDRO INC._STREET LIGHTING SERVICE CLASSIFICATION","WATERLOO NORTH HYDRO INC._STREET LIGHTING SERVICE CLASSIFICATION",97,0,0,0,3498382,9804,0,0,0,0,3498382,9804,3498479,9804]
["2019","WATERLOO NORTH HYDRO INC.","UNMETERED SCATTERED LOAD CONNECTIONS","UNMETERED SCATTERED LOAD","WATERLOO NORTH HYDRO INC._UNMETERED SCATTERED LOAD SERVICE CLASSIFICATION","WATERLOO NORTH HYDRO INC._UNMETERED SCATTERED LOAD SERVICE CLASSIFICATION",141,0,2629142,0,0,0,0,0,0,0,2629142,0,2629283,0]
["2019","WELLAND HYDRO-ELECTRIC SYSTEM CORP.","GENERAL SERVICE EQUAL TO OR GREATER THAN 50 KW","GENERAL SERVICE 50 TO 4,999 KW","WELLAND HYDRO-ELECTRIC SYSTEM CORP._GENERAL SERVICE 50 TO 4,999 KW SERVICE CLASSIFICATION","WELLAND HYDRO_ELECTRIC SYSTEM CORP._GENERAL SERVICE 50 TO 4,999 KW SERVICE CLASSIFICATION",7239329,20018,12433065,24382,130014665,363725,2923062,5287,0,0,145370792,393394,152610121,413412]
["2019","WELLAND HYDRO-ELECTRIC SYSTEM CORP.","GENERAL SERVICE LESS THAN 50 KW","GENERAL SERVICE LESS THAN 50 KW","WELLAND HYDRO-ELECTRIC SYSTEM CORP._GENERAL SERVICE LESS THAN 50 KW SERVICE CLASSIFICATION","WELLAND HYDRO_ELECTRIC SYSTEM CORP._GENERAL SERVICE LESS THAN 50 KW SERVICE CLASSIFICATION",8114259,0,44869078,0,0,0,0,0,0,0,44869078,0,52983337,0]
["2019","WELLAND HYDRO-ELECTRIC SYSTEM CORP.","NO RATE CLASS","NO RATE CLASS","WELLAND HYDRO-ELECTRIC SYSTEM CORP._NO RATE CLASS SERVICE CLASSIFICATION","WELLAND HYDRO_ELECTRIC SYSTEM CORP._NO RATE CLASS SERVICE CLASSIFICATION",0,0,0,0,0,0,0,0,24020460,87485,0,0,0,0]
["2019","WELLAND HYDRO-ELECTRIC SYSTEM CORP.","RESIDENTIAL","RESIDENTIAL","WELLAND HYDRO-ELECTRIC SYSTEM CORP._RESIDENTIAL SERVICE CLASSIFICATION","WELLAND HYDRO_ELECTRIC SYSTEM CORP._RESIDENTIAL SERVICE CLASSIFICATION",4637040,0,165824399,0,0,0,0,0,0,0,165824399,0,170461439,0]
["2019","WELLAND HYDRO-ELECTRIC SYSTEM CORP.","SENTINEL LIGHTING CONNECTIONS","SENTINEL LIGHTING","WELLAND HYDRO-ELECTRIC SYSTEM CORP._SENTINEL LIGHTING SERVICE CLASSIFICATION","WELLAND HYDRO_ELECTRIC SYSTEM CORP._SENTINEL LIGHTING SERVICE CLASSIFICATION",54321,148,621553,1750,0,0,0,0,0,0,621553,1750,675874,1898]
["2019","WELLAND HYDRO-ELECTRIC SYSTEM CORP.","STREET LIGHTING CONNECTIONS","STREET LIGHTING","WELLAND HYDRO-ELECTRIC SYSTEM CORP._STREET LIGHTING SERVICE CLASSIFICATION","WELLAND HYDRO_ELECTRIC SYSTEM CORP._STREET LIGHTING SERVICE CLASSIFICATION",0,0,0,0,1403956,3915,0,0,0,0,1403956,3915,1403956,3915]
["2019","WELLAND HYDRO-ELECTRIC SYSTEM CORP.","UNMETERED SCATTERED LOAD CONNECTIONS","UNMETERED SCATTERED LOAD","WELLAND HYDRO-ELECTRIC SYSTEM CORP._UNMETERED SCATTERED LOAD SERVICE CLASSIFICATION","WELLAND HYDRO_ELECTRIC SYSTEM CORP._UNMETERED SCATTERED LOAD SERVICE CLASSIFICATION",5522,0,832180,0,118405,0,0,0,0,0,950585,0,956107,0]
["2019","WELLINGTON NORTH POWER INC.","GENERAL SERVICE EQUAL TO OR GREATER THAN 50 KW","GENERAL SERVICE 1,000 TO 4,999 KW","WELLINGTON NORTH POWER INC._GENERAL SERVICE 1,000 TO 4,999 KW SERVICE CLASSIFICATION","WELLINGTON NORTH POWER INC._GENERAL SERVICE 1,000 TO 4,999 KW SERVICE CLASSIFICATION",27996530,54812,0,0,18798182,43238,0,0,0,0,18798182,43238,46794712,98050]
["2019","WELLINGTON NORTH POWER INC.","GENERAL SERVICE EQUAL TO OR GREATER THAN 50 KW","GENERAL SERVICE 50 TO 999 KW","WELLINGTON NORTH POWER INC._GENERAL SERVICE 50 TO 999 KW SERVICE CLASSIFICATION","WELLINGTON NORTH POWER INC._GENERAL SERVICE 50 TO 999 KW SERVICE CLASSIFICATION",2296508,5424,0,0,17209756,46488,0,0,0,0,17209756,46488,19506264,51912]
["2019","WELLINGTON NORTH POWER INC.","GENERAL SERVICE LESS THAN 50 KW","GENERAL SERVICE LESS THAN 50 KW","WELLINGTON NORTH POWER INC._GENERAL SERVICE LESS THAN 50 KW SERVICE CLASSIFICATION","WELLINGTON NORTH POWER INC._GENERAL SERVICE LESS THAN 50 KW SERVICE CLASSIFICATION",2335535,0,9987165,0,0,0,0,0,0,0,9987165,0,12322700,0]
["2019","WELLINGTON NORTH POWER INC.","NO RATE CLASS","NO RATE CLASS","WELLINGTON NORTH POWER INC._NO RATE CLASS SERVICE CLASSIFICATION","WELLINGTON NORTH POWER INC._NO RATE CLASS SERVICE CLASSIFICATION",0,0,0,0,0,0,0,0,36721328,73180,0,0,0,0]
["2019","WELLINGTON NORTH POWER INC.","RESIDENTIAL","RESIDENTIAL","WELLINGTON NORTH POWER INC._RESIDENTIAL SERVICE CLASSIFICATION","WELLINGTON NORTH POWER INC._RESIDENTIAL SERVICE CLASSIFICATION",970493,0,26052258,0,0,0,0,0,0,0,26052258,0,27022751,0]
["2019","WELLINGTON NORTH POWER INC.","SENTINEL LIGHTING CONNECTIONS","SENTINEL LIGHTING","WELLINGTON NORTH POWER INC._SENTINEL LIGHTING SERVICE CLASSIFICATION","WELLINGTON NORTH POWER INC._SENTINEL LIGHTING SERVICE CLASSIFICATION",2403,7,18561,52,0,0,0,0,0,0,18561,52,20964,59]
["2019","WELLINGTON NORTH POWER INC.","STREET LIGHTING CONNECTIONS","STREET LIGHTING","WELLINGTON NORTH POWER INC._STREET LIGHTING SERVICE CLASSIFICATION","WELLINGTON NORTH POWER INC._STREET LIGHTING SERVICE CLASSIFICATION",13381,35,0,0,722965,1867,0,0,0,0,722965,1867,736346,1902]
["2019","WELLINGTON NORTH POWER INC.","UNMETERED SCATTERED LOAD CONNECTIONS","UNMETERED SCATTERED LOAD","WELLINGTON NORTH POWER INC._UNMETERED SCATTERED LOAD SERVICE CLASSIFICATION","WELLINGTON NORTH POWER INC._UNMETERED SCATTERED LOAD SERVICE CLASSIFICATION",1138,0,6109,0,0,0,0,0,0,0,6109,0,7247,0]
["2019","WESTARIO POWER INC.","GENERAL SERVICE EQUAL TO OR GREATER THAN 50 KW","GENERAL SERVICE 50 TO 4,999 KW","WESTARIO POWER INC._GENERAL SERVICE 50 TO 4,999 KW SERVICE CLASSIFICATION","WESTARIO POWER INC._GENERAL SERVICE 50 TO 4,999 KW SERVICE CLASSIFICATION",67396753,202901,6404379,24551,108754296,319320,1827725,4899,0,0,116986400,348770,184383153,551671]
["2019","WESTARIO POWER INC.","GENERAL SERVICE LESS THAN 50 KW","GENERAL SERVICE LESS THAN 50 KW","WESTARIO POWER INC._GENERAL SERVICE LESS THAN 50 KW SERVICE CLASSIFICATION","WESTARIO POWER INC._GENERAL SERVICE LESS THAN 50 KW SERVICE CLASSIFICATION",19723830,0,56703672,0,0,0,0,0,0,0,56703672,0,76427502,0]
["2019","WESTARIO POWER INC.","NO RATE CLASS","NO RATE CLASS","WESTARIO POWER INC._NO RATE CLASS SERVICE CLASSIFICATION","WESTARIO POWER INC._NO RATE CLASS SERVICE CLASSIFICATION",0,0,0,0,0,0,0,0,77936552,160533,0,0,0,0]
["2019","WESTARIO POWER INC.","RESIDENTIAL","RESIDENTIAL","WESTARIO POWER INC._RESIDENTIAL SERVICE CLASSIFICATION","WESTARIO POWER INC._RESIDENTIAL SERVICE CLASSIFICATION",4860308,0,196320950,0,0,0,0,0,0,0,196320950,0,201181258,0]
["2019","WESTARIO POWER INC.","SENTINEL LIGHTING CONNECTIONS","SENTINEL LIGHTING","WESTARIO POWER INC._SENTINEL LIGHTING SERVICE CLASSIFICATION","WESTARIO POWER INC._SENTINEL LIGHTING SERVICE CLASSIFICATION",1978,7,16360,46,0,0,0,0,0,0,16360,46,18338,53]
["2019","WESTARIO POWER INC.","STREET LIGHTING CONNECTIONS","STREET LIGHTING","WESTARIO POWER INC._STREET LIGHTING SERVICE CLASSIFICATION","WESTARIO POWER INC._STREET LIGHTING SERVICE CLASSIFICATION",1678538,6092,0,0,971391,3642,0,0,0,0,971391,3642,2649929,9734]
["2019","WESTARIO POWER INC.","UNMETERED SCATTERED LOAD CONNECTIONS","UNMETERED SCATTERED LOAD","WESTARIO POWER INC._UNMETERED SCATTERED LOAD SERVICE CLASSIFICATION","WESTARIO POWER INC._UNMETERED SCATTERED LOAD SERVICE CLASSIFICATION",53627,0,202099,0,0,0,0,0,0,0,202099,0,255726,0]
["2019","ELEXICON ENERGY INC.","GENERAL SERVICE EQUAL TO OR GREATER THAN 50 KW","GENERAL SERVICE 50 TO 4,999 KW","ELEXICON ENERGY INC._WHITBY RATE ZONE_GENERAL SERVICE 50 TO 4,999 KW SERVICE CLASSIFICATION","ELEXICON ENERGY INC._WHITBY RATE ZONE_GENERAL SERVICE 50 TO 4,999 KW SERVICE CLASSIFICATION",73951785,161719,47408741,127913,282511247,666490,4147619,8467,0,0,334067607,802870,408019392,964589]
["2019","ELEXICON ENERGY INC.","GENERAL SERVICE LESS THAN 50 KW","GENERAL SERVICE LESS THAN 50 KW","ELEXICON ENERGY INC._WHITBY RATE ZONE_GENERAL SERVICE LESS THAN 50 KW SERVICE CLASSIFICATION","ELEXICON ENERGY INC._WHITBY RATE ZONE_GENERAL SERVICE LESS THAN 50 KW SERVICE CLASSIFICATION",15421646,0,74826560,0,0,0,0,0,0,0,74826560,0,90248206,0]
["2019","ELEXICON ENERGY INC.","NO RATE CLASS","NO RATE CLASS","ELEXICON ENERGY INC._WHITBY RATE ZONE_NO RATE CLASS SERVICE CLASSIFICATION","ELEXICON ENERGY INC._WHITBY RATE ZONE_NO RATE CLASS SERVICE CLASSIFICATION",0,0,0,0,0,0,0,0,139259184,253691,0,0,0,0]
["2019","ELEXICON ENERGY INC.","RESIDENTIAL","RESIDENTIAL","ELEXICON ENERGY INC._WHITBY RATE ZONE_RESIDENTIAL SERVICE CLASSIFICATION","ELEXICON ENERGY INC._WHITBY RATE ZONE_RESIDENTIAL SERVICE CLASSIFICATION",9032303,0,358107460,0,0,0,0,0,0,0,358107460,0,367139763,0]
["2019","ELEXICON ENERGY INC.","SENTINEL LIGHTING CONNECTIONS","SENTINEL LIGHTING","ELEXICON ENERGY INC._WHITBY RATE ZONE_SENTINEL LIGHTING SERVICE CLASSIFICATION","ELEXICON ENERGY INC._WHITBY RATE ZONE_SENTINEL LIGHTING SERVICE CLASSIFICATION",756,2,29313,85,0,0,0,0,0,0,29313,85,30069,87]
["2019","ELEXICON ENERGY INC.","STREET LIGHTING CONNECTIONS","STREET LIGHTING","ELEXICON ENERGY INC._WHITBY RATE ZONE_STREET LIGHTING SERVICE CLASSIFICATION","ELEXICON ENERGY INC._WHITBY RATE ZONE_STREET LIGHTING SERVICE CLASSIFICATION",0,0,0,0,3647424,9791,0,0,0,0,3647424,9791,3647424,9791]
["2019","ELEXICON ENERGY INC.","UNMETERED SCATTERED LOAD CONNECTIONS","UNMETERED SCATTERED LOAD","ELEXICON ENERGY INC._WHITBY RATE ZONE_UNMETERED SCATTERED LOAD SERVICE CLASSIFICATION","ELEXICON ENERGY INC._WHITBY RATE ZONE_UNMETERED SCATTERED LOAD SERVICE CLASSIFICATION",0,0,1811439,0,0,0,0,0,0,0,1811439,0,1811439,0]
[""]

{"sheet":"hidden1","index":13,"n_rows":22,"n_cols":2,"rows_kept":22,"cut":false,"hidden":true,"merged":[]}
[{"$f":"IF('DELETE 3. Rate Classes'!L17=1, 'DELETE 3. Rate Classes'!#REF!, \"\")","v":""},1]
[{"$f":"IF('DELETE 3. Rate Classes'!L18=1, 'DELETE 3. Rate Classes'!#REF!, \"\")","v":""},2]
[{"$f":"IF('DELETE 3. Rate Classes'!L19=1, 'DELETE 3. Rate Classes'!#REF!, \"\")","v":""},3]
[{"$f":"IF('DELETE 3. Rate Classes'!L20=1, 'DELETE 3. Rate Classes'!#REF!, \"\")","v":""},4]
[{"$f":"IF('DELETE 3. Rate Classes'!L21=1, 'DELETE 3. Rate Classes'!#REF!, \"\")","v":""},5]
[{"$f":"IF('DELETE 3. Rate Classes'!L22=1, 'DELETE 3. Rate Classes'!#REF!, \"\")","v":""},6]
[{"$f":"IF('DELETE 3. Rate Classes'!L23=1, 'DELETE 3. Rate Classes'!#REF!, \"\")","v":""},7]
[{"$f":"IF('DELETE 3. Rate Classes'!L24=1, 'DELETE 3. Rate Classes'!#REF!, \"\")","v":""},8]
[{"$f":"IF('DELETE 3. Rate Classes'!L25=1, 'DELETE 3. Rate Classes'!#REF!, \"\")","v":""},9]
[{"$f":"IF('DELETE 3. Rate Classes'!L26=1, 'DELETE 3. Rate Classes'!#REF!, \"\")","v":""},10]
[{"$f":"IF('DELETE 3. Rate Classes'!L27=1, 'DELETE 3. Rate Classes'!#REF!, \"\")","v":""},11]
[{"$f":"IF('DELETE 3. Rate Classes'!L28=1, 'DELETE 3. Rate Classes'!#REF!, \"\")","v":""},12]
[{"$f":"IF('DELETE 3. Rate Classes'!L29=1, 'DELETE 3. Rate Classes'!#REF!, \"\")","v":""},13]
[{"$f":"IF('DELETE 3. Rate Classes'!L30=1, 'DELETE 3. Rate Classes'!#REF!, \"\")","v":""},14]
[{"$f":"IF('DELETE 3. Rate Classes'!L31=1, 'DELETE 3. Rate Classes'!#REF!, \"\")","v":""},15]
[{"$f":"IF('DELETE 3. Rate Classes'!L32=1, 'DELETE 3. Rate Classes'!#REF!, \"\")","v":""},16]
[{"$f":"IF('DELETE 3. Rate Classes'!L33=1, 'DELETE 3. Rate Classes'!#REF!, \"\")","v":""},17]
[{"$f":"IF('DELETE 3. Rate Classes'!L34=1, 'DELETE 3. Rate Classes'!#REF!, \"\")","v":""},18]
[{"$f":"IF('DELETE 3. Rate Classes'!L35=1, 'DELETE 3. Rate Classes'!#REF!, \"\")","v":""},19]
[{"$f":"IF('DELETE 3. Rate Classes'!L36=1, 'DELETE 3. Rate Classes'!#REF!, \"\")","v":""},20]
[{"$f":"IF('DELETE 3. Rate Classes'!L37=1, 'DELETE 3. Rate Classes'!#REF!, \"\")","v":""},21]
[{"$f":"IF('DELETE 3. Rate Classes'!L38=1, 'DELETE 3. Rate Classes'!#REF!, \"\")","v":""},22]